Workbook

Sheet Total
B1: JANUARY, 2022 MONTH REPORT ABSTRACT
B2: ADDRESS OF THE HCFS | C2: NO.OF HCFs | D2: NO.OF BEDS | E2: YELLOW | F2: RED | G2: BLUE | H2: WHITE | I2: TOTAL
E3: Values are in Kilograms
B4: NIZAMABAD | C4: ='Area Wise Total'!D12 -> 315 | D4: =Nizamabad!E330 -> 4,943 | E4: =Nizamabad!DZ330 -> 10,168 | F4: =Nizamabad!EA330 -> 9,081 | G4: =Nizamabad!EB330 -> 304 | H4: =Nizamabad!EC330 -> 9 | I4: =SUM(E4:H4) -> 19,562
B5: KAMAREDDY | C5: ='Area Wise Total'!D19 -> 168 | D5: =Kamareddy!E178 -> 1,938 | E5: =Kamareddy!DZ178 -> 3,240 | F5: =Kamareddy!EA178 -> 1,392 | G5: =Kamareddy!EB178 -> 803 | H5: =Kamareddy!EC178 -> 2 | I5: =SUM(E5:H5) -> 5,437
B6: NIRMAL | C6: ='Area Wise Total'!D24 -> 85 | D6: =Nirmal!E93 -> 1,373 | E6: =Nirmal!DZ93 -> 1,375 | F6: =Nirmal!EA93 -> 1,833 | G6: =Nirmal!EB93 -> 25 | H6: =Nirmal!EC93 -> 8 | I6: =SUM(E6:H6) -> 3,241
B7: ADILABAD | C7: ='Area Wise Total'!D26 -> 81 | D7: =Adilabad!E86 -> 1,126 | E7: =Adilabad!DZ86 -> 1,456 | F7: =Adilabad!EA86 -> 1,474 | G7: =Adilabad!EB86 -> 3 | H7: =Adilabad!EC86 -> 10 | I7: =SUM(E7:H7) -> 2,943
B8: ASIFABAD | C8: ='Area Wise Total'!D28 -> 27 | D8: =Asifabad!E31 -> 525 | E8: =Asifabad!DZ31 -> 620 | F8: =Asifabad!EA31 -> 310 | G8: =Asifabad!EB31 -> 0 | H8: =Asifabad!EC31 -> 0 | I8: =SUM(E8:H8) -> 930
B9: TOTAL | C9: =SUM(C4:C8) -> 676 | D9: =SUM(D4:D8) -> 9,905 | E9: 16,859 | F9: 14,090 | G9: 1,135 | H9: =SUM(H4:H8) -> 29 | I9: 32,113
B11: DETAILS OF COLOURS
B12: YELLOW | C12: INCENERABLE WASTE
B13: RED | C13: AUTOCLAVE WASTE
B14: BLUE | C14: BROKEN GLASS, METALIC BODY IMPLANTS
B15: WHITE | C15: SHARPENS, NEEDLES, BLADES, SCALPELS, NAILS, LANCETS

Sheet Area Wise Total
B2: STATEMENT SHOWING AREA WISE RECEIVED BIO - MEDICAL WASTE
B3: JANUARY 2022
B4: District | C4: Areas | D4: HCF's | E4: Beds | F4: Yellow | G4: Red | H4: Blue | I4: White
B6: Nizamabad | C6: Nizamabad | D6: =COUNTIF(Nizamabad!A4:A7,">0")+COUNTIF(Nizamabad!A11:A227,">0") -> 217 | E6: =SUM(Nizamabad!E4:E7)+SUM(Nizamabad!E11:E227) -> 3697 | F6: =SUM(Nizamabad!DZ4:DZ7)+SUM(Nizamabad!DZ11:DZ227) -> 8477 | G6: =SUM(Nizamabad!EA4:EA7)+SUM(Nizamabad!EA11:EA227) -> 7498 | H6: =SUM(Nizamabad!EB4:EB7)+SUM(Nizamabad!EB11:EB227) -> 78 | I6: =SUM(Nizamabad!EC4:EC7)+SUM(Nizamabad!EC11:EC227) -> 9
C7: Armoor | D7: =COUNTIF(Nizamabad!A229:A275,">0") -> 47 | E7: =SUM(Nizamabad!E229:E275) -> 606 | F7: =SUM(Nizamabad!DZ229:DZ275) -> 1427 | G7: =SUM(Nizamabad!EA229:EA275) -> 1708 | H7: =SUM(Nizamabad!EB229:EB275) -> 6 | I7: =SUM(Nizamabad!EC229:EC275) -> 0
C8: Bodhan | D8: =COUNTIF(Nizamabad!A277:A317, ">0")+COUNTIF(Nizamabad!A8,">0") -> 42 | E8: =Nizamabad!E8+SUM(Nizamabad!E277:E317) -> 486 | F8: =Nizamabad!DZ8+SUM(Nizamabad!DZ277:DZ317) -> 905 | G8: =Nizamabad!EA8+SUM(Nizamabad!EA277:EA317) -> 712 | H8: =Nizamabad!EB8+SUM(Nizamabad!EB277:EB317) -> 257 | I8: =Nizamabad!EC8+SUM(Nizamabad!EC277:EC317) -> 0
C9: Dichpally | D9: =COUNTIF(Nizamabad!A319:A322, ">0") -> 4 | E9: =SUM(Nizamabad!E319:E322) -> 80 | F9: =SUM(Nizamabad!DZ319:DZ322) -> 140 | G9: =SUM(Nizamabad!EA319:EA322) -> 56 | H9: =SUM(Nizamabad!EB319:EB322) -> 10 | I9: =SUM(Nizamabad!EC319:EC322) -> 0
C10: Varni | D10: =COUNTIF(Nizamabad!A324:A325, ">0") -> 2 | E10: =SUM(Nizamabad!E324:E325) -> 31 | F10: =SUM(Nizamabad!DZ324:DZ325) -> 26 | G10: =SUM(Nizamabad!EA324:EA325) -> 92 | H10: =SUM(Nizamabad!EB324:EB325) -> 29 | I10: =SUM(Nizamabad!EC324:EC325) -> 0
C11: Navipet | D11: =COUNTIF(Nizamabad!A327:A329,">0") -> 3 | E11: =SUM(Nizamabad!E327:E329) -> 43 | F11: =SUM(Nizamabad!DZ327:DZ329) -> 138 | G11: =SUM(Nizamabad!EA327:EA329) -> 7 | H11: =SUM(Nizamabad!EB327:EB329) -> 4 | I11: =SUM(Nizamabad!EC327:EC329) -> 0
C12: Total: | D12: =SUM(D6:D11) -> 315 | E12: 4943 | F12: 11113 | G12: 10073 | H12: 384 | I12: 9
B14: Kamareddy | C14: Kamareddy | D14: =COUNTIF(Kamareddy!A4:A5, ">0")+COUNTIF(Kamareddy!A9:A138, ">0") -> 132 | E14: =SUM(Kamareddy!E4:E5)+SUM(Kamareddy!E9:E138) -> 1373 | F14: =SUM(Kamareddy!DZ4:DZ5)+SUM(Kamareddy!DZ9:DZ138) -> 2456 | G14: =SUM(Kamareddy!EA4:EA5)+SUM(Kamareddy!EA9:EA138) -> 1034 | H14: =SUM(Kamareddy!EB4:EB5)+SUM(Kamareddy!EB9:EB138) -> 541 | I14: =SUM(Kamareddy!EC4:EC5)+SUM(Kamareddy!EC9:EC138) -> 2
C15: Banswada | D15: =COUNTIF(Kamareddy!A6,">0")+COUNTIF(Kamareddy!A140:A162, ">0") -> 24 | E15: =Kamareddy!E6+SUM(Kamareddy!E140:E162) -> 318 | F15: =Kamareddy!DZ6+SUM(Kamareddy!DZ140:DZ162) -> 656 | G15: =Kamareddy!EA6+SUM(Kamareddy!EA140:EA162) -> 156 | H15: =Kamareddy!EB6+SUM(Kamareddy!EB140:EB162) -> 192 | I15: =Kamareddy!EC6+SUM(Kamareddy!EC140:EC162) -> 0
C16: Bichkunda | D16: =COUNTIF(Kamareddy!A164:A165, ">0") -> 2 | E16: =SUM(Kamareddy!E164:E165) -> 12 | F16: =SUM(Kamareddy!DZ164:DZ165) -> 37 | G16: =SUM(Kamareddy!EA164:EA165) -> 1 | H16: =SUM(Kamareddy!EB164:EB165) -> 20 | I16: =SUM(Kamareddy!EC164:EC165) -> 0
C17: Pitlam | D17: =COUNTIF(Kamareddy!A167:A170, ">0") -> 4 | E17: =SUM(Kamareddy!E167:E170) -> 40 | F17: =SUM(Kamareddy!DZ167:DZ170) -> 65 | G17: =SUM(Kamareddy!EA167:EA170) -> 1 | H17: =SUM(Kamareddy!EB167:EB170) -> 45 | I17: =SUM(Kamareddy!EC167:EC170) -> 0
C18: Yellareddy | D18: =COUNTIF(Kamareddy!A172:A177,">0") -> 6 | E18: =SUM(Kamareddy!E172:E177) -> 195 | F18: =SUM(Kamareddy!DZ172:DZ177) -> 98 | G18: =SUM(Kamareddy!EA172:EA177) -> 252 | H18: =SUM(Kamareddy!EB172:EB177) -> 58 | I18: =SUM(Kamareddy!EC172:EC177) -> 0
C19: Total: | D19: =SUM(D14:D18) -> 168 | E19: 1938 | F19: 3312 | G19: 1444 | H19: 856 | I19: 2
B21: Nirmal | C21: Nirmal | D21: =COUNTIF(Nirmal!A4,">0")+COUNTIF(Nirmal!A8:A66,">0") -> 60 | E21: =Nirmal!E4+SUM(Nirmal!E8:E66) -> 919 | F21: =Nirmal!DZ4+SUM(Nirmal!DZ8:DZ66) -> 1045 | G21: =Nirmal!EA4+SUM(Nirmal!EA8:EA66) -> 1359 | H21: =Nirmal!EB4+SUM(Nirmal!EB8:EB66) -> 10 | I21: =Nirmal!EC4+SUM(Nirmal!EC8:EC66) -> 4
C22: Bhainsa | D22: =COUNTIF(Nirmal!A5,">0")+COUNTIF(Nirmal!A68:A86,">0") -> 20 | E22: =Nirmal!E5+SUM(Nirmal!E68:E86) -> 374 | F22: =Nirmal!DZ5+SUM(Nirmal!DZ68:DZ86) -> 292 | G22: =Nirmal!EA5+SUM(Nirmal!EA68:EA86) -> 371 | H22: =Nirmal!EB5+SUM(Nirmal!EB68:EB86) -> 15 | I22: =Nirmal!EC5+SUM(Nirmal!EC68:EC86) -> 1
C23: Mudhole | D23: =COUNTIF(Nirmal!A88:A92, ">0") -> 5 | E23: =SUM(Nirmal!E88:E92) -> 80 | F23: =SUM(Nirmal!DZ88:DZ92) -> 38 | G23: =SUM(Nirmal!EA88:EA92) -> 103 | H23: =SUM(Nirmal!EB88:EB92) -> 0 | I23: =SUM(Nirmal!EC88:EC92) -> 3
C24: Total: | D24: =SUM(D21:D23) -> 85 | E24: 1373 | F24: 1375 | G24: 1833 | H24: 25 | I24: 8
B26: Adilabad | D26: =COUNTIF(Adilabad!A4:A85,">0") -> 81 | E26: =SUM(Adilabad!E4:E85) -> 1126 | F26: =SUM(Adilabad!DZ4:DZ85) -> 1733 | G26: =SUM(Adilabad!EA4:EA85) -> 1718 | H26: =SUM(Adilabad!EB4:EB85) -> 3 | I26: =SUM(Adilabad!EC4:EC85) -> 0
B28: Asifabad | D28: =COUNTIF(Asifabad!A4:A30, ">0") -> 27 | E28: =SUM(Asifabad!E4:E29) -> 525 | F28: =SUM(Asifabad!DZ4:DZ29) -> 589 | G28: =SUM(Asifabad!EA4:EA29) -> 310 | H28: =SUM(Asifabad!EB4:EB29) -> 0 | I28: =SUM(Asifabad!EC4:EC29) -> 0
B30: Grand Total | D30: =D12+D19+D24+D26+D28 -> 676 | E30: =E12+E19+E24+E26+E28 -> 9905 | F30: 18122 | G30: 15378 | H30: 1268 | I30: 19

Sheet Nizamabad
A1: JANUARY MONTH REPORT | F1: 2022-01-01 | J1: 2022-01-02 | N1: 2022-01-03 | R1: 2022-01-04 | V1: 2022-01-05 | Z1: 2022-01-06 | AD1: 2022-01-07 | AH1: 2022-01-08 | AL1: 2022-01-09 | AP1: 2022-01-10 | AT1: 2022-01-11 | AX1: 2022-01-12 | BB1: 2022-01-13 | BF1: 2022-01-14 | BJ1: 2022-01-15 | BN1: 2022-01-16 | BR1: 2022-01-17 | BV1: 2022-01-18 | BZ1: 2022-01-19 | CD1: 2022-01-20 | CH1: 2022-01-21 | CL1: 2022-01-22 | CP1: 2022-01-23 | CT1: 2022-01-24 | CX1: 2022-01-25 | DB1: 2022-01-26 | DF1: 2022-01-27 | DJ1: 2022-01-28 | DN1: 2022-01-29 | DR1: 2022-01-30 | DV1: 2022-01-31 | DZ1: TOTAL
A2: SNO | B2: HCF ID | C2: NAME OF THE HCF | D2: ADDRESS OF THE HCFS | E2: NO.OF BEDS | F2: Yellow | G2: Red | H2: Blue | I2: White | J2: Yellow | K2: Red | L2: Blue | M2: White | N2: Yellow | O2: Red | P2: Blue | Q2: White | R2: Yellow | S2: Red | T2: Blue | U2: White | V2: Yellow | W2: Red | X2: Blue | Y2: White | Z2: Yellow | AA2: Red | AB2: Blue | AC2: White | AD2: Yellow | AE2: Red | AF2: Blue | AG2: White | AH2: Yellow | AI2: Red | AJ2: Blue | AK2: White | AL2: Yellow | AM2: Red | AN2: Blue | AO2: White | AP2: Yellow | AQ2: Red | AR2: Blue | AS2: White | AT2: Yellow | AU2: Red | AV2: Blue | AW2: White | AX2: Yellow | AY2: Red | AZ2: Blue | BA2: White | BB2: Yellow | BC2: Red | BD2: Blue | BE2: White | BF2: Yellow | BG2: Red | BH2: Blue | BI2: White | BJ2: Yellow | BK2: Red | BL2: Blue | BM2: White | BN2: Yellow | BO2: Red | BP2: Blue | BQ2: White | BR2: Yellow | BS2: Red | BT2: Blue | BU2: White | BV2: Yellow | BW2: Red | BX2: Blue | BY2: White | BZ2: Yellow | CA2: Red | CB2: Blue | CC2: White | CD2: Yellow | CE2: Red | CF2: Blue | CG2: White | CH2: Yellow | CI2: Red | CJ2: Blue | CK2: White | CL2: Yellow | CM2: Red | CN2: Blue | CO2: White | CP2: Yellow | CQ2: Red | CR2: Blue | CS2: White | CT2: Yellow | CU2: Red | CV2: Blue | CW2: White | CX2: Yellow | CY2: Red | CZ2: Blue | DA2: White | DB2: Yellow | DC2: Red | DD2: Blue | DE2: White | DF2: Yellow | DG2: Red | DH2: Blue | DI2: White | DJ2: Yellow | DK2: Red | DL2: Blue | DM2: White | DN2: Yellow | DO2: Red | DP2: Blue | DQ2: White | DR2: Yellow | DS2: Red | DT2: Blue | DU2: White | DV2: Yellow | DW2: Red | DX2: Blue | DY2: White | DZ2: Yellow | EA2: Red | EB2: Blue | EC2: White
A3: 100 AND ABOVE BEDS HCFs
A4: 1 | B4: GOVER503001TSBH00988 | C4: GOVT. DIST. HOSPITAL | D4: BESIDE NIZAMABAD BUS STATION, NIZAMABAD | E4: 500 | F4: 8 | G4: 8 | J4: 7 | K4: 6 | N4: 8 | O4: 8 | R4: 8 | S4: 8 | V4: 3 | W4: 4 | Z4: 4 | AA4: 6 | AD4: 4 | AE4: 6 | AH4: 4 | AI4: 6 | AL4: 4 | AM4: 6 | AP4: 6 | AQ4: 6 | AT4: 8 | AU4: 8 | AX4: 6 | AY4: 6 | BB4: 8 | BC4: 8 | BF4: 3 | BG4: 6 | BJ4: 6 | BK4: 6 | BN4: 5 | BO4: 6 | BR4: 6 | BS4: 6 | BV4: 6 | BW4: 6 | BZ4: 6 | CA4: 6 | CD4: 5 | CE4: 6 | CH4: 6 | CI4: 5 | CL4: 5 | CM4: 6 | CN4: 3 | CP4: 5 | CQ4: 5 | CT4: 4 | CU4: 6 | CX4: 4 | CY4: 6 | DB4: 4 | DC4: 4 | DF4: 4 | DG4: 4 | DJ4: 6 | DK4: 6 | DN4: 6 | DO4: 6 | DR4: 5 | DS4: 5 | DV4: 6 | DW4: 6 | DZ4: =F4+J4+N4+R4+V4+Z4+AD4+AH4+AL4+AP4+AT4+AX4+BB4+BF4+BJ4+BN4+BR4+BV4+BZ4+CD4+CH4+CL4+CP4+CT4+CX4+DB4+DF4+DJ4+DN4+DR4+DV4 -> 170 | EA4: =G4+K4+O4+S4+W4+AA4+AE4+AI4+AM4+AQ4+AU4+AY4+BC4+BG4+BK4+BO4+BS4+BW4+CA4+CE4+CI4+CM4+CQ4+CU4+CY4+DC4+DG4+DK4+DO4+DS4+DW4 -> 187 | EB4: =H4+L4+P4+T4+X4+AB4+AF4+AJ4+AN4+AR4+AV4+AZ4+BD4+BH4+BL4+BP4+BT4+BX4+CB4+CF4+CJ4+CN4+CR4+CV4+CZ4+DD4+DH4+DL4+DP4+DT4 -> 3 | EC4: =I4+M4+Q4+U4+Y4+AC4+AG4+AK4+AO4+AS4+AW4+BA4+BE4+BI4+BM4+BQ4+BU4+BY4+CC4+CG4+CK4+CO4+CS4+CW4+DA4+DE4+DI4+DM4+DQ4+DU4 -> 0
A5: 2 | B5: MEGHN503003TSBH00905 | C5: MEGHANA INSTITUTE OF DENTAL SCIENCE | D5: MALLARAM VILLAGE,NIZAMABAD | E5: 200 | F5: 4 | G5: 4 | J5: 3 | K5: 3 | N5: 8 | O5: 4 | R5: 4 | S5: 4 | V5: 4 | W5: 4 | Z5: 6 | AA5: 6 | AD5: 4 | AE5: 4 | AH5: 4 | AI5: 4 | AL5: 4 | AM5: 4 | AR5: 8 | BF5: 3 | BG5: 3 | BK5: 4 | BO5: 4 | BR5: 4 | BS5: 4 | BV5: 4 | BW5: 5 | CD5: 4 | CE5: 4 | CH5: 4 | CI5: 3 | CL5: 3 | CM5: 4 | CN5: 2 | CP5: 3 | CQ5: 3 | CT5: 4 | CU5: 4 | CX5: 4 | CY5: 4 | DB5: 4 | DC5: 4 | DF5: 4 | DG5: 4 | DJ5: 4 | DK5: 4 | DN5: 3 | DO5: 4 | DR5: 3 | DS5: 4 | DV5: 4 | DW5: 4 | DZ5: =F5+J5+N5+R5+V5+Z5+AD5+AH5+AL5+AP5+AT5+AX5+BB5+BF5+BJ5+BN5+BR5+BV5+BZ5+CD5+CH5+CL5+CP5+CT5+CX5+DB5+DF5+DJ5+DN5+DR5+DV5 -> 96 | EA5: =G5+K5+O5+S5+W5+AA5+AE5+AI5+AM5+AQ5+AU5+AY5+BC5+BG5+BK5+BO5+BS5+BW5+CA5+CE5+CI5+CM5+CQ5+CU5+CY5+DC5+DG5+DK5+DO5+DS5+DW5 -> 103 | EB5: =H5+L5+P5+T5+X5+AB5+AF5+AJ5+AN5+AR5+AV5+AZ5+BD5+BH5+BL5+BP5+BT5+BX5+CB5+CF5+CJ5+CN5+CR5+CV5+CZ5+DD5+DH5+DL5+DP5+DT5 -> 10 | EC5: =I5+M5+Q5+U5+Y5+AC5+AG5+AK5+AO5+AS5+AW5+BA5+BE5+BI5+BM5+BQ5+BU5+BY5+CC5+CG5+CK5+CO5+CS5+CW5+DA5+DE5+DI5+DM5+DQ5+DU5 -> 0
A6: 3 | B6: PRAGA503001TSBH06142 | C6: PRAGATHI HOSPITAL | D6: Dr. BHOOPATHI REDDY,HYD. ROAD, PRAGATHI NAGAR, NIZAMABAD | E6: 150 | F6: 7 | G6: 8 | J6: 5 | K6: 5 | N6: 8 | O6: 8 | R6: 6 | S6: 6 | V6: 3 | W6: 4 | Z6: 5 | AA6: 5 | AD6: 4 | AE6: 4 | AL6: 3 | AM6: 4 | AR6: 8 | BB6: 5 | BC6: 5 | BD6: 5 | BE6: 5 | BF6: 4 | BJ6: 4 | BN6: 4 | BV6: 6 | CD6: 6 | CE6: 6 | CH6: 6 | CI6: 5 | CL6: 5 | CM6: 5 | CN6: 5 | CP6: 4 | CQ6: 5 | CT6: 3 | CU6: 5 | CX6: 3 | CY6: 5 | DB6: 3 | DC6: 4 | DF6: 4 | DG6: 4 | DJ6: 5 | DK6: 5 | DN6: 6 | DO6: 6 | DR6: 5 | DS6: 5 | DV6: 5 | DW6: 5 | DZ6: 119 | EA6: 109 | EB6: 18 | EC6: 5
A7: 4 | B7: MEDIC503001TSBH09849 | C7: MEDICOVER HOSPITAL | D7: Dr. K.V BHASKAR REDDY,YELLAMMA GUTTA X ROAD, HYD. ROAD, NIZAMABAD | E7: 100 | F7: 8 | J7: 7 | O7: 6 | P7: 2 | V7: 3 | W7: 4 | Z7: 4 | AA7: 5 | AD7: 4 | AE7: 6 | AL7: 4 | AM7: 4 | AR7: 8 | AZ7: 8 | BD7: 8 | BN7: 4 | BO7: 5 | CB7: 6 | CD7: 5 | CE7: 5 | CH7: 6 | CI7: 6 | CL7: 5 | CM7: 5 | CN7: 5 | CP7: 5 | CQ7: 5 | CT7: 3 | CU7: 4 | CX7: 3 | CY7: 4 | DB7: 4 | DC7: 4 | DF7: 3 | DG7: 4 | DJ7: 4 | DK7: 4 | DN7: 5 | DO7: 5 | DR7: 5 | DS7: 5 | DV7: 6 | DW7: 6 | DZ7: 88 | EA7: 87 | EB7: 37 | EC7: 0
A8: 5 | B8: DISTR503185TSBH08531 | C8: AREA HOSPITAL, BODHAN | D8: NEAR AMBEDKAR CHOWRASTA, BODHAN | E8: 100 | G8: 6 | K8: 5 | N8: 6 | R8: 6 | V8: 6 | Z8: 6 | AD8: 6 | AH8: 6 | AL8: 6 | AP8: 6 | AT8: 6 | AX8: 6 | BB8: 3 | BC8: 3 | BF8: 2 | BG8: 2 | BJ8: 3 | BK8: 3 | BN8: 3 | BO8: 4 | BR8: 3 | BS8: 3 | BW8: 3 | BX8: 3 | CA8: 3 | CB8: 3 | CD8: 3 | CE8: 3 | CI8: 3 | CJ8: 3 | CM8: 3 | CN8: 3 | CQ8: 4 | CR8: 3 | CU8: 3 | CV8: 3 | CY8: 3 | CZ8: 3 | DC8: 3 | DD8: 3 | DG8: 3 | DH8: 3 | DK8: 3 | DL8: 3 | DO8: 3 | DP8: 3 | DS8: 3 | DT8: 3 | DV8: 3 | DW8: 3 | DZ8: 80 | EA8: 69 | EB8: 36 | EC8: 0
A9: 80 TO 50 BEDS HCFs
A10: NIZAMABAD
A11: 1 | B11: PRATI503001TSBH00889 | C11: PRATHIBHA SUPER SPECIALITY HOSPITAL | D11: Dr.MOTHI LAL JADAV,HYDERABAD ROAD,NIZAMABAD | E11: 80 | F11: 6 | J11: 5 | N11: 8 | O11: 8 | R11: 8 | S11: 8 | V11: 3 | W11: 5 | Z11: 4 | AA11: 5 | AD11: 5 | AE11: 5 | AH11: 4 | AI11: 6 | AL11: 4 | AM11: 6 | AP11: 8 | AQ11: 8 | AT11: 8 | AU11: 8 | AX11: 4 | AY11: 6 | BB11: 8 | BC11: 8 | BF11: 4 | BG11: 3 | BJ11: 6 | BK11: 6 | BN11: 5 | BO11: 5 | BR11: 6 | BS11: 6 | BV11: 6 | BW11: 6 | BZ11: 6 | CA11: 6 | CH11: 6 | CI11: 6 | CL11: 6 | CM11: 6 | CP11: 5 | CQ11: 5 | CT11: 5 | CU11: 5 | CX11: 5 | CY11: 5 | DB11: 4 | DC11: 4 | DF11: 5 | DG11: 3 | DJ11: 4 | DK11: 5 | DN11: 5 | DO11: 5 | DR11: 6 | DS11: 6 | DV11: 6 | DW11: 6 | DZ11: =F11+J11+N11+R11+V11+Z11+AD11+AH11+AL11+AP11+AT11+AX11+BB11+BF11+BJ11+BN11+BR11+BV11+BZ11+CD11+CH11+CL11+CP11+CT11+CX11+DB11+DF11+DJ11+DN11+DR11+DV11 -> 165 | EA11: =G11+K11+O11+S11+W11+AA11+AE11+AI11+AM11+AQ11+AU11+AY11+BC11+BG11+BK11+BO11+BS11+BW11+CA11+CE11+CI11+CM11+CQ11+CU11+CY11+DC11+DG11+DK11+DO11+DS11+DW11 -> 161 | EB11: =H11+L11+P11+T11+X11+AB11+AF11+AJ11+AN11+AR11+AV11+AZ11+BD11+BH11+BL11+BP11+BT11+BX11+CB11+CF11+CJ11+CN11+CR11+CV11+CZ11+DD11+DH11+DL11+DP11+DT11 -> 0 | EC11: =I11+M11+Q11+U11+Y11+AC11+AG11+AK11+AO11+AS11+AW11+BA11+BE11+BI11+BM11+BQ11+BU11+BY11+CC11+CG11+CK11+CO11+CS11+CW11+DA11+DE11+DI11+DM11+DQ11+DU11 -> 0
A12: 2 | B12: SHIVA503001TSBH00427 | C12: SHIVA SAI EMERGENCY AND MULTI SPECIALITY HOSPITAL | D12: Dr. C. VINODA,OPP: DECCAN GRAMEENA BANK, KHALEEL WADI, NIZAMABAD | E12: 53 | F12: 3 | J12: 3 | O12: 3 | S12: 3 | V12: 2 | W12: 2 | Z12: 3 | AA12: 3 | AD12: 3 | AE12: 3 | AH12: 2 | AI12: 3 | AL12: 2 | AM12: 3 | AP12: 3 | AX12: 5 | BC12: 3 | BF12: 2 | BG12: 2 | BJ12: 3 | BK12: 3 | BN12: 2 | BO12: 2 | BR12: 3 | BS12: 3 | BV12: 3 | BW12: 3 | CA12: 3 | CI12: 3 | CL12: 3 | CM12: 3 | CP12: 3 | CQ12: 3 | CT12: 3 | CU12: 3 | CX12: 3 | CY12: 3 | DB12: 3 | DC12: 3 | DF12: 3 | DG12: 3 | DJ12: 2 | DK12: 2 | DO12: 3 | DR12: 3 | DS12: 3 | DV12: 3 | DZ12: =F12+J12+N12+R12+V12+Z12+AD12+AH12+AL12+AP12+AT12+AX12+BB12+BF12+BJ12+BN12+BR12+BV12+BZ12+CD12+CH12+CL12+CP12+CT12+CX12+DB12+DF12+DJ12+DN12+DR12+DV12 -> 65 | EA12: =G12+K12+O12+S12+W12+AA12+AE12+AI12+AM12+AQ12+AU12+AY12+BC12+BG12+BK12+BO12+BS12+BW12+CA12+CE12+CI12+CM12+CQ12+CU12+CY12+DC12+DG12+DK12+DO12+DS12+DW12 -> 68 | EB12: =H12+L12+P12+T12+X12+AB12+AF12+AJ12+AN12+AR12+AV12+AZ12+BD12+BH12+BL12+BP12+BT12+BX12+CB12+CF12+CJ12+CN12+CR12+CV12+CZ12+DD12+DH12+DL12+DP12+DT12 -> 0 | EC12: =I12+M12+Q12+U12+Y12+AC12+AG12+AK12+AO12+AS12+AW12+BA12+BE12+BI12+BM12+BQ12+BU12+BY12+CC12+CG12+CK12+CO12+CS12+CW12+DA12+DE12+DI12+DM12+DQ12+DU12 -> 0
A13: 3 | B13: BOMBA503001TSBH00885 | C13: BOMBAY NURISNG HOME | D13: Dr. T NARENDRA,YELLAMMA GUTTA X ROAD, HYD. ROAD, NIZAMABAD | E13: 50 | F13: 2 | J13: 2 | N13: 2 | R13: 3 | V13: 3 | W13: 3 | Z13: 3 | AA13: 3 | AD13: 4 | AE13: 4 | AI13: 4 | AM13: 4 | AS13: 2 | BC13: 2 | BF13: 4 | BK13: 2 | BO13: 2 | BS13: 3 | BV13: 3 | CI13: 2 | CL13: 3 | CP13: 3 | CT13: 3 | CU13: 4 | CX13: 3 | CY13: 3 | DB13: 3 | DC13: 3 | DF13: 3 | DG13: 3 | DJ13: 4 | DK13: 4 | DO13: 2 | DR13: 2 | DS13: 2 | DV13: 3 | DZ13: 53 | EA13: 50 | EB13: 0 | EC13: 2
A14: 4 | B14: BRIND503001TSBH00922 | C14: BRINDAVAN HOSPITAL | D14: Dr.B.NAVEEN BHASKER, HYD ROAD,NZB | E14: 50 | F14: 6 | G14: 6 | J14: 5 | K14: 5 | O14: 8 | S14: 8 | V14: 4 | W14: 4 | Z14: 4 | AA14: 4 | AD14: 3 | AE14: 5 | AL14: 3 | AP14: 5 | CH14: 5 | CI14: 7 | CL14: 6 | CM14: 5 | CP14: 4 | CQ14: 5 | CT14: 3 | CU14: 3 | CX14: 3 | CY14: 3 | DB14: 3 | DC14: 3 | DF14: 4 | DG14: 4 | DJ14: 3 | DK14: 4 | DN14: 5 | DO14: 5 | DR14: 4 | DS14: 5 | DV14: 5 | DW14: 5 | DZ14: 75 | EA14: 89 | EB14: 0 | EC14: 0
A15: 5 | B15: DREAM503001TSBH06107 | C15: DREAMLAND HOPE HOSPITAL | D15: Dr.B.KISHOR REDDY, OPP.OLD JJ HOSPITALNZB | E15: 50 | AL15: 3 | AM15: 3 | CH15: 6 | CI15: 6 | CL15: 5 | CM15: 5 | CP15: 5 | CQ15: 5 | CT15: 3 | CU15: 4 | CX15: 3 | CY15: 5 | DB15: 3 | DC15: 3 | DF15: 3 | DG15: 3 | DJ15: 3 | DK15: 4 | DN15: 5 | DO15: 5 | DR15: 4 | DS15: 4 | DV15: 6 | DW15: 6 | DZ15: 49 | EA15: 53 | EB15: 0 | EC15: 0
A16: 6 | B16: GSBVM503001TSBH07045 | C16: GSBV MEMORIAL MULTI SPECIALTY HOSPITAL | D16: Dr. G MADHUSUDHAN,OPP. RAJEEVE GANDHI AUDITORUM, KHALEELWADI, NIZAMABAD | E16: 50 | F16: 6 | G16: 8 | J16: 5 | K16: 6 | N16: 16 | O16: 16 | R16: 8 | S16: 8 | V16: 3 | W16: 3 | Z16: 3 | AA16: 3 | AD16: 3 | AE16: 4 | AH16: 4 | AI16: 4 | AL16: 4 | AM16: 4 | AP16: 4 | AQ16: 8 | AT16: 8 | AU16: 8 | AX16: 5 | AY16: 6 | BB16: 6 | BC16: 6 | BF16: 3 | BG16: 4 | BJ16: 4 | BK16: 4 | BN16: 3 | BO16: 3 | BR16: 6 | BS16: 6 | BV16: 3 | BW16: 4 | BZ16: 5 | CA16: 5 | CD16: 6 | CE16: 6 | CH16: 6 | CI16: 5 | CL16: 6 | CM16: 6 | CP16: 5 | CQ16: 5 | CT16: 3 | CU16: 4 | CX16: 4 | CY16: 4 | DB16: 3 | DC16: 3 | DF16: 3 | DG16: 4 | DJ16: 3 | DK16: 3 | DN16: 5 | DO16: 5 | DR16: 3 | DS16: 4 | DV16: 6 | DW16: 6 | DZ16: 152 | EA16: 165 | EB16: 0 | EC16: 0
A17: 7 | B17: HEERA503001TSBH00919 | C17: HEERA ORTHOPAEDIC NURSING HOME | D17: Dr.G.KAULAIAH, HYD ROAD, NIZAMABAD | E17: 50 | G17: 5 | K17: 5 | N17: 3 | S17: 2 | AH17: 2 | AL17: 2 | AP17: 4 | AT17: 3 | AU17: 3 | AX17: 3 | BC17: 5 | BF17: 2 | BJ17: 2 | BN17: 2 | BR17: 2 | BV17: 2 | BZ17: 4 | CE17: 4 | CI17: 4 | CL17: 3 | CP17: 3 | CT17: 3 | CU17: 3 | CX17: 3 | CY17: 4 | DB17: 2 | DC17: 2 | DF17: 3 | DG17: 2 | DJ17: 2 | DK17: 2 | DN17: 3 | DR17: 3 | DV17: 4 | DZ17: 60 | EA17: 41 | EB17: 0 | EC17: 0
A18: 8 | B18: INDUR503001TSBH09851 | C18: INDUR CANCER HOSPITAL | D18: MADHAVA NAGAR, HYD ROAD, NIZAMABAD | E18: 50 | F18: 4 | J18: 4 | N18: 4 | O18: 3 | S18: 4 | V18: 7 | W18: 3 | Z18: 4 | AD18: 4 | AH18: 6 | AL18: 6 | AP18: 4 | AQ18: 2 | AT18: 4 | AX18: 4 | BB18: 4 | BC18: 2 | BF18: 5 | BJ18: 4 | BN18: 2 | BR18: 4 | BV18: 4 | BZ18: 4 | CD18: 7 | CH18: 4 | CI18: 3 | CL18: 4 | CP18: 4 | CT18: 4 | CX18: 3 | DB18: 4 | DF18: 3 | DJ18: 4 | DN18: 4 | DR18: 3 | DV18: 4 | DZ18: 126 | EA18: 17 | EB18: 0 | EC18: 0
A19: 9 | B19: INDUS503001TSBH08523 | C19: INDUS SUPER SPECIALITY HOSPITAL | D19: H.NO. 5-6-192/194, SARASWATHI NAGAR, HYDERABAD ROAD, NIZAMABAD | E19: 50 | G19: 5 | K19: 5 | N19: 3 | S19: 3 | AH19: 3 | AI19: 3 | AL19: 3 | AM19: 3 | AQ19: 3 | AT19: 5 | BB19: 5 | BF19: 3 | BG19: 3 | BJ19: 3 | BK19: 3 | BN19: 2 | BO19: 2 | BR19: 3 | BS19: 3 | BV19: 2 | BW19: 3 | BZ19: 4 | CD19: 4 | CI19: 5 | CL19: 5 | CP19: 5 | CT19: 3 | CU19: 2 | CX19: 3 | CY19: 3 | DB19: 2 | DC19: 2 | DF19: 3 | DG19: 3 | DJ19: 3 | DK19: 3 | DO19: 4 | DS19: 4 | DV19: 4 | DZ19: 68 | EA19: 62 | EB19: 0 | EC19: 0
A20: 10 | B20: JAYAH503001TSBH09852 | C20: JAYA HOSPITAL | D20: Dr.PREMANANDAM, KHALEEL WADA, NZB | E20: 50 | O20: 3 | R20: 4 | V20: 2 | W20: 2 | Z20: 2 | AA20: 2 | AD20: 2 | AE20: 3 | AH20: 3 | AI20: 3 | AL20: 3 | AM20: 3 | AQ20: 3 | AY20: 4 | BC20: 2 | BF20: 3 | BG20: 3 | BJ20: 3 | BK20: 3 | BN20: 2 | BO20: 2 | BR20: 2 | BS20: 2 | BV20: 2 | BZ20: 4 | CH20: 5 | CL20: 3 | CP20: 3 | CT20: 2 | CU20: 3 | CX20: 2 | CY20: 2 | DB20: 2 | DC20: 2 | DF20: 2 | DG20: 2 | DJ20: 3 | DO20: 4 | DS20: 4 | DV20: 3 | DZ20: 57 | EA20: 52 | EB20: 0 | EC20: 0
A21: 11 | B21: MANOR503001TSBH01042 | C21: MANORAMA SUPER SPECIALITY HOSPITAL | D21: Dr.CHANDRA SHEKAR RAO, OPP. BUSTAND, KHALEELWADI, NIZAMABAD | E21: 50 | F21: 8 | G21: 3 | J21: 6 | K21: 3 | N21: 5 | O21: 5 | R21: 6 | S21: 6 | V21: 4 | W21: 4 | Z21: 3 | AA21: 3 | AD21: 4 | AE21: 4 | AI21: 3 | AL21: 3 | AM21: 3 | BG21: 3 | BS21: 3 | BW21: 3 | CH21: 5 | CI21: 5 | CL21: 4 | CM21: 5 | CP21: 5 | CQ21: 5 | CT21: 3 | CU21: 3 | CX21: 2 | CY21: 2 | DB21: 2 | DC21: 3 | DF21: 2 | DG21: 2 | DJ21: 3 | DK21: 4 | DV21: 3 | DW21: 3 | DZ21: 68 | EA21: 75 | EB21: 0 | EC21: 0
A22: 12 | B22: NOVAL503001TSBH08513 | C22: NOVALIFE HOSPITAL | D22: HNO:5-6-293, SARASWATHI NAGAR, NIZAMABAD. | E22: 50 | F22: 5 | G22: 5 | J22: 4 | K22: 4 | N22: 5 | O22: 5 | R22: 5 | S22: 5 | V22: 3 | W22: 4 | Z22: 4 | AA22: 4 | AD22: 3 | AE22: 4 | AL22: 2 | AM22: 3 | BG22: 3 | BJ22: 4 | BN22: 2 | BW22: 3 | CH22: 5 | CL22: 5 | CM22: 5 | CP22: 5 | CQ22: 5 | CT22: 3 | CU22: 4 | CX22: 3 | CY22: 3 | DB22: 3 | DC22: 3 | DF22: 3 | DG22: 3 | DJ22: 3 | DK22: 4 | DO22: 4 | DS22: 4 | DV22: 4 | DZ22: 71 | EA22: 75 | EB22: 0 | EC22: 0
A23: 13 | B23: RRLIF503001TSBH00887 | C23: R R LIFE LINE HOSPITAL NIZAMABAD | D23: Dr. K. RAMESH, HNO: 5-6-766/1, OPP.RED CROSS BLOOD BANK, KHALEEL WADI, NIZAMABAD | E23: 50 | F23: 5 | G23: 3 | J23: 5 | K23: 3 | N23: 3 | R23: 5 | V23: 3 | W23: 3 | Z23: 2 | AA23: 2 | AD23: 3 | AE23: 4 | AH23: 2 | AI23: 3 | AL23: 2 | AM23: 3 | AP23: 3 | AU23: 5 | AX23: 4 | BF23: 3 | BG23: 3 | BJ23: 2 | BK23: 2 | BN23: 2 | BO23: 2 | BR23: 2 | BS23: 3 | BV23: 3 | BW23: 3 | BZ23: 4 | CD23: 4 | CI23: 5 | CL23: 5 | CM23: 5 | CP23: 5 | CQ23: 5 | CT23: 2 | CU23: 3 | CX23: 3 | CY23: 3 | DB23: 2 | DC23: 2 | DF23: 2 | DG23: 2 | DJ23: 3 | DK23: 3 | DO23: 4 | DS23: 4 | DV23: 5 | DZ23: 84 | EA23: 75 | EB23: 0 | EC23: 0
A24: 14 | B24: SVRMU503001TSBH08033 | C24: S V R MULTI SPECIALITY HOSPITAL | D24: Dr. E. SANADHYA RANI, KHALEELWADI, NIZAMABAD | E24: 50 | F24: 3 | J24: 3 | N24: 3 | R24: 5 | AT24: 3 | CH24: 5 | CL24: 4 | CM24: 3 | CP24: 4 | CQ24: 3 | CT24: 2 | CU24: 3 | CX24: 3 | CY24: 3 | DB24: 2 | DC24: 2 | DF24: 2 | DG24: 2 | DJ24: 4 | DK24: 3 | DO24: 4 | DS24: 4 | DV24: 3 | DZ24: 46 | EA24: 27 | EB24: 0 | EC24: 0
A25: 15 | B25: SRIGU503001TSBH06796 | C25: SRI GURU RAGHAVENDRA SUNRISE HOSPITAL | D25: HNO:5-793 & 5-7-94, OPP:MUNCIPAL COMPLEX, NIZAMABAD. | E25: 50 | F25: 6 | G25: 6 | J25: 5 | K25: 5 | R25: 8 | S25: 8 | BB25: 6 | BC25: 6 | BN25: 2 | CH25: 6 | CI25: 6 | CL25: 6 | CM25: 5 | CP25: 5 | CQ25: 5 | CT25: 3 | CU25: 4 | CX25: 2 | CY25: 3 | DB25: 3 | DC25: 2 | DF25: 3 | DG25: 3 | DJ25: 3 | DK25: 4 | DV25: 6 | DW25: 5 | DZ25: 64 | EA25: 62 | EB25: 0 | EC25: 0
A26: 16 | B26: SRIKR503001TSBH09853 | C26: SRI KRISHNA NEURO & MULTI SPECIALITY HOSPITAL | D26: Dr. K. BALA KRISHNA REDDY, 5-6-385 & 386, YELLAMMA GUTTA X ROAD, HYD. ROAD, NIZAMABAD | E26: 50 | G26: 5 | K26: 5 | N26: 3 | R26: 5 | V26: 3 | W26: 3 | Z26: 2 | AA26: 2 | AD26: 3 | AE26: 3 | AH26: 2 | AI26: 2 | AL26: 2 | AM26: 2 | AQ26: 3 | AU26: 5 | AY26: 5 | BB26: 3 | BF26: 3 | BG26: 3 | BJ26: 2 | BK26: 2 | BN26: 2 | BO26: 2 | BR26: 2 | BS26: 3 | BV26: 3 | BW26: 3 | CA26: 5 | CD26: 4 | CI26: 5 | CL26: 4 | CM26: 5 | CP26: 4 | CQ26: 5 | CT26: 2 | CU26: 3 | CX26: 3 | CY26: 3 | DB26: 2 | DC26: 3 | DF26: 2 | DG26: 3 | DJ26: 3 | DK26: 3 | DO26: 2 | DR26: 2 | DS26: 2 | DW26: 5 | DZ26: 61 | EA26: 92 | EB26: 0 | EC26: 0
A27: 17 | B27: SRIMA503001TSBH00974 | C27: SRI MAHALAXMI CHILDRENS HOSPITAL | D27: Dr. G. HARI KRISHNA, HNO:5-7-7/1 , BESIDE NALANDA WOMENS DEGREE COLLEGE, NIZAMABAD | E27: 50 | F27: 2 | G27: 7 | J27: 2 | K27: 7 | N27: 5 | R27: 7 | V27: 3 | W27: 3 | Z27: 2 | AD27: 2 | AE27: 2 | AI27: 2 | AM27: 2 | AP27: 3 | AQ27: 3 | AT27: 5 | AX27: 3 | AY27: 3 | BB27: 9 | BG27: 2 | BS27: 2 | BW27: 2 | CA27: 7 | CE27: 8 | CI27: 5 | CL27: 4 | CP27: 4 | CT27: 2 | CU27: 3 | CX27: 2 | CY27: 3 | DB27: 3 | DC27: 3 | DF27: 2 | DG27: 2 | DJ27: 4 | DK27: 4 | DO27: 4 | DS27: 3 | DW27: 3 | DZ27: 64 | EA27: 80 | EB27: 0 | EC27: 0
A28: 18 | B28: SRIVI503001TSBH06146 | C28: SRI VISHNU HOSPITAL | D28: ABOVE KOTAK MAHINDRA BANK, OPP: CENTRAL LIBRARY,NIZAMABAD | E28: 50 | F28: 6 | G28: 8 | J28: 5 | K28: 7 | N28: 8 | O28: 8 | R28: 7 | S28: 7 | V28: 4 | W28: 4 | Z28: 3 | AA28: 3 | AD28: 4 | AE28: 4 | AH28: 4 | AI28: 5 | AL28: 4 | AM28: 5 | AP28: 8 | AQ28: 8 | AX28: 5 | BB28: 8 | BC28: 8 | BF28: 3 | BG28: 3 | BJ28: 3 | BK28: 3 | BN28: 2 | BO28: 2 | BR28: 3 | BS28: 4 | BV28: 4 | BW28: 4 | BZ28: 5 | CA28: 6 | CE28: 6 | CH28: 5 | CI28: 5 | CL28: 6 | CM28: 6 | CP28: 5 | CQ28: 5 | CT28: 2 | CU28: 5 | CX28: 4 | CY28: 4 | DB28: 2 | DC28: 3 | DF28: 3 | DG28: 4 | DJ28: 3 | DK28: 4 | DO28: 4 | DS28: 3 | DV28: 4 | DW28: 3 | DZ28: 120 | EA28: 141 | EB28: 0 | EC28: 0
A29: 19 | B29: SRINI503001TSBH06147 | C29: SRINIVAS GASTRO & LIVER CARE HOSPITAL | D29: Dr. K . CHARAN RAJ,BESIDE MRO OFFICE, OPP: DEO OFFICE AND CENTRAL LIBRARY , KHALEELWADI, NIZAMABAD | E29: 50 | F29: 4 | J29: 4 | N29: 3 | V29: 3 | W29: 4 | Z29: 4 | AA29: 4 | AD29: 4 | AE29: 4 | AI29: 2 | AM29: 2 | BG29: 3 | BK29: 3 | BO29: 2 | BS29: 3 | BW29: 2 | CH29: 5 | CL29: 5 | CP29: 5 | CT29: 2 | CU29: 2 | CX29: 3 | CY29: 3 | DB29: 3 | DC29: 2 | DF29: 3 | DG29: 3 | DJ29: 3 | DK29: 3 | DN29: 3 | DR29: 3 | DW29: 3 | DZ29: 57 | EA29: 45 | EB29: 0 | EC29: 0
A30: 20 | B30: VIJAY503001TSBH00903 | C30: VIJAYALAKSHMI HOSPITAL | D30: H.NO. 5-6-767, NEAR RAJIV GANDHI AUDITORIUM, OPP: RED CROSS BLOOD BANK, KHALEELWADI, NIZAMABAD | E30: 50 | CH30: 4 | CI30: 5 | CL30: 5 | CP30: 5 | CT30: 3 | CU30: 3 | CX30: 4 | CY30: 4 | DB30: 2 | DC30: 3 | DF30: 2 | DG30: 2 | DJ30: 3 | DK30: 4 | DN30: 3 | DR30: 3 | DW30: 2 | DZ30: 34 | EA30: 23 | EB30: 0 | EC30: 0
A31: 49 TO 20 BEDS HCFs
A32: 21 | B32: ADARS503001TSBH09854 | C32: ADARSH MATERNITY NURSING HOME | D32: Dr. ANNAPURNA, H.NO.5-7-624/12, KHALEELWADI, NIZAMABAD | E32: 35 | F32: 4 | J32: 4 | O32: 3 | S32: 4 | V32: 3 | W32: 3 | Z32: 2 | AA32: 3 | AD32: 3 | AE32: 3 | AL32: 2 | AM32: 2 | BG32: 3 | BK32: 2 | BO32: 2 | BW32: 2 | CI32: 3 | CL32: 4 | CM32: 3 | CP32: 3 | CQ32: 3 | CT32: 2 | CX32: 3 | DB32: 3 | DF32: 2 | DJ32: 3 | DK32: 3 | DO32: 3 | DS32: 3 | DW32: 3 | DZ32: =F32+J32+N32+R32+V32+Z32+AD32+AH32+AL32+AP32+AT32+AX32+BB32+BF32+BJ32+BN32+BR32+BV32+BZ32+CD32+CH32+CL32+CP32+CT32+CX32+DB32+DF32+DJ32+DN32+DR32+DV32 -> 38 | EA32: =G32+K32+O32+S32+W32+AA32+AE32+AI32+AM32+AQ32+AU32+AY32+BC32+BG32+BK32+BO32+BS32+BW32+CA32+CE32+CI32+CM32+CQ32+CU32+CY32+DC32+DG32+DK32+DO32+DS32+DW32 -> 48 | EB32: =H32+L32+P32+T32+X32+AB32+AF32+AJ32+AN32+AR32+AV32+AZ32+BD32+BH32+BL32+BP32+BT32+BX32+CB32+CF32+CJ32+CN32+CR32+CV32+CZ32+DD32+DH32+DL32+DP32+DT32 -> 0 | EC32: 0
A33: 22 | B33: VAISH503001TSBH06135 | C33: VAISHNAVI HOSPITAL | D33: Dr.V.AKHILESH, SARASWATHI NAGAR, NIZAMABAD | E33: 35 | F33: 6 | G33: 6 | J33: 5 | K33: 5 | N33: 3 | O33: 6 | R33: 5 | S33: 5 | V33: 4 | W33: 4 | Z33: 3 | AA33: 4 | AD33: 3 | AE33: 3 | AH33: 4 | AI33: 4 | AL33: 4 | AM33: 4 | AP33: 6 | AQ33: 6 | AT33: 8 | AU33: 8 | AX33: 6 | AY33: 6 | BB33: 4 | BC33: 4 | BF33: 3 | BG33: 4 | BJ33: 4 | BK33: 4 | BN33: 3 | BO33: 3 | BR33: 2 | BS33: 4 | BV33: 4 | BW33: 4 | BZ33: 5 | CD33: 6 | CH33: 5 | CI33: 5 | CL33: 5 | CM33: 5 | CP33: 5 | CQ33: 5 | CT33: 3 | CU33: 3 | CX33: 3 | CY33: 4 | DB33: 3 | DC33: 4 | DF33: 3 | DG33: 4 | DJ33: 4 | DK33: 4 | DO33: 4 | DS33: 3 | DV33: 4 | DW33: 2 | DZ33: =F33+J33+N33+R33+V33+Z33+AD33+AH33+AL33+AP33+AT33+AX33+BB33+BF33+BJ33+BN33+BR33+BV33+BZ33+CD33+CH33+CL33+CP33+CT33+CX33+DB33+DF33+DJ33+DN33+DR33+DV33 -> 123 | EA33: =G33+K33+O33+S33+W33+AA33+AE33+AI33+AM33+AQ33+AU33+AY33+BC33+BG33+BK33+BO33+BS33+BW33+CA33+CE33+CI33+CM33+CQ33+CU33+CY33+DC33+DG33+DK33+DO33+DS33+DW33 -> 127 | EB33: =H33+L33+P33+T33+X33+AB33+AF33+AJ33+AN33+AR33+AV33+AZ33+BD33+BH33+BL33+BP33+BT33+BX33+CB33+CF33+CJ33+CN33+CR33+CV33+CZ33+DD33+DH33+DL33+DP33+DT33 -> 0 | EC33: =I33+M33+Q33+U33+Y33+AC33+AG33+AK33+AO33+AS33+AW33+BA33+BE33+BI33+BM33+BQ33+BU33+BY33+CC33+CG33+CK33+CO33+CS33+CW33+DA33+DE33+DI33+DM33+DQ33+DU33 -> 0
A34: 23 | B34: SILVE503001TSBH08526 | C34: SILVERLINE HOSPITALS | D34: OPP: DR BHARATHI RANI HOSPITAL, SARASWATHI NAGAR, KHALEELWADI, NIZAMABAD Nizamabad(V) Nizamabad South(M) NIZAMABAD(D) Telangana-503001 | E34: 31 | G34: 3 | K34: 3 | O34: 3 | S34: 4 | V34: 4 | W34: 3 | Z34: 3 | AA34: 3 | AD34: 2 | AE34: 3 | AI34: 2 | AM34: 2 | BF34: 3 | BS34: 3 | CH34: 3 | CL34: 3 | CP34: 3 | CT34: 2 | CX34: 3 | DB34: 2 | DF34: 2 | DJ34: 2 | DO34: 3 | DS34: 3 | DW34: 3 | DZ34: 32 | EA34: 38 | EB34: 0 | EC34: 0
A35: 24 | B35: LIONS503001TSBH01124 | C35: LIONS EYE HOSPITAL | D35: OPP.RAJEEV GANDHI AUDITORIUM, KHALEEL WADI, NIZAMABAD | E35: 25 | N35: 3 | R35: 5 | CH35: 3 | CL35: 3 | CP35: 3 | CT35: 3 | CU35: 3 | CX35: 3 | CY35: 3 | DB35: 2 | DC35: 3 | DF35: 2 | DG35: 2 | DJ35: 2 | DK35: 2 | DO35: 3 | DS35: 3 | DW35: 3 | DZ35: 29 | EA35: 22 | EB35: 0 | EC35: 0
A36: 25 | B36: RITVI503002TSBH09855 | C36: RITVIK HOSPITAL | D36: Dr. N. LAVANYA, OPP. SHESHANK HOSPITAL, OPP: BUS STAND ROAD, KHALEELWADI, NIZAMABAD | E36: 25 | F36: 3 | J36: 3 | N36: 3 | R36: 5 | V36: 3 | W36: 3 | Z36: 2 | AA36: 3 | AD36: 3 | AE36: 3 | AI36: 3 | AM36: 3 | AP36: 3 | AU36: 5 | AY36: 5 | BC36: 4 | BG36: 3 | BK36: 2 | BO36: 2 | BS36: 2 | BW36: 2 | CA36: 3 | CH36: 3 | CL36: 3 | CP36: 3 | CT36: 2 | CU36: 2 | CX36: 2 | CY36: 3 | DB36: 2 | DC36: 2 | DF36: 2 | DG36: 2 | DJ36: 2 | DK36: 2 | DO36: 3 | DS36: 3 | DW36: 3 | DZ36: 44 | EA36: 63 | EB36: 0 | EC36: 0
A37: 26 | B37: SAIAS503001TSBH09856 | C37: SAI ASHWINI HOSPITAL | D37: Dr. D NARAYANA RAO, KHALEELWADI, NIZAMABAD | E37: 25 | F37: 4 | J37: 4 | O37: 3 | R37: 5 | V37: 3 | Z37: 2 | AD37: 2 | AI37: 3 | AM37: 3 | AU37: 5 | AY37: 5 | BC37: 4 | BG37: 3 | BJ37: 3 | BN37: 3 | BR37: 2 | BW37: 2 | BZ37: 4 | CD37: 4 | CI37: 4 | CL37: 5 | CP37: 3 | CT37: 3 | CU37: 2 | CX37: 3 | CY37: 2 | DC37: 2 | DG37: 2 | DJ37: 2 | DK37: 3 | DO37: 3 | DS37: 3 | DW37: 3 | DZ37: 52 | EA37: 52 | EB37: 0 | EC37: 0
A38: 27 | B38: VIKRA503001TSBH09857 | C38: VIKRAM HOSPITAL | D38: Dr. VIKRAM REDDY, NEAR R.D.O OFFICE, KHALEEL WADI, NIZAMABAD | E38: 25 | G38: 5 | K38: 4 | O38: 3 | R38: 5 | W38: 2 | Z38: 2 | AD38: 3 | AH38: 3 | AL38: 3 | AQ38: 3 | BB38: 5 | BK38: 3 | BO38: 3 | CI38: 5 | CL38: 3 | CP38: 3 | CT38: 2 | CX38: 2 | DB38: 3 | DC38: 2 | DF38: 3 | DG38: 2 | DJ38: 3 | DO38: 4 | DS38: 3 | DV38: 4 | DZ38: 44 | EA38: 39 | EB38: 0 | EC38: 0
A39: 28 | B39: ANKAM503001TSBH01037 | C39: ANKAM HOSPITAL | D39: HNO:5-7-132, KHALEEL WADI,NIZAMABAD | E39: 24 | F39: 5 | J39: 5 | N39: 3 | R39: 2 | V39: 3 | W39: 3 | Z39: 3 | AA39: 3 | AD39: 3 | AE39: 4 | AH39: 4 | AI39: 4 | AL39: 4 | AM39: 4 | AQ39: 3 | AY39: 3 | BC39: 3 | BF39: 3 | BG39: 4 | BJ39: 3 | BK39: 3 | BN39: 2 | BO39: 2 | BR39: 3 | BS39: 3 | BV39: 3 | BW39: 3 | CA39: 5 | CE39: 5 | CH39: 3 | CI39: 5 | CL39: 5 | CP39: 3 | CT39: 3 | CU39: 3 | CX39: 3 | CY39: 3 | DB39: 3 | DC39: 3 | DF39: 3 | DG39: 3 | DJ39: 3 | DK39: 3 | DO39: 4 | DS39: 3 | DV39: 4 | DZ39: 76 | EA39: 79 | EB39: 0 | EC39: 0
A40: 29 | B40: GANGA503001TSBH06109 | C40: GANGA SARASWATHI CHILDRENS HOSPITAL | D40: DWARAKA NAGAR, NIZAMABAD,Nizamabad,Nizamabad South,NIZAMABAD,503001 | E40: 24 | F40: 3 | J40: 3 | N40: 4 | R40: 3 | V40: 3 | W40: 3 | Z40: 3 | AA40: 3 | AD40: 3 | AE40: 3 | AH40: 3 | AL40: 3 | AP40: 2 | AT40: 3 | AY40: 3 | BC40: 2 | BF40: 2 | BJ40: 2 | BN40: 2 | BR40: 3 | BV40: 3 | BZ40: 3 | CE40: 2 | CI40: 2 | CL40: 5 | CP40: 3 | CT40: 2 | CX40: 2 | DB40: 2 | DF40: 3 | DJ40: 3 | DN40: 3 | DR40: 3 | DV40: 2 | DZ40: 76 | EA40: 18 | EB40: 0 | EC40: 0
A41: 30 | B41: MEENA503001TSBH02590 | C41: MEENAKSHI NURSING HOME NIZAMABAD | D41: Dr. D. MEENAKSHI,BACKSIDE PRAGATHI HOSPITAL, SARASWATHI NAGAR , NIZAMABAD | E41: 24 | F41: 4 | G41: 2 | J41: 4 | K41: 2 | N41: 4 | O41: 4 | R41: 4 | S41: 4 | CH41: 4 | CI41: 3 | CL41: 4 | CM41: 3 | CP41: 4 | CQ41: 3 | CT41: 3 | CU41: 3 | CX41: 3 | CY41: 4 | DB41: 3 | DC41: 2 | DF41: 2 | DG41: 3 | DJ41: 2 | DK41: 3 | DN41: 4 | DR41: 3 | DV41: 3 | DW41: 4 | DZ41: 51 | EA41: 40 | EB41: 0 | EC41: 0
A42: 31 | B42: SAIAY503001TSBH06137 | C42: SAI AYUSH CHILDRENS HOSPITAL | D42: BHARATHI RANI HOSPITAL LANE, BESIDE PRAGATHI HOSPITAL, SARASWATHI NAGAR, NIZAMABAD | E42: 22 | F42: 3 | J42: 3 | N42: 2 | R42: 5 | AT42: 5 | CI42: 3 | CL42: 5 | CP42: 3 | CU42: 2 | CY42: 2 | DC42: 2 | DG42: 2 | DJ42: 2 | DV42: 4 | DZ42: 32 | EA42: 11 | EB42: 0 | EC42: 0
A43: 32 | B43: GAUTH503001TSBH06152 | C43: GAUTHAM NURSING HOME | D43: OLD JJ REDDY BUILDING , KHALEELWADI, NIZAMABAD,503001 | E43: 21 | V43: 6 | W43: 3 | Z43: 3 | AA43: 3 | AD43: 3 | AE43: 3 | AH43: 3 | AL43: 3 | AQ43: 2 | AU43: 3 | AX43: 2 | BC43: 3 | BF43: 3 | BJ43: 2 | BN43: 2 | BR43: 3 | BV43: 2 | BZ43: 2 | CT43: 2 | CX43: 3 | DB43: 2 | DF43: 2 | DZ43: 43 | EA43: 17 | EB43: 0 | EC43: 0 | ED43: Cl
A44: 33 | B44: NAGAR503001TSBH07036 | C44: NAGARJUNA HOSPITAL | D44: RAGHAVENDRA HOSPITAL BUILDING,KHALEELWADI,NIZAMABAD | E44: 21 | F44: 3 | J44: 3 | N44: 3 | R44: 4 | CI44: 4 | CL44: 4 | CP44: 4 | CT44: 3 | CU44: 3 | CX44: 2 | CY44: 2 | DB44: 2 | DC44: 2 | DF44: 2 | DG44: 2 | DJ44: 3 | DN44: 3 | DR44: 3 | DV44: 4 | DZ44: 43 | EA44: 13 | EB44: 0 | EC44: 0
A45: 34 | B45: NARAS503001TSBH06161 | C45: NARASIMHA METERNITY CHILDRENS HOSPITAL | D45: Dr A. ARAVIND REDDY,OLD J J BUILDING, KHALEEL WADI, NIZAMABAD | E45: 21 | F45: 3 | J45: 3 | N45: 3 | R45: 4 | CI45: 4 | CL45: 4 | CP45: 4 | CU45: 2 | CY45: 2 | DB45: 2 | DF45: 3 | DJ45: 3 | DK45: 2 | DN45: 4 | DR45: 2 | DV45: 4 | DZ45: 39 | EA45: 10 | EB45: 0 | EC45: 0
A46: 35 | B46: SUJAT503001TSBH09858 | C46: SUJATHA NURSING HOME | D46: Dr. Y. SAMBASHIVA RAO, KHALEELWADI, NIZAMABAD | E46: 21 | G46: 2 | K46: 2 | N46: 2 | R46: 2 | V46: 3 | W46: 3 | Z46: 3 | AA46: 3 | AD46: 3 | AE46: 3 | AH46: 2 | AL46: 2 | AT46: 3 | BB46: 2 | BF46: 3 | BJ46: 3 | BN46: 3 | BS46: 3 | BW46: 2 | CA46: 2 | CE46: 2 | CH46: 2 | CL46: 2 | CP46: 2 | CT46: 2 | CU46: 2 | CX46: 2 | CY46: 2 | DB46: 2 | DC46: 2 | DF46: 2 | DG46: 2 | DN46: 2 | DR46: 2 | DV46: 2 | DZ46: 51 | EA46: 30 | EB46: 0 | EC46: 0
A47: 36 | B47: ANSHU503001TSBH08519 | C47: ANSHUL HOSPITAL | D47: Dr. JALAGAM THIRUPATHI RAO,OPP. INDIAN BANK, KHALEELWADI, NIZAMABAD | E47: 20 | F47: 2 | J47: 2 | O47: 2 | V47: 3 | W47: 3 | Z47: 3 | AA47: 3 | AD47: 3 | AE47: 3 | AH47: 3 | AL47: 3 | AP47: 2 | AU47: 3 | AY47: 3 | BB47: 3 | BF47: 2 | BJ47: 2 | BN47: 2 | BR47: 3 | BV47: 2 | BZ47: 2 | CE47: 2 | CI47: 3 | CM47: 2 | CQ47: 2 | CU47: 2 | CY47: 2 | DB47: 2 | DF47: 2 | DJ47: 2 | DN47: 3 | DR47: 3 | DW47: 2 | DZ47: 49 | EA47: 32 | EB47: 0 | EC47: 0
A48: 37 | B48: ANUPA503001TSBH09859 | C48: ANUPAMA HOSPITAL | D48: Dr. C SOMA SEKHARA PATIL,SARASWATHI NAGAR, ROAD NO.3, NIZAMABAD | E48: 20 | F48: 3 | J48: 3 | O48: 3 | S48: 2 | V48: 2 | W48: 2 | Z48: 3 | AA48: 3 | AD48: 3 | AE48: 3 | AQ48: 3 | AT48: 3 | AX48: 3 | BB48: 3 | BZ48: 2 | CF48: 3 | CI48: 3 | CM48: 3 | CQ48: 3 | CT48: 2 | CX48: 2 | DC48: 2 | DG48: 2 | DJ48: 2 | DK48: 2 | DN48: 3 | DR48: 3 | DW48: 4 | DZ48: 37 | EA48: 35 | EB48: 3 | EC48: 0
A49: 38 | B49: CHAND503001TSBH08472 | C49: CHANDRASHILA CHILD CARE HOME | D49: Dr. P ANAND,OPP. DECCAN GRAMEENA BANK, KHALEEL WADI, NIZAMABAD | E49: 20 | F49: 4 | J49: 4 | O49: 3 | R49: 5 | V49: 3 | W49: 4 | Z49: 3 | AA49: 3 | AD49: 4 | AE49: 4 | AH49: 4 | AI49: 4 | AL49: 3 | AM49: 3 | AP49: 2 | AX49: 5 | BC49: 5 | BF49: 3 | BG49: 3 | BJ49: 4 | BK49: 4 | BN49: 3 | BO49: 3 | BR49: 3 | BS49: 4 | BV49: 3 | BW49: 3 | BZ49: 3 | CE49: 4 | CI49: 3 | CM49: 3 | CQ49: 3 | CT49: 3 | CU49: 3 | CX49: 3 | CY49: 3 | DB49: 3 | DC49: 3 | DF49: 2 | DG49: 3 | DJ49: 3 | DN49: 4 | DR49: 2 | DW49: 4 | DZ49: 76 | EA49: 72 | EB49: 0 | EC49: 0
A50: 39 | B50: ESIHO503001TSBH09860 | C50: ESI HOSPITAL | D50: Dr.K.RANGA SWAMY,NEAR P F OFFICE, SEETHARAM NAGAR COLONY, ANAND NAGAR, NIZAMABAD | E50: 20 | G50: 5 | K50: 5 | N50: 5 | O50: 5 | R50: 3 | S50: 3 | V50: 2 | Z50: 2 | AH50: 2 | AL50: 2 | AQ50: 3 | AY50: 4 | BC50: 5 | BF50: 2 | BJ50: 2 | BN50: 2 | BR50: 2 | BV50: 2 | CA50: 4 | CE50: 5 | CH50: 5 | CM50: 5 | CQ50: 4 | CU50: 2 | CY50: 2 | DC50: 2 | DG50: 2 | DJ50: 2 | DN50: 3 | DR50: 3 | DW50: 4 | DZ50: 39 | EA50: 60 | EB50: 0 | EC50: 0
A51: 40 | B51: FLOWE503001TSBH10083 | C51: FLOWER HOSPITAL | D51: NEAR LIMRA GARDEN FUNCTION HALL, QUILLA ROAD, BODHAN ROAD, NIZAMABAD | E51: 20 | F51: 3 | J51: 3 | O51: 3 | S51: 3 | W51: 3 | AA51: 3 | AE51: 3 | AI51: 3 | AM51: 3 | AQ51: 3 | AU51: 3 | AY51: 3 | BC51: 3 | BG51: 2 | BK51: 3 | BO51: 3 | BS51: 3 | CA51: 3 | CE51: 3 | CI51: 3 | CM51: 3 | CQ51: 3 | CU51: 3 | CY51: 2 | DC51: 3 | DK51: 3 | DO51: 3 | DS51: 3 | DW51: 3 | DZ51: 6 | EA51: 79 | EB51: 0 | EC51: 0
A52: 41 | B52: HARIK503001TSBH00963 | C52: HARIKA HOSPITAL | D52: Dr. D L N SWAMY,BESIDE BALAJI LAB, KHALEEL WADI , NIZAMABAD | E52: 20 | F52: 2 | J52: 2 | N52: 2 | R52: 5 | V52: 3 | Z52: 2 | AD52: 2 | AH52: 2 | AL52: 2 | AP52: 2 | AT52: 3 | AX52: 3 | BB52: 5 | BF52: 3 | BJ52: 3 | BN52: 3 | BR52: 2 | BV52: 2 | BZ52: 3 | CD52: 3 | CH52: 4 | CM52: 3 | CQ52: 3 | CU52: 2 | CY52: 2 | DB52: 2 | DF52: 2 | DJ52: 2 | DK52: 2 | DN52: 3 | DR52: 3 | DW52: 4 | DZ52: 70 | EA52: 16 | EB52: 0 | EC52: 0
A53: 42 | B53: HARIT503001TSBH07066 | C53: HARITHA CHILDRENS HOSPITAL | D53: Dr. P RAM MOHAN,HNO:-5-6-11, DWARAJA NAGAR , NIZAMABAD | E53: 20 | F53: 2 | J53: 2 | N53: 4 | R53: 2 | V53: 2 | W53: 2 | Z53: 2 | AA53: 2 | AD53: 2 | AE53: 3 | AI53: 3 | AM53: 3 | AP53: 2 | AT53: 3 | AX53: 3 | BB53: 3 | BG53: 3 | BK53: 3 | BO53: 3 | BS53: 2 | BW53: 3 | BZ53: 3 | CE53: 3 | CH53: 2 | CM53: 2 | CQ53: 2 | CT53: 2 | CX53: 3 | DB53: 2 | DF53: 2 | DJ53: 2 | DK53: 2 | DN53: 2 | DR53: 2 | DW53: 2 | DZ53: 47 | EA53: 38 | EB53: 0 | EC53: 0
A54: 43 | B54: HARSH503001TSBH06141 | C54: HARSHA SAI EYE HOSPTIAL | D54: Dr. D KEERTHI KUMAR,BESIDE ILD J J REDDY HOSPITAL. DWARAKA NAGAR, NIZAMABAD | E54: 20 | F54: 3 | J54: 3 | N54: 3 | R54: 3 | V54: 2 | W54: 2 | Z54: 3 | AA54: 3 | AD54: 3 | AE54: 3 | AI54: 3 | AM54: 3 | AP54: 2 | AT54: 5 | AX54: 3 | BB54: 3 | BF54: 3 | BJ54: 3 | BN54: 3 | BR54: 2 | BV54: 2 | BZ54: 3 | CE54: 2 | CH54: 3 | CM54: 3 | CQ54: 3 | CT54: 3 | CU54: 3 | CX54: 2 | CY54: 3 | DB54: 2 | DC54: 2 | DF54: 2 | DG54: 2 | DJ54: 2 | DK54: 2 | DN54: 2 | DR54: 2 | DW54: 4 | DZ54: 67 | EA54: 38 | EB54: 0 | EC54: 0
A55: 44 | B55: HAYAT503001TSBH08505 | C55: HAYATT HOSPITAL | D55: OPP.BUS STAND LANE,NIZAMABD | E55: 20 | F55: 3 | J55: 3 | O55: 2 | R55: 3 | W55: 3 | AA55: 3 | AE55: 3 | AH55: 2 | AL55: 2 | AP55: 2 | AT55: 3 | BC55: 2 | BF55: 2 | BJ55: 2 | BN55: 2 | BR55: 2 | BV55: 2 | BZ55: 4 | CA55: 3 | CD55: 3 | CH55: 4 | CL55: 3 | CP55: 3 | CT55: 3 | CU55: 3 | CX55: 2 | CY55: 3 | DB55: 2 | DC55: 2 | DF55: 2 | DG55: 3 | DJ55: 2 | DO55: 3 | DS55: 3 | DW55: 4 | DZ55: 56 | EA55: 37 | EB55: 0 | EC55: 0
A56: 45 | B56: INDUR503001TSBH01025 | C56: INDUR NURSING HOME | D56: Dr. P BHARATHI RANI,SARSWATHI NAGAR, KHALEEL WADI, NIZAMABAD | E56: 20 | G56: 3 | K56: 3 | N56: 3 | S56: 2 | AH56: 3 | AI56: 3 | AL56: 3 | AM56: 3 | AP56: 3 | AT56: 5 | AX56: 3 | BB56: 5 | BF56: 2 | BG56: 2 | BJ56: 2 | BK56: 3 | BN56: 2 | BO56: 3 | BR56: 2 | BS56: 2 | BV56: 2 | BW56: 3 | BZ56: 2 | CE56: 4 | CL56: 4 | CP56: 3 | CT56: 2 | CU56: 2 | CX56: 2 | CY56: 3 | DB56: 2 | DC56: 3 | DF56: 2 | DG56: 3 | DJ56: 3 | DO56: 3 | DS56: 3 | DW56: 4 | DZ56: 55 | EA56: 52 | EB56: 0 | EC56: 0
A57: 46 | B57: KEERT503001TSBH09861 | C57: KEERTHI SAI NURSING HOME | D57: Dr. P PREMALATHA,KHALEEL WADI , NIZAMABAD | E57: 20 | F57: 2 | J57: 2 | N57: 2 | R57: 2 | V57: 2 | W57: 3 | AA57: 2 | AD57: 2 | AE57: 2 | AH57: 2 | AI57: 2 | AL57: 2 | AM57: 2 | AU57: 2 | AX57: 3 | BB57: 2 | BF57: 2 | BG57: 2 | BK57: 2 | BO57: 2 | BR57: 2 | BS57: 2 | BV57: 3 | BW57: 3 | CA57: 2 | CE57: 2 | CI57: 2 | CL57: 2 | CP57: 2 | CU57: 2 | CY57: 2 | DB57: 3 | DC57: 2 | DF57: 2 | DG57: 2 | DJ57: 3 | DO57: 2 | DS57: 2 | DW57: 2 | DZ57: 40 | EA57: 44 | EB57: 0 | EC57: 0
A58: 47 | B58: LATHA503001TSBH08537 | C58: LATHA NURSING HOME | D58: Dr. LATHA,HNO: 5-7-160, KHALEEL WADI, NIZAMABAD(Dr.M.BHOOMA REDDY) | E58: 20 | F58: 3 | J58: 3 | R58: 2 | AI58: 3 | AM58: 3 | AQ58: 3 | AT58: 2 | AX58: 3 | BG58: 2 | BK58: 2 | BO58: 2 | BS58: 2 | BW58: 2 | CD58: 2 | CI58: 2 | CL58: 3 | CP58: 3 | CT58: 2 | CU58: 2 | CX58: 2 | CY58: 2 | DB58: 2 | DC58: 2 | DF58: 2 | DG58: 2 | DJ58: 2 | DO58: 2 | DS58: 2 | DW58: 3 | DZ58: 31 | EA58: 36 | EB58: 0 | EC58: 0
A59: 48 | B59: MRMUL504106TSBH08455 | C59: MR MULTI SPECIALITY HOSPITAL | D59: OPP: RDO OFFICE, KHALEELWADI, NIZAMABAD,Nizamabad,Nizamabad South,NIZAMABAD,503001 | E59: 20
A60: 49 | B60: MAAAR503001TSBH07088 | C60: MAA AROGYA HOSPITAL | D60: KHALEELWADI,NIZAMABAD | E60: 20 | F60: 3 | J60: 3 | R60: 5 | CI60: 5 | CL60: 5 | CP60: 3 | CT60: 3 | CU60: 3 | CX60: 3 | CY60: 3 | DB60: 2 | DC60: 3 | DF60: 2 | DG60: 3 | DJ60: 3 | DK60: 3 | DO60: 3 | DS60: 2 | DW60: 4 | DZ60: 32 | EA60: 29 | EB60: 0 | EC60: 0
A61: 50 | B61: MAHAL503001TSBH09862 | C61: MAHALAXMI NURSING HOME | D61: Dr. SHAKUNTHALA, H.NO:5-7-76, KHALEELWADI, NIZAMABAD. | E61: 20 | F61: 3 | J61: 3 | N61: 3 | S61: 2 | V61: 3 | Z61: 2 | AD61: 3 | AH61: 3 | AI61: 3 | AL61: 3 | AM61: 3 | AT61: 3 | AX61: 2 | BB61: 3 | BF61: 2 | BG61: 3 | BJ61: 3 | BK61: 3 | BN61: 3 | BO61: 3 | BR61: 3 | BS61: 3 | BV61: 3 | BW61: 3 | CA61: 2 | CE61: 2 | CI61: 2 | CL61: 4 | CP61: 4 | CT61: 3 | CU61: 3 | CX61: 3 | CY61: 3 | DB61: 3 | DC61: 3 | DF61: 3 | DG61: 3 | DJ61: 3 | DK61: 2 | DO61: 2 | DS61: 2 | DW61: 2 | DZ61: 68 | EA61: 49 | EB61: 0 | EC61: 0
A62: 51 | B62: MAHES503001TSBH00981 | C62: MAHESHWARI MULTI SPECIALITY HOSPITAL | D62: KHALEEL WADI , NIZAMABAD | E62: 20 | F62: 3 | J62: 3 | N62: 3 | R62: 3 | CH62: 3 | CL62: 3 | CP62: 3 | CT62: 2 | CU62: 3 | CX62: 2 | CY62: 2 | DC62: 2 | DG62: 3 | DK62: 3 | DO62: 2 | DS62: 2 | DZ62: 25 | EA62: 17 | EB62: 0 | EC62: 0
A63: 52 | B63: SREED503224TSCL08459 | C63: SRI DATTA POLYCLINIC DIABETIES SPECIALITY CENTER | D63: Dr. K. RAJESH,OPP: R D O OFFICE, NIZAMABAD | E63: 20 | S63: 3 | CH63: 4 | CL63: 4 | CP63: 3 | CU63: 2 | DV63: 3 | DZ63: 14 | EA63: 5 | EB63: 0 | EC63: 0
A64: 53 | B64: SSBAL503001TSBH06119 | C64: SS BALAJI HOSPITAL | D64: Dr. D. INDIRA, HNO: 5-6-162, BEHIND SYNDICATE BANK, OPP. KAPILA HOTEL,HYD ROAD,NZB | E64: 20 | F64: 5 | G64: 5 | J64: 5 | K64: 5 | N64: 5 | O64: 5 | R64: 4 | S64: 4 | V64: 3 | W64: 3 | Z64: 3 | AA64: 3 | AD64: 3 | AE64: 3 | AH64: 4 | AI64: 4 | AL64: 3 | AM64: 3 | AP64: 4 | AX64: 5 | BC64: 5 | BF64: 3 | BG64: 4 | BJ64: 2 | BK64: 3 | BN64: 2 | BO64: 3 | BR64: 3 | BS64: 3 | BV64: 4 | BW64: 4 | CA64: 3 | CE64: 5 | CH64: 5 | CL64: 5 | CM64: 5 | CP64: 3 | CQ64: 4 | CT64: 3 | CU64: 3 | CX64: 3 | CY64: 3 | DB64: 3 | DC64: 3 | DF64: 3 | DG64: 3 | DJ64: 3 | DK64: 3 | DN64: 3 | DR64: 2 | DV64: 4 | DZ64: 95 | EA64: 89 | EB64: 0 | EC64: 0
A65: 54 | B65: SUYOG503001TSBH00908 | C65: SUYOG CHILDRENS NEONATAL HOME | D65: Dr. SURESH JAJU, HYD ROAD,NIZAMABAD | E65: 20 | CH65: 2 | CL65: 3 | CP65: 3 | CT65: 3 | CX65: 2 | DB65: 2 | DF65: 2 | DK65: 3 | DN65: 3 | DR65: 2 | DV65: 2 | DZ65: 24 | EA65: 3 | EB65: 0 | EC65: 0
A66: 55 | B66: TAKSH503001TSBH09863 | C66: TAKSH MULTI SPECIALITY HOSPITAL | D66: In lane opposite Sunflower School weekly market, Nizamabad, Telangana 503001 | E66: 20 | G66: 2 | K66: 2 | O66: 2 | R66: 3 | V66: 3 | W66: 3 | Z66: 3 | AA66: 3 | AD66: 2 | AE66: 3 | AQ66: 2 | BB66: 5 | CH66: 3 | CL66: 3 | CP66: 3 | CT66: 2 | CU66: 2 | CX66: 2 | CY66: 2 | DB66: 2 | DC66: 2 | DF66: 2 | DG66: 2 | DJ66: 2 | DN66: 3 | DR66: 3 | DV66: 3 | DZ66: 44 | EA66: 25 | EB66: 0 | EC66: 0
A67: 56 | B67: TIRUM503001TSBH07828 | C67: THIRUMALA NURSING HOME | D67: Dr. T. JEEVAN RAO, H.NO:5-7-99, DOCTOR'S LANE, KHALEELWADI, NIZAMABAD | E67: 20 | N67: 3 | R67: 3 | V67: 2 | W67: 3 | Z67: 2 | AA67: 2 | AD67: 4 | AE67: 2 | AH67: 3 | AI67: 3 | AL67: 3 | AM67: 3 | AP67: 4 | AT67: 3 | AX67: 2 | BB67: 4 | BF67: 2 | BG67: 2 | BJ67: 3 | BK67: 3 | BN67: 3 | BO67: 3 | BR67: 2 | BS67: 2 | BV67: 3 | BW67: 3 | BZ67: 3 | CI67: 3 | CM67: 3 | CQ67: 3 | CT67: 2 | CU67: 2 | CX67: 2 | CY67: 2 | DB67: 2 | DC67: 2 | DF67: 2 | DG67: 2 | DJ67: 2 | DK67: 2 | DN67: 2 | DR67: 2 | DV67: 2 | DZ67: 65 | EA67: 45 | EB67: 0 | EC67: 0
A68: 57 | B68: VASAV503001TSBH00977 | C68: VASAVI EYE HOSPITAL | D68: Dr. D. DWARAKANATH, H.NO.5-7-17, KHALELWADI, NIZAMABAD. | E68: 20 | G68: 2 | K68: 2 | O68: 2 | R68: 4 | V68: 3 | Z68: 3 | AD68: 2 | AH68: 3 | AL68: 3 | AQ68: 3 | AX68: 3 | BB68: 3 | BF68: 3 | BJ68: 2 | BN68: 2 | BR68: 3 | BV68: 3 | CA68: 3 | CD68: 2 | CI68: 2 | CM68: 3 | CQ68: 3 | CT68: 2 | CX68: 3 | DB68: 2 | DF68: 2 | DJ68: 2 | DK68: 2 | DN68: 2 | DR68: 2 | DV68: 3 | DZ68: 57 | EA68: 22 | EB68: 0 | EC68: 0
A69: 58 | B69: VEDAN503001TSBH09864 | C69: VEDANSH HOSPITAL | D69: Behind Pragathi Hospital, Saraswathi Nagar, Nizamabad | E69: 20 | G69: 2 | K69: 2 | O69: 3 | R69: 5 | V69: 3 | W69: 3 | Z69: 3 | AA69: 3 | AD69: 4 | AE69: 4 | AQ69: 2 | BC69: 2 | BG69: 2 | BS69: 2 | CI69: 2 | CM69: 3 | CQ69: 3 | CT69: 2 | CU69: 2 | CX69: 2 | CY69: 2 | DB69: 2 | DC69: 2 | DF69: 3 | DG69: 3 | DJ69: 2 | DN69: 2 | DR69: 2 | DV69: 4 | DZ69: 34 | EA69: 42 | EB69: 0 | EC69: 0
A70: 19 TO 1 BEDS HCFs
A71: 59 | B71: SRISA503001TSBH01186 | C71: SRI SAI VENKATESHWARA HOSPITAL | D71: Dr. V. ARUNA, KHALEEL WADI , NIZAMABAD | E71: 18 | V71: 2 | W71: 3 | Z71: 2 | AA71: 3 | AD71: 3 | AE71: 3 | AH71: 3 | AI71: 3 | AL71: 3 | AM71: 3 | AQ71: 3 | AT71: 3 | AX71: 2 | BB71: 4 | BF71: 2 | BG71: 2 | BJ71: 2 | BK71: 2 | BN71: 2 | BO71: 2 | BR71: 2 | BS71: 2 | BV71: 2 | BW71: 2 | CA71: 3 | CL71: 3 | CP71: 3 | DB71: 2 | DF71: 2 | DJ71: 2 | DK71: 2 | DN71: 2 | DR71: 2 | DV71: 2 | DZ71: =F71+J71+N71+R71+V71+Z71+AD71+AH71+AL71+AP71+AT71+AX71+BB71+BF71+BJ71+BN71+BR71+BV71+BZ71+CD71+CH71+CL71+CP71+CT71+CX71+DB71+DF71+DJ71+DN71+DR71+DV71 -> 50 | EA71: =G71+K71+O71+S71+W71+AA71+AE71+AI71+AM71+AQ71+AU71+AY71+BC71+BG71+BK71+BO71+BS71+BW71+CA71+CE71+CI71+CM71+CQ71+CU71+CY71+DC71+DG71+DK71+DO71+DS71+DW71 -> 33 | EB71: =H71+L71+P71+T71+X71+AB71+AF71+AJ71+AN71+AR71+AV71+AZ71+BD71+BH71+BL71+BP71+BT71+BX71+CB71+CF71+CJ71+CN71+CR71+CV71+CZ71+DD71+DH71+DL71+DP71+DT71 -> 0 | EC71: =I71+M71+Q71+U71+Y71+AC71+AG71+AK71+AO71+AS71+AW71+BA71+BE71+BI71+BM71+BQ71+BU71+BY71+CC71+CG71+CK71+CO71+CS71+CW71+DA71+DE71+DI71+DM71+DQ71+DU71 -> 0
A72: 60 | B72: SWAMY503001TSBH08027 | C72: SWAMY CHILDREN'S HOSPITAL | D72: Dr. SATYAKUMAR SWAMY, HNO: 5-7-48, OPP. MODEM PUBLIC SCHOOL , KHALEELWADI, NIZAMABAD | E72: 16 | F72: 2 | J72: 2 | N72: 2 | S72: 2 | W72: 3 | AA72: 3 | AE72: 3 | AH72: 2 | AL72: 2 | AP72: 2 | AU72: 3 | AX72: 2 | BB72: 2 | BF72: 3 | BJ72: 3 | BN72: 3 | BR72: 2 | BV72: 2 | BZ72: 2 | CE72: 2 | CL72: 3 | CP72: 3 | DB72: 2 | DF72: 2 | DJ72: 2 | DK72: 2 | DN72: 2 | DR72: 2 | DV72: 2 | DZ72: =F72+J72+N72+R72+V72+Z72+AD72+AH72+AL72+AP72+AT72+AX72+BB72+BF72+BJ72+BN72+BR72+BV72+BZ72+CD72+CH72+CL72+CP72+CT72+CX72+DB72+DF72+DJ72+DN72+DR72+DV72 -> 49 | EA72: =G72+K72+O72+S72+W72+AA72+AE72+AI72+AM72+AQ72+AU72+AY72+BC72+BG72+BK72+BO72+BS72+BW72+CA72+CE72+CI72+CM72+CQ72+CU72+CY72+DC72+DG72+DK72+DO72+DS72+DW72 -> 18 | EB72: =H72+L72+P72+T72+X72+AB72+AF72+AJ72+AN72+AR72+AV72+AZ72+BD72+BH72+BL72+BP72+BT72+BX72+CB72+CF72+CJ72+CN72+CR72+CV72+CZ72+DD72+DH72+DL72+DP72+DT72 -> 0 | EC72: =I72+M72+Q72+U72+Y72+AC72+AG72+AK72+AO72+AS72+AW72+BA72+BE72+BI72+BM72+BQ72+BU72+BY72+CC72+CG72+CK72+CO72+CS72+CW72+DA72+DE72+DI72+DM72+DQ72+DU72 -> 0
A73: 61 | B73: AASHI503001TSBH07081 | C73: AASHIRWAD HOSPITAL | D73: Dr.PRASHANT KURDUKAR, SARASWATHI NAGAR, NIZAMABAD. | E73: 15 | N73: 3 | R73: 4 | V73: 2 | W73: 3 | Z73: 3 | AA73: 4 | AD73: 3 | AE73: 3 | AH73: 3 | AL73: 3 | AP73: 3 | BF73: 3 | BJ73: 3 | BN73: 3 | BR73: 3 | BS73: 3 | BV73: 3 | DB73: 2 | DC73: 2 | DF73: 3 | DG73: 3 | DJ73: 2 | DK73: 3 | DN73: 3 | DR73: 3 | DV73: 3 | DZ73: 55 | EA73: 21 | EB73: 0 | EC73: 0
A74: 62 | B74: CHAKR503001TSBH09866 | C74: CHAKRAPANI NEURO CARE HOSPITAL | D74: OPP:SANDHYA RANI HOSPITAL, BUS STAND LANE, KHALEELWADI, NIZAMABAD | E74: 15 | G74: 5 | K74: 4 | S74: 3 | W74: 3 | Z74: 3 | AA74: 3 | AD74: 4 | AE74: 4 | AH74: 3 | AL74: 3 | AP74: 3 | AT74: 5 | AX74: 3 | BB74: 4 | BF74: 3 | BG74: 3 | BJ74: 2 | BK74: 3 | BN74: 2 | BO74: 3 | BR74: 3 | BS74: 3 | BV74: 3 | BW74: 3 | BZ74: 4 | DB74: 2 | DC74: 2 | DF74: 3 | DG74: 3 | DJ74: 3 | DK74: 2 | DN74: 4 | DR74: 3 | DV74: 4 | DZ74: 64 | EA74: 44 | EB74: 0 | EC74: 0
A75: 63 | B75: CHAND503001TSBH00959 | C75: CHANDRASHEKAR ORTHOPAEDIC HOSPITAL | D75: Dr. M CHANDRA SHEKAR, OPP. BALAJI LAB, KHALEEL WADI, NIZAMABAD | E75: 15 | F75: 4 | J75: 4 | O75: 3 | R75: 5 | V75: 5 | W75: 5 | Z75: 4 | AA75: 3 | AD75: 4 | AE75: 4 | AH75: 4 | AI75: 4 | AL75: 2 | AM75: 2 | AP75: 3 | AX75: 5 | BC75: 5 | BF75: 3 | BG75: 3 | BJ75: 4 | BK75: 4 | BN75: 4 | BO75: 4 | BS75: 4 | BV75: 3 | BW75: 3 | BZ75: 3 | CE75: 4 | DB75: 3 | DC75: 3 | DF75: 3 | DG75: 3 | DJ75: 2 | DN75: 4 | DR75: 3 | DV75: 3 | DZ75: 75 | EA75: 54 | EB75: 0 | EC75: 0
A76: 64 | B76: DWARA503001TSBH01041 | C76: DWARAKAMAI CHILDRENS HOSPITAL | D76: J.J.REDDY X ROAD, KHALEELWADI, NIZAMABAD. | E76: 15 | F76: 3 | J76: 3 | N76: 3 | V76: 2 | W76: 3 | Z76: 3 | AA76: 3 | AD76: 4 | AE76: 4 | AH76: 3 | AI76: 3 | AL76: 2 | AM76: 2 | AQ76: 3 | AT76: 4 | AY76: 5 | BB76: 2 | BF76: 2 | BG76: 2 | BJ76: 3 | BK76: 3 | BN76: 3 | BO76: 3 | BR76: 3 | BS76: 3 | BV76: 3 | BW76: 3 | BZ76: 3 | CD76: 2 | CM76: 4 | CQ76: 4 | DB76: 2 | DC76: 3 | DF76: 3 | DG76: 3 | DJ76: 3 | DK76: 3 | DN76: 3 | DR76: 3 | DV76: 4 | DZ76: 66 | EA76: 54 | EB76: 0 | EC76: 0
A77: 65 | B77: KIWIS503001TSBH00969 | C77: KIWI SPECIALITY HOSPITAL | D77: Dr. D. PRATHIMA RAJ REDDY, BESIDE SYNDICATE BANK, KHALEELWADI, NIZAMABAD | E77: 15 | N77: 3 | R77: 2 | AH77: 4 | AI77: 4 | AL77: 4 | AM77: 4 | AQ77: 3 | AT77: 3 | AX77: 4 | BB77: 3 | BF77: 3 | BG77: 4 | BJ77: 3 | BK77: 3 | BN77: 3 | BO77: 3 | BR77: 3 | BS77: 3 | BV77: 3 | BW77: 3 | BZ77: 3 | CD77: 2 | DB77: 2 | DC77: 3 | DF77: 3 | DG77: 3 | DJ77: 3 | DK77: 2 | DO77: 3 | DS77: 3 | DW77: 2 | DZ77: 51 | EA77: 43 | EB77: 0 | EC77: 0
A78: 66 | B78: M.N.R503001TSBH09867 | C78: M.N.R. HOSPITAL | D78: NEAR ARUNA HOSPITAL, KHALEELWADI, NIZAMABAD | E78: 15 | F78: 3 | J78: 3 | N78: 3 | S78: 2 | V78: 3 | W78: 3 | Z78: 3 | AA78: 3 | AH78: 3 | AL78: 3 | AP78: 3 | AU78: 3 | AX78: 3 | BB78: 5 | BF78: 2 | BJ78: 3 | BN78: 3 | BR78: 2 | BV78: 2 | CA78: 3 | CH78: 3 | DB78: 2 | DF78: 3 | DJ78: 3 | DK78: 2 | DO78: 3 | DS78: 3 | DW78: 2 | DZ78: 55 | EA78: 24 | EB78: 0 | EC78: 0
A79: 67 | B79: MAAMU503001TSBH11385 | C79: MAA MULTISPECIALITY HOSPITAL | D79: OPP: SUNFLOWER HIGH SCHOOL, BESIDE DR. KAVITHA REDDY HOSPITAL, WEEKLY MARKET, NIZAMABAD | E79: 15 | F79: 2 | J79: 2 | O79: 2 | V79: 2 | W79: 3 | Z79: 3 | AA79: 3 | AD79: 3 | AE79: 3 | AH79: 3 | AI79: 3 | AL79: 3 | AM79: 3 | AQ79: 2 | AT79: 3 | AY79: 3 | BB79: 2 | BF79: 3 | BG79: 3 | BJ79: 3 | BK79: 3 | BN79: 3 | BO79: 3 | BR79: 3 | BS79: 3 | BV79: 3 | BW79: 3 | CD79: 2 | CM79: 2 | CQ79: 2 | DB79: 3 | DC79: 3 | DF79: 2 | DG79: 2 | DJ79: 2 | DK79: 2 | DO79: 2 | DS79: 2 | DW79: 2 | DZ79: 47 | EA79: 54 | EB79: 0 | EC79: 0
A80: 68 | B80: MANOR503001TSBH06133 | C80: MANORAMA HOSPITAL | D80: Dr. RAMA DEVI, OPP. BUSTAND, KHALEEL WADI, NIZAMABAD | E80: 15 | F80: 3 | J80: 3 | R80: 4 | BB80: 5 | DB80: 2 | DF80: 2 | DJ80: 2 | DK80: 2 | DO80: 2 | DS80: 2 | DZ80: 21 | EA80: 6 | EB80: 0 | EC80: 0
A81: 69 | B81: RUDRA503001TSBH10006 | C81: RUDRA SAI HOSPITAL | D81: Dr.DONTULA PRASHANTH, BESIDE DR JEEVAN RAO HOSPITAL, NEAR RAJIV GANDHI AUDITORIUM, KHALEELWADI, NIZAMABAD | E81: 15 | F81: 3 | J81: 3 | O81: 3 | R81: 5 | V81: 2 | Z81: 2 | AD81: 2 | AH81: 2 | AL81: 2 | AU81: 5 | AY81: 5 | BC81: 4 | BF81: 3 | BJ81: 3 | BN81: 3 | BR81: 3 | BV81: 2 | CA81: 3 | CD81: 3 | CH81: 3 | DB81: 2 | DC81: 2 | DF81: 3 | DG81: 2 | DK81: 2 | DO81: 2 | DS81: 2 | DW81: 2 | DZ81: 46 | EA81: 32 | EB81: 0 | EC81: 0
A82: 70 | B82: SAADH503001TSBH08525 | C82: SAADHYA MULTISPECIALITY HOSPITAL | D82: BEHIND BHARATHI RANI HOSPITAL, OPP: DWARAKA ENT HOSPITAL, KHALEELWADI, NIZAMABAD | E82: 15 | G82: 2 | K82: 2 | O82: 2 | S82: 2 | V82: 2 | W82: 2 | Z82: 2 | AA82: 2 | AD82: 3 | AE82: 3 | AH82: 3 | AL82: 3 | AP82: 2 | AY82: 2 | BC82: 2 | BF82: 2 | BJ82: 2 | BN82: 2 | BR82: 2 | BV82: 2 | BZ82: 2 | CE82: 2 | CH82: 2 | DC82: 2 | DG82: 2 | DJ82: 2 | DK82: 2 | DO82: 2 | DS82: 2 | DW82: 2 | DZ82: 31 | EA82: 33 | EB82: 0 | EC82: 0
A83: 71 | B83: SHASH503001TSBH00930 | C83: SHASHANK HOSPITAL | D83: Dr. K. MOTHILAL, OPP: BUSTAND LANE, KHALEELWADI, NIZAMABAD. | E83: 15 | F83: 3 | J83: 3 | O83: 3 | S83: 6 | V83: 2 | W83: 3 | Z83: 3 | AA83: 3 | AD83: 3 | AE83: 3 | AH83: 3 | AI83: 3 | AL83: 3 | AM83: 3 | AP83: 3 | AY83: 5 | BC83: 3 | BF83: 3 | BG83: 3 | BJ83: 3 | BK83: 3 | BN83: 3 | BO83: 3 | BS83: 3 | BV83: 3 | BW83: 3 | BZ83: 3 | CE83: 4 | CH83: 4 | DB83: 2 | DC83: 3 | DF83: 3 | DG83: 2 | DK83: 2 | DO83: 3 | DS83: 3 | DW83: 3 | DZ83: 47 | EA83: 67 | EB83: 0 | EC83: 0
A84: 72 | B84: SRIHA503001TSBH00960 | C84: SRI HARSHA KIDNEY & URO CENTRE | D84: Dr. M. ANAND KUMAR, H.NO. 5-6-92, DWARAKA NAGAR, KHALEELWADI, NIZAMABAD | E84: 15 | G84: 3 | K84: 3 | N84: 2 | R84: 3 | AH84: 3 | AI84: 3 | AL84: 3 | AM84: 3 | AP84: 3 | AY84: 5 | BB84: 4 | BF84: 2 | BG84: 3 | BJ84: 2 | BK84: 2 | BN84: 2 | BO84: 2 | BR84: 2 | BS84: 2 | BV84: 2 | BW84: 3 | CA84: 3 | CE84: 4 | CI84: 4 | DB84: 3 | DC84: 3 | DF84: 2 | DG84: 2 | DJ84: 2 | DO84: 2 | DS84: 2 | DW84: 2 | DZ84: 35 | EA84: 51 | EB84: 0 | EC84: 0
A85: 73 | B85: SRIRA503001TSBH00950 | C85: SRI RAKSHA HOSPITAL | D85: Dr. M. RAMDAS, PRAGATHI HOSPITAL BACKSIDE LANE, DWARAKA NAGAR, NIZAMABAD | E85: 15 | N85: 2 | R85: 2 | AH85: 3 | AL85: 3 | AQ85: 3 | AY85: 3 | BB85: 4 | BF85: 2 | BJ85: 3 | BN85: 3 | BR85: 2 | BV85: 2 | CA85: 3 | CD85: 2 | DB85: 2 | DC85: 2 | DF85: 2 | DG85: 2 | DJ85: 2 | DK85: 2 | DO85: 3 | DS85: 3 | DW85: 2 | DZ85: 34 | EA85: 23 | EB85: 0 | EC85: 0
A86: 74 | B86: SRIVE503001TSBH09868 | C86: SRI VENKATESHWARA MATERNITY NURSING HOME | D86: Dr. SMT. K. PARVATHI, H.NO.9-6-795, NEAR RAJIV GANDHI AUDITORIUM, KHALEELWADI, NIZAMABAD | E86: 15 | G86: 2 | K86: 2 | N86: 3 | V86: 2 | Z86: 2 | AD86: 3 | AI86: 3 | AM86: 3 | AQ86: 3 | AU86: 3 | AY86: 4 | BB86: 3 | BF86: 3 | BJ86: 2 | BN86: 2 | BR86: 3 | BW86: 2 | CA86: 3 | CE86: 3 | CH86: 2 | DB86: 3 | DF86: 2 | DJ86: 2 | DO86: 2 | DS86: 2 | DV86: 3 | DZ86: 35 | EA86: 32 | EB86: 0 | EC86: 0
A87: 75 | B87: SWETH503001TSBH08530 | C87: SWETHA KIDNEY CENTRE & MATERNITY NURSING HOME | D87: Dr. K. SUJATHA, OPP: DESAI BEEDI GODOWN, HYDERABAD ROAD, NIZAMABAD | E87: 15 | V87: 3 | W87: 4 | Z87: 3 | AA87: 3 | AD87: 3 | AE87: 4 | AH87: 3 | AI87: 3 | AL87: 3 | AM87: 3 | AP87: 3 | AU87: 5 | AY87: 3 | BB87: 3 | BF87: 2 | BG87: 3 | BJ87: 3 | BK87: 3 | BN87: 3 | BO87: 3 | BR87: 3 | BS87: 3 | BV87: 3 | BW87: 3 | CA87: 3 | CE87: 4 | DB87: 2 | DF87: 2 | DJ87: 3 | DK87: 3 | DO87: 3 | DS87: 3 | DV87: 3 | DZ87: 45 | EA87: 56 | EB87: 0 | EC87: 0
A88: 76 | B88: VENKA503001TSBH00962 | C88: VENKAT CHILDREN'S HOSPITAL | D88: Dr .B. VENKAT, NEAR INDIAN BANK, KHALEEL WADI, NIZAMABAD | E88: 15 | O88: 2 | V88: 3 | W88: 3 | Z88: 2 | AA88: 3 | AD88: 4 | AE88: 4 | AH88: 3 | AI88: 4 | AL88: 3 | AM88: 4 | AP88: 3 | AU88: 3 | AY88: 2 | BC88: 2 | BF88: 2 | BG88: 2 | BJ88: 3 | BK88: 3 | BN88: 3 | BO88: 3 | BR88: 3 | BS88: 3 | BV88: 3 | BW88: 4 | BZ88: 3 | CM88: 2 | CQ88: 2 | DB88: 2 | DC88: 2 | DF88: 2 | DG88: 3 | DJ88: 3 | DK88: 3 | DO88: 3 | DS88: 3 | DV88: 2 | DZ88: 44 | EA88: 60 | EB88: 0 | EC88: 0
A89: 77 | B89: VENKA503001TSBH01918 | C89: VENKATA SAI NEW BORN CHILDRENS HOSPITAL | D89: ROAD NO. 3, OPP: R.D.O OFFICE, SARASWATHI NAGAR, NIZAMBAD | E89: 15 | V89: 3 | W89: 3 | Z89: 2 | AA89: 3 | AD89: 4 | AE89: 4 | AH89: 3 | AI89: 3 | AL89: 3 | AM89: 3 | AP89: 3 | AT89: 4 | AX89: 3 | BB89: 3 | BF89: 3 | BG89: 3 | BJ89: 4 | BK89: 4 | BN89: 3 | BO89: 3 | BR89: 3 | BS89: 3 | BV89: 4 | BW89: 4 | BZ89: 2 | CD89: 3 | CM89: 3 | CQ89: 3 | DB89: 2 | DC89: 2 | DF89: 2 | DG89: 2 | DJ89: 3 | DK89: 3 | DN89: 2 | DO89: 2 | DR89: 2 | DS89: 2 | DV89: 2 | DZ89: 63 | EA89: 50 | EB89: 0 | EC89: 0
A90: 78 | B90: PAVAN503001TSBH07053 | C90: PAVAN NEURO HOSPITAL | D90: H.NO. 5-6-92, J J REDDY HOSPITAL LINE, BESIDE TEJA HOSPITAL, DWARAKA NAGAR, KHALEELWADI, NIZAMABAD | E90: 13 | F90: 5 | J90: 4 | S90: 5 | V90: 4 | W90: 5 | Z90: 3 | AA90: 3 | AD90: 3 | AE90: 4 | AH90: 4 | AI90: 4 | AL90: 3 | AM90: 3 | BF90: 4 | BG90: 4 | BJ90: 3 | BK90: 3 | BN90: 3 | BO90: 3 | BR90: 3 | BS90: 3 | BV90: 3 | BW90: 3 | BZ90: 2 | CE90: 5 | DB90: 3 | DC90: 3 | DF90: 3 | DG90: 3 | DJ90: 2 | DK90: 2 | DN90: 3 | DR90: 3 | DV90: 4 | DZ90: 62 | EA90: 53 | EB90: 0 | EC90: 0
A91: 79 | B91: DEVIH503001TSBH09870 | C91: DEVI HOSPITAL | D91: H.No. 5-7-146, Near Maitri Hospital, Ganga Lab Lane, Khaleelwadi, Nizamabad | E91: 12 | G91: 2 | K91: 2 | R91: 3 | V91: 2 | W91: 2 | Z91: 2 | AA91: 2 | AD91: 3 | AE91: 3 | AH91: 2 | AL91: 2 | AP91: 2 | AT91: 2 | AX91: 2 | BC91: 5 | BF91: 2 | BJ91: 2 | BN91: 2 | BR91: 2 | BV91: 2 | CA91: 2 | CE91: 2 | CL91: 3 | CP91: 3 | DC91: 2 | DG91: 2 | DJ91: 2 | DK91: 2 | DN91: 2 | DR91: 3 | DV91: 2 | DZ91: 45 | EA91: 26 | EB91: 0 | EC91: 0
A92: 80 | B92: RKLAX503001TSBH09882 | C92: RK LAXMI CHILDRENS HOSPITAL | D92: Dr.DEEPAK RATHOD,Building No N12A, Opposite Chakrapani Hospital, Bank Of India Road, Khaleelwadi, Nizamabad | E92: 12 | G92: 2 | K92: 2 | N92: 2 | R92: 5 | V92: 2 | Z92: 2 | AD92: 3 | AQ92: 3 | AT92: 5 | AY92: 3 | BB92: 3 | BZ92: 4 | CE92: 3 | CI92: 3 | DB92: 2 | DC92: 2 | DF92: 2 | DG92: 2 | DJ92: 3 | DK92: 3 | DN92: 3 | DR92: 3 | DV92: 4 | DZ92: 43 | EA92: 23 | EB92: 0 | EC92: 0
A93: 81 | B93: SRISU503001TSBH09871 | C93: SRI SURYA HOSPITAL | D93: Dr. RAMU KAMUTALA, BESIDE GOUTHAMI DEGREE COLLEGE, KHALEELWADI, NIZAMABAD | E93: 12 | G93: 3 | K93: 3 | O93: 3 | R93: 4 | V93: 6 | W93: 2 | Z93: 4 | AA93: 2 | AD93: 5 | AE93: 3 | AH93: 3 | AL93: 3 | AQ93: 3 | AT93: 3 | AX93: 3 | AY93: 4 | BB93: 3 | BF93: 2 | BJ93: 3 | BN93: 3 | BR93: 2 | BV93: 2 | CA93: 5 | CD93: 2 | CH93: 2 | DB93: 2 | DC93: 2 | DF93: 2 | DG93: 2 | DK93: 2 | DN93: 3 | DR93: 3 | DV93: 3 | DZ93: 63 | EA93: 34 | EB93: 0 | EC93: 0
A94: 82 | B94: SUMAN503001TSBH09872 | C94: SUMANGALI HOSPITAL | D94: Dr. ARUN KUMAR,OPP. DIST. COURT, KHALEEL WADI , NIZAMABAD | E94: 12 | G94: 3 | K94: 3 | R94: 2 | V94: 3 | W94: 3 | Z94: 3 | AA94: 3 | AD94: 3 | AE94: 3 | AI94: 2 | AM94: 2 | AQ94: 2 | AU94: 3 | AY94: 4 | BC94: 3 | BG94: 3 | BK94: 3 | BO94: 3 | BS94: 3 | BW94: 3 | CA94: 2 | CI94: 3 | DB94: 2 | DC94: 2 | DF94: 2 | DG94: 2 | DJ94: 2 | DK94: 2 | DO94: 2 | DS94: 2 | DV94: 2 | DZ94: 19 | EA94: 61 | EB94: 0 | EC94: 0
A95: 83 | B95: AAYUK503001TSBH09873 | C95: AAYUKSHA HOSPITAL | D95: ROAD NO.1, OPP: RDO OFFICE, DWARAKA NAGAR, KHALEELWADI, NIZAMABAD | E95: 10 | F95: 3 | J95: 3 | O95: 3 | S95: 2 | V95: 3 | Z95: 3 | AA95: 3 | AD95: 6 | AQ95: 3 | BF95: 2 | BG95: 2 | BJ95: 3 | BK95: 3 | BN95: 3 | BO95: 3 | BR95: 3 | BS95: 3 | BW95: 3 | CF95: 3 | DC95: 2 | DG95: 2 | DJ95: 2 | DK95: 2 | DO95: 3 | DS95: 3 | DW95: 3 | DZ95: 31 | EA95: 40 | EB95: 3 | EC95: 0
A96: 84 | B96: APOOR503001TSBH07054 | C96: APOORVA NETHRALAYA & DIAGNOSTIC CENTER | D96: Dr. G. CHANDRA KANT, H.NO. 5-7-7/8, NEAR NALANDA WOMEN'S COLLEGE, KHALEELWADI, NIZAMABAD | E96: 10 | F96: 3 | J96: 3 | N96: 2 | R96: 3 | V96: 3 | W96: 3 | Z96: 3 | AA96: 3 | AD96: 2 | AE96: 4 | AI96: 3 | AM96: 3 | AQ96: 2 | AY96: 3 | BC96: 3 | BG96: 3 | BK96: 2 | BO96: 2 | BS96: 2 | BW96: 2 | BZ96: 4 | CD96: 3 | CH96: 3 | DC96: 3 | DG96: 3 | DK96: 2 | DO96: 3 | DS96: 3 | DW96: 2 | DZ96: 29 | EA96: 51 | EB96: 0 | EC96: 0
A97: 85 | B97: DEEPA503001TSBH09874 | C97: DEEPA HOSPITAL | D97: Dr. L RAMULU, 5-4-36/16, beside BJP OffIce, BESIDE TEJA HOSPITAL ,DWARAKA NAGAR , NIZAMABAD | E97: 10 | G97: 2 | K97: 2 | S97: 3 | AH97: 3 | AL97: 3 | AP97: 2 | AT97: 2 | BC97: 4 | BR97: 2 | BV97: 2 | CA97: 2 | CD97: 2 | CM97: 3 | CQ97: 3 | DB97: 2 | DF97: 2 | DJ97: 2 | DO97: 2 | DS97: 2 | DW97: 2 | DZ97: 22 | EA97: 25 | EB97: 0 | EC97: 0
A98: 86 | B98: GANGA503001TSBH09875 | C98: GANGA BHAVANI HOSPITAL | D98: Dr.D. GOVIND, ROAD No.1, SARASWATHI NAGAR,NIZAMABAD | E98: 10 | G98: 2 | K98: 2 | O98: 2 | R98: 4 | V98: 2 | W98: 3 | Z98: 2 | AA98: 2 | AD98: 3 | AE98: 3 | AU98: 3 | AY98: 3 | BC98: 3 | BZ98: 2 | CD98: 2 | CH98: 2 | DB98: 2 | DF98: 3 | DO98: 2 | DS98: 2 | DW98: 2 | DZ98: 22 | EA98: 29 | EB98: 0 | EC98: 0
A99: 87 | B99: GAYAT503001TSBH00861 | C99: GAYATRI HOSPITAL | D99: Dr SUMALATHA HOSPITAL BUILDING, NEAR J.J. REDDY HOSPITAL, DWARAKA NAGAR, 1ST LANE, NIZAMABAD,Nizamabad,Nizamabad South,NIZAMABAD,503001 | E99: 10 | N99: 2 | V99: 3 | W99: 3 | Z99: 3 | AA99: 3 | AD99: 3 | AE99: 4 | AH99: 3 | AL99: 3 | AP99: 2 | AU99: 3 | AX99: 3 | BB99: 4 | BF99: 2 | BJ99: 2 | BN99: 2 | BR99: 3 | BV99: 3 | BZ99: 2 | CD99: 2 | CL99: 2 | CP99: 2 | DC99: 2 | DG99: 2 | DJ99: 2 | DK99: 2 | DN99: 2 | DR99: 2 | DW99: 2 | DZ99: 52 | EA99: 21 | EB99: 0 | EC99: 0
A100: 88 | B100: INDUR503001TSBH07056 | C100: INDUR CHILDRENS HOSPITAL | D100: HNO:5-6-809, KHALEELWADI, NIZAMABAD | E100: 10 | N100: 3 | AH100: 3 | AI100: 3 | AL100: 3 | AM100: 3 | BC100: 5 | BF100: 2 | BG100: 3 | BJ100: 3 | BK100: 3 | BN100: 3 | BO100: 3 | BR100: 2 | BS100: 3 | BV100: 2 | BW100: 3 | CA100: 3 | CE100: 3 | DB100: 3 | DC100: 2 | DF100: 2 | DG100: 2 | DK100: 2 | DN100: 3 | DR100: 3 | DW100: 2 | DZ100: 32 | EA100: 40 | EB100: 0 | EC100: 0
A101: 89 | B101: KGSCH503001TSBH09876 | C101: KGS CHILDRENS HOSPITAL | D101: Dr. K GOPAL SINGH, 5-7-204, BESIDE TIRUMALA HOSPITAL, Tilak Gardens, KHALLELWADI, NIZAMABAD | E101: 10 | G101: 2 | K101: 2 | O101: 2 | R101: 2 | V101: 2 | W101: 3 | Z101: 2 | AD101: 3 | AE101: 3 | AP101: 2 | AU101: 2 | AY101: 2 | BC101: 2 | BZ101: 2 | CD101: 2 | CI101: 2 | DB101: 2 | DF101: 2 | DJ101: 2 | DK101: 2 | DN101: 2 | DR101: 2 | DW101: 2 | DZ101: 25 | EA101: 24 | EB101: 0 | EC101: 0
A102: 90 | B102: KAVIT503001TSBH09877 | C102: KAVITHA CHILDRENS HOSPITAL | D102: Dr.N. RAMCHANDER, Rd No. 4, Opp: Dr. Bharathirani Hospital, Saraswathi Nagar, NIZAMABAD. | E102: 10 | G102: 2 | K102: 2 | N102: 2 | V102: 2 | W102: 2 | Z102: 2 | AA102: 2 | AD102: 2 | AE102: 2 | AP102: 2 | AU102: 2 | AY102: 2 | BB102: 2 | CA102: 2 | CD102: 2 | CI102: 2 | DB102: 2 | DC102: 2 | DF102: 2 | DG102: 2 | DK102: 2 | DN102: 2 | DR102: 2 | DW102: 2 | DZ102: 22 | EA102: 26 | EB102: 0 | EC102: 0
A103: 91 | B103: KIDSC503001TSBH09878 | C103: KIDS CARE EMERGENCY CHILDRENS HOSPITAL | D103: Dr. J. RAMESH, OPP.TELANGANA GRAMEENA BANK, DWARAKANAGAR, KHALEELWADI, NIZAMABAD | E103: 10 | F103: 2 | J103: 2 | N103: 3 | S103: 3 | V103: 2 | W103: 3 | Z103: 3 | AA103: 3 | AD103: 3 | AE103: 3 | AP103: 2 | AU103: 5 | AX103: 4 | BB103: 2 | CA103: 2 | CE103: 3 | CI103: 2 | DZ103: 23 | EA103: 24 | EB103: 0 | EC103: 0
A104: 92 | B104: NEOLI503001TSBH00907 | C104: NEOLIFE CHILDREN'S HOSPITAL | D104: KHALEELWADI, NIZAMABAD | E104: 10 | G104: 2 | K104: 2 | R104: 4 | DB104: 2 | DF104: 2 | DJ104: 2 | DK104: 2 | DN104: 2 | DR104: 2 | DV104: 2 | DZ104: 16 | EA104: 6 | EB104: 0 | EC104: 0
A105: 93 | B105: NILOU503001TSBH08492 | C105: NILOUFER CHILD CARE HOSPITAL | D105: Dr. MOHD JUNED AHMED, J.J.REDDY X ROAD, KHALEELWADI, NIZAMABAD. | E105: 10 | N105: 2 | R105: 4 | DB105: 2 | DC105: 2 | DF105: 3 | DG105: 3 | DJ105: 2 | DK105: 2 | DN105: 2 | DR105: 2 | DV105: 2 | DZ105: 19 | EA105: 7 | EB105: 0 | EC105: 0
A106: 94 | B106: NIZAM503001TSBH09879 | C106: NIZAMABAD NEURO SUPER SPECIALITY HOSPITAL | D106: Dr. V. CHANDRA SEKHAR REDDY, HNO: 5-7-35, KHALEELWADI, NIZAMABAD. | E106: 10 | BZ106: 2 | DC106: 2 | DG106: 2 | DK106: 2 | DV106: 3 | DZ106: 5 | EA106: 6 | EB106: 0 | EC106: 0
A107: 95 | B107: PADMA503001TSBH01076 | C107: PADMAVATHI GASTRO HOSPITAL | D107: Dr. SURENDAR REDDY, HNO:5-6-806 & 807, OPP. RAJIVGANDHI AUDITORIUM, KHALEELWADI, NZB | E107: 10 | DB107: 2 | DF107: 2 | DJ107: 2 | DK107: 2 | DV107: 3 | DZ107: 9 | EA107: 2 | EB107: 0 | EC107: 0
A108: 96 | B108: RAINB503001TSBH01029 | C108: RAINBOW CHILDRENS HOSPITAL | D108: Dr.G.SAI PRASAD,HNO:5-6-809,KHALEEL WADI, NIZAMABAD. | E108: 10 | G108: 3 | K108: 3 | O108: 3 | V108: 5 | Z108: 3 | AD108: 3 | AI108: 2 | AM108: 2 | AP108: 2 | AX108: 5 | BC108: 3 | BG108: 3 | BK108: 3 | BO108: 3 | BS108: 2 | BW108: 3 | BZ108: 2 | CE108: 3 | CI108: 3 | DB108: 2 | DC108: 2 | DF108: 2 | DG108: 3 | DJ108: 2 | DK108: 2 | DN108: 3 | DR108: 3 | DV108: 3 | DZ108: 35 | EA108: 43 | EB108: 0 | EC108: 0
A109: 97 | B109: REFRA503001TSBH00972 | C109: REFRACTO EYE HOSPITAL | D109: DR. PRADEEP KUMAR BODDU, BESIDE THRIMURTHY ENTERPRISE, VINAYAK NAGAR, NIZAMABAD | E109: 10 | F109: 3 | J109: 3 | N109: 2 | S109: 3 | DB109: 2 | DF109: 2 | DJ109: 2 | DK109: 2 | DN109: 2 | DR109: 2 | DV109: 2 | DZ109: 20 | EA109: 5 | EB109: 0 | EC109: 0
A110: 98 | B110: RUKMI503001TSBH09880 | C110: RUKMINI HOSPITAL | D110: Dr B. GAVASKAR, BESIDE BHARATHI RANI HOSPITAL, KHALEEELWADI, NIZAMABAD | E110: 10 | F110: 4 | J110: 3 | O110: 3 | V110: 3 | W110: 3 | Z110: 3 | AA110: 3 | AD110: 3 | AE110: 3 | AH110: 3 | AI110: 3 | AL110: 3 | AM110: 3 | AQ110: 3 | AU110: 5 | AY110: 5 | BC110: 4 | BF110: 3 | BG110: 3 | BJ110: 3 | BK110: 4 | BN110: 3 | BO110: 3 | BR110: 2 | BS110: 3 | BW110: 3 | CA110: 3 | CE110: 4 | CI110: 4 | DB110: 3 | DC110: 3 | DF110: 2 | DG110: 3 | DJ110: 2 | DK110: 2 | DN110: 3 | DR110: 3 | DV110: 3 | DZ110: 49 | EA110: 70 | EB110: 0 | EC110: 0
A111: 99 | B111: SHYLA503001TSBH06134 | C111: SHYLAJA HOSPITAL | D111: DR. T SHYLAJA, BESIDE POCHAMMA TEMPLE, POCHAMMMAGALLI, NIZAMBAD | E111: 10 | F111: 5 | J111: 4 | N111: 3 | O111: 3 | R111: 3 | S111: 3 | V111: 3 | W111: 3 | Z111: 2 | AA111: 2 | AD111: 3 | AE111: 3 | AH111: 4 | AI111: 4 | AL111: 4 | AM111: 4 | AP111: 5 | AX111: 5 | BC111: 5 | BF111: 2 | BG111: 3 | BJ111: 3 | BK111: 3 | BN111: 3 | BO111: 3 | BR111: 3 | BS111: 3 | BV111: 3 | BW111: 3 | CE111: 5 | DB111: 2 | DC111: 3 | DF111: 2 | DG111: 3 | DJ111: 2 | DK111: 2 | DN111: 4 | DR111: 3 | DV111: 4 | DZ111: 72 | EA111: 55 | EB111: 0 | EC111: 0
A112: 100 | B112: SIDDI503001TSBH00928 | C112: SIDDIVINAYAKA HOSPITAL FOR CHILDREN | D112: Dr. AJJA SREENIVAS,POCHAMMA GALLI, BESIDE HOPE HOSPITAL LANE, NIZAMABAD | E112: 10 | F112: 3 | J112: 3 | O112: 3 | V112: 3 | Z112: 2 | AD112: 2 | AI112: 3 | AM112: 3 | AX112: 5 | BB112: 5 | BG112: 2 | BK112: 2 | BO112: 2 | BS112: 2 | BW112: 2 | CA112: 4 | CE112: 4 | DB112: 2 | DF112: 2 | DJ112: 2 | DK112: 2 | DN112: 3 | DR112: 3 | DV112: 3 | DZ112: 38 | EA112: 29 | EB112: 0 | EC112: 0
A113: 101 | B113: SRIBA503001TSBH08029 | C113: SRI BALAJI HOSPITAL | D113: Dr. M. VENKATARAMANA,NEAR MEESEVA,KHALEEL WADI, NIZAMABAD | E113: 10 | G113: 3 | K113: 3 | O113: 3 | W113: 2 | Z113: 1 | AA113: 2 | AE113: 2 | AH113: 3 | AL113: 3 | AP113: 3 | AT113: 1 | AX113: 5 | AY113: 5 | BB113: 5 | BF113: 2 | BJ113: 2 | BN113: 2 | BV113: 2 | CA113: 2 | CI113: 3 | CN113: 1 | CR113: 1 | CU113: 1 | DB113: 2 | DF113: 2 | DK113: 2 | DN113: 2 | DR113: 2 | DV113: 3 | DZ113: 40 | EA113: 28 | EB113: 2 | EC113: 0
A114: 102 | B114: SRILA503001TSBH08470 | C114: SRI LAXMI CHILDRENS HOSPITAL | D114: Dr. CH. SRIKANTH, H.NO: 5-7-149. 1st FLOOR, OPP. PANJAB NATIONAL BANK, KHALEEL WADI, NIZAMABAD | E114: 10 | F114: 3 | G114: 3 | J114: 3 | K114: 3 | N114: 3 | O114: 3 | V114: 3 | W114: 3 | Z114: 3 | AA114: 3 | AD114: 6 | AE114: 3 | AH114: 3 | AI114: 2 | AL114: 3 | AM114: 2 | AQ114: 3 | AU114: 3 | AY114: 2 | BC114: 3 | BF114: 3 | BJ114: 3 | BK114: 3 | BN114: 3 | BO114: 3 | BR114: 2 | BV114: 2 | BZ114: 3 | CD114: 2 | CL114: 4 | CP114: 4 | DB114: 3 | DC114: 3 | DF114: 2 | DG114: 2 | DJ114: 2 | DO114: 2 | DS114: 2 | DV114: 3 | DZ114: 63 | EA114: 48 | EB114: 0 | EC114: 0
A115: 103 | B115: SRIMA503001TSBH07043 | C115: SRI MAITHRI HOSPITAL | D115: Dr. C HARI PRASAD RAO, KHALEEL WADI, NIZAMABAD | E115: 10 | G115: 7 | K115: 5 | V115: 3 | W115: 3 | Z115: 2 | AA115: 2 | AD115: 3 | AE115: 3 | AH115: 3 | AL115: 3 | AQ115: 3 | AY115: 3 | BB115: 3 | BF115: 2 | BJ115: 3 | BN115: 3 | BR115: 2 | BV115: 3 | CA115: 3 | CH115: 4 | DB115: 2 | DF115: 2 | DK115: 2 | DO115: 3 | DS115: 3 | DW115: 3 | DZ115: 38 | EA115: 40 | EB115: 0 | EC115: 0
A116: 104 | B116: SRIRA503001TSBH08527 | C116: SRI RAGHAVENDRA KIDNEY URO CARE CENTER | D116: Dr. A. RAGHAVENDER, D.NO:5-7-34, OPP. Dr. JAYANI NEHRU, BEHIND SSR JUNIOR COLLEGE, NIZAMABAD | E116: 10 | G116: 4 | K116: 4 | N116: 2 | R116: 4 | W116: 3 | AA116: 3 | AE116: 2 | AH116: 3 | AI116: 3 | AL116: 3 | AM116: 3 | AQ116: 3 | AY116: 2 | BB116: 3 | BF116: 3 | BG116: 2 | BJ116: 2 | BK116: 2 | BN116: 2 | BO116: 2 | BR116: 2 | BS116: 2 | BV116: 2 | BW116: 2 | CA116: 2 | CD116: 3 | DB116: 2 | DC116: 2 | DF116: 2 | DG116: 2 | DO116: 3 | DS116: 3 | DW116: 3 | DZ116: 33 | EA116: 52 | EB116: 0 | EC116: 0
A117: 105 | B117: SRIRA503001TSBH09883 | C117: SRI RAMA NETRA VAIDYASHALA | D117: P.B. KRISHNA MURTHY, Opp. Dr. Jhansi Bala Dawakhana, Tilak Gardens, Khaleelwadi, Nizamabad | E117: 10 | N117: 3 | R117: 5 | V117: 2 | W117: 3 | Z117: 3 | AA117: 3 | AD117: 3 | AE117: 3 | AH117: 3 | AL117: 3 | AQ117: 3 | AU117: 5 | AY117: 3 | BF117: 2 | BJ117: 2 | BN117: 2 | BV117: 2 | CA117: 2 | CD117: 3 | CI117: 2 | DB117: 2 | DC117: 2 | DF117: 2 | DG117: 2 | DJ117: 3 | DK117: 3 | DO117: 2 | DS117: 2 | DW117: 2 | DZ117: 40 | EA117: 37 | EB117: 0 | EC117: 0
A118: 106 | B118: SRISA503001TSBH09884 | C118: SRI SAI HOSPITAL | D118: Dr.KAVITHA REDDY, RAVINDER REDDY, WEEKLY MARKET, OPP: LANE TO SUNFLOWER HIGH SCHOOL, NIZAMABAD | E118: 10 | F118: 3 | G118: 3 | J118: 3 | K118: 3 | N118: 3 | O118: 3 | V118: 3 | W118: 2 | Z118: 3 | AA118: 3 | AD118: 3 | AE118: 3 | AH118: 2 | AI118: 3 | AL118: 2 | AM118: 3 | AP118: 3 | AQ118: 2 | AT118: 3 | AX118: 5 | AY118: 5 | BB118: 2 | BC118: 2 | BF118: 2 | BG118: 2 | BJ118: 2 | BK118: 2 | BN118: 2 | BO118: 2 | BR118: 2 | BS118: 2 | BV118: 2 | BW118: 2 | BZ118: 3 | CD118: 3 | CE118: 3 | CM118: 3 | CQ118: 3 | DB118: 2 | DC118: 2 | DF118: 2 | DG118: 2 | DJ118: 2 | DL118: 2 | DO118: 3 | DS118: 3 | DW118: 2 | DZ118: 57 | EA118: 63 | EB118: 2 | EC118: 0
A119: 107 | B119: SRISA503001TSBH06121 | C119: SRI SAI VIMALA HOSPITAL | D119: OPP: KRISHNAMURTHY EYE HOSPITAL, KHALEELWADI, NIZAMABAD | E119: 10 | F119: 3 | J119: 3 | N119: 3 | R119: 3 | V119: 2 | W119: 2 | Z119: 2 | AA119: 3 | AD119: 2 | AE119: 2 | AH119: 3 | AI119: 2 | AL119: 3 | AM119: 2 | AP119: 3 | AT119: 3 | AX119: 3 | BC119: 3 | BF119: 2 | BG119: 2 | BJ119: 2 | BK119: 3 | BN119: 2 | BO119: 3 | BR119: 2 | BS119: 2 | BV119: 2 | BW119: 2 | BZ119: 3 | CD119: 3 | CM119: 3 | CQ119: 3 | DB119: 2 | DC119: 2 | DF119: 2 | DG119: 2 | DJ119: 2 | DN119: 2 | DR119: 2 | DW119: 2 | DZ119: 59 | EA119: 38 | EB119: 0 | EC119: 0
A120: 108 | B120: SRISA503001TSBH09885 | C120: SRI SATHYA SAI HOSPITAL | D120: Dr. R. VIDYA SAGAR, R. SHANTI SAGAR, HNo: 5-7-16, KHALEELWADI, NIZAMABAD. | E120: 10 | G120: 3 | K120: 3 | N120: 2 | R120: 3 | V120: 2 | W120: 3 | Z120: 3 | AA120: 3 | AD120: 3 | AE120: 3 | AH120: 2 | AL120: 2 | AQ120: 2 | AT120: 3 | AY120: 4 | BB120: 3 | BF120: 2 | BK120: 3 | BO120: 3 | BR120: 3 | BV120: 2 | CA120: 3 | CE120: 3 | CI120: 3 | DB120: 2 | DF120: 2 | DJ120: 2 | DK120: 2 | DN120: 2 | DR120: 2 | DW120: 2 | DZ120: 40 | EA120: 40 | EB120: 0 | EC120: 0
A121: 109 | B121: SUKHI503001TSBH09881 | C121: SUKHIBHAVA HOSPITAL | D121: ROAD No.1, Dwaraka Nagar, Pochammagalli, Khaleelwadi, Nizamabad | E121: 10 | F121: 3 | J121: 3 | O121: 3 | R121: 3 | V121: 3 | W121: 4 | Z121: 2 | AA121: 3 | AD121: 4 | AE121: 4 | AH121: 3 | AL121: 3 | AP121: 3 | AU121: 5 | AY121: 4 | BC121: 4 | BG121: 3 | BK121: 3 | BO121: 3 | BR121: 3 | BV121: 2 | BW121: 3 | CA121: 3 | CE121: 3 | DB121: 2 | DC121: 3 | DF121: 2 | DG121: 3 | DJ121: 2 | DN121: 3 | DR121: 3 | DW121: 4 | DZ121: 44 | EA121: 55 | EB121: 0 | EC121: 0
A122: 110 | B122: TEJAH503001TSBH08453 | C122: TEJA HOSPITAL | D122: Dr. K.N. MALLESHWARI, DWARAKA NAGAR, OPP. LANE TO AXIS BANK, KHALEELWADI, NIZAMABAD | E122: 10 | G122: 3 | K122: 3 | N122: 3 | O122: 2 | S122: 3 | V122: 3 | W122: 3 | Z122: 2 | AA122: 2 | AD122: 3 | AE122: 3 | AH122: 4 | AL122: 4 | AQ122: 3 | BC122: 3 | BF122: 2 | BJ122: 3 | BN122: 3 | BR122: 3 | BV122: 3 | CA122: 2 | CE122: 2 | CI122: 4 | DB122: 3 | DF122: 2 | DJ122: 3 | DK122: 2 | DN122: 2 | DR122: 2 | DW122: 4 | DZ122: 45 | EA122: 39 | EB122: 0 | EC122: 0
A123: 111 | B123: VIJAY503001TSBH07829 | C123: VIJAYA HOSPITAL & METERNITY HOME | D123: Dr. SURESH KUMAR VOJJELA,OPP. RAJEEV GANDHI AUDITORIUM, KHALEELWADI, NIZAMABAD | E123: 10 | F123: 3 | G123: 3 | J123: 3 | K123: 3 | N123: 3 | O123: 3 | R123: 3 | V123: 2 | W123: 3 | Z123: 2 | AA123: 2 | AD123: 4 | AE123: 4 | AH123: 3 | AL123: 3 | AP123: 3 | AU123: 3 | AY123: 5 | BB123: 2 | BF123: 2 | BJ123: 2 | BN123: 2 | BR123: 2 | BV123: 2 | BZ123: 2 | CD123: 3 | CL123: 3 | CP123: 3 | DB123: 2 | DC123: 2 | DF123: 2 | DG123: 2 | DJ123: 2 | DN123: 2 | DR123: 2 | DW123: 4 | DZ123: 62 | EA123: 34 | EB123: 0 | EC123: 0
A124: 112 | B124: CITIC503001TSBH09886 | C124: CITICARE CHILDREN'S HOSPITAL | D124: NEAR SBI BANK, QILLA ROAD, NIZAMABAD | E124: 10 | F124: 1 | J124: 1 | N124: 1 | R124: 1 | V124: 1 | Z124: 1 | AD124: 1 | AH124: 1 | AI124: 2 | AL124: 1 | AM124: 2 | AP124: 1 | AT124: 1 | AX124: 1 | BB124: 1 | BF124: 1 | BG124: 2 | BJ124: 1 | BN124: 1 | BR124: 1 | BS124: 2 | BV124: 1 | BW124: 2 | BZ124: 1 | CD124: 1 | CH124: 1 | CL124: 1 | CP124: 1 | CT124: 1 | CX124: 1 | DB124: 1 | DJ124: 1 | DN124: 1 | DR124: 1 | DV124: 1 | DZ124: 30 | EA124: 10 | EB124: 0 | EC124: 0
A125: 113 | B125: ESHWA503001TSBH09887 | C125: ESHWAR GASTRO & LIVER SUPERSPECIALITY HOSPITAL | D125: Dr. ESHWAR CHEGANTI, J P SHARMA BUILDING, BESIDE CORPORATION BANK, Near Mudiraj Hanuman Temple, Pochamagalli, Tilak Gardens, Khaleelwadi, NIZAMABAD | E125: 9 | G125: 3 | K125: 3 | O125: 3 | R125: 4 | V125: 2 | W125: 2 | AA125: 2 | AE125: 3 | AH125: 2 | AI125: 3 | AL125: 2 | AM125: 3 | AU125: 5 | AX125: 3 | BC125: 2 | BF125: 2 | BG125: 2 | BJ125: 3 | BK125: 3 | BN125: 3 | BO125: 3 | BR125: 3 | BS125: 3 | BV125: 3 | BW125: 3 | CH125: 2 | DB125: 2 | DC125: 2 | DF125: 2 | DG125: 2 | DJ125: 2 | DK125: 2 | DZ125: 35 | EA125: 49 | EB125: 0 | EC125: 0
A126: 114 | B126: KAMAL503001TSBH08476 | C126: KAMALA EYE HOSPITAL | D126: OLD DR. PG. KRISHNAMURTHY EYE HOSPITAL, UNSARI BUILDING, BESIDE GOUTHAMI DEGREE COLLEGE, KHALEELWADI, NIZAMABAD,Nizamabad,Nizamabad South,NIZAMABAD,503001 | E126: 9 | F126: 2 | J126: 2 | N126: 2 | W126: 3 | AA126: 3 | AE126: 3 | AH126: 3 | AL126: 3 | AP126: 2 | AU126: 2 | AY126: 2 | BC126: 2 | BF126: 3 | BJ126: 2 | BN126: 2 | BR126: 3 | BV126: 2 | BZ126: 2 | CD126: 2 | CL126: 2 | CP126: 2 | DB126: 2 | DF126: 2 | DJ126: 2 | DZ126: 40 | EA126: 15 | EB126: 0 | EC126: 0
A127: 115 | B127: SURYA503001TSBH01039 | C127: SURYA NEURO - PSYCHIATRY CENTRE | D127: H.NO. 5-7-77 & 78, KHALEELWADI, NIZAMABAD | E127: 9 | O127: 2 | V127: 2 | W127: 2 | Z127: 2 | AA127: 2 | AD127: 3 | AE127: 2 | AI127: 2 | AM127: 2 | AP127: 2 | AU127: 3 | AX127: 3 | BG127: 2 | BK127: 2 | BO127: 2 | BS127: 2 | BW127: 2 | CA127: 2 | CD127: 2 | DB127: 2 | DF127: 2 | DJ127: 2 | DR127: 1 | DZ127: 21 | EA127: 27 | EB127: 0 | EC127: 0
A128: 116 | B128: BALVE503001TSBH08535 | C128: BALVEER HOSPITAL | D128: KRITI HOSPITAL,NIZAMABAD | E128: 8 | F128: 2 | J128: 2 | N128: 2 | R128: 2 | V128: 2 | Z128: 2 | AD128: 2 | AI128: 3 | AM128: 3 | AQ128: 2 | AY128: 2 | BC128: 2 | BG128: 2 | BK128: 2 | BO128: 2 | BS128: 2 | BW128: 2 | BZ128: 2 | CD128: 2 | CH128: 2 | DC128: 2 | DG128: 2 | DJ128: 2 | DR128: 2 | DZ128: 24 | EA128: 26 | EB128: 0 | EC128: 0
A129: 117 | B129: GOURI503001TSBH08460 | C129: GOURI HOSPITAL | D129: BESIDE POCHAMMA TEMPLE, NEAR HOPE HOSPITAL, DWARAKA NAGAR, NIZAMABAD | E129: 8 | G129: 3 | K129: 3 | N129: 3 | V129: 2 | W129: 2 | Z129: 3 | AA129: 3 | AD129: 3 | AE129: 3 | AH129: 2 | AI129: 3 | AL129: 2 | AM129: 3 | AQ129: 2 | AT129: 2 | AY129: 3 | BB129: 2 | BF129: 3 | BG129: 2 | BJ129: 3 | BK129: 3 | BN129: 3 | BO129: 3 | BR129: 3 | BS129: 3 | BV129: 2 | BW129: 3 | BZ129: 3 | CE129: 2 | CL129: 3 | CP129: 3 | DB129: 2 | DF129: 2 | DJ129: 2 | DK129: 2 | DR129: 1 | DZ129: 49 | EA129: 43 | EB129: 0 | EC129: 0
A130: 118 | B130: GUPTA503001TSBH07082 | C130: DR. GUPTAS ENT NURSING HOME | D130: Dr. VINOD PAWAR GUPTA,OPP.R D O OFFICE, ROAD NO.3, SARSWATHI NAGAR,NIZAMABAD | E130: 6 | O130: 2 | R130: 2 | V130: 3 | Z130: 3 | AD130: 3 | AI130: 2 | AM130: 2 | AP130: 2 | AX130: 3 | BC130: 2 | BF130: 3 | BJ130: 2 | BN130: 2 | BS130: 3 | BV130: 2 | BZ130: 2 | CE130: 2 | DB130: 2 | DC130: 2 | DF130: 2 | DG130: 2 | DK130: 2 | DZ130: 31 | EA130: 19 | EB130: 0 | EC130: 0
A131: 119 | B131: HASIN503001TSBH08450 | C131: HASINI ENT NURSING HOME | D131: Dr. M SRIKANTH REDDY, OPP. BUS STAND LANE, KHALEELWADI, NIZAMABAD | E131: 6 | F131: 2 | J131: 2 | N131: 3 | R131: 2 | V131: 2 | Z131: 2 | AD131: 2 | AP131: 2 | AT131: 3 | AX131: 3 | BB131: 2 | BZ131: 3 | CE131: 2 | DB131: 2 | DF131: 2 | DK131: 2 | DZ131: 32 | EA131: 4 | EB131: 0 | EC131: 0
A132: 120 | B132: INDUR503001TSBH11399 | C132: INDUR NEURO PSYCHIATRIC HOSPITAL | D132: Dr. A VISHAL, RAJEEV GANDHI AUDITORIUM LANE, KHALEEL WADI, NIZAMABAD | E132: 6 | V132: 3 | W132: 3 | Z132: 2 | AA132: 3 | AD132: 2 | AE132: 3 | AH132: 2 | AL132: 2 | AP132: 3 | AU132: 3 | AX132: 3 | BB132: 3 | BF132: 3 | BJ132: 2 | BN132: 2 | BR132: 2 | BV132: 2 | CD132: 2 | CL132: 3 | CP132: 3 | DB132: 2 | DC132: 2 | DF132: 2 | DG132: 2 | DJ132: 3 | DK132: 3 | DZ132: 46 | EA132: 19 | EB132: 0 | EC132: 0
A133: 121 | C133: PRIMARY HEALTH CENTRE, INDALWAI | D133: INDALWAI VILLAGE, NIZAMABAD | E133: 6 | DZ133: 0 | EA133: 0 | EB133: 0 | EC133: 0
A134: 122 | B134: SRIVE503001TSBH09889 | C134: SRI VENKATESHWARA SPECIALITY HOSPITAL | D134: Dr. RAJKAMAL, PRAGATHI NAGAR, BEHIND PRAGATHI HOSPITAL, NIZAMABAD. | E134: 6 | G134: 3 | K134: 3 | O134: 3 | R134: 5 | AQ134: 3 | DC134: 2 | DG134: 2 | DJ134: 2 | DZ134: 7 | EA134: 16 | EB134: 0 | EC134: 0
A135: 123 | B135: WISHF503001TSBH08479 | C135: WISH FERTILITY NURSING HOME | D135: DWARAKA NAGAR, NIZAMABAD | E135: 6 | G135: 2 | K135: 2 | O135: 2 | V135: 2 | W135: 3 | Z135: 3 | AA135: 3 | AD135: 3 | AE135: 3 | AH135: 2 | AL135: 2 | AQ135: 2 | AT135: 3 | AX135: 3 | BB135: 2 | BF135: 3 | BJ135: 3 | BN135: 3 | BR135: 3 | BV135: 2 | BZ135: 2 | CE135: 2 | CL135: 2 | CP135: 2 | DB135: 2 | DC135: 2 | DF135: 2 | DG135: 2 | DK135: 2 | DR135: 1 | DZ135: 45 | EA135: 25 | EB135: 0 | EC135: 0
A136: 124 | B136: AYYAP503001TSBH08484 | C136: AYYAPPA DIAGNOSTICS AND EYE HOSPITAL | D136: HNO:5-6-6, POCHAMMA GALLI ,NIZAMABAD | E136: 5 | F136: 3 | J136: 3 | N136: 2 | R136: 2 | V136: 3 | W136: 3 | Z136: 3 | AA136: 3 | AD136: 3 | AE136: 3 | AH136: 3 | AL136: 3 | AQ136: 2 | AY136: 2 | BC136: 2 | BF136: 2 | BJ136: 2 | BN136: 2 | BR136: 2 | BV136: 2 | BZ136: 2 | CD136: 2 | CI136: 2 | DB136: 2 | DF136: 3 | DJ136: 2 | DZ136: =F136+J136+N136+R136+V136+Z136+AD136+AH136+AL136+AP136+AT136+AX136+BB136+BF136+BJ136+BN136+BR136+BV136+BZ136+CD136+CH136+CL136+CP136+CT136+CX136+DB136+DF136+DJ136+DN136+DR136+DV136 -> 46 | EA136: =G136+K136+O136+S136+W136+AA136+AE136+AI136+AM136+AQ136+AU136+AY136+BC136+BG136+BK136+BO136+BS136+BW136+CA136+CE136+CI136+CM136+CQ136+CU136+CY136+DC136+DG136+DK136+DO136+DS136+DW136 -> 17 | EB136: =H136+L136+P136+T136+X136+AB136+AF136+AJ136+AN136+AR136+AV136+AZ136+BD136+BH136+BL136+BP136+BT136+BX136+CB136+CF136+CJ136+CN136+CR136+CV136+CZ136+DD136+DH136+DL136+DP136+DT136 -> 0 | EC136: =I136+M136+Q136+U136+Y136+AC136+AG136+AK136+AO136+AS136+AW136+BA136+BE136+BI136+BM136+BQ136+BU136+BY136+CC136+CG136+CK136+CO136+CS136+CW136+DA136+DE136+DI136+DM136+DQ136+DU136 -> 0
A137: 125 | B137: DWARA503001TSBH08030 | C137: DWARAKA ENT NURSING HOME | D137: Dr. V NAVEEN,BACKSIDE PRAGATHI HOSPITAL, DWARAKA NAGAR , NIZAMABAD | E137: 5 | F137: 2 | J137: 2 | N137: 3 | V137: 3 | W137: 3 | Z137: 3 | AA137: 4 | AD137: 4 | AE137: 2 | AH137: 2 | AL137: 2 | AP137: 2 | AU137: 3 | AY137: 3 | BC137: 3 | BF137: 2 | BJ137: 3 | BN137: 3 | BR137: 3 | BV137: 2 | CA137: 3 | CD137: 2 | CL137: 3 | CP137: 3 | DC137: 2 | DG137: 2 | DK137: 2 | DZ137: 44 | EA137: 27 | EB137: 0 | EC137: 0
A138: 126 | B138: GOPIK503001TSBH08449 | C138: GOPI KRISHNA ENT NURSING HOME | D138: Dr. R VENKATA KRISHNA,SARSWATHI NAGAR, ROAD NO.4, NIZAMABAD | E138: 5 | DB138: 1 | DC138: 2 | DF138: 2 | DG138: 2 | DN138: 2 | DR138: 2 | DV138: 2 | DZ138: 9 | EA138: 4 | EB138: 0 | EC138: 0
A139: 127 | B139: KBRSC503001TSBH07089 | C139: KBRS CHEST HOSPITAL | D139: H.NO. 5-8-5, NEAR VIJAY TALKIES, NISHITHA DEGREE COLLEGE, YELLAMMA GUTTA, NIZAMABAD | E139: 5 | F139: 3 | J139: 3 | N139: 2 | R139: 2 | V139: 3 | W139: 3 | Z139: 3 | AA139: 3 | AD139: 2 | AE139: 3 | AH139: 2 | AL139: 2 | AP139: 2 | AU139: 3 | AX139: 4 | BB139: 2 | BF139: 3 | BJ139: 2 | BN139: 2 | BR139: 2 | BV139: 2 | CA139: 2 | CL139: 2 | CP139: 2 | DN139: 2 | DR139: 2 | DV139: 2 | DZ139: 51 | EA139: 14 | EB139: 0 | EC139: 0
A140: 128 | B140: KRITI503001TSBH08536 | C140: KRITI HOSPITAL | D140: Dr. S KRISHNA, OPP: BUS STAND, KHALEELWADI, NIZAMABAD,Nizamabad,Nizamabad South,NIZAMABAD,503001 | E140: 5 | F140: 2 | J140: 2 | N140: 2 | R140: 2 | W140: 2 | AA140: 2 | AE140: 2 | AP140: 2 | AU140: 2 | AX140: 3 | BB140: 2 | BN140: 2 | CA140: 2 | CE140: 2 | CI140: 2 | DB140: 2 | DC140: 2 | DF140: 2 | DG140: 2 | DN140: 2 | DR140: 2 | DV140: 2 | DZ140: 27 | EA140: 18 | EB140: 0 | EC140: 0
A141: 129 | B141: MEGHA503001TSBH00921 | C141: MEGHA EYE HOSPITAL | D141: H.NO. 5-6-210, SARASWATHI NAGAR, ROAD NO. 4, NIZAMABAD Nizamabad(V) Nizamabad South(M) NIZAMABAD(D) | E141: 5 | F141: 2 | J141: 2 | N141: 2 | R141: 2 | V141: 3 | AA141: 2 | AE141: 3 | AQ141: 2 | AY141: 4 | BB141: 3 | CE141: 2 | CH141: 2 | DB141: 1 | DC141: 1 | DF141: 2 | DG141: 2 | DN141: 2 | DR141: 2 | DV141: 2 | DZ141: 25 | EA141: 16 | EB141: 0 | EC141: 0
A142: 130 | B142: SRISA503001TSBH08465 | C142: SRI SAI NARAYANA NETHRALAYA | D142: Dr. K.N. SRINIVAS, OPP. TELANGANA GRAMEENA BANK, KHALEELWADI, NIZAMABAD. | E142: 5 | G142: 4 | K142: 4 | N142: 2 | R142: 4 | AH142: 3 | AL142: 3 | AQ142: 3 | AY142: 3 | BB142: 4 | BF142: 2 | BJ142: 2 | BN142: 2 | BR142: 3 | BV142: 3 | CA142: 3 | CD142: 3 | CH142: 3 | DB142: 1 | DC142: 1 | DF142: 2 | DG142: 1 | DN142: 2 | DR142: 2 | DV142: 3 | DZ142: 44 | EA142: 19 | EB142: 0 | EC142: 0
A143: 131 | B143: PRIMA503202TSBH06448 | C143: PRIMARY HEALTH CENTRE, YEDAPALLY | D143: YEDAPALLY | E143: 4 | F143: 4 | J143: 4 | N143: 4 | S143: 4 | V143: 4 | AA143: 4 | AE143: 4 | AI143: 4 | AM143: 4 | AQ143: 4 | AU143: 4 | AY143: 4 | BC143: 4 | BG143: 3 | BK143: 3 | BO143: 3 | BS143: 4 | BW143: 3 | CA143: 3 | CE143: 4 | CI143: 3 | CM143: 4 | CQ143: 4 | CU143: 4 | CY143: 4 | DC143: 4 | DK143: 4 | DO143: 4 | DS143: 3 | DW143: 4 | DZ143: 16 | EA143: 97 | EB143: 0 | EC143: 0
A144: 132 | B144: GANGA503001TSBH01185 | C144: GANGA DIAGNOSTIC CENTRE | D144: Dr. K. MADAN MOHAN RAO,KHALEEL WADI , NIZAMABAD | E144: 1 | DB144: 2 | DC144: 2 | DF144: 2 | DG144: 1 | DN144: 2 | DR144: 2 | DV144: 3 | DZ144: 11 | EA144: 3 | EB144: 0 | EC144: 0
A145: 133 | B145: INDUR503002TSBH01060 | C145: INDUR M.D.C.T& MRI CENTRE | D145: HNO:5-7-626,KHALLELWADI,NIZAMABAD | E145: 1 | G145: 3 | K145: 3 | N145: 3 | S145: 2 | AT145: 3 | AX145: 3 | BB145: 5 | BZ145: 3 | CE145: 3 | DB145: 2 | DC145: 2 | DF145: 2 | DG145: 2 | DN145: 2 | DR145: 2 | DV145: 4 | DZ145: 29 | EA145: 15 | EB145: 0 | EC145: 0
A146: 134 | B146: SRIMU503001TSBH08480 | C146: SRI MUKHI SKIN AND HAIR CLINIC | D146: Dr.N.MADHUKAR, OPP: DR. KARUNAKAR HOSPITAL, SHOP NO. 20 &21 MUNCIPAL COMPLEX, KHALEELWADI, NIZAMABAD | E146: 1 | N146: 2 | R146: 4 | W146: 2 | AA146: 2 | AE146: 3 | AH146: 3 | AL146: 3 | AQ146: 3 | AY146: 3 | BB146: 4 | BF146: 3 | BJ146: 2 | BN146: 2 | BR146: 2 | BV146: 3 | CA146: 3 | CD146: 2 | CH146: 2 | DB146: 2 | DC146: 2 | DF146: 2 | DG146: 2 | DN146: 2 | DR146: 2 | DV146: 2 | DZ146: 42 | EA146: 20 | EB146: 0 | EC146: 0
A147: 135 | B147: ARAVI503001TSCL09890 | C147: ARAVIND NETRALAYA | D147: Dr. SHARAD JOSHI,1ST FLOOR,CARPORATION BANK BUILDING, OPP: MUDHIRAJ SANGAM, KHALEELWADI, NIZAMABAD | E147: 0 | F147: 2 | J147: 2 | S147: 2 | V147: 3 | Z147: 2 | AH147: 2 | AL147: 2 | AP147: 2 | AT147: 3 | AX147: 6 | BB147: 2 | BF147: 2 | BR147: 2 | BV147: 2 | BZ147: 2 | CD147: 2 | CL147: 2 | CP147: 2 | DB147: 2 | DC147: 2 | DG147: 1 | DN147: 2 | DR147: 2 | DW147: 3 | DZ147: 46 | EA147: 8 | EB147: 0 | EC147: 0
A148: 136 | C148: DISTRICT VETERINARY HOSPITAL(DVH) | D148: BEHIND USHA PRASAD MULTIPLEX, KOTAGALLY, NIZAMABAD | E148: 0 | DZ148: 0 | EA148: 0 | EB148: 0 | EC148: 0
A149: 137 | B149: DR.AN503001TSBH01101 | C149: DR. ANILs DIABETIES CENTRE | D149: Dr. T ANIL KUMAR,OPP. RED CROSS BLOOD BANK,KHALEELWADI, NIZAMABAD | E149: 0 | DB149: 2 | DF149: 2 | DN149: 2 | DR149: 2 | DW149: 2 | DZ149: 8 | EA149: 2 | EB149: 0 | EC149: 0
A150: 138 | B150: ENTSP503001TSCL09892 | C150: ENT SPECIALITY CLINIC | D150: Dr.SANTHOSH KUMAR KONDA, Near Indur Medicals, Pochammagalli, Khaleelwadi, Nizamabad | E150: 0 | G150: 2 | K150: 2 | N150: 2 | R150: 2 | V150: 2 | Z150: 2 | AD150: 2 | AH150: 2 | AL150: 2 | AQ150: 2 | AU150: 2 | AY150: 2 | BC150: 2 | BF150: 2 | BJ150: 2 | BN150: 2 | BR150: 2 | BV150: 2 | BZ150: 2 | CD150: 2 | CL150: 2 | CP150: 2 | DB150: 1 | DF150: 1 | DN150: 2 | DR150: 2 | DW150: 2 | DZ150: 38 | EA150: 14 | EB150: 0 | EC150: 0
A151: 139 | B151: KALAE503001TSBH09893 | C151: KALA EYE HOSPITAL | D151: Dr. G ANIL KUMAR,BESIDE SHEETAL SCANNING CENTER , KHALLEL WADI, NIZAMABAD | E151: 5 | G151: 2 | K151: 2 | O151: 2 | R151: 2 | V151: 3 | Z151: 2 | AD151: 2 | AP151: 2 | AU151: 2 | AY151: 2 | BC151: 2 | CA151: 2 | CD151: 2 | CI151: 2 | DC151: 2 | DF151: 2 | DO151: 2 | DS151: 2 | DW151: 2 | DZ151: 15 | EA151: 24 | EB151: 0 | EC151: 0
A152: 140 | B152: LAXMI503001TSBH08463 | C152: LAXMI ENT NURSING HOME | D152: Dr. K SUBASH,HNO:-5-6-202, KHALEEL WADI, NIZAMABAD | E152: 0 | F152: 3 | J152: 3 | N152: 3 | AH152: 3 | AI152: 3 | AL152: 3 | AM152: 3 | AQ152: 2 | AT152: 3 | BB152: 2 | BF152: 2 | BG152: 2 | BJ152: 3 | BK152: 3 | BN152: 2 | BO152: 2 | BR152: 3 | BS152: 3 | BV152: 2 | BW152: 2 | BZ152: 3 | CD152: 3 | DO152: 3 | DS152: 3 | DW152: 2 | DZ152: 38 | EA152: 28 | EB152: 0 | EC152: 0
A153: 141 | B153: LAXMI503001TSBH01040 | C153: LAXMI HOSPITAL | D153: Dr. J BAPU REDDY,D.NO:-5-6-801, KHALEEL WADI , NIZAMABAD | E153: 0 | N153: 3 | R153: 3 | Z153: 2 | AH153: 3 | AI153: 3 | AL153: 3 | AM153: 3 | AQ153: 3 | AT153: 3 | AX153: 3 | BB153: 2 | BF153: 3 | BG153: 2 | BJ153: 2 | BK153: 3 | BN153: 2 | BO153: 3 | BR153: 2 | BS153: 2 | BV153: 2 | BW153: 2 | BZ153: 2 | CD153: 2 | DB153: 1 | DC153: 2 | DF153: 2 | DG153: 1 | DO153: 2 | DS153: 2 | DW153: 2 | DZ153: 40 | EA153: 30 | EB153: 0 | EC153: 0
A154: 142 | B154: PAVAN503002TSCL09894 | C154: PAVAN CLINIC | D154: Dr.BHARATH PAWAR, Opp. Rural Police Station, Armoor Road, Vidhyuth Nagar, KANTESHWAR,NIZAMABAD | E154: 0 | G154: 2 | K154: 2 | O154: 3 | V154: 2 | W154: 2 | Z154: 2 | AA154: 2 | AD154: 2 | AE154: 2 | AQ154: 3 | AT154: 5 | AY154: 5 | BC154: 5 | CH154: 5 | DC154: 2 | DG154: 1 | DW154: 3 | DZ154: 16 | EA154: 32 | EB154: 0 | EC154: 0
A155: 143 | B155: PRASH503001TSBH09895 | C155: PRASHANTHI NEURO PSYCHIATRIC HOSPITAL | D155: Dr.RAJENDER SOORINEEDU,KHALEELWADI,NZB | E155: 5 | G155: 2 | K155: 2 | O155: 2 | S155: 2 | V155: 2 | Z155: 3 | AD155: 3 | AQ155: 2 | AT155: 2 | AY155: 3 | BC155: 2 | BZ155: 2 | CD155: 2 | CI155: 2 | DB155: 1 | DF155: 2 | DO155: 2 | DS155: 2 | DW155: 3 | DZ155: 17 | EA155: 24 | EB155: 0 | EC155: 0
A156: 144 | B156: SKINC503001TSBH07046 | C156: SKINCARE CLINIC | D156: Dr. D. SRINIVAS, MUNCIPAL COMPLEX SHOP NOs:25,26, TILAK GARDEN, KHALEELWADI, NIZAMABAD | E156: 1 | G156: 2 | K156: 2 | O156: 2 | R156: 2 | W156: 2 | AA156: 2 | AE156: 3 | AQ156: 2 | AU156: 2 | AX156: 2 | BB156: 3 | CA156: 2 | CE156: 2 | CI156: 2 | DC156: 1 | DG156: 1 | DO156: 2 | DS156: 2 | DW156: 2 | DZ156: 7 | EA156: 31 | EB156: 0 | EC156: 0
A157: 145 | B157: SPARS503001TSCL08533 | C157: SPARSHA NEURO PSYCHIATRIC CENTRE | D157: Dr.ACHAMPET VIKAS,H.No:5-6-70, DWARAKA NAGAR, NIZAMABAD. | E157: 0 | G157: 2 | K157: 2 | N157: 3 | S157: 3 | V157: 3 | W157: 3 | Z157: 2 | AA157: 3 | AD157: 3 | AE157: 2 | AH157: 3 | AL157: 3 | AU157: 5 | AX157: 2 | BB157: 3 | BF157: 3 | BJ157: 3 | BN157: 2 | BR157: 2 | BV157: 3 | CA157: 2 | CE157: 2 | CI157: 2 | DB157: 2 | DF157: 2 | DO157: 2 | DS157: 2 | DW157: 3 | DZ157: 39 | EA157: 33 | EB157: 0 | EC157: 0
A158: 146 | B158: SRIAD503002TSBH09896 | C158: SRI ADITYA ORTHOPAEDIC HOSPITAL | D158: Dr. SRINIVASA RAO NAIDU, MARUTHI NAGAR, ARMOOR ROAD, NIZAMABAD | E158: 5 | G158: 3 | K158: 3 | N158: 2 | S158: 3 | W158: 3 | AA158: 3 | AE158: 3 | AQ158: 3 | AU158: 5 | AX158: 4 | BG158: 2 | BK158: 2 | BO158: 2 | BW158: 2 | BZ158: 2 | CE158: 2 | CI158: 2 | DB158: 2 | DF158: 2 | DO158: 3 | DS158: 3 | DV158: 3 | DZ158: 15 | EA158: 44 | EB158: 0 | EC158: 0
A159: DENTAL HOSPITALS (HCFs)
A160: 147 | B160: BHAGA503001TSBH09897 | C160: BHAGAVATHI DENTAL HOSPITAL | D160: Dr. Y . PRAVEEN KUMAR,NEAR MODERN PUBLIC SCHOOL, KHALEEL WADI, NIZAMABAD | E160: 5 | F160: 2 | J160: 2 | S160: 2 | Z160: 2 | AD160: 2 | AI160: 2 | AM160: 2 | AT160: 3 | AX160: 3 | BB160: 2 | BG160: 2 | BK160: 2 | BO160: 2 | BS160: 4 | BW160: 2 | BZ160: 2 | CD160: 2 | DB160: 2 | DC160: 2 | DF160: 2 | DG160: 2 | DJ160: 2 | DK160: 2 | DZ160: =F160+J160+N160+R160+V160+Z160+AD160+AH160+AL160+AP160+AT160+AX160+BB160+BF160+BJ160+BN160+BR160+BV160+BZ160+CD160+CH160+CL160+CP160+CT160+CX160+DB160+DF160+DJ160+DN160+DR160+DV160 -> 26 | EA160: =G160+K160+O160+S160+W160+AA160+AE160+AI160+AM160+AQ160+AU160+AY160+BC160+BG160+BK160+BO160+BS160+BW160+CA160+CE160+CI160+CM160+CQ160+CU160+CY160+DC160+DG160+DK160+DO160+DS160+DW160 -> 24 | EB160: =H160+L160+P160+T160+X160+AB160+AF160+AJ160+AN160+AR160+AV160+AZ160+BD160+BH160+BL160+BP160+BT160+BX160+CB160+CF160+CJ160+CN160+CR160+CV160+CZ160+DD160+DH160+DL160+DP160+DT160 -> 0 | EC160: =I160+M160+Q160+U160+Y160+AC160+AG160+AK160+AO160+AS160+AW160+BA160+BE160+BI160+BM160+BQ160+BU160+BY160+CC160+CG160+CK160+CO160+CS160+CW160+DA160+DE160+DI160+DM160+DQ160+DU160 -> 0
A161: 148 | B161: BRITE503001TSBH09898 | C161: BRITE SMILE DENTAL HOSPITAL | D161: Dr. RAHEEMUNNISA,HNO:5-6-9, BESIDE J. J REDDY HOSPITAL, KHALEEL WADI, NIZAMABAD | E161: 5 | G161: 3 | K161: 3 | S161: 3 | V161: 3 | W161: 3 | Z161: 2 | AA161: 2 | AD161: 2 | AE161: 2 | AI161: 3 | AM161: 3 | AT161: 3 | AX161: 3 | BB161: 2 | BG161: 2 | BK161: 2 | BO161: 2 | BS161: 2 | BW161: 2 | CD161: 3 | CM161: 2 | CQ161: 2 | DB161: 2 | DC161: 2 | DF161: 2 | DG161: 2 | DJ161: 2 | DZ161: =F161+J161+N161+R161+V161+Z161+AD161+AH161+AL161+AP161+AT161+AX161+BB161+BF161+BJ161+BN161+BR161+BV161+BZ161+CD161+CH161+CL161+CP161+CT161+CX161+DB161+DF161+DJ161+DN161+DR161+DV161 -> 24 | EA161: =G161+K161+O161+S161+W161+AA161+AE161+AI161+AM161+AQ161+AU161+AY161+BC161+BG161+BK161+BO161+BS161+BW161+CA161+CE161+CI161+CM161+CQ161+CU161+CY161+DC161+DG161+DK161+DO161+DS161+DW161 -> 40 | EB161: =H161+L161+P161+T161+X161+AB161+AF161+AJ161+AN161+AR161+AV161+AZ161+BD161+BH161+BL161+BP161+BT161+BX161+CB161+CF161+CJ161+CN161+CR161+CV161+CZ161+DD161+DH161+DL161+DP161+DT161 -> 0 | EC161: =I161+M161+Q161+U161+Y161+AC161+AG161+AK161+AO161+AS161+AW161+BA161+BE161+BI161+BM161+BQ161+BU161+BY161+CC161+CG161+CK161+CO161+CS161+CW161+DA161+DE161+DI161+DM161+DQ161+DU161 -> 0
A162: 149 | B162: NAVAT503001TSBH00906 | C162: NAVATHA MULTISPECIALITY DENTAL CLINIC | D162: Dr.M.PRATAP KUMAR,SARASWATHI NAGAR,NIZAMABAD | E162: 5 | N162: 3 | DB162: 2 | DC162: 2 | DF162: 2 | DG162: 2 | DJ162: 2 | DK162: 2 | DZ162: 9 | EA162: 6 | EB162: 0 | EC162: 0
A163: 150 | B163: NIZAM503001TSBH09899 | C163: NIZAMABAD SUPER SPECIALITY DENTAL HOSPITAL | D163: Dr.SEENU NAIK, H.No. 5-6-798, BESIDE VIJAYA LAXMI HOSPITAL, KHALEELWADI, NIZAMABAD | E163: 5 | G163: 3 | K163: 3 | O163: 2 | S163: 3 | V163: 3 | Z163: 2 | AA163: 2 | AD163: 3 | AE163: 2 | AH163: 2 | AL163: 2 | AT163: 3 | AY163: 4 | BF163: 2 | BJ163: 2 | BN163: 2 | BR163: 2 | BV163: 3 | DB163: 2 | DF163: 2 | DK163: 2 | DZ163: 30 | EA163: 21 | EB163: 0 | EC163: 0
A164: 151 | B164: SHIVA503001TSBH08473 | C164: SHIVA SHREE SUPER SPECIALITY DENTAL CARE CENTER | D164: Dr.POLA SAMBA SHIVA RAO,BELOW CORPORATION BANK,NZB | E164: 5 | F164: 3 | J164: 3 | O164: 3 | V164: 2 | W164: 2 | Z164: 2 | AA164: 2 | AD164: 2 | AE164: 2 | AI164: 3 | AM164: 3 | AP164: 3 | AX164: 3 | BB164: 4 | BG164: 3 | BK164: 2 | BO164: 2 | BS164: 2 | BW164: 2 | CA164: 2 | CE164: 3 | DB164: 2 | DF164: 2 | DM164: 2 | DZ164: 26 | EA164: 31 | EB164: 0 | EC164: 2
A165: 152 | B165: HITEC503001TSBH09904 | C165: HITECH DENTAL CLINIC | D165: Dr. K. NANDA KUMAR,OPP. RAJEEVE GANDHI AUDITORUM, KHALEELWADI, NIZAMABAD | E165: 4 | G165: 3 | K165: 3 | O165: 2 | R165: 4 | W165: 2 | Z165: 2 | AA165: 2 | AD165: 2 | AE165: 2 | AQ165: 2 | AU165: 3 | AY165: 3 | BC165: 3 | BZ165: 2 | CD165: 2 | CH165: 2 | DB165: 2 | DF165: 2 | DJ165: 2 | DZ165: 20 | EA165: 25 | EB165: 0 | EC165: 0
A166: 153 | B166: MAHAL503001TSBH00920 | C166: MAHALAXMI DENTAL HOSPITAL | D166: Dr.B.GANGA REDDY, HNO;5-6-752/1,KHALEELWADI, NIZAMABAD | E166: 4 | R166: 3 | DB166: 2 | DC166: 2 | DF166: 2 | DG166: 2 | DK166: 3 | DZ166: 7 | EA166: 7 | EB166: 0 | EC166: 0
A167: 154 | B167: BAPUJ503001TSBH01091 | C167: BAPUJI SUPER SPECIALITY DENTAL | D167: Dr. J. BALRAM,OPP: INDUR CT SCAN, KHALEELWADI, NIZAMABAD | E167: 3 | F167: 2 | J167: 2 | N167: 2 | R167: 2 | V167: 2 | Z167: 2 | AD167: 3 | AI167: 2 | AM167: 2 | AQ167: 2 | AU167: 2 | AX167: 2 | BC167: 4 | BG167: 2 | BK167: 2 | BO167: 2 | BS167: 2 | BW167: 2 | CA167: 2 | CL167: 2 | CP167: 2 | DB167: 2 | DF167: 2 | DJ167: 2 | DK167: 2 | DZ167: 27 | EA167: 26 | EB167: 0 | EC167: 0
A168: 155 | B168: DR.KA503001TSBH00953 | C168: Dr. KARTHIK SUPER SPECIALITY DENTAL | D168: Dr. KARTHIK LABHISHETTY,OPP Dr. SRISAILAM, DWARAKANAGAR, KHALEELWADI, | E168: 3 | G168: 2 | K168: 2 | N168: 2 | S168: 2 | AH168: 3 | AL168: 3 | AQ168: 2 | AT168: 2 | BC168: 2 | BF168: 2 | BG168: 2 | BJ168: 2 | BK168: 2 | BN168: 2 | BO168: 2 | BR168: 2 | BS168: 2 | BV168: 2 | CA168: 2 | CE168: 2 | DC168: 2 | DG168: 2 | DJ168: 2 | DZ168: 22 | EA168: 26 | EB168: 0 | EC168: 0
A169: 156 | B169: S.V.S503001TSBH01078 | C169: SV SMILE 32 DENTAL HOSPITAL | D169: Dr. KONDA AMARNATH, OPP. Dr. SUBASH E.N.T HOSPITAL,KHALEELWADI, NIZAMABAD | E169: 3 | N169: 2 | R169: 4 | V169: 2 | W169: 2 | Z169: 2 | AA169: 2 | AD169: 2 | AE169: 2 | AH169: 2 | AL169: 2 | AP169: 2 | AU169: 2 | AX169: 2 | BC169: 3 | BF169: 2 | BJ169: 2 | BN169: 2 | BR169: 2 | BV169: 2 | CA169: 2 | CL169: 2 | CP169: 2 | DB169: 2 | DC169: 2 | DF169: 2 | DG169: 2 | DJ169: 2 | DZ169: 40 | EA169: 17 | EB169: 0 | EC169: 0
A170: 157 | B170: ANUDE503001TSBH09906 | C170: ANU DENTAL CARE | D170: DR. LAXMAN BOYAPATI, H.NO. 3-31, ROAD NO. 3, SARASWATHI NAGAR, NIZAMABAD | E170: 2 | F170: 2 | J170: 2 | O170: 2 | S170: 2 | W170: 2 | AA170: 2 | AH170: 3 | AL170: 3 | AQ170: 2 | AT170: 2 | BB170: 2 | BF170: 2 | BJ170: 2 | BN170: 2 | BR170: 2 | BV170: 2 | BZ170: 2 | CD170: 2 | CL170: 2 | CP170: 2 | DC170: 2 | DG170: 2 | DJ170: 2 | DZ170: 34 | EA170: 14 | EB170: 0 | EC170: 0
A171: 158 | B171: MANIS503001TSBH10012 | C171: MANISH DENTAL CLINIC | D171: 5-5-242, Road No 2, Opposite Ashirwad Hospital, Saraswathi Nagar, KHALEELWADI, NIZAMABAD | E171: 2 | F171: 2 | J171: 2 | N171: 2 | S171: 2 | V171: 2 | Z171: 2 | AD171: 3 | AH171: 2 | AL171: 2 | AQ171: 2 | AT171: 2 | AX171: 2 | BB171: 3 | BF171: 2 | BR171: 2 | BV171: 2 | BZ171: 2 | CE171: 2 | CH171: 2 | DB171: 2 | DC171: 2 | DF171: 2 | DG171: 2 | DZ171: 38 | EA171: 10 | EB171: 0 | EC171: 0
A172: 159 | B172: ORANG503001TSBH10014 | C172: ORANGE DENTAL HOSPITAL | D172: DR. CH SRIKRISHNA, OPP: TELANGANA GRAMEENA BANK MAIN BRANCH, POCHAMMA GALLY, KHALEELWADI, NIZAMABAD | E172: 2 | G172: 2 | K172: 2 | O172: 2 | S172: 2 | V172: 2 | Z172: 2 | AD172: 2 | AQ172: 2 | AT172: 2 | AY172: 2 | BC172: 2 | BZ172: 2 | CE172: 2 | CH172: 2 | DB172: 2 | DC172: 2 | DF172: 2 | DG172: 2 | DZ172: 16 | EA172: 20 | EB172: 0 | EC172: 0
A173: 160 | B173: RSMUL503001TSBH10021 | C173: RS MULTI SPECIALITY DENTAL HOSPITAL | D173: Dr. JYOTHI KOTTUR, SHOP NO:5, MUNICIPAL COMPLEX, KHALEELWADI, NIZAMABAD | E173: 2 | F173: 2 | J173: 2 | N173: 2 | R173: 2 | V173: 2 | Z173: 2 | AD173: 2 | AI173: 2 | AM173: 2 | AP173: 2 | AU173: 2 | AY173: 2 | BC173: 2 | BK173: 2 | BO173: 2 | BS173: 2 | BW173: 2 | BZ173: 2 | CE173: 2 | CH173: 2 | DB173: 2 | DC173: 2 | DF173: 2 | DG173: 2 | DK173: 2 | DZ173: 24 | EA173: 26 | EB173: 0 | EC173: 0
A174: 161 | B174: SSKMU503001TSBH10027 | C174: SSK DENTAL CLINIC (SRI SAI KRISHNA) | D174: Dr. VINOD PAWAR, OPP: PRAGATHI HOSPITAL, Kapila Complex, Hyderabad Road, Pragathi Nagar, NIZAMABAD | E174: 2 | DZ174: 0 | EA174: 0 | EB174: 0 | EC174: 0
A175: 162 | B175: SAIPA503001TSBH10031 | C175: SAI PALLAVI MULTI SPECIALITY DENTAL CLINIC, NIZAMABAD | D175: Dr. N. PRASAD, BESIDE BHARATH PATHOLOGICAL LAB, NEAR HAYATT HOSPITAL, KHALEELWADI, NIZAMABAD | E175: 2 | F175: 2 | J175: 2 | O175: 2 | R175: 3 | V175: 2 | Z175: 2 | AD175: 2 | AH175: 2 | AL175: 2 | AP175: 2 | AU175: 3 | AY175: 2 | BF175: 3 | BJ175: 2 | BN175: 2 | BR175: 2 | BV175: 2 | BZ175: 2 | CE175: 2 | CH175: 2 | DB175: 2 | DC175: 2 | DF175: 2 | DG175: 2 | DJ175: 2 | DK175: 2 | DZ175: 40 | EA175: 15 | EB175: 0 | EC175: 0
A176: 163 | B176: SHANT503001TSBH02309 | C176: SHANTHA MULTISPECIALITY DENTAL | D176: Dr.BHASKER NAIK,PUNJAB NATIONAL BANK COMPLEX,KHALEEL WADI,NIZAMABAD. | E176: 2 | O176: 2 | S176: 2 | AI176: 2 | AM176: 2 | BG176: 2 | BJ176: 2 | BN176: 2 | BR176: 2 | BW176: 2 | DB176: 2 | DC176: 2 | DF176: 2 | DG176: 2 | DJ176: 2 | DZ176: 12 | EA176: 16 | EB176: 0 | EC176: 0
A177: 164 | B177: SPRMU503001TSBH07047 | C177: SPR MULTI SPECIALITY DENTAL CLINIC | D177: NARAYAN REDDY COMPLEX, OPP: MUDHIRAJ BHAVAN, KHALEELWADI, NIZAMABAD | E177: 2 | G177: 2 | K177: 2 | R177: 2 | DC177: 2 | DG177: 2 | DJ177: 2 | DZ177: 4 | EA177: 8 | EB177: 0 | EC177: 0
A178: 165 | B178: SRISA503001TSBH10032 | C178: SRI SAI DENTAL CLINIC | D178: DR NAGESH BODHANKAR, HNO:5-7-132, BESIDE ANKAM HOSPITAL, KHALEEL WADI, NIZAMABAD | E178: 2 | G178: 3 | K178: 3 | N178: 3 | V178: 3 | W178: 3 | Z178: 3 | AA178: 2 | AD178: 3 | AE178: 2 | AI178: 3 | AM178: 3 | AT178: 4 | AX178: 5 | BB178: 4 | BG178: 2 | BK178: 2 | BO178: 2 | BS178: 2 | BW178: 2 | BZ178: 3 | CI178: 2 | DC178: 2 | DG178: 2 | DK178: 2 | DZ178: 28 | EA178: 37 | EB178: 0 | EC178: 0
A179: 166 | B179: SRIAM503001TSBH10033 | C179: SRI AMALA DENTAL CLINIC | D179: Dr. K. SRINIVAS, BESIDE ESHWAR GASTRO & LIVER HOSPITAL, NEAR PUNJAB NATIONAL BANK, KHALEELWADI, NIZAMABAD | E179: 1 | DB179: 2 | DC179: 2 | DF179: 2 | DG179: 2 | DJ179: 2 | DZ179: 6 | EA179: 4 | EB179: 0 | EC179: 0
A180: 167 | B180: APPLE503001TSBH10034 | C180: APPLE DENTAL SPECIALITIES | D180: Dr. CH SRIKRISHNA & VENKAT, RUDRA SAI HOSPITAL BUILDING, BESIDE ADARSH METERNITY NURSING HOME, NEAR RAJIV GANDHI AUDITORIUM, KHALEELWADI, NIZAMABAD. | E180: 1 | S180: 2 | V180: 2 | Z180: 2 | AI180: 2 | AM180: 2 | AQ180: 2 | AT180: 2 | AX180: 3 | BB180: 2 | BG180: 2 | BS180: 2 | CA180: 2 | CD180: 2 | CM180: 2 | CQ180: 2 | DB180: 2 | DF180: 2 | DZ180: 17 | EA180: 18 | EB180: 0 | EC180: 0
A181: 168 | B181: HAPPY503001TSBH01092 | C181: HAPPY DENTAL HOSPITAL | D181: OPP: RAJIV GANDHI AUDITORIUM, KHALEELWADI, NIZAMABAD,Nizamabad,Nizamabad South,NIZAMABAD,503001 | E181: 1 | F181: 2 | J181: 2 | N181: 2 | S181: 2 | V181: 2 | Z181: 2 | AD181: 3 | AP181: 2 | AT181: 2 | AX181: 3 | BB181: 2 | BZ181: 2 | CD181: 2 | DB181: 2 | DC181: 2 | DF181: 1 | DG181: 1 | DK181: 2 | DZ181: 29 | EA181: 7 | EB181: 0 | EC181: 0
A182: 169 | B182: MEGAD503001TSBH10035 | C182: MEGA DENTAL CARE | D182: Dr. MANJUNATH CH, BEHIND PUNJAB NATIONAL BANK, BESIDE VIMALA HOSPITAL & LATHA NURSING HOME, Rd No. 4, Saraswathi Nagar, Khaleelwadi, NIZAMABAD | E182: 1 | V182: 2 | W182: 2 | Z182: 3 | AA182: 2 | AD182: 2 | AE182: 2 | AI182: 2 | AM182: 2 | AU182: 3 | AX182: 3 | BB182: 3 | BG182: 2 | BK182: 2 | BO182: 2 | BS182: 2 | BW182: 2 | BZ182: 2 | CD182: 2 | CM182: 2 | CQ182: 2 | DC182: 2 | DG182: 2 | DJ182: 2 | DK182: 2 | DZ182: 19 | EA182: 33 | EB182: 0 | EC182: 0
A183: 170 | B183: RRDEN503001TSBH10036 | C183: RR DENTAL CLINIC | D183: Dr.RAGHU RAVUTLA, SHOP NO.10, KAVITHA COMPLEX, NIZAMABAD | E183: 2 | G183: 2 | K183: 2 | N183: 2 | R183: 2 | V183: 2 | Z183: 2 | AD183: 2 | AP183: 2 | AT183: 2 | AY183: 2 | BB183: 2 | BZ183: 2 | CD183: 2 | CH183: 2 | DC183: 2 | DG183: 2 | DK183: 2 | DZ183: 22 | EA183: 12 | EB183: 0 | EC183: 0
A184: 171 | B184: SAIKR503001TSBH01019 | C184: SAI KRISHNA DENTAL CLINIC | D184: OPP.RDO OFFICE,SRASWARTHI NAGAR,NZB | E184: 1 | DC184: 2 | DG184: 2 | DJ184: 2 | DZ184: 2 | EA184: 4 | EB184: 0 | EC184: 0
A185: 172 | B185: SAITI503001TSBH06120 | C185: SAI TIRUMALA MULTISPECIALITY DENTAL CLINIC | D185: SHOP NO. 19, MUNCIPAL COMPLEX, BESIDE SRIMUKHI SKIN CARE HOSPITAL, KHALEELWADI, NIZAMABAD | E185: 1 | O185: 2 | DC185: 2 | DG185: 2 | DK185: 2 | DZ185: 0 | EA185: 8 | EB185: 0 | EC185: 0
A186: 173 | B186: SRIBA503001TSBH10037 | C186: SRI BALAJI DENTAL CARE CENTER | D186: Dr. B. SRIKANTH, H.No 1-51/44, Near Axis Bank, BESIDE Dr. KRISHNA MURTHI EYE HOSPITAL, KHALEELWADI, NIZAMABAD | E186: 2 | G186: 3 | K186: 3 | AQ186: 2 | AU186: 5 | AX186: 4 | BB186: 3 | CE186: 2 | CI186: 3 | DB186: 2 | DC186: 2 | DF186: 2 | DG186: 2 | DK186: 2 | DZ186: 11 | EA186: 24 | EB186: 0 | EC186: 0
A187: 174 | B187: SAISR503001TSBH10038 | C187: SAI SRINIVASA MULTI SPECIALITY DENTAL HOSPITAL | D187: Dr. K . CHARAN RAJ, JJ Reddy Circle, near Shivasai Multi Speciality Hospital, NEAR TELANGANA GRAMEENA BANK, Khaleelwadi, Nizamabad | E187: 4 | G187: 3 | K187: 3 | N187: 3 | V187: 2 | W187: 2 | Z187: 3 | AA187: 3 | AE187: 2 | AH187: 2 | AL187: 2 | AU187: 3 | AX187: 5 | BB187: 4 | BF187: 2 | BJ187: 2 | BN187: 2 | BR187: 2 | BV187: 2 | CA187: 3 | CE187: 4 | CI187: 3 | DB187: 2 | DF187: 2 | DK187: 2 | DZ187: 35 | EA187: 28 | EB187: 0 | EC187: 0
A188: 175 | B188: VENKA503001TSBH01118 | C188: VENKATESHWARA DENTAL CLINIC | D188: Dr. V. Vamshi Krishna, OPP:AXIS BANK, TEJA HOSPITAL LANE, DWARAKA NAGAR, NIZAMABAD | E188: 1 | F188: 2 | J188: 2 | DB188: 1 | DF188: 2 | DK188: 2 | DZ188: 7 | EA188: 2 | EB188: 0 | EC188: 0
A189: 176 | B189: SRINI503001TSBH00952 | C189: SRINIVAS DENTAL CLINIC & DIAGNOSTIC CENTER | D189: Dr. M. SRINIVAS REDDY,OPP: RED CROSS BLOOD BANK, KHALEEL WADI, NIZAMABAD | E189: 1 | AH189: 2 | AL189: 2 | AP189: 3 | AT189: 5 | AX189: 3 | BB189: 2 | BF189: 2 | BJ189: 2 | BN189: 2 | BR189: 2 | BV189: 3 | BZ189: 2 | CD189: 3 | DF189: 2 | DZ189: 35 | EA189: 0 | EB189: 0 | EC189: 0
A190: 177 | B190: SUPRI503001TSBH10039 | C190: SUPRIYA DENTAL CLINIC | D190: Dr. G.S. SUGUNAKAR RAJU, HNO:5-7-624/3, Beside Bharath Labs, OPP BUS STAND, Tilak Gardens, KHALEELWADI, NIZAMABAD. | E190: 1 | F190: 2 | J190: 2 | N190: 2 | R190: 2 | V190: 2 | Z190: 2 | AD190: 2 | AI190: 2 | AM190: 2 | AP190: 8 | AT190: 3 | AU190: 3 | AY190: 4 | BG190: 2 | BK190: 2 | BO190: 2 | BS190: 2 | BW190: 2 | CA190: 2 | CE190: 2 | CH190: 2 | DB190: 2 | DF190: 2 | DK190: 2 | DZ190: 31 | EA190: 27 | EB190: 0 | EC190: 0
A191: 178 | B191: NOBLE503001TSDH11437 | C191: NOBLE DENTAL CARE A MULTISPECIALITY DENTAL CLINIC | D191: NEAR NASEER HOTEL CHOWRASTA, MAIN ROAD, AHMEDPURA COLONY, NIZAMABAD | E191: 0 | DJ191: 2 | DZ191: 2 | EA191: 0 | EB191: 0 | EC191: 0
A192: 179 | B192: SHRIE503001TSBH10042 | C192: SHRI EYE AND DENTAL CARE | D192: Dr. PHANI RAJ KATHURI,HNO; 5-6-218, BESIDE SAI AYUSH CHILDRENS HOSPITAL, SARASWATHI NAGAR, BEHIND ANDHRA BANK, NIZAMABAD. | E192: 3 | F192: 2 | J192: 2 | O192: 3 | R192: 3 | V192: 3 | Z192: 2 | AD192: 3 | AH192: 2 | AL192: 2 | AP192: 3 | AU192: 5 | AX192: 4 | BC192: 4 | BF192: 2 | BJ192: 3 | BN192: 3 | BR192: 2 | BV192: 3 | CA192: 3 | CE192: 2 | CH192: 3 | DJ192: 2 | DK192: 2 | DZ192: 44 | EA192: 19 | EB192: 0 | EC192: 0
A193: LABORATORIES (HCFs)
A194: 180 | B194: AAYUS503001TSBH00970 | C194: AAYUSH BLOOD BANK | D194: PUNJAB NATIONAL BANK BUILDING, KHALEELWADI, NIZAMABAD | E194: 1 | V194: 3 | W194: 3 | Z194: 3 | AA194: 3 | AD194: 3 | AE194: 3 | AH194: 3 | AL194: 3 | AQ194: 3 | AT194: 5 | AY194: 5 | BC194: 3 | BG194: 2 | BK194: 3 | BO194: 3 | BS194: 2 | BW194: 2 | BZ194: 3 | CE194: 2 | CM194: 3 | CQ194: 3 | DB194: 2 | DC194: 2 | DF194: 2 | DG194: 2 | DN194: 2 | DR194: 2 | DW194: 3 | DZ194: =F194+J194+N194+R194+V194+Z194+AD194+AH194+AL194+AP194+AT194+AX194+BB194+BF194+BJ194+BN194+BR194+BV194+BZ194+CD194+CH194+CL194+CP194+CT194+CX194+DB194+DF194+DJ194+DN194+DR194+DV194 -> 31 | EA194: =G194+K194+O194+S194+W194+AA194+AE194+AI194+AM194+AQ194+AU194+AY194+BC194+BG194+BK194+BO194+BS194+BW194+CA194+CE194+CI194+CM194+CQ194+CU194+CY194+DC194+DG194+DK194+DO194+DS194+DW194 -> 47 | EB194: =H194+L194+P194+T194+X194+AB194+AF194+AJ194+AN194+AR194+AV194+AZ194+BD194+BH194+BL194+BP194+BT194+BX194+CB194+CF194+CJ194+CN194+CR194+CV194+CZ194+DD194+DH194+DL194+DP194+DT194 -> 0 | EC194: =I194+M194+Q194+U194+Y194+AC194+AG194+AK194+AO194+AS194+AW194+BA194+BE194+BI194+BM194+BQ194+BU194+BY194+CC194+CG194+CK194+CO194+CS194+CW194+DA194+DE194+DI194+DM194+DQ194+DU194 -> 0
A195: 181 | B195: LIFES503001TSBH01079 | C195: LIFE SCAN CENTRE | D195: DR. HARINATH, OLD JJ REDDY HOSPITAL, 'X' ROAD, KHALEELWADI, NIZAMABAD | E195: 1 | F195: 3 | J195: 3 | N195: 3 | R195: 3 | AH195: 3 | AI195: 3 | AL195: 3 | AM195: 3 | AQ195: 3 | AY195: 3 | BC195: 3 | BG195: 3 | BJ195: 3 | BK195: 3 | BN195: 3 | BO195: 3 | BR195: 2 | BS195: 3 | BV195: 2 | BW195: 2 | CA195: 2 | CE195: 2 | DC195: 2 | DG195: 2 | DJ195: 2 | DK195: 2 | DO195: 3 | DS195: 3 | DV195: 3 | DZ195: =F195+J195+N195+R195+V195+Z195+AD195+AH195+AL195+AP195+AT195+AX195+BB195+BF195+BJ195+BN195+BR195+BV195+BZ195+CD195+CH195+CL195+CP195+CT195+CX195+DB195+DF195+DJ195+DN195+DR195+DV195 -> 33 | EA195: =G195+K195+O195+S195+W195+AA195+AE195+AI195+AM195+AQ195+AU195+AY195+BC195+BG195+BK195+BO195+BS195+BW195+CA195+CE195+CI195+CM195+CQ195+CU195+CY195+DC195+DG195+DK195+DO195+DS195+DW195 -> 45 | EB195: =H195+L195+P195+T195+X195+AB195+AF195+AJ195+AN195+AR195+AV195+AZ195+BD195+BH195+BL195+BP195+BT195+BX195+CB195+CF195+CJ195+CN195+CR195+CV195+CZ195+DD195+DH195+DL195+DP195+DT195 -> 0 | EC195: =I195+M195+Q195+U195+Y195+AC195+AG195+AK195+AO195+AS195+AW195+BA195+BE195+BI195+BM195+BQ195+BU195+BY195+CC195+CG195+CK195+CO195+CS195+CW195+DA195+DE195+DI195+DM195+DQ195+DU195 -> 0
A196: 182 | B196: REDCR503001TSBH00965 | C196: RED CROSS BLOOD BANK | D196: BEHIND TAHSIL OFFICE, KHALEEL WADI, NIZAMABAD | E196: 1 | G196: 3 | K196: 3 | N196: 3 | S196: 3 | V196: 3 | W196: 3 | Z196: 3 | AA196: 3 | AD196: 4 | AE196: 4 | AH196: 3 | AI196: 3 | AL196: 3 | AM196: 3 | AP196: 3 | AY196: 3 | BC196: 3 | BF196: 2 | BG196: 2 | BJ196: 3 | BK196: 3 | BN196: 3 | BO196: 3 | BR196: 3 | BS196: 3 | BV196: 3 | BW196: 3 | BZ196: 4 | CD196: 4 | CH196: 3 | DB196: 2 | DC196: 2 | DF196: 2 | DG196: 2 | DO196: 3 | DS196: 3 | DV196: 3 | DZ196: 54 | EA196: 55 | EB196: 0 | EC196: 0
A197: 183 | B197: SAINI503001TSBH01021 | C197: SAI NIDHI INSTITUTE OF DNA RESEARCH & DIGNOSTICS | D197: FLAT NO. 6, 1ST FLOOR, FEELWEL TOWERS, BESIDE BHARATHI LAB, KHALEELWADI, NIZAMABAD,Nizamabad,Nizamabad South,NIZAMABAD,503001 | E197: 1 | V197: 2 | Z197: 2 | AD197: 3 | AH197: 2 | AL197: 2 | AQ197: 3 | AT197: 3 | BB197: 3 | BF197: 3 | BJ197: 2 | BN197: 2 | BR197: 2 | BV197: 2 | BZ197: 3 | CD197: 2 | CL197: 2 | CP197: 2 | DB197: 2 | DF197: 2 | DJ197: 2 | DO197: 2 | DS197: 2 | DV197: 3 | DZ197: 46 | EA197: 7 | EB197: 0 | EC197: 0
A198: 184 | B198: SHEET503001TSBH00902 | C198: SHEETAL SCANNING CENTER | D198: KHALEELWADI, NIZAMABAD. | E198: 1 | F198: 2 | J198: 2 | S198: 2 | BC198: 2 | DJ198: 2 | DO198: 2 | DS198: 2 | DV198: 2 | DZ198: 8 | EA198: 8 | EB198: 0 | EC198: 0
A199: 185 | B199: TIRUM503001TSBH00954 | C199: TIRUMALA SCANNING & DIAGNOSTIC CENTRE | D199: Dr.S.PRIYANKA,NEAR J J REDDY HOSPITAL, OPP: DR. DLN SWAMY, KHALEELWADI, NIZAMABAD | E199: 1 | N199: 3 | V199: 2 | W199: 2 | Z199: 2 | AA199: 2 | AD199: 3 | AE199: 2 | AH199: 2 | AL199: 2 | AQ199: 3 | AT199: 4 | AX199: 2 | BC199: 4 | BF199: 2 | BJ199: 2 | BN199: 2 | BR199: 2 | BV199: 2 | BZ199: 2 | CD199: 3 | DC199: 2 | DG199: 2 | DJ199: 2 | DK199: 2 | DO199: 3 | DS199: 3 | DV199: 3 | DZ199: 40 | EA199: 25 | EB199: 0 | EC199: 0
A200: 186 | B200: VIJAY503001TSBH07051 | C200: VIJAYAS MEDITECH SCANNING CENTRE, NIZAMABAD | D200: H.NO.5-7-627, FLOT NO.58, C/O. FEELWELL TOWERS, KHALEELWADI, NIZAMABAD-503001. | E200: 1 | N200: 3 | W200: 2 | AA200: 2 | AE200: 3 | AH200: 2 | AL200: 2 | AQ200: 3 | AT200: 4 | AX200: 3 | BB200: 4 | BF200: 2 | BJ200: 2 | BN200: 2 | BV200: 2 | CA200: 4 | CD200: 2 | CM200: 3 | CQ200: 3 | DB200: 2 | DC200: 2 | DF200: 2 | DG200: 2 | DJ200: 2 | DO200: 2 | DS200: 2 | DZ200: 34 | EA200: 28 | EB200: 0 | EC200: 0
... 134 more rows

Sheet Kamareddy
A1: =Nizamabad!A1 -> JANUARY MONTH REPORT | F1: =Nizamabad!F1 -> 2022-01-01 | J1: =Nizamabad!J1 -> 2022-01-02 | N1: =Nizamabad!N1 -> 2022-01-03 | R1: =Nizamabad!R1 -> 2022-01-04 | V1: =Nizamabad!V1 -> 2022-01-05 | Z1: =Nizamabad!Z1 -> 2022-01-06 | AD1: =Nizamabad!AD1 -> 2022-01-07 | AH1: =Nizamabad!AH1 -> 2022-01-08 | AL1: =Nizamabad!AL1 -> 2022-01-09 | AP1: =Nizamabad!AP1 -> 2022-01-10 | AT1: =Nizamabad!AT1 -> 2022-01-11 | AX1: =Nizamabad!AX1 -> 2022-01-12 | BB1: =Nizamabad!BB1 -> 2022-01-13 | BF1: =Nizamabad!BF1 -> 2022-01-14 | BJ1: =Nizamabad!BJ1 -> 2022-01-15 | BN1: =Nizamabad!BN1 -> 2022-01-16 | BR1: =Nizamabad!BR1 -> 2022-01-17 | BV1: =Nizamabad!BV1 -> 2022-01-18 | BZ1: =Nizamabad!BZ1 -> 2022-01-19 | CD1: =Nizamabad!CD1 -> 2022-01-20 | CH1: =Nizamabad!CH1 -> 2022-01-21 | CL1: =Nizamabad!CL1 -> 2022-01-22 | CP1: =Nizamabad!CP1 -> 2022-01-23 | CT1: =Nizamabad!CT1 -> 2022-01-24 | CX1: =Nizamabad!CX1 -> 2022-01-25 | DB1: =Nizamabad!DB1 -> 2022-01-26 | DF1: =Nizamabad!DF1 -> 2022-01-27 | DJ1: =Nizamabad!DJ1 -> 2022-01-28 | DN1: =Nizamabad!DN1 -> 2022-01-29 | DR1: =Nizamabad!DR1 -> 2022-01-30 | DV1: =Nizamabad!DV1 -> 2022-01-31 | DZ1: TOTAL
A2: SNO | B2: HCF ID | C2: NAME OF THE HCF | D2: ADDRESS OF THE HCFS | E2: NO.OF BEDS | F2: Yellow | G2: Red | H2: Blue | I2: White | J2: Yellow | K2: Red | L2: Blue | M2: White | N2: Yellow | O2: Red | P2: Blue | Q2: White | R2: Yellow | S2: Red | T2: Blue | U2: White | V2: Yellow | W2: Red | X2: Blue | Y2: White | Z2: Yellow | AA2: Red | AB2: Blue | AC2: White | AD2: Yellow | AE2: Red | AF2: Blue | AG2: White | AH2: Yellow | AI2: Red | AJ2: Blue | AK2: White | AL2: Yellow | AM2: Red | AN2: Blue | AO2: White | AP2: Yellow | AQ2: Red | AR2: Blue | AS2: White | AT2: Yellow | AU2: Red | AV2: Blue | AW2: White | AX2: Yellow | AY2: Red | AZ2: Blue | BA2: White | BB2: Yellow | BC2: Red | BD2: Blue | BE2: White | BF2: Yellow | BG2: Red | BH2: Blue | BI2: White | BJ2: Yellow | BK2: Red | BL2: Blue | BM2: White | BN2: Yellow | BO2: Red | BP2: Blue | BQ2: White | BR2: Yellow | BS2: Red | BT2: Blue | BU2: White | BV2: Yellow | BW2: Red | BX2: Blue | BY2: White | BZ2: Yellow | CA2: Red | CB2: Blue | CC2: White | CD2: Yellow | CE2: Red | CF2: Blue | CG2: White | CH2: Yellow | CI2: Red | CJ2: Blue | CK2: White | CL2: Yellow | CM2: Red | CN2: Blue | CO2: White | CP2: Yellow | CQ2: Red | CR2: Blue | CS2: White | CT2: Yellow | CU2: Red | CV2: Blue | CW2: White | CX2: Yellow | CY2: Red | CZ2: Blue | DA2: White | DB2: Yellow | DC2: Red | DD2: Blue | DE2: White | DF2: Yellow | DG2: Red | DH2: Blue | DI2: White | DJ2: Yellow | DK2: Red | DL2: Blue | DM2: White | DN2: Yellow | DO2: Red | DP2: Blue | DQ2: White | DR2: Yellow | DS2: Red | DT2: Blue | DU2: White | DV2: Yellow | DW2: Red | DX2: Blue | DY2: White | DZ2: Yellow | EA2: Red | EB2: Blue | EC2: White
A3: 100 AND ABOVE BEDS HCFs
A4: 1 | B4: AREAH503111TSBH06149 | C4: AREA HOSPITAL, KAMAREDDY | D4: STATION ROAD, KAMAREDDY | E4: 100 | F4: 3 | G4: 3 | J4: 2 | K4: 2 | N4: 3 | P4: 3 | R4: 3 | T4: 3 | V4: 3 | X4: 3 | Z4: 3 | AA4: 3 | AD4: 3 | AE4: 3 | AH4: 3 | AJ4: 3 | AL4: 3 | AN4: 3 | AP4: 3 | AQ4: 3 | AT4: 3 | AU4: 3 | AX4: 3 | AY4: 3 | BB4: 3 | BC4: 3 | BF4: 2 | BG4: 3 | BJ4: 3 | BK4: 3 | BN4: 3 | BO4: 3 | BS4: 3 | BT4: 3 | BW4: 3 | BX4: 3 | CA4: 3 | CB4: 3 | CE4: 3 | CF4: 3 | CI4: 3 | CJ4: 2 | CM4: 3 | CN4: 3 | CP4: 3 | CQ4: 3 | CU4: 3 | CV4: 3 | CY4: 3 | CZ4: 3 | DC4: 3 | DD4: 3 | DG4: 3 | DH4: 3 | DK4: 3 | DL4: 3 | DO4: 3 | DP4: 3 | DR4: 3 | DS4: 3 | DV4: 3 | DW4: 2 | DZ4: =F4+J4+N4+R4+V4+Z4+AD4+AH4+AL4+AP4+AT4+AX4+BB4+BF4+BJ4+BN4+BR4+BV4+BZ4+CD4+CH4+CL4+CP4+CT4+CX4+DB4+DF4+DJ4+DN4+DR4+DV4 -> 55 | EA4: =G4+K4+O4+S4+W4+AA4+AE4+AI4+AM4+AQ4+AU4+AY4+BC4+BG4+BK4+BO4+BS4+BW4+CA4+CE4+CI4+CM4+CQ4+CU4+CY4+DC4+DG4+DK4+DO4+DS4+DW4 -> 76 | EB4: =H4+L4+P4+T4+X4+AB4+AF4+AJ4+AN4+AR4+AV4+AZ4+BD4+BH4+BL4+BP4+BT4+BX4+CB4+CF4+CJ4+CN4+CR4+CV4+CZ4+DD4+DH4+DL4+DP4+DT4+DX4 -> 50 | EC4: =I4+M4+Q4+U4+Y4+AC4+AG4+AK4+AO4+AS4+AW4+BA4+BE4+BI4+BM4+BQ4+BU4+BY4+CC4+CG4+CK4+CO4+CS4+CW4+DA4+DE4+DI4+DM4+DQ4+DU4+DY4 -> 0
A5: 2 | B5: JEEVA503111TSBH06112 | C5: JEEVADAN HOSPITAL | D5: KAMAREDDY | E5: 100 | F5: 3 | G5: 3 | J5: 3 | K5: 2 | N5: 3 | O5: 3 | R5: 3 | T5: 3 | V5: 3 | W5: 3 | Z5: 6 | AD5: 3 | AE5: 3 | AH5: 3 | AI5: 3 | AL5: 3 | AM5: 3 | AP5: 3 | AR5: 3 | AT5: 3 | AV5: 3 | AX5: 3 | AY5: 3 | BB5: 2 | BC5: 3 | BF5: 2 | BG5: 2 | BJ5: 3 | BK5: 3 | BN5: 3 | BO5: 3 | BR5: 3 | BT5: 3 | BV5: 3 | BW5: 3 | BZ5: 3 | CA5: 3 | CD5: 3 | CE5: 3 | CH5: 3 | CI5: 3 | CL5: 3 | CM5: 3 | CP5: 3 | CQ5: 3 | CT5: 3 | CU5: 3 | CX5: 3 | CY5: 3 | DB5: 3 | DC5: 3 | DF5: 3 | DG5: 3 | DJ5: 3 | DK5: 3 | DN5: 3 | DO5: 3 | DR5: 3 | DS5: 3 | DV5: 3 | DW5: 2 | DZ5: =F5+J5+N5+R5+V5+Z5+AD5+AH5+AL5+AP5+AT5+AX5+BB5+BF5+BJ5+BN5+BR5+BV5+BZ5+CD5+CH5+CL5+CP5+CT5+CX5+DB5+DF5+DJ5+DN5+DR5+DV5 -> 94 | EA5: =G5+K5+O5+S5+W5+AA5+AE5+AI5+AM5+AQ5+AU5+AY5+BC5+BG5+BK5+BO5+BS5+BW5+CA5+CE5+CI5+CM5+CQ5+CU5+CY5+DC5+DG5+DK5+DO5+DS5+DW5 -> 75 | EB5: =H5+L5+P5+T5+X5+AB5+AF5+AJ5+AN5+AR5+AV5+AZ5+BD5+BH5+BL5+BP5+BT5+BX5+CB5+CF5+CJ5+CN5+CR5+CV5+CZ5+DD5+DH5+DL5+DP5+DT5+DX5 -> 12 | EC5: =I5+M5+Q5+U5+Y5+AC5+AG5+AK5+AO5+AS5+AW5+BA5+BE5+BI5+BM5+BQ5+BU5+BY5+CC5+CG5+CK5+CO5+CS5+CW5+DA5+DE5+DI5+DM5+DQ5+DU5+DY5 -> 0
A6: 3 | B6: AREAH503187TSBH08193 | C6: AREA HOSPITAL, BANSWADA | D6: BESIDE POST OFFFICE, BANSWADA | E6: 100 | F6: 3 | H6: 3 | J6: 3 | N6: 3 | O6: 3 | R6: 3 | S6: 3 | V6: 3 | X6: 1 | Z6: 3 | AA6: 3 | AD6: 3 | AH6: 3 | AJ6: 3 | AL6: 3 | AN6: 3 | AP6: 5 | AT6: 3 | AU6: 3 | AX6: 3 | AY6: 3 | BB6: 3 | BC6: 3 | BF6: 2 | BG6: 2 | BJ6: 3 | BK6: 3 | BN6: 3 | BO6: 3 | BR6: 3 | BS6: 3 | BW6: 3 | BX6: 3 | CA6: 3 | CB6: 3 | CE6: 3 | CF6: 3 | CI6: 3 | CJ6: 3 | CM6: 3 | CN6: 3 | CP6: 2 | CQ6: 3 | CU6: 3 | CV6: 3 | CY6: 3 | CZ6: 3 | DC6: 3 | DD6: 3 | DG6: 3 | DH6: 3 | DK6: 3 | DL6: 3 | DO6: 3 | DS6: 3 | DV6: 3 | DW6: 2 | DZ6: 57 | EA6: 70 | EB6: 40 | EC6: 0
A7: BELOW 100 BEDS HCFs
A8: KAMAREDDY
A9: 1 | B9: LIFEH503111TSBH10120 | C9: LIFE HOSPITAL | D9: OPP: RAJEEV PARK, SIRICILLA ROAD, KAMAREDDY | E9: 50 | G9: 1 | K9: 1 | O9: 1 | S9: 1 | W9: 1 | AA9: 2 | AE9: 1 | AI9: 1 | AM9: 1 | AQ9: 1 | AU9: 1 | AY9: 1 | BC9: 1 | BG9: 2 | BK9: 2 | BO9: 2 | BS9: 2 | BW9: 2 | CA9: 1 | CE9: 1 | CI9: 1 | CM9: 1 | CQ9: 1 | CU9: 1 | CY9: 1 | DB9: 2 | DF9: 2 | DJ9: 1 | DN9: 1 | DR9: 1 | DZ9: =F9+J9+N9+R9+V9+Z9+AD9+AH9+AL9+AP9+AT9+AX9+BB9+BF9+BJ9+BN9+BR9+BV9+BZ9+CD9+CH9+CL9+CP9+CT9+CX9+DB9+DF9+DJ9+DN9+DR9+DV9 -> 7 | EA9: =G9+K9+O9+S9+W9+AA9+AE9+AI9+AM9+AQ9+AU9+AY9+BC9+BG9+BK9+BO9+BS9+BW9+CA9+CE9+CI9+CM9+CQ9+CU9+CY9+DC9+DG9+DK9+DO9+DS9+DW9 -> 31 | EB9: =H9+L9+P9+T9+X9+AB9+AF9+AJ9+AN9+AR9+AV9+AZ9+BD9+BH9+BL9+BP9+BT9+BX9+CB9+CF9+CJ9+CN9+CR9+CV9+CZ9+DD9+DH9+DL9+DP9+DT9+DX9 -> 0 | EC9: =I9+M9+Q9+U9+Y9+AC9+AG9+AK9+AO9+AS9+AW9+BA9+BE9+BI9+BM9+BQ9+BU9+BY9+CC9+CG9+CK9+CO9+CS9+CW9+DA9+DE9+DI9+DM9+DQ9+DU9+DY9 -> 0
A10: 2 | B10: RUSSH503111TSBH09846 | C10: RUSSH MULTI SPECIALITY HOSPITAL | D10: Dr.C. NAVEEN REDDY, HNO: 5-3-69/1, KOUNDINYA BUILDING, OPP: R&B GUEST HOUSE, KAMAREDDY | E10: 50 | N10: 2 | O10: 2 | R10: 2 | S10: 2 | V10: 2 | W10: 2 | Z10: 2 | AA10: 2 | AD10: 2 | AE10: 2 | AH10: 2 | AI10: 2 | AL10: 2 | AM10: 2 | AP10: 2 | AQ10: 2 | AT10: 2 | AU10: 2 | AX10: 2 | AY10: 2 | BB10: 2 | BC10: 2 | BF10: 2 | BG10: 2 | BJ10: 2 | BK10: 2 | BN10: 2 | BO10: 2 | BR10: 2 | BS10: 2 | BV10: 2 | BW10: 2 | BZ10: 2 | CA10: 2 | CD10: 2 | CE10: 2 | CH10: 2 | CI10: 2 | CL10: 2 | CM10: 2 | CP10: 2 | CQ10: 2 | CT10: 2 | CX10: 2 | CY10: 2 | DK10: 3 | DO10: 2 | DR10: 2 | DS10: 2 | DZ10: 48 | EA10: 51 | EB10: 0 | EC10: 0
A11: 3 | B11: SHISH503111TSBH11233 | C11: SHISHURAKSHA THIRUMALA CHILDREN'S HOSPITAL | D11: 1-7-68, OPP: DHARMASHALA, SIRCILLA ROAD, KAMAREDDY | E11: 50 | G11: 2 | K11: 2 | O11: 2 | S11: 2 | W11: 2 | AA11: 2 | AE11: 2 | AI11: 2 | AL11: 2 | AM11: 2 | AQ11: 2 | AU11: 2 | AY11: 2 | BB11: 2 | BF11: 2 | BJ11: 2 | BN11: 2 | BR11: 2 | BV11: 2 | BZ11: 2 | CD11: 2 | CH11: 2 | CL11: 2 | CP11: 2 | CT11: 2 | CX11: 2 | DB11: 2 | DF11: 2 | DJ11: 2 | DN11: 2 | DR11: 2 | DV11: 2 | DZ11: 40 | EA11: 24 | EB11: 0 | EC11: 0
A12: 4 | B12: RAJAM503110TSBH01045 | C12: RAJAMPET MULTISPECIALITY HOSPITAL | D12: Dr. E. SIDDIRAMULU,BUS STAND, RAJAMPET, KAMAREDDY | E12: 32 | G12: 2 | K12: 2 | N12: 2 | R12: 2 | V12: 2 | Z12: 2 | AD12: 2 | AH12: 2 | AL12: 2 | AP12: 2 | AT12: 2 | AX12: 2 | BB12: 2 | BG12: 2 | BK12: 2 | BO12: 2 | BS12: 2 | BW12: 2 | CA12: 2 | CE12: 2 | CI12: 2 | CM12: 2 | CQ12: 2 | CU12: 2 | CY12: 2 | DC12: 2 | DG12: 2 | DK12: 2 | DO12: 2 | DS12: 2 | DV12: 2 | DZ12: 24 | EA12: 38 | EB12: 0 | EC12: 0
A13: 5 | B13: JAYAM503111TSBH00986 | C13: JAYA MULTI SPECIALITY HOSPITAL | D13: Dr. D. RAJAMOULI,BESIDE ARYABATTA JUNIOR COLLEGE, KAMAREDDY | E13: 25 | F13: 2 | J13: 2 | N13: 2 | R13: 2 | V13: 2 | Z13: 2 | AD13: 2 | AH13: 2 | AL13: 2 | AP13: 2 | AT13: 2 | AY13: 2 | BC13: 2 | BG13: 2 | BK13: 2 | BO13: 2 | BS13: 2 | BW13: 2 | CA13: 2 | CE13: 2 | CI13: 2 | CM13: 2 | CQ13: 2 | CU13: 2 | CY13: 1 | DC13: 2 | DG13: 2 | DK13: 2 | DO13: 2 | DS13: 2 | DV13: 2 | DZ13: 24 | EA13: 37 | EB13: 0 | EC13: 0
A14: 6 | B14: AMMAH503111TSBH11411 | C14: AMMA HOSPITAL | D14: BESIDE OLD RUDRA HOSPITAL, NH7 ROAD, KAMAREDDY | E14: 20 | AA14: 2 | AE14: 2 | DW14: 2 | DZ14: 0 | EA14: 6 | EB14: 0 | EC14: 0
A15: 7 | B15: AKHIL503111TSBH09690 | C15: AKHILA HOSPITAL | D15: Dr. PUTTA MALLIKARJUN,N.H.7 ROAD, VIKASNAGAR COLONY, I.B.P. OPP: PETROLE BUNK, KAMAREDDY | E15: 20 | G15: 2 | K15: 2 | O15: 2 | S15: 2 | W15: 2 | Z15: 1 | AD15: 1 | AI15: 2 | AM15: 2 | AQ15: 2 | AU15: 2 | AY15: 2 | BC15: 2 | BG15: 2 | BK15: 2 | BO15: 2 | BS15: 2 | BW15: 2 | CA15: 2 | CE15: 2 | CI15: 2 | CM15: 2 | CQ15: 2 | CU15: 2 | CY15: 2 | DD15: 2 | DH15: 2 | DL15: 2 | DP15: 2 | DT15: 2 | DV15: 2 | DZ15: 4 | EA15: 46 | EB15: 10 | EC15: 0
A16: 8 | B16: SADHA503111TSBH09695 | C16: SADHANA HOSPITAL | D16: Dr. R. VENKAT, M.D.(O.M), HIGH SCHOOL ROAD, KAMAREDDY | E16: 20 | F16: 1 | J16: 1 | N16: 1 | R16: 1 | V16: 1 | AD16: 2 | AH16: 1 | AL16: 1 | AP16: 1 | AT16: 1 | AX16: 1 | BB16: 1 | BF16: 1 | BJ16: 1 | BN16: 1 | BR16: 1 | BV16: 1 | BZ16: 1 | CD16: 1 | CH16: 1 | CL16: 1 | CP16: 1 | CT16: 1 | CX16: 1 | DD16: 1 | DH16: 1 | DL16: 1 | DP16: 1 | DT16: 1 | DZ16: 25 | EA16: 0 | EB16: 5 | EC16: 0
A17: 9 | B17: SREEG503111TSBH00895 | C17: SREE GANESHA MULTI SPECIALITY HOSPITAL | D17: HNO;1-7-73,DAILY MARKET,THILA ROAD KAMAREDDY | E17: 20 | G17: 2 | K17: 2 | N17: 2 | V17: 2 | AA17: 2 | AD17: 2 | AH17: 1 | AL17: 1 | AP17: 2 | AT17: 2 | AX17: 2 | BC17: 2 | BG17: 2 | BK17: 2 | BO17: 2 | BS17: 2 | BW17: 2 | CA17: 2 | CE17: 2 | CI17: 2 | CM17: 2 | CQ17: 2 | CU17: 2 | CY17: 2 | DC17: 2 | DG17: 2 | DK17: 2 | DO17: 2 | DS17: 2 | DV17: 2 | DZ17: 16 | EA17: 42 | EB17: 0 | EC17: 0
A18: 10 | B18: SRIJA503111TSBH06130 | C18: SRI JANANI MOTHER & CHILD HOPSITAL | D18: GOWDOWN ROAD,NEAR POOJA DIAGNOSTICS CENTRE ,KAMAREDDY | E18: 20 | G18: 2 | K18: 2 | N18: 2 | S18: 2 | V18: 2 | Z18: 2 | AD18: 2 | AH18: 2 | AL18: 2 | AP18: 2 | AT18: 2 | AX18: 2 | BC18: 2 | BK18: 2 | BO18: 2 | BT18: 2 | BW18: 2 | CA18: 2 | CF18: 2 | CI18: 2 | CM18: 2 | CQ18: 2 | CU18: 2 | CY18: 2 | DC18: 2 | DG18: 2 | DK18: 2 | DO18: 2 | DS18: 2 | DV18: 2 | DZ18: 20 | EA18: 36 | EB18: 4 | EC18: 0
A19: 11 | B19: SRISA503111TSBH07063 | C19: SRI SAI SIMHA MULTI SPECIALITY HOME | D19: Dr.D. SREELEELA,OLD BUS STAND, KAMAREDDY | E19: 20 | G19: 2 | K19: 2 | N19: 2 | R19: 2 | V19: 2 | Z19: 2 | AD19: 2 | AH19: 2 | AL19: 2 | AP19: 2 | AT19: 2 | AX19: 2 | BB19: 2 | BG19: 2 | BK19: 2 | BO19: 2 | BS19: 2 | BW19: 2 | CA19: 2 | CE19: 2 | CI19: 2 | CM19: 2 | CQ19: 2 | CU19: 2 | CY19: 2 | DC19: 2 | DG19: 2 | DK19: 2 | DO19: 2 | DS19: 2 | DV19: 2 | DZ19: 24 | EA19: 38 | EB19: 0 | EC19: 0
A20: 12 | B20: THIRU503111TSBH00893 | C20: THIRUMALA NURSING HOME | D20: Dr. K. JANARDHAN,AHSOK NAGAR COLONY,KAMAREDDY | E20: 20 | G20: 2 | K20: 2 | N20: 2 | R20: 2 | V20: 2 | Z20: 1 | AD20: 1 | AH20: 2 | AL20: 2 | AP20: 2 | AT20: 2 | AX20: 2 | BB20: 2 | BG20: 2 | BK20: 2 | BO20: 2 | BS20: 2 | BW20: 2 | CB20: 2 | CE20: 2 | CI20: 2 | CM20: 2 | CQ20: 2 | CU20: 2 | CY20: 2 | DC20: 2 | DG20: 2 | DK20: 2 | DO20: 2 | DS20: 2 | DV20: 2 | DZ20: 22 | EA20: 36 | EB20: 2 | EC20: 0
A21: 13 | B21: DRBIS503111TSBH00941 | C21: B. ISHWAR DAS HOSPITAL | D21: Dr. V. SHAMSUNDER RAO,HNO: 2-1-2,NEAR RAILWAY BRIDGE,KAMAREDDY | E21: 18 | F21: 1 | J21: 1 | N21: 1 | R21: 1 | V21: 1 | Z21: 2 | AD21: 2 | AH21: 1 | AL21: 1 | AP21: 1 | AT21: 1 | AX21: 1 | BD21: 1 | BH21: 1 | BL21: 1 | BP21: 1 | BT21: 1 | BV21: 1 | CB21: 1 | CF21: 1 | CJ21: 1 | CN21: 1 | CR21: 1 | CV21: 1 | CX21: 1 | DB21: 1 | DF21: 1 | DJ21: 1 | DN21: 1 | DR21: 1 | DW21: 1 | DZ21: 21 | EA21: 1 | EB21: 11 | EC21: 0
A22: 14 | B22: DRKAN503001TSBH00942 | C22: Dr. K ANJAL REDDY MEMORIAL HOSPITAL | D22: Dr. K. ANJAL REDDY,NETHAJI ROAD,KAMAREDDY | E22: 15 | G22: 2 | K22: 2 | N22: 2 | R22: 2 | V22: 2 | Z22: 2 | AD22: 2 | AH22: 2 | AL22: 2 | AP22: 2 | AT22: 2 | AX22: 2 | BB22: 2 | BG22: 2 | BK22: 2 | BO22: 2 | BS22: 2 | BW22: 2 | CA22: 2 | CE22: 2 | CI22: 2 | CM22: 2 | CQ22: 2 | CU22: 2 | CY22: 2 | DC22: 2 | DG22: 2 | DK22: 2 | DO22: 2 | DS22: 2 | DV22: 2 | DZ22: 24 | EA22: 38 | EB22: 0 | EC22: 0
A23: 15 | B23: DEVIH503111TSBH08368 | C23: DEVI HOSPITAL | D23: NGO'S COLONY,NEWR ANDHRA BANK,KAMAREDDY. | E23: 15 | F23: 2 | J23: 2 | N23: 2 | R23: 2 | V23: 2 | AB23: 1 | AH23: 2 | AL23: 2 | AP23: 2 | AT23: 2 | AX23: 2 | BB23: 2 | BF23: 2 | BJ23: 2 | BN23: 2 | BR23: 2 | BV23: 2 | CB23: 2 | CF23: 2 | CJ23: 2 | CN23: 2 | CR23: 2 | CV23: 2 | CZ23: 2 | DD23: 2 | DH23: 2 | DL23: 2 | DP23: 2 | DT23: 2 | DV23: 2 | DZ23: 34 | EA23: 0 | EB23: 25 | EC23: 0
A24: 16 | B24: DWARA503111TSBH01022 | C24: DWARAKA CHEST & CHILDREN'S | D24: DR K. PRAVEEN KUMAR, & K. RADHIKA, HNO.4-1-10, NEAR AMBEDKAR STATUE, RAILWAY BRIDGE, PEDDA BAZAR, KAMAREDDY | E24: 15 | H24: 1 | L24: 1 | T24: 1 | Z24: 1 | AD24: 1 | AL24: 2 | AR24: 1 | AV24: 1 | BH24: 1 | BL24: 1 | BP24: 1 | DW24: 1 | DZ24: 4 | EA24: 1 | EB24: 8 | EC24: 0
A25: 17 | B25: PARVA503111TSBH06129 | C25: PARVATHI CHILDRENS HOSPITAL | D25: Dr.D. MALLIKARJUNA RAO,NEAR OLD BUS STAND,SIRCILLA ROAD,KAMAREDDY | E25: 15 | F25: 1 | J25: 1 | N25: 1 | R25: 1 | V25: 1 | AA25: 2 | AE25: 2 | AH25: 1 | AL25: 1 | AP25: 1 | AT25: 1 | AX25: 1 | BB25: 1 | BF25: 1 | BL25: 1 | BP25: 1 | BT25: 1 | BV25: 1 | CB25: 1 | CF25: 1 | CJ25: 1 | CN25: 1 | CR25: 1 | CV25: 1 | CZ25: 1 | DD25: 1 | DH25: 1 | DJ25: 1 | DV25: 1 | DZ25: 15 | EA25: 4 | EB25: 12 | EC25: 0
A26: 18 | B26: RRHOS503111TSBH02591 | C26: R R HOSPITAL | D26: Dr. RADHA RAMANA,RAMAREDDY ROAD, KAMAREDDY | E26: 15 | F26: 2 | J26: 2 | O26: 2 | S26: 2 | W26: 2 | Z26: 1 | AD26: 1 | AL26: 1 | AQ26: 2 | AU26: 2 | AY26: 2 | BC26: 2 | BG26: 2 | BK26: 2 | BO26: 2 | BS26: 2 | BW26: 2 | CA26: 2 | CE26: 2 | CI26: 2 | CM26: 2 | CQ26: 2 | CU26: 2 | CY26: 2 | DC26: 2 | DG26: 2 | DK26: 2 | DO26: 2 | DS26: 2 | DZ26: 7 | EA26: 48 | EB26: 0 | EC26: 0
A27: 19 | B27: SIRIC503111TSBH00865 | C27: SIRI CHILDRANS HOSPITAL | D27: NEAR POTTI SRIRAMULU STATUE,KAMAREDDY | E27: 15 | F27: 1 | J27: 1 | N27: 1 | R27: 1 | V27: 1 | Z27: 2 | AD27: 2 | AL27: 1 | AP27: 1 | AT27: 1 | AX27: 1 | BB27: 1 | BF27: 1 | BJ27: 1 | BN27: 1 | BR27: 1 | BV27: 1 | BZ27: 1 | CF27: 1 | CJ27: 1 | CN27: 1 | CR27: 1 | CV27: 1 | CZ27: 1 | DD27: 1 | DH27: 1 | DL27: 1 | DP27: 1 | DT27: 1 | DZ27: 20 | EA27: 0 | EB27: 11 | EC27: 0
A28: 20 | B28: SREEB503111TSBH11230 | C28: SREE BAVANA NURSING HOME | D28: DR.PATHA RAMALINGAM HOSPITAL, BESIDE MUNCIPAL OFFICE, KAMAREDDY | E28: 15 | F28: 2 | J28: 2 | N28: 2 | R28: 2 | V28: 2 | Z28: 2 | AD28: 2 | AH28: 2 | AL28: 2 | AP28: 2 | AT28: 2 | AX28: 2 | BB28: 2 | BG28: 2 | BK28: 2 | BO28: 2 | BS28: 2 | BW28: 2 | CA28: 2 | CE28: 2 | CI28: 2 | CM28: 2 | CQ28: 2 | CU28: 2 | CY28: 2 | DC28: 2 | DG28: 2 | DK28: 2 | DO28: 2 | DS28: 2 | DW28: 2 | DZ28: 26 | EA28: 36 | EB28: 0 | EC28: 0
A29: 21 | B29: SRISA503111TSBH06156 | C29: SRI SAI KRISHNA HOSPITAL | D29: Dr.B. CHANDRASHEKAR REDDY,AHSOK NAGAR COLONY,KAMAREDDY | E29: 15 | G29: 2 | K29: 2 | N29: 2 | R29: 2 | V29: 2 | Z29: 1 | AD29: 1 | AH29: 2 | AL29: 2 | AP29: 2 | AT29: 2 | AX29: 2 | BB29: 2 | BG29: 2 | BK29: 2 | BO29: 2 | BS29: 2 | BW29: 2 | CA29: 2 | CE29: 2 | CI29: 2 | CM29: 2 | CQ29: 2 | CU29: 2 | CY29: 2 | DC29: 2 | DG29: 2 | DK29: 2 | DO29: 2 | DS29: 2 | DV29: 2 | DZ29: 22 | EA29: 38 | EB29: 0 | EC29: 0
A30: 22 | B30: SRISA503001TSBH08370 | C30: SRI SAI SRINIVASA HOSPITAL | D30: NEAR PRAKASH RAO EYE HOSPITAL, RAMAREDDY ROAD, KAMAREDDY | E30: 15 | F30: 1 | J30: 1 | N30: 1 | R30: 1 | V30: 1 | AH30: 1 | AL30: 1 | AP30: 1 | AT30: 1 | AX30: 1 | BB30: 1 | BF30: 1 | BJ30: 1 | BN30: 1 | BR30: 1 | BV30: 1 | BZ30: 1 | CD30: 1 | CH30: 1 | CL30: 1 | CP30: 1 | CT30: 1 | CX30: 1 | DB30: 1 | DF30: 1 | DJ30: 1 | DN30: 1 | DR30: 1 | DV30: 1 | DZ30: 29 | EA30: 0 | EB30: 0 | EC30: 0
A31: 23 | B31: SRISH503111TSBH08515 | C31: SRI SHIVAM MULTI SPECIALITY HOSPITAL | D31: H.NO. 1-5-62/4, GODOWN ROAD, KAMAREDDY,Kamareddy ( U ),Kamareddy,KAMAREDDY,503111 | E31: 15 | Z31: 1 | AD31: 1 | DV31: 2 | DZ31: 4 | EA31: 0 | EB31: 0 | EC31: 0
A32: 24 | B32: ADITY503111TSBH09686 | C32: ADITYA HOSPITAL | D32: Dr. AJAY PERALA,BESIDE POTTI SRIRAMULU STATU ,SIRCILLA ROAD,KAMAREDDY | E32: 12 | F32: 1 | J32: 1 | N32: 1 | R32: 1 | V32: 1 | Z32: 1 | AD32: 1 | AH32: 1 | AL32: 1 | AP32: 1 | AT32: 1 | AX32: 1 | BB32: 1 | BF32: 1 | BJ32: 1 | BN32: 1 | BR32: 1 | BV32: 1 | BZ32: 1 | CD32: 1 | CH32: 1 | CL32: 1 | CP32: 1 | CV32: 1 | CZ32: 1 | DD32: 1 | DH32: 1 | DL32: 1 | DP32: 1 | DT32: 1 | DV32: 1 | DZ32: 24 | EA32: 0 | EB32: 7 | EC32: 0
A33: 25 | B33: SRIGA503111TSBH02588 | C33: SRI GANGA CHILDRENS HOSPITAL | D33: Dr. E. VENKATESHWAR GOVD,SIRCILLA ROAD, KAMAREDDY | E33: 12 | F33: 1 | J33: 1 | N33: 1 | R33: 1 | V33: 1 | AH33: 1 | AL33: 1 | AP33: 1 | AT33: 1 | AX33: 1 | BB33: 1 | BF33: 1 | BJ33: 1 | BN33: 1 | BR33: 1 | BV33: 1 | CB33: 1 | CJ33: 1 | CN33: 1 | CR33: 1 | CV33: 1 | CZ33: 1 | DL33: 1 | DP33: 1 | DT33: 1 | DZ33: 16 | EA33: 0 | EB33: 9 | EC33: 0
A34: 26 | B34: ASHWI503111TSBH09939 | C34: ASHWINI CLINIC | D34: DR. VIJAYA KUMAR, GODOWN ROAD, KAMAREDDY | E34: 10 | Z34: 1 | AD34: 1 | DZ34: 2 | EA34: 0 | EB34: 0 | EC34: 0
A35: 27 | B35: BALAJ503111TSBH00904 | C35: BALAJI HOSPITAL | D35: Dr. D. SRINIVASA RAO, DOOR NO.1-5-64, GODAM ROAD, KAMAREDDY | E35: 10 | F35: 1 | J35: 1 | N35: 1 | R35: 1 | V35: 1 | Z35: 1 | AD35: 1 | AH35: 1 | AL35: 1 | AP35: 1 | AT35: 1 | AX35: 1 | BB35: 1 | BF35: 1 | BJ35: 1 | BN35: 1 | BR35: 1 | BV35: 1 | CB35: 1 | CF35: 1 | CJ35: 1 | CN35: 1 | CR35: 1 | CV35: 1 | CZ35: 1 | DD35: 1 | DH35: 1 | DL35: 1 | DP35: 1 | DT35: 1 | DW35: 1 | DZ35: 18 | EA35: 1 | EB35: 12 | EC35: 0
A36: 28 | B36: DR.PR503111TSBH07038 | C36: Dr. PRAKASH RAO EYE HOSPITAL | D36: HNO.1-5-442/9, RAMAREDDY, KAMAREDDY | E36: 10 | F36: 1 | J36: 1 | N36: 1 | R36: 1 | V36: 1 | Z36: 1 | AD36: 1 | AH36: 1 | AL36: 1 | AP36: 1 | AT36: 1 | AX36: 1 | BB36: 1 | BF36: 1 | BJ36: 1 | BN36: 1 | BR36: 1 | BV36: 1 | CB36: 1 | CF36: 1 | CJ36: 1 | CN36: 1 | CR36: 1 | CV36: 1 | CX36: 1 | DD36: 1 | DH36: 1 | DL36: 1 | DP36: 1 | DT36: 1 | DW36: 1 | DZ36: 19 | EA36: 1 | EB36: 11 | EC36: 0
A37: 29 | B37: DRTBH503111TSBH09938 | C37: DR T BHAIRAIAH MEMORIAL HOSPITAL | D37: Dr.J. BHAIRAIAH,HNO:1-3-89, BESIDE SHRAVANI EYE HOSPITAL, GODOWN ROAD, KAMAREDDY | E37: 6 | F37: 1 | J37: 0 | N37: 1 | R37: 1 | V37: 1 | Z37: 1 | AD37: 1 | AH37: 1 | AL37: 1 | AP37: 1 | AT37: 1 | AX37: 1 | BB37: 1 | BF37: 1 | BJ37: 1 | BN37: 1 | BR37: 1 | BV37: 1 | BZ37: 1 | CD37: 1 | CH37: 1 | CL37: 1 | CP37: 1 | CT37: 1 | CX37: 1 | DD37: 1 | DH37: 1 | DJ37: 1 | DN37: 1 | DR37: 1 | DW37: 1 | DZ37: 27 | EA37: 1 | EB37: 2 | EC37: 0
A38: 30 | B38: GANDH503111TSBH09696 | C38: GANDHI HOSPITAL | D38: Opp: Dharmashala, Sircilla Road, KAMAREDDY | E38: 10 | F38: 1 | J38: 1 | N38: 1 | R38: 1 | V38: 1 | Z38: 1 | AD38: 1 | AH38: 1 | AL38: 1 | AP38: 1 | AT38: 1 | AX38: 1 | BB38: 1 | BF38: 1 | BJ38: 1 | BN38: 1 | BR38: 1 | BV38: 1 | BZ38: 1 | CD38: 1 | CH38: 1 | CL38: 1 | CP38: 1 | CT38: 1 | CX38: 1 | DD38: 1 | DH38: 1 | DL38: 1 | DP38: 1 | DT38: 1 | DZ38: 25 | EA38: 0 | EB38: 5 | EC38: 0
A39: 31 | B39: GEERE503111TSBH06128 | C39: GEEREDDY RAVINDER REDDY NEURO SUPER SPECIALITY HOSPITAL | D39: GOWDOWN ROAD, OPP: JAGRUTHI HOSPIITAL , KAMAREDDY. | E39: 10 | F39: 1 | J39: 1 | N39: 1 | R39: 1 | V39: 1 | Z39: 1 | AD39: 1 | AH39: 1 | AL39: 1 | AP39: 1 | AT39: 1 | AX39: 1 | BB39: 1 | BF39: 1 | BJ39: 1 | BN39: 1 | BT39: 1 | BX39: 1 | CB39: 1 | CF39: 1 | CJ39: 1 | CN39: 1 | CR39: 1 | CV39: 1 | CZ39: 1 | DW39: 1 | DZ39: 16 | EA39: 1 | EB39: 9 | EC39: 0
A40: 32 | B40: KRISH503111TSBH07065 | C40: KRISHNAVENI CHILDRENS & NEONATAL HOSPITAL | D40: NETAJI ROAD,KAMAREDDY | E40: 10 | F40: 1 | J40: 1 | N40: 1 | R40: 1 | V40: 1 | Z40: 1 | AD40: 1 | AH40: 1 | AL40: 1 | AP40: 1 | AT40: 1 | AX40: 1 | BB40: 1 | BF40: 1 | BJ40: 1 | BN40: 1 | BT40: 1 | BX40: 1 | CB40: 1 | CF40: 1 | CJ40: 1 | CN40: 1 | CR40: 1 | CZ40: 1 | DB40: 1 | DF40: 1 | DL40: 1 | DZ40: 18 | EA40: 0 | EB40: 9 | EC40: 0
A41: 33 | B41: NETRA503111TSBH09940 | C41: NETRA JYOTHI VISION CARE CENTER | D41: Dr. SUMANTH REDDY.P, GODWN ROAD, KAMAREDDY | E41: 10 | F41: 1 | J41: 1 | N41: 1 | R41: 1 | V41: 1 | Z41: 1 | AD41: 1 | AH41: 1 | AL41: 1 | AP41: 1 | AT41: 1 | AX41: 1 | BB41: 1 | BF41: 1 | BJ41: 1 | BN41: 1 | BR41: 1 | BV41: 1 | BZ41: 1 | CD41: 1 | CH41: 1 | CL41: 1 | CP41: 1 | CT41: 1 | CX41: 1 | DB41: 1 | DF41: 1 | DL41: 1 | DN41: 1 | DR41: 1 | DZ41: 29 | EA41: 0 | EB41: 1 | EC41: 0
A42: 34 | B42: RJHOS503111TSBH09781 | C42: R J HOSPITAL | D42: Jamal's RJ Hospital - #1-5-Ra0004, Kamareddy - Ramareddy Road, Kamareddy, Telangana 503111 | E42: 10 | F42: 1 | J42: 1 | N42: 1 | R42: 1 | V42: 1 | Z42: 2 | AD42: 2 | AH42: 1 | AL42: 1 | AP42: 1 | AT42: 1 | AX42: 1 | BB42: 1 | BF42: 1 | BJ42: 1 | BN42: 1 | BT42: 1 | BV42: 1 | BZ42: 1 | CF42: 1 | CJ42: 1 | CN42: 1 | CR42: 1 | CU42: 1 | CX42: 1 | DC42: 1 | DG42: 1 | DL42: 1 | DN42: 1 | DR42: 1 | DZ42: 23 | EA42: 3 | EB42: 6 | EC42: 0
A43: 35 | B43: RAJYA503111TSBH02589 | C43: RAJYALAKSHMI NURSING HOME | D43: Dr. V. RAJALAXMI,BESIDE MUNICIPAL OFFICE,KAMAREDDY | E43: 10 | G43: 2 | K43: 2 | N43: 2 | R43: 2 | V43: 2 | Z43: 2 | AD43: 2 | AH43: 2 | AL43: 2 | AP43: 2 | AT43: 2 | AX43: 2 | BC43: 2 | BG43: 2 | BK43: 2 | BO43: 2 | BS43: 2 | BW43: 2 | CA43: 2 | CE43: 2 | CI43: 2 | CM43: 2 | CQ43: 2 | CV43: 2 | CY43: 2 | DC43: 2 | DG43: 2 | DK43: 2 | DO43: 2 | DS43: 2 | DV43: 2 | DZ43: 22 | EA43: 38 | EB43: 2 | EC43: 0
A44: 36 | B44: SHRAV503111TSBH09936 | C44: SHRAVANI EYE HOSPITAL | D44: Dr.G. SAMMI REDDY, BESIDE T. BAIRAIAH MEMORIAL HOSPITAL, GODOWN ROAD, KAMAREDDY | E44: 10 | F44: 2 | J44: 2 | N44: 2 | R44: 2 | V44: 2 | Z44: 1 | AD44: 1 | AH44: 2 | AL44: 2 | AP44: 2 | AT44: 2 | AX44: 2 | BB44: 2 | BF44: 2 | BJ44: 2 | BN44: 2 | BR44: 2 | BV44: 2 | BZ44: 2 | CD44: 2 | CH44: 2 | CL44: 2 | CP44: 2 | CT44: 2 | CX44: 2 | DB44: 2 | DF44: 2 | DJ44: 2 | DN44: 2 | DR44: 2 | DZ44: 58 | EA44: 0 | EB44: 0 | EC44: 0
A45: 37 | B45: SRIKR503111TSBH09902 | C45: SRI KRISHNA NETHRALAYA EYE CARE HOSPITAL | D45: DR V. SURESH KUMAR, GODOWN ROAD, KAMAREDDY | E45: 10 | F45: 1 | J45: 1 | N45: 1 | R45: 1 | V45: 1 | Z45: 2 | AD45: 2 | AH45: 1 | AL45: 1 | AP45: 1 | AT45: 1 | AX45: 1 | BB45: 1 | BF45: 1 | BK45: 1 | BO45: 1 | BR45: 1 | BV45: 1 | BZ45: 1 | CD45: 1 | CH45: 1 | CM45: 1 | CQ45: 1 | CT45: 1 | CX45: 1 | DJ45: 1 | DN45: 1 | DR45: 1 | DZ45: 26 | EA45: 4 | EB45: 0 | EC45: 0
A46: 38 | B46: SRILA503111TSBH08488 | C46: SRI LAXMI HOSPITAL | D46: OPP: INDRA DIAGNOSTICS, GODOWN ROAD, KAMAREDDY | E46: 10 | F46: 2 | J46: 2 | N46: 2 | R46: 2 | V46: 2 | Z46: 2 | AD46: 2 | AH46: 2 | AL46: 2 | AP46: 2 | AT46: 2 | AX46: 2 | BB46: 2 | BF46: 2 | BJ46: 2 | BN46: 2 | BR46: 2 | BV46: 2 | CB46: 2 | CF46: 2 | CJ46: 2 | CN46: 2 | CR46: 2 | CT46: 2 | CZ46: 2 | DD46: 2 | DH46: 2 | DL46: 2 | DP46: 2 | DT46: 2 | DZ46: 38 | EA46: 0 | EB46: 22 | EC46: 0
A47: 39 | B47: SRIRA503111TSBH06158 | C47: SRI RAMA MULTI SPECIALITY HOSPITAL | D47: Dr S BHANU REKHA, OPP: R&B GUEST HOUSE, N.H.7 ROAD, KAMAREDDY, | E47: 10 | N47: 2 | R47: 2 | V47: 2 | Z47: 1 | AD47: 1 | AH47: 2 | AL47: 2 | AQ47: 2 | AU47: 2 | AY47: 2 | BG47: 2 | BK47: 2 | BO47: 2 | BS47: 2 | BW47: 2 | CA47: 2 | CE47: 2 | CI47: 2 | CM47: 2 | CQ47: 2 | CU47: 2 | CY47: 2 | DC47: 2 | DG47: 2 | DK47: 2 | DO47: 2 | DS47: 2 | DV47: 2 | DZ47: 14 | EA47: 40 | EB47: 0 | EC47: 0
A48: 40 | B48: SRIVE503111TSBH06159 | C48: SRI VENKATESHWARA CHILDRENS & NEONATAL HOSPITAL KAMAREDDY | D48: Dr K NARENDER RAO, GODOWN ROAD, KAMAREDDY | E48: 10 | F48: 1 | J48: 1 | N48: 1 | R48: 1 | V48: 1 | Z48: 1 | AD48: 1 | AH48: 1 | AL48: 1 | AP48: 1 | AT48: 1 | AX48: 1 | BB48: 1 | BF48: 1 | BJ48: 1 | BN48: 1 | BR48: 1 | BV48: 1 | BZ48: 1 | CF48: 1 | CJ48: 1 | CN48: 1 | CR48: 1 | CV48: 1 | CZ48: 1 | DD48: 1 | DH48: 1 | DL48: 1 | DP48: 1 | DT48: 1 | DV48: 1 | DZ48: 20 | EA48: 0 | EB48: 11 | EC48: 0
A49: 41 | B49: SRINI503111TSBH01020 | C49: SRINIVASA CHILDRENS HOSPITAL | D49: Dr. S. SHIVA PRASAD, H.NO. 5-4-125/1, N.H.7 ROAD, NEAR DSP OFFICE, RAMAREDDY ROAD, KAMAREDDY | E49: 10 | F49: 1 | J49: 1 | N49: 1 | R49: 1 | V49: 1 | Z49: 1 | AD49: 1 | AH49: 1 | AL49: 1 | AP49: 1 | AT49: 1 | AX49: 1 | BB49: 1 | BF49: 1 | BJ49: 1 | BN49: 1 | BT49: 1 | BX49: 1 | CB49: 1 | CN49: 1 | CR49: 1 | CV49: 1 | CZ49: 1 | DD49: 1 | DH49: 1 | DL49: 1 | DW49: 1 | DZ49: 16 | EA49: 1 | EB49: 10 | EC49: 0
A50: 42 | B50: SUPRE503111TSBH00932 | C50: SUPREETHA HOSPITAL | D50: DR. RAVINDER REDDY, OPP: DR ANJALREDDY HOSPITAL, NETHAJI ROAD,KAMAREDDY | E50: 10 | F50: 1 | J50: 1 | N50: 1 | R50: 1 | V50: 1 | Z50: 1 | AD50: 1 | AH50: 1 | AL50: 1 | AP50: 1 | AT50: 1 | AX50: 1 | BB50: 1 | BF50: 1 | BJ50: 1 | BN50: 1 | BT50: 1 | BX50: 1 | CB50: 1 | CF50: 1 | CJ50: 1 | CN50: 1 | CR50: 1 | CV50: 1 | CZ50: 1 | DD50: 1 | DH50: 1 | DV50: 1 | DZ50: 17 | EA50: 0 | EB50: 11 | EC50: 0
A51: 43 | B51: SURYA503111TSBH09941 | C51: SURYA HOSPITAL | D51: Dr.D. CHANDRASHEKAR, NEAR T. BHAIRAIAH HOSPITAL, GODOWN ROAD,KAMAREDDY | E51: 6 | F51: 1 | J51: 1 | N51: 1 | O51: 1 | R51: 1 | V51: 1 | W51: 1 | Z51: 1 | AD51: 1 | AH51: 1 | AL51: 1 | AP51: 1 | AT51: 1 | AX51: 1 | BB51: 1 | BF51: 1 | BK51: 1 | BO51: 1 | BV51: 1 | BZ51: 1 | CD51: 1 | CH51: 1 | CN51: 1 | CR51: 1 | CX51: 1 | DC51: 1 | DG51: 1 | DJ51: 1 | DN51: 1 | DR51: 1 | DW51: 1 | DZ51: 22 | EA51: 7 | EB51: 2 | EC51: 0
A52: 44 | B52: TEJAS503111TSBH09687 | C52: TEJA SREE HOSPITAL | D52: OPP: SBI BANK & R.K. DEGREE COLLEGE, DEVUNIPALLY, NIZAMSAGAR ROAD, KAMAREDDY Kamareddy ( U )(V) Kamareddy(M) KAMAREDDY(D) Telangana-503111 | E52: 10 | F52: 1 | J52: 1 | N52: 1 | R52: 1 | V52: 1 | AA52: 2 | AE52: 2 | AH52: 1 | AL52: 1 | AP52: 1 | AT52: 1 | AX52: 1 | BB52: 1 | BF52: 1 | BJ52: 1 | BN52: 1 | BR52: 1 | BV52: 1 | BZ52: 1 | CD52: 1 | CH52: 1 | CL52: 1 | CP52: 1 | CT52: 1 | CX52: 1 | DD52: 1 | DH52: 1 | DL52: 1 | DP52: 1 | DT52: 1 | DW52: 1 | DZ52: 23 | EA52: 5 | EB52: 5 | EC52: 0
A53: 45 | B53: VARSH503111TSBH00947 | C53: VARSHA HOSPITAL | D53: DR. VARSHA K | E53: 10 | G53: 2 | K53: 2 | O53: 2 | S53: 2 | W53: 2 | Z53: 1 | AD53: 1 | AI53: 2 | AM53: 2 | AQ53: 2 | AU53: 2 | AY53: 2 | BC53: 2 | BG53: 2 | BK53: 2 | BO53: 2 | BS53: 2 | BW53: 2 | CA53: 2 | CF53: 2 | CJ53: 2 | CN53: 2 | CR53: 2 | CU53: 2 | CY53: 2 | DC53: 2 | DG53: 2 | DK53: 2 | DO53: 2 | DS53: 2 | DV53: 2 | DZ53: 4 | EA53: 48 | EB53: 8 | EC53: 0
A54: 46 | B54: VIKRA503111TSBH09698 | C54: VIKRAM LASER EYE CARE | D54: DR. VIKRAM REDDY, H.No.1-6-66, OPP: GAYATRI BANK & INDIAN OIL PETROL PUMP, SIRICILLA ROAD, KAMAREDDY | E54: 10 | F54: 1 | J54: 1 | N54: 1 | R54: 1 | V54: 1 | AD54: 1 | AH54: 1 | AL54: 1 | AP54: 1 | AT54: 1 | AX54: 1 | BB54: 1 | BF54: 1 | BJ54: 1 | BN54: 1 | BR54: 1 | BV54: 1 | BZ54: 1 | CD54: 1 | CH54: 1 | CL54: 1 | CP54: 1 | CT54: 1 | CZ54: 1 | DD54: 1 | DH54: 1 | DL54: 1 | DP54: 1 | DT54: 1 | DZ54: 23 | EA54: 0 | EB54: 6 | EC54: 0
A55: 47 | B55: KAMAR503111TSBH08454 | C55: KAMAREDDY EYE HOSPITAL | D55: GODOWN ROAD, KAMAREDDY | E55: 9 | F55: 1 | J55: 1 | N55: 1 | R55: 1 | V55: 1 | Z55: 1 | AD55: 1 | AH55: 1 | AL55: 1 | AP55: 1 | AT55: 1 | AX55: 1 | BB55: 1 | BF55: 1 | BJ55: 1 | BN55: 1 | BR55: 1 | BX55: 1 | CB55: 1 | CF55: 1 | CJ55: 1 | CN55: 1 | CR55: 1 | CV55: 1 | CZ55: 1 | DD55: 1 | DH55: 1 | DL55: 1 | DW55: 1 | DZ55: 17 | EA55: 1 | EB55: 11 | EC55: 0
A56: 48 | B56: KAMAR503111TSBH09697 | C56: KAMAREDDY NEURO SUPERSPECIALITY HOSPITAL | D56: OPP: SWATHI HOTEL, SIRICILLA ROAD, KAMAREDDY. | E56: 9 | F56: 1 | J56: 1 | N56: 1 | R56: 1 | V56: 1 | Z56: 2 | AD56: 2 | AH56: 1 | AL56: 1 | AP56: 1 | AT56: 1 | AX56: 1 | BB56: 1 | BF56: 1 | BJ56: 1 | BN56: 1 | BR56: 1 | BV56: 1 | BZ56: 1 | CD56: 1 | CH56: 1 | CL56: 1 | CP56: 1 | CT56: 1 | CX56: 1 | DD56: 1 | DH56: 1 | DL56: 1 | DP56: 1 | DT56: 1 | DZ56: 27 | EA56: 0 | EB56: 5 | EC56: 0
A57: 49 | B57: NAKSH503111TSBH09942 | C57: NAKSHATRA HOSPITAL | D57: OPP: SRI SAI KRISHNA HOSPITAL, PARSHI RAMULU FUNCTION HALL ROAD, ASHOK NAGAR COLONY, OPPOSITE LANE OF BUS STAND, KAMAREDDY | E57: 9 | F57: 2 | J57: 2 | N57: 2 | R57: 2 | V57: 2 | Z57: 2 | AD57: 2 | AH57: 2 | AL57: 2 | AP57: 2 | AT57: 2 | AX57: 2 | BB57: 2 | BF57: 2 | BK57: 2 | BO57: 2 | BR57: 2 | BV57: 2 | BZ57: 2 | CD57: 2 | CJ57: 2 | CM57: 2 | CQ57: 2 | CT57: 1 | CX57: 2 | DC57: 2 | DG57: 2 | DK57: 2 | DV57: 2 | DZ57: 41 | EA57: 14 | EB57: 2 | EC57: 0
A58: 50 | B58: SVRHO503111TSBH09699 | C58: SVR HOSPITAL | D58: BESIDE: GUNJ GATE, SIRICILLA ROAD, KAMAREDDY | E58: 8 | F58: 2 | J58: 2 | N58: 2 | R58: 2 | V58: 2 | Z58: 1 | AD58: 1 | AH58: 2 | AL58: 2 | AP58: 2 | AT58: 2 | AX58: 2 | BB58: 2 | BF58: 2 | BJ58: 2 | BN58: 2 | BR58: 2 | BV58: 2 | BZ58: 1 | CD58: 2 | CH58: 2 | CL58: 2 | CP58: 2 | CT58: 2 | CZ58: 2 | DD58: 2 | DH58: 2 | DL58: 2 | DP58: 2 | DT58: 2 | DZ58: 45 | EA58: 0 | EB58: 12 | EC58: 0
A59: 51 | B59: DRPSU503111TSBH07067 | C59: DR. P SUDARSHAN RAJ CLINIC | D59: Dr. P. SUDARSHAN RAJ, H.NO. 1-9-53, MUSHRIF BHAGH, KAMAREDDY | E59: 6 | F59: 1 | J59: 1 | N59: 1 | R59: 1 | V59: 1 | Z59: 1 | AD59: 1 | AH59: 1 | AL59: 1 | AP59: 1 | AT59: 1 | AX59: 1 | BB59: 1 | BF59: 1 | BJ59: 1 | BN59: 1 | BR59: 1 | BV59: 1 | BZ59: 1 | CF59: 1 | CI59: 1 | CN59: 1 | CR59: 1 | CV59: 1 | CX59: 1 | DD59: 1 | DH59: 1 | DL59: 1 | DP59: 1 | DT59: 1 | DW59: 1 | DZ59: 20 | EA59: 2 | EB59: 9 | EC59: 0
A60: 52 | B60: AMRUT503111TSBH07827 | C60: AMRUTHA CHILDRENS HOSPITAL | D60: Dr. K. VEERESH,BESIDE MUNICIPAL OFFICE,KAMAREDDY | E60: 5 | F60: 1 | J60: 1 | N60: 1 | R60: 1 | V60: 1 | AA60: 1 | AE60: 1 | AH60: 1 | AL60: 1 | AP60: 1 | AT60: 1 | AX60: 1 | BB60: 1 | BF60: 1 | BJ60: 1 | BN60: 1 | BR60: 1 | BX60: 1 | CB60: 1 | CF60: 1 | CJ60: 1 | CN60: 1 | CR60: 1 | CV60: 1 | CZ60: 1 | DD60: 1 | DH60: 1 | DR60: 1 | DZ60: 16 | EA60: 2 | EB60: 10 | EC60: 0
A61: 53 | B61: JAGRU503111TSBH09903 | C61: JAGRUTHI HOSPITAL | D61: Dr. RAJA MOHAN REDDY, 1-5-98, Tilak Rd, GODOWN ROAD, KAMAREDDY | E61: 5 | O61: 1 | S61: 1 | W61: 1 | Z61: 1 | AD61: 1 | AI61: 1 | AM61: 1 | AQ61: 1 | AU61: 1 | AY61: 1 | DR61: 1 | DW61: 1 | DZ61: 3 | EA61: 9 | EB61: 0 | EC61: 0
A62: 54 | B62: SAIRA503111TSBH08388 | C62: SAIRAM GENERAL & SKIN HOSPITAL | D62: NEAR RAILWAY BRIDGE, BESIDE AMBEDKAR MURTHY, KAMAREDDY | E62: 5 | F62: 1 | J62: 1 | N62: 1 | R62: 1 | V62: 1 | Z62: 2 | AD62: 2 | AH62: 1 | AL62: 1 | AP62: 1 | AT62: 1 | AX62: 1 | BB62: 1 | BH62: 1 | BJ62: 1 | BN62: 1 | BW62: 1 | CB62: 1 | CF62: 1 | CJ62: 1 | CN62: 1 | CR62: 1 | CV62: 1 | CZ62: 1 | DD62: 1 | DH62: 1 | DL62: 1 | DZ62: 17 | EA62: 1 | EB62: 11 | EC62: 0
A63: 55 | B63: VAISH503111TSBH09700 | C63: VAISHNAVI HOSPITAL | D63: Dr. M. SRIDHAR, H.No.1-5-255/A, RAMAREDDY ROAD, KAMAREDDY | E63: 5 | G63: 2 | K63: 2 | N63: 2 | R63: 2 | V63: 2 | Z63: 1 | AD63: 1 | AH63: 2 | AL63: 2 | AP63: 2 | AT63: 2 | AX63: 2 | BC63: 2 | BG63: 2 | BK63: 2 | BO63: 2 | BS63: 2 | BW63: 2 | CA63: 2 | CE63: 2 | CI63: 2 | CM63: 2 | CQ63: 2 | CU63: 2 | CY63: 2 | DC63: 2 | DG63: 2 | DK63: 2 | DO63: 2 | DS63: 2 | DV63: 2 | DZ63: 20 | EA63: 40 | EB63: 0 | EC63: 0
A64: 56 | B64: VISHN503111TSBH01099 | C64: VISHNU ENT HOSPITAL | D64: Dr. N. HARISH KUMAR,RAMAREDDY ROAD, KAMAREDDY | E64: 5 | F64: 1 | J64: 1 | N64: 1 | R64: 1 | V64: 1 | AH64: 1 | AL64: 1 | AP64: 1 | AT64: 1 | AX64: 1 | BB64: 1 | BF64: 1 | BJ64: 1 | BN64: 1 | BT64: 1 | BX64: 1 | CB64: 1 | CF64: 1 | CJ64: 1 | CN64: 1 | CR64: 1 | CV64: 1 | CZ64: 1 | DZ64: 14 | EA64: 0 | EB64: 9 | EC64: 0
A65: 57 | B65: BASHE503111TSBH01034 | C65: BASHEERUDDIN MEMORIAL HOSPITAL (ZIYAVDDIN) | D65: Dr.MOHD. RIAZZUDDIN, KAMAREDDY | E65: 1 | F65: 1 | J65: 1 | N65: 1 | R65: 1 | V65: 1 | Z65: 1 | AD65: 1 | AH65: 1 | AL65: 1 | AP65: 1 | AT65: 1 | AX65: 1 | BB65: 1 | BF65: 1 | BJ65: 1 | BN65: 1 | BR65: 1 | BV65: 1 | CB65: 1 | CF65: 1 | CJ65: 1 | CN65: 1 | CR65: 1 | CV65: 1 | CZ65: 1 | DD65: 1 | DH65: 1 | DL65: 1 | DP65: 1 | DT65: 1 | DV65: 1 | DZ65: 19 | EA65: 0 | EB65: 12 | EC65: 0
A66: 58 | B66: SRIVE503111TSBH01030 | C66: SRI VENKATA SAI SCAN'S | D66: HNO.1-5-68/A, GODOWN ROAD, KAMAREDDY | E66: 1 | N66: 1 | R66: 1 | V66: 1 | Z66: 1 | AD66: 1 | AH66: 1 | AL66: 1 | AP66: 1 | AT66: 1 | AX66: 1 | BB66: 1 | BF66: 1 | BR66: 1 | BV66: 1 | BZ66: 1 | CF66: 1 | CJ66: 1 | CN66: 1 | CR66: 1 | CV66: 1 | CZ66: 1 | DD66: 1 | DH66: 1 | DP66: 1 | DT66: 1 | DZ66: 15 | EA66: 0 | EB66: 10 | EC66: 0
A67: 59 | B67: SRINI503111TSBH01044 | C67: SRINIVASA POLY CLINIC | D67: MAIN ROAD, KAMAREDDY | E67: 1 | F67: 1 | N67: 1 | R67: 1 | V67: 1 | Z67: 1 | AD67: 1 | AH67: 1 | AL67: 1 | AP67: 1 | AT67: 1 | AX67: 1 | BB67: 1 | BF67: 1 | BJ67: 1 | BN67: 1 | BT67: 1 | BX67: 1 | CB67: 1 | CF67: 1 | CJ67: 1 | CN67: 1 | CR67: 1 | CV67: 1 | CZ67: 1 | DD67: 1 | DH67: 1 | DW67: 1 | DZ67: 15 | EA67: 1 | EB67: 11 | EC67: 0
A68: 60 | B68: LIONS503111TSBH09978 | C68: LIONS EYE HOSPITAL (V.T. THAKUR MEMORIAL) | D68: BESIDE KAMAREDDY EYE HOSPITAL, BATUKAMMA KUNTA, GODOWN ROAD, KAMAREDDY | E68: 10 | F68: 2 | J68: 2 | N68: 2 | R68: 2 | V68: 2 | Z68: 2 | AD68: 2 | AH68: 2 | AL68: 2 | AP68: 2 | AT68: 2 | AX68: 2 | BB68: 2 | BF68: 2 | BJ68: 2 | BN68: 2 | BR68: 2 | BV68: 2 | BZ68: 2 | CD68: 2 | CH68: 2 | CL68: 2 | CP68: 2 | CT68: 2 | CX68: 2 | DD68: 2 | DH68: 2 | DJ68: 2 | DN68: 2 | DR68: 2 | DZ68: 56 | EA68: 0 | EB68: 4 | EC68: 0
A69: 61 | B69: V.T.T503111TSBH01180 | C69: V T THAKUR BLOOD BANK | D69: BESIDE VT THAKUR LIONS EYE HOSPITAL, GODOWN ROAD,KAMAREDDY | E69: 1 | F69: 1 | J69: 1 | N69: 1 | R69: 1 | V69: 1 | Z69: 1 | AD69: 1 | AH69: 1 | AL69: 1 | AP69: 1 | AT69: 1 | AX69: 1 | BB69: 1 | BF69: 1 | BJ69: 1 | BN69: 1 | BT69: 1 | BX69: 1 | CB69: 1 | CF69: 1 | CJ69: 1 | CN69: 1 | CR69: 1 | CV69: 1 | DD69: 1 | DH69: 1 | DL69: 1 | DZ69: 16 | EA69: 0 | EB69: 11 | EC69: 0
A70: 62 | B70: SRIBA503111TSCL09944 | C70: SRI BALAJI SKIN & ENT HOSPITAL | D70: DR. MURALI KONDA, BESIDE T. BHAIRAIAH HOSPITAL, GODOWN ROAD, KAMAREDDY | E70: 0 | F70: 1 | J70: 1 | N70: 1 | R70: 1 | V70: 1 | Z70: 1 | AD70: 1 | AH70: 1 | AL70: 1 | AP70: 1 | AT70: 1 | AX70: 1 | BB70: 1 | BF70: 1 | BJ70: 1 | BN70: 1 | BR70: 1 | BV70: 1 | BZ70: 1 | CD70: 1 | CH70: 1 | CL70: 1 | CP70: 1 | CT70: 1 | CZ70: 1 | DD70: 1 | DH70: 1 | DL70: 1 | DN70: 1 | DR70: 1 | DZ70: 26 | EA70: 0 | EB70: 4 | EC70: 0
A71: 63 | B71: BHAIR503111TSPL09945 | C71: BHAIRAVA DIAGNOSTIC CENTRE | D71: GODOWN ROAD, BESIDE DR. NARENDER RAO CHILDRENS HOSPITAL, BESIDE INDIRA SCANNING CENTER,KAMAREDDY | E71: 0 | F71: 1 | J71: 1 | N71: 1 | R71: 1 | V71: 1 | Z71: 1 | AD71: 1 | AH71: 1 | AL71: 1 | AP71: 1 | AT71: 1 | AX71: 1 | BB71: 1 | BF71: 1 | BJ71: 1 | BN71: 1 | BR71: 1 | BV71: 1 | BZ71: 1 | CD71: 1 | CH71: 1 | CL71: 1 | CP71: 1 | CT71: 1 | CX71: 1 | DB71: 1 | DF71: 1 | DL71: 1 | DN71: 1 | DR71: 1 | DZ71: 29 | EA71: 0 | EB71: 1 | EC71: 0
A72: 64 | B72: DRBBA503111TSCL09946 | C72: DR. B BALRAJ CLINIC | D72: Dr. B.BAL RAJ, GOPAL SWAMY ROAD, KAMAREDDY | E72: 0 | G72: 1 | K72: 1 | N72: 1 | R72: 1 | W72: 1 | Z72: 1 | AD72: 1 | AH72: 1 | AL72: 1 | AP72: 1 | AT72: 1 | AX72: 1 | BB72: 1 | BF72: 1 | BJ72: 1 | BN72: 1 | BR72: 1 | BV72: 1 | BZ72: 1 | CD72: 1 | CH72: 1 | CL72: 1 | CP72: 1 | CT72: 1 | CX72: 1 | DB72: 1 | DF72: 1 | DJ72: 1 | DN72: 1 | DR72: 1 | DZ72: 27 | EA72: 3 | EB72: 0 | EC72: 0
A73: 65 | B73: DRHAN503111TSCL09947 | C73: HANUMANTHA RAO GOJE CLINIC | D73: Dr.HANUMANTHA RAO GOJE, BESIDE SANDEEPANI JR. COLLEGE, BESIDE BUS DEPOT, MAIN ROAD, KAMAREDDY | E73: 0 | G73: 1 | K73: 1 | N73: 1 | R73: 1 | W73: 1 | Z73: 1 | AD73: 1 | AH73: 1 | AL73: 1 | AP73: 1 | AT73: 1 | AX73: 1 | BB73: 1 | BF73: 1 | BJ73: 1 | BN73: 1 | BR73: 1 | BV73: 1 | BZ73: 1 | CD73: 1 | CH73: 1 | CL73: 1 | CP73: 1 | CT73: 1 | CX73: 1 | DB73: 1 | DF73: 1 | DJ73: 1 | DN73: 1 | DR73: 1 | DZ73: =F73+J73+N73+R73+V73+Z73+AD73+AH73+AL73+AP73+AT73+AX73+BB73+BF73+BJ73+BN73+BR73+BV73+BZ73+CD73+CH73+CL73+CP73+CT73+CX73+DB73+DF73+DJ73+DN73+DR73+DV73 -> 27 | EA73: =G73+K73+O73+S73+W73+AA73+AE73+AI73+AM73+AQ73+AU73+AY73+BC73+BG73+BK73+BO73+BS73+BW73+CA73+CE73+CI73+CM73+CQ73+CU73+CY73+DC73+DG73+DK73+DO73+DS73+DW73 -> 3 | EB73: =H73+L73+P73+T73+X73+AB73+AF73+AJ73+AN73+AR73+AV73+AZ73+BD73+BH73+BL73+BP73+BT73+BX73+CB73+CF73+CJ73+CN73+CR73+CV73+CZ73+DD73+DH73+DL73+DP73+DT73+DX73 -> 0 | EC73: =I73+M73+Q73+U73+Y73+AC73+AG73+AK73+AO73+AS73+AW73+BA73+BE73+BI73+BM73+BQ73+BU73+BY73+CC73+CG73+CK73+CO73+CS73+CW73+DA73+DE73+DI73+DM73+DQ73+DU73+DY73 -> 0
A74: 66 | B74: INDHR503111TSBH01035 | C74: INDHRANI DIAGNOSTIC CENTRE | D74: C/O AREA HOSPITAL,KAMAREDDY. | E74: 0 | F74: 1 | J74: 1 | N74: 1 | R74: 1 | V74: 1 | Z74: 1 | AD74: 1 | AH74: 1 | AL74: 1 | AP74: 1 | AT74: 1 | AX74: 1 | BB74: 1 | BF74: 1 | BJ74: 1 | BN74: 1 | BR74: 1 | BV74: 1 | BZ74: 1 | CD74: 1 | CH74: 1 | CL74: 1 | CP74: 1 | CT74: 1 | CX74: 1 | DB74: 1 | DF74: 1 | DJ74: 1 | DN74: 1 | DR74: 1 | DZ74: 30 | EA74: 0 | EB74: 0 | EC74: 0
A75: 67 | B75: MEDIC503111TSPL09948 | C75: MEDICARE X-RAY & DIAGNOSTIC CENTRE | D75: OPP: SRI KRISHNA EYE HOSPITAL, GODOWN ROAD, KAMAREDDY | E75: 0 | F75: 1 | J75: 1 | N75: 1 | R75: 1 | Z75: 1 | AD75: 1 | AH75: 1 | AL75: 1 | AP75: 1 | AT75: 1 | AX75: 1 | BB75: 1 | BF75: 1 | BJ75: 1 | BN75: 1 | BR75: 1 | BV75: 1 | BZ75: 1 | CD75: 1 | CH75: 1 | CL75: 1 | CP75: 1 | CT75: 1 | CX75: 1 | DB75: 1 | DF75: 1 | DJ75: 1 | DO75: 1 | DS75: 1 | DW75: 1 | DZ75: 27 | EA75: 3 | EB75: 0 | EC75: 0
A76: 68 | B76: POOJA503111TSPL09949 | C76: POOJA DIAGNOSTIC CENTRE | D76: MD PARVEZ, 1-3-17, Madina Masjid Rd, BEHIND GODOWNS, GODOWN ROAD, KAMAREDDY | E76: 0 | F76: 2 | J76: 2 | N76: 2 | R76: 2 | V76: 1 | Z76: 2 | AD76: 2 | AH76: 2 | AL76: 2 | AP76: 2 | AT76: 2 | AX76: 2 | BB76: 2 | BF76: 2 | BJ76: 2 | BN76: 2 | BR76: 2 | BV76: 2 | BZ76: 2 | CD76: 2 | CH76: 2 | CL76: 2 | CP76: 2 | CT76: 2 | CX76: 2 | DB76: 2 | DF76: 2 | DL76: 2 | DN76: 2 | DR76: 2 | DV76: 2 | DZ76: 59 | EA76: 0 | EB76: 2 | EC76: 0
A77: 69 | B77: SADAS503111TSPL09776 | C77: SADASHIVA DIAGNOSTIC CENTER | D77: OPP: R.K. CHILDREN'S HOSPITAL, NETHAJI ROAD, KAMAREDDY | E77: 0 | F77: 2 | J77: 2 | N77: 1 | R77: 1 | V77: 1 | Z77: 1 | AD77: 1 | AH77: 1 | AL77: 1 | AP77: 1 | AT77: 1 | AX77: 1 | BB77: 1 | BF77: 1 | BJ77: 1 | BN77: 1 | BR77: 1 | BV77: 1 | BZ77: 1 | CD77: 1 | CH77: 1 | CO77: 1 | CS77: 1 | CT77: 1 | CZ77: 1 | DD77: 1 | DH77: 1 | DL77: 1 | DP77: 1 | DT77: 1 | DZ77: 24 | EA77: 0 | EB77: 6 | EC77: 2
A78: 70 | B78: SEVAS503111TSBH01043 | C78: SEVASADAN DIAGNOSTIC CENTRE | D78: SRI KALABHAIRAVA COMPLEX, DAILY MARKET ROAD, KAMAREDDY. | E78: 0 | F78: 1 | J78: 1 | N78: 1 | R78: 1 | V78: 1 | Z78: 1 | AD78: 1 | AH78: 1 | AL78: 1 | AP78: 1 | AT78: 1 | AX78: 1 | BB78: 1 | BF78: 1 | BJ78: 1 | BN78: 1 | BT78: 1 | BX78: 1 | CB78: 1 | CF78: 1 | CJ78: 1 | CN78: 1 | CR78: 1 | CV78: 1 | CZ78: 1 | DD78: 1 | DH78: 1 | DZ78: 16 | EA78: 0 | EB78: 11 | EC78: 0
A79: 71 | B79: SHESH503111TSCL09950 | C79: SHESHADRI SKIN HOSPITAL | D79: OPP: ANDHRA BANK, BESIDE NEW BUS STAND, R.K. LODGE ROAD, NGO'S COLONY, KAMAREDDY | E79: 0 | F79: 1 | J79: 1 | N79: 1 | R79: 1 | V79: 1 | Z79: 1 | AD79: 1 | AH79: 1 | AL79: 1 | AP79: 1 | AT79: 1 | AX79: 1 | BB79: 1 | BF79: 1 | BJ79: 1 | BN79: 1 | BR79: 1 | BV79: 1 | BZ79: 1 | CD79: 1 | CH79: 1 | CL79: 1 | CP79: 1 | CT79: 1 | CX79: 1 | DB79: 1 | DF79: 1 | DJ79: 1 | DN79: 1 | DR79: 1 | DZ79: 30 | EA79: 0 | EB79: 0 | EC79: 0
A80: 72 | B80: SPARS503111TSNH09901 | C80: SPARSHA SKIN & ENT HOSPITAL | D80: DR SANDEEP KUMAR RAVIRALA & DR B. SAKETH, 1-5-18, NEAR JAGRUTHI HOSPITAL, TILAK ROAD, GODOWN ROAD, KAMAREDDY. | E80: 0 | F80: 1 | J80: 1 | N80: 1 | R80: 1 | W80: 1 | Z80: 1 | AD80: 1 | AH80: 1 | AL80: 1 | AT80: 1 | AX80: 1 | BB80: 1 | BF80: 1 | BJ80: 1 | BN80: 1 | BR80: 1 | BV80: 1 | BZ80: 1 | CD80: 1 | CH80: 1 | CL80: 1 | CP80: 1 | CT80: 1 | CX80: 1 | DD80: 1 | DH80: 1 | DJ80: 1 | DN80: 1 | DR80: 1 | DW80: 1 | DZ80: 26 | EA80: 2 | EB80: 2 | EC80: 0
A81: 73 | B81: SRISA503111TSCL09951 | C81: SRI SAI CLINIC | D81: Dr. B.M. MALLIKARJUN,PEDDA BAZAR, KAMAREDDY | E81: 0 | F81: 1 | J81: 1 | N81: 1 | R81: 1 | V81: 1 | Z81: 1 | AD81: 1 | AH81: 1 | AL81: 1 | AP81: 1 | AT81: 1 | AX81: 1 | BB81: 1 | BF81: 1 | BJ81: 1 | BN81: 1 | BR81: 1 | BV81: 1 | BZ81: 1 | CD81: 1 | CJ81: 1 | CL81: 1 | CP81: 1 | CT81: 1 | CX81: 1 | DL81: 1 | DN81: 1 | DR81: 1 | DW81: 1 | DZ81: 26 | EA81: 1 | EB81: 2 | EC81: 0
A82: 74 | B82: SRISA503111TSPL08474 | C82: SRI SAI DIAGNOSTIC CENTRE | D82: H.NO. 1-4-31, BESIDE LIONS EYE HOSPITAL, BATHUKAMMAKUNTA, GODOWN ROAD, KAMAREDDY | E82: 0 | F82: 1 | J82: 1 | N82: 1 | R82: 1 | Z82: 1 | AD82: 1 | AH82: 1 | AL82: 1 | AP82: 1 | AT82: 1 | AX82: 1 | BB82: 1 | BG82: 1 | BJ82: 1 | BN82: 1 | BR82: 1 | BV82: 1 | BZ82: 1 | CF82: 1 | CJ82: 1 | CN82: 1 | CR82: 1 | CV82: 1 | CZ82: 1 | DD82: 1 | DH82: 1 | DL82: 1 | DP82: 1 | DT82: 1 | DZ82: 17 | EA82: 1 | EB82: 11 | EC82: 0
A83: 75 | B83: SUNRI503111TSPL08461 | C83: SUNRISE SCANNING & DIAGNOSTIC CENTRE | D83: BESIDE DR. NARENDER RAO CHILDRENS HOSPITAL, GODOWN ROAD, KAMAREDDY,Kamareddy ( U ),Kamareddy,KAMAREDDY,503111 | E83: 0 | F83: 2 | J83: 2 | N83: 1 | R83: 2 | V83: 2 | Z83: 2 | AD83: 2 | AH83: 2 | AL83: 2 | AP83: 2 | AT83: 2 | AX83: 2 | BB83: 2 | BF83: 2 | BJ83: 2 | BN83: 2 | BT83: 2 | BX83: 2 | BZ83: 2 | CF83: 2 | CJ83: 2 | CN83: 2 | CR83: 2 | CV83: 2 | CZ83: 2 | DD83: 2 | DH83: 2 | DZ83: 33 | EA83: 0 | EB83: 20 | EC83: 0
A84: 76 | B84: SREEV503111TSCL09952 | C84: SREE VINAYAKA SKIN CLINIC | D84: Dr.SRINIVAS BABU, BESIDE SANDEEPANI JUNIOR COLLEGE, OPP: NEW BUS STAND, SRI RAM NAGAR COLONY, KAMAREDDY | E84: 0 | F84: 1 | J84: 1 | N84: 1 | R84: 1 | V84: 1 | Z84: 1 | AD84: 1 | AH84: 1 | AL84: 1 | AP84: 1 | AT84: 1 | AX84: 1 | BB84: 1 | BF84: 1 | BJ84: 1 | BN84: 1 | BR84: 1 | BV84: 1 | BZ84: 1 | CE84: 1 | CH84: 1 | CT84: 1 | CX84: 1 | DD84: 1 | DH84: 1 | DJ84: 1 | DO84: 1 | DS84: 1 | DW84: 2 | DZ84: 23 | EA84: 5 | EB84: 2 | EC84: 0
A85: 77 | B85: VINAY503111TSCL09762 | C85: VINAYAKA SKIN CLINIC, KAMAREDDY | D85: DR. AMIT KOLLI, OPP: NEW BUS STAND, SRI RAM NAGAR COLONY, KAMAREDDY | E85: 0 | F85: 1 | J85: 1 | R85: 1 | Z85: 1 | DZ85: 4 | EA85: 0 | EB85: 0 | EC85: 0
A86: 78 | B86: SHIVA503111TSBH00956 | C86: SHIVA SAI MULTISPECIALITY DENTAL CLINIC | D86: HNO:-1-7-73,THILK ROAD,KAMAREDDY | E86: 5 | F86: 1 | J86: 1 | N86: 1 | R86: 1 | V86: 1 | Z86: 1 | AD86: 1 | AH86: 1 | AL86: 1 | AP86: 1 | AT86: 1 | AX86: 1 | BB86: 1 | BF86: 1 | BJ86: 1 | BN86: 1 | BT86: 1 | BX86: 1 | CB86: 1 | CF86: 1 | CJ86: 1 | CN86: 1 | CR86: 1 | CV86: 1 | CZ86: 1 | DD86: 1 | DH86: 1 | DZ86: 16 | EA86: 0 | EB86: 11 | EC86: 0
A87: 79 | B87: SRIRA503111TSBH09934 | C87: SRI RAMA MULTI SPECIALITY DENTAL H. | D87: Dr. M. MALLIKARJUN GUPTA COMPLEX, BESIDE MUNICIPAL OFFICE, KAMAREDDY | E87: 5 | F87: 1 | G87: 2 | J87: 1 | K87: 2 | N87: 1 | R87: 1 | V87: 1 | Z87: 1 | AD87: 1 | AH87: 1 | AL87: 1 | AP87: 1 | AT87: 1 | AX87: 1 | BB87: 1 | BR87: 1 | BV87: 1 | BZ87: 1 | CD87: 1 | CH87: 1 | CL87: 1 | CP87: 1 | CT87: 1 | CX87: 1 | DD87: 1 | DH87: 1 | DJ87: 1 | DN87: 1 | DR87: 1 | DZ87: 25 | EA87: 4 | EB87: 2 | EC87: 0
A88: 80 | B88: SRIVE503111TSBH06155 | C88: SRI VENKATESHWARA MULTI SPECIALITY DENTAL & COSMETIC CLINIC | D88: Dr. R. BHARGAVI, HNO:5-3-447, SREE VENKATA NIVAASAM, VIDYA NAGAR COLONY, KAMAREDDY | E88: 5 | F88: 1 | J88: 1 | N88: 1 | R88: 1 | V88: 1 | Z88: 1 | AD88: 1 | AH88: 1 | AL88: 1 | AP88: 1 | AT88: 1 | AX88: 1 | BB88: 1 | BF88: 1 | BJ88: 1 | BN88: 1 | BR88: 1 | BV88: 1 | BZ88: 1 | CF88: 1 | CN88: 1 | CR88: 1 | CV88: 1 | CZ88: 1 | DD88: 1 | DH88: 1 | DL88: 1 | DP88: 1 | DT88: 1 | DZ88: 19 | EA88: 0 | EB88: 10 | EC88: 0
A89: 81 | B89: NIZAM503111TSBH09953 | C89: NIZAMABAD SUPER SPECIALITY DENTAL HOSPITAL | D89: Dr.V. CHANDRA SEKHAR,OPP: MUNICIPAL OFFICE,GOWTHAM MODEL SCHOOL COMPLEX, KAMAREDDY | E89: 2 | F89: 1 | J89: 1 | N89: 1 | R89: 1 | V89: 1 | Z89: 1 | AD89: 1 | AH89: 1 | AL89: 1 | AT89: 1 | AX89: 1 | BB89: 1 | BF89: 1 | BK89: 1 | BO89: 1 | BR89: 1 | BV89: 1 | BZ89: 1 | CD89: 1 | CH89: 1 | CN89: 1 | CR89: 1 | CX89: 1 | DC89: 1 | DG89: 1 | DJ89: 1 | DN89: 1 | DR89: 1 | DZ89: 22 | EA89: 4 | EB89: 2 | EC89: 0
A90: 82 | B90: SRISA503111TSBH09954 | C90: SRI SAI KRUPA COSMETIC MULTI SPECIALITY & DENTAL CARE | D90: Dr. K. ASHOK KUMAR,NEAR RAILWAY BRIDGE,PEDDA BAZAR, KAMAREDDY | E90: 2 | AL90: 1 | DZ90: 1 | EA90: 0 | EB90: 0 | EC90: 0
A91: 83 | B91: SUSHE503111TSBH09955 | C91: SUSHEELA DENTAL SPECIALITIES | D91: NEAR RAILWAY BRIDGE, BESIDE AMBEDKAR MURTHY, KAMAREDDY | E91: 2 | F91: 1 | J91: 1 | N91: 1 | R91: 1 | V91: 1 | Z91: 1 | AD91: 1 | AH91: 1 | AL91: 1 | AP91: 1 | AT91: 1 | AX91: 1 | BB91: 1 | BF91: 1 | BJ91: 1 | BN91: 1 | BR91: 1 | BV91: 1 | BZ91: 1 | CD91: 1 | CJ91: 1 | CN91: 1 | CR91: 1 | CT91: 1 | DC91: 1 | DG91: 1 | DK91: 1 | DO91: 1 | DS91: 1 | DZ91: 21 | EA91: 5 | EB91: 3 | EC91: 0
A92: 84 | B92: SRMUL503111TSBH09956 | C92: SR MULTI SPECIALITY DENTAL HOSPITAL | D92: Dr.MD.IMAMUDDIN, GODWN ROAD, KAMAREDDY | E92: 1 | F92: 1 | J92: 1 | N92: 1 | R92: 1 | V92: 1 | Z92: 1 | AD92: 1 | AH92: 1 | AL92: 1 | AP92: 1 | AT92: 1 | AX92: 1 | BB92: 1 | BF92: 1 | BJ92: 1 | BN92: 1 | BR92: 1 | BW92: 1 | BZ92: 1 | CD92: 1 | CH92: 1 | CL92: 1 | CP92: 1 | CT92: 1 | CX92: 1 | DJ92: 1 | DN92: 1 | DR92: 1 | DW92: 1 | DZ92: 27 | EA92: 2 | EB92: 0 | EC92: 0
A93: 85 | B93: SMILE503111TSBH09957 | C93: SMILE CARE DENTAL HOSPITAL | D93: Dr. A VINOD KUMAR, BESIDE REYMOND'S SHOP, NEAR SANDEEPANI JUNIOR COLLEGE, PRIYA THEATRE X ROAD, NEW BUS STAND ROAD, KAMAREDDY | E93: 1 | F93: 1 | J93: 1 | N93: 1 | R93: 1 | V93: 1 | Z93: 1 | AD93: 1 | AH93: 1 | AL93: 1 | AT93: 1 | AX93: 1 | BB93: 1 | BF93: 1 | BJ93: 1 | BN93: 1 | BR93: 1 | BV93: 1 | BZ93: 1 | CD93: 1 | CH93: 1 | CL93: 1 | CP93: 1 | CT93: 1 | CX93: 1 | DB93: 1 | DF93: 1 | DL93: 1 | DN93: 1 | DR93: 1 | DW93: 1 | DZ93: 28 | EA93: 1 | EB93: 1 | EC93: 0
A94: 86 | B94: CARED503111TSDH09778 | C94: CARE DENTAL CLINIC | D94: DR. MD. SAJID, D.NO.1-2-50, SIRICILLA ROAD, KAMAREDDY | E94: 0 | F94: 1 | J94: 1 | N94: 1 | R94: 1 | V94: 1 | Z94: 1 | AD94: 1 | AH94: 1 | AL94: 1 | AP94: 1 | AT94: 1 | AX94: 1 | BB94: 1 | BF94: 1 | BJ94: 1 | BN94: 1 | BR94: 1 | BV94: 1 | BZ94: 1 | CD94: 1 | CH94: 1 | CL94: 1 | CP94: 1 | CT94: 1 | CX94: 1 | DD94: 1 | DH94: 1 | DL94: 1 | DP94: 1 | DT94: 1 | DW94: 1 | DZ94: 25 | EA94: 1 | EB94: 5 | EC94: 0
A95: 87 | B95: GAYAT503111TSDH09764 | C95: GAYATHRI MULTISPECIALITY DENTAL CLINIC | D95: CSI COMPLEX, BESIDE CSI CHURCH, NEW BUS STAND, KAMAREDDY | E95: 0 | F95: 1 | J95: 1 | N95: 1 | R95: 1 | V95: 1 | Z95: 1 | AD95: 1 | AH95: 1 | AL95: 1 | AP95: 1 | AT95: 1 | AX95: 1 | BB95: 1 | BF95: 1 | BJ95: 1 | BN95: 1 | BR95: 1 | BV95: 1 | BZ95: 1 | CD95: 1 | CH95: 1 | CL95: 1 | CP95: 1 | CT95: 1 | CX95: 1 | DD95: 1 | DH95: 1 | DL95: 1 | DP95: 1 | DT95: 1 | DW95: 1 | DZ95: 25 | EA95: 1 | EB95: 5 | EC95: 0
A96: 88 | B96: TELAN503111TSDH09777 | C96: TELANGANA DENTAL HOSPITAL | D96: DR.MD SAJID, NIZAMSAGAR X ROADS, KAMAREDDY | E96: 0 | F96: 1 | J96: 1 | N96: 1 | R96: 1 | V96: 1 | Z96: 1 | AD96: 1 | AH96: 1 | AL96: 1 | AP96: 1 | AT96: 1 | AX96: 1 | BB96: 1 | BF96: 1 | BJ96: 1 | BN96: 1 | BR96: 1 | BV96: 1 | BZ96: 1 | CD96: 1 | CH96: 1 | CL96: 1 | CP96: 1 | CT96: 1 | CX96: 1 | DD96: 1 | DH96: 1 | DL96: 1 | DP96: 1 | DT96: 1 | DZ96: 25 | EA96: 0 | EB96: 5 | EC96: 0
A97: 89 | B97: VASAV503111TSDH09688 | C97: VASAVI DENTAL CARE | D97: Root Canal & Dental Implant Center, Nizamsagar Road, beside Honey Bakers Chowrasta, Kamareddy | E97: 0 | F97: 1 | J97: 1 | N97: 1 | R97: 1 | V97: 1 | Z97: 1 | AD97: 1 | AH97: 1 | AL97: 1 | AP97: 1 | AT97: 1 | AX97: 1 | BB97: 1 | BF97: 1 | BJ97: 1 | BN97: 1 | BR97: 1 | BV97: 1 | BZ97: 1 | CD97: 1 | CH97: 1 | CL97: 1 | CP97: 1 | CT97: 1 | CX97: 1 | DD97: 1 | DH97: 1 | DL97: 1 | DP97: 1 | DT97: 1 | DZ97: 25 | EA97: 0 | EB97: 5 | EC97: 0
A98: 90 | B98: CBNAA503111TSPL09935 | C98: CBNAAT LAB | D98: PHC, DEVANPALLY, BEHIND GOVT. ARTS & SCIENCE DEGREE COLLEGE, KAMAREDDY | E98: 0 | F98: 2 | J98: 2 | O98: 2 | S98: 2 | V98: 2 | AA98: 2 | AE98: 2 | AI98: 2 | AM98: 2 | AQ98: 2 | AU98: 2 | AY98: 2 | BC98: 2 | BG98: 2 | BK98: 2 | BO98: 2 | BS98: 2 | BW98: 2 | CA98: 2 | CE98: 2 | CI98: 2 | CM98: 2 | CQ98: 2 | CU98: 2 | CY98: 2 | DC98: 2 | DG98: 2 | DK98: 2 | DO98: 2 | DS98: 2 | DZ98: 6 | EA98: 54 | EB98: 0 | EC98: 0
A99: 91 | B99: MYTHR503111TSBH09937 | C99: MYTHRI MULTI SPECIALITY HOSPITAL | D99: BESIDE BALAJI HOSPITAL, NEAR BHUPUTRAMMA KALYANA MANDAPAM, GODOWN ROAD, KAMAREDDY | E99: 15 | F99: 1 | J99: 1 | R99: 1 | V99: 1 | Z99: 1 | AD99: 1 | AH99: 1 | AL99: 1 | AP99: 1 | AT99: 1 | BB99: 1 | BF99: 1 | BJ99: 1 | BN99: 1 | BR99: 1 | BV99: 1 | BZ99: 1 | CD99: 1 | CH99: 1 | CN99: 1 | CR99: 1 | CT99: 1 | CX99: 1 | DL99: 1 | DO99: 1 | DS99: 1 | DZ99: 21 | EA99: 2 | EB99: 3 | EC99: 0
A100: 92 | B100: BHANU503111TSCL09968 | C100: BHANU ORTHOPAEDIC CLINIC | D100: 1-5-47/1, Tilak Rd, opposite Dr Narendar rao children’s hospital, Kamareddy | E100: 0 | F100: 1 | J100: 1 | R100: 1 | V100: 1 | Z100: 1 | AD100: 1 | AH100: 1 | AL100: 1 | AP100: 1 | AT100: 1 | AX100: 1 | BB100: 1 | BF100: 1 | BJ100: 1 | BN100: 1 | BR100: 1 | BV100: 1 | BZ100: 1 | CD100: 1 | CH100: 1 | CL100: 1 | CP100: 1 | CT100: 1 | CX100: 1 | DB100: 1 | DF100: 1 | DL100: 1 | DN100: 1 | DR100: 1 | DZ100: 28 | EA100: 0 | EB100: 1 | EC100: 0
A101: 93 | B101: VASAV503111TSBH09970 | C101: VASAVI GASTRO & MULTISPECIALITY HOSPITAL, KAMAREDDY | D101: OPP: SBI BANK, NEAR RAILWAY STATION, SIRICILLA ROAD, KAMAREDDY | E101: 10 | AL101: 1 | DZ101: 1 | EA101: 0 | EB101: 0 | EC101: 0
A102: 94 | B102: BALAJ503111TSDH09971 | C102: BALAJI FAMILY DENTAL CARE | D102: OPP: ANJALI REDDY HOSPITAL, GODOWN ROAD, KAMAREDDY | E102: 0 | F102: 1 | J102: 1 | R102: 1 | V102: 1 | Z102: 1 | AD102: 1 | AH102: 1 | AL102: 1 | AP102: 1 | AT102: 1 | AX102: 1 | BB102: 1 | BF102: 1 | BJ102: 1 | BN102: 1 | BR102: 1 | BV102: 1 | BZ102: 1 | CD102: 1 | CH102: 1 | CL102: 1 | CP102: 1 | CT102: 1 | CX102: 1 | DB102: 1 | DF102: 1 | DL102: 1 | DN102: 1 | DR102: 1 | DZ102: 28 | EA102: 0 | EB102: 1 | EC102: 0
A103: 95 | B103: SRIRA503111TSBH09975 | C103: SRI RAMANA MULTISPECIALITY DENTAL CLINIC | D103: DHARMASHALA COMPLEX, CONGRESS OFFICE ROAD, UNIQUE SCHOOL ROAD, GODOWN ROAD, KAMAREDDY | E103: 2 | BC103: 2 | BR103: 1 | DV103: 2 | DZ103: 3 | EA103: 2 | EB103: 0 | EC103: 0
A104: 96 | B104: CITYN503111TSBH09977 | C104: CITY NEURO SUPER SPECIALITY HOSPITAL | D104: NEAR SREE GANESHA MULTI SPECIALITY HOSPITAL, TILAK ROAD, GODOWN ROAD, KAMAREDDY | E104: 7 | F104: 1 | J104: 1 | S104: 1 | V104: 1 | Z104: 1 | AD104: 1 | AH104: 1 | AL104: 1 | AP104: 1 | AT104: 1 | AX104: 1 | BB104: 1 | BF104: 1 | BJ104: 1 | BN104: 1 | BR104: 1 | BV104: 1 | BZ104: 1 | CD104: 1 | CH104: 1 | CL104: 1 | CP104: 1 | CT104: 1 | CX104: 1 | DC104: 1 | DG104: 1 | DL104: 1 | DZ104: 23 | EA104: 3 | EB104: 1 | EC104: 0
A105: 97 | B105: RKHOS503111TSBH09979 | C105: R K HOSPITAL (CHILDREN & DENTAL), KAMAREDDY | D105: BESIDE ANJAL REDDY HOSPITAL, NETHAJI ROAD, KAMAREDDY | E105: 10 | F105: 1 | J105: 1 | N105: 1 | R105: 1 | V105: 1 | Z105: 1 | AD105: 1 | AH105: 1 | AL105: 1 | AP105: 1 | AT105: 1 | AX105: 1 | BB105: 1 | BF105: 1 | BJ105: 1 | BN105: 1 | BR105: 1 | BV105: 1 | BZ105: 1 | CD105: 1 | CH105: 1 | CL105: 1 | CP105: 1 | CT105: 1 | CX105: 1 | DD105: 1 | DH105: 1 | DL105: 1 | DN105: 1 | DR105: 1 | DZ105: 27 | EA105: 0 | EB105: 3 | EC105: 0
A106: 98 | B106: AJAYH503111TSBH09981 | C106: AJAY HOSPITAL (CHILDRENS & NEONATAL) KAMAREDDY | D106: BESIDE SPARSHA SKIN HOSPITAL & SRI LAXMI HOSPITAL, GODOWN ROAD, KAMAREDDY | E106: 9 | F106: 1 | J106: 1 | R106: 2 | V106: 2 | Z106: 1 | AD106: 2 | AH106: 2 | AL106: 2 | AP106: 2 | AT106: 2 | AX106: 1 | BB106: 2 | BF106: 1 | BJ106: 2 | BN106: 2 | BR106: 1 | BV106: 2 | BZ106: 1 | CD106: 1 | CH106: 1 | CL106: 1 | CP106: 1 | CT106: 2 | CZ106: 1 | DB106: 1 | DF106: 1 | DJ106: 2 | DN106: 2 | DR106: 2 | DZ106: 43 | EA106: 0 | EB106: 1 | EC106: 0
A107: 99 | B107: WALGO503111TSCL09982 | C107: WALGOT BONES HOSPITAL | D107: BESIDE DHARSHAN TALKIES, KAMAREDDY | E107: 0 | F107: 1 | J107: 1 | R107: 1 | V107: 1 | Z107: 1 | AD107: 1 | AH107: 1 | AL107: 1 | AP107: 1 | AT107: 1 | AX107: 1 | BB107: 1 | BF107: 1 | BJ107: 1 | BN107: 1 | BR107: 1 | BV107: 1 | BZ107: 1 | CD107: 1 | CH107: 1 | CL107: 1 | CP107: 1 | CT107: 1 | CX107: 1 | DB107: 1 | DF107: 1 | DL107: 1 | DP107: 1 | DT107: 1 | DZ107: 26 | EA107: 0 | EB107: 3 | EC107: 0
A108: 100 | B108: LIFEC503111TSPL09983 | C108: LIFE CELL DIAGNOSTICS | D108: NEAR DR. T. BHAIRAIAH HOSPITAL, BESIDE PRATHIBHA HIGH SCHOOL, GODOWN ROAD, KAMAREDDY | E108: 0 | F108: 1 | J108: 1 | N108: 2 | R108: 2 | V108: 1 | Z108: 2 | AD108: 2 | AH108: 2 | AL108: 2 | AP108: 2 | AT108: 1 | AX108: 1 | BB108: 2 | BF108: 1 | BJ108: 2 | BN108: 2 | BR108: 2 | BV108: 2 | BZ108: 2 | CD108: 1 | CJ108: 1 | CL108: 1 | CP108: 1 | CT108: 1 | CY108: 1 | DC108: 2 | DG108: 2 | DJ108: 2 | DN108: 1 | DR108: 1 | DZ108: 40 | EA108: 5 | EB108: 1 | EC108: 0
A109: 101 | B109: SRIKA503111TSDH09985 | C109: SRIKARA DENTAL CARE (MULTI SPECIALITY) HOSPITAL, KAMAREDDY | D109: OPP: GAYATRI BANK, SIRICILLA ROAD, KAMAREDDY | E109: 0 | DZ109: 0 | EA109: 0 | EB109: 0 | EC109: 0
A110: 102 | B110: VEDAS503111TSCL09989 | C110: VEDA SKIN HOSPITAL, KAMAREDDY | D110: 1-5-98, Backside of Sparsha Skin Hospital, Tilak Road, Kamareddy, Telangana 503111 | E110: 0 | F110: 1 | J110: 1 | N110: 1 | R110: 1 | V110: 1 | Z110: 1 | AD110: 1 | AH110: 1 | AL110: 1 | AP110: 1 | AT110: 1 | AX110: 1 | BB110: 1 | BF110: 1 | BJ110: 1 | BN110: 1 | BR110: 1 | BV110: 1 | BZ110: 1 | CD110: 1 | CH110: 1 | CL110: 1 | CP110: 1 | CT110: 1 | CX110: 1 | DC110: 1 | DG110: 1 | DJ110: 1 | DN110: 1 | DR110: 1 | DZ110: 28 | EA110: 2 | EB110: 0 | EC110: 0
A111: 103 | B111: NAVAJ503111TSBH09992 | C111: NAVAJEEVAN PHYSIOTHERAPY & MULTI REHABILITATION HOSPITAL, KAMAREDDY | D111: OPP: SRI LAXMI HOSPITAL, NEAR SPARSHA SKIN HOSPITAL, GODOWN ROAD, KAMAREDDY | E111: 5 | DZ111: 0 | EA111: 0 | EB111: 0 | EC111: 0
A112: 104 | B112: SADHG503111TSPL10080 | C112: SADHGURU DIAGNOSTIC CENTER | D112: NEAR DR.NARENDER RAO HOSPITAL, GODOWN ROAD, KAMAREDDY | E112: 0 | G112: 1 | K112: 1 | N112: 1 | R112: 1 | W112: 1 | Z112: 1 | AD112: 1 | AH112: 1 | AL112: 1 | AP112: 1 | AT112: 1 | AX112: 1 | BB112: 1 | BF112: 1 | BJ112: 1 | BN112: 1 | BR112: 1 | BV112: 1 | BZ112: 1 | CD112: 1 | CH112: 1 | CL112: 1 | CP112: 1 | CT112: 1 | CX112: 1 | DB112: 1 | DF112: 1 | DJ112: 1 | DN112: 1 | DR112: 1 | DZ112: 27 | EA112: 3 | EB112: 0 | EC112: 0
A113: 105 | B113: KAMAR503111TSDH10082 | C113: KAMAREDDY DENTAL CLINIC | D113: DR K. RAJENDER, GODOWN ROAD, KAMAREDDY | E113: 1 | F113: 1 | J113: 1 | N113: 1 | R113: 1 | V113: 1 | Z113: 1 | AD113: 1 | AH113: 1 | AL113: 1 | AP113: 1 | AT113: 1 | AX113: 1 | BB113: 1 | BF113: 1 | BJ113: 1 | BN113: 1 | BR113: 1 | BW113: 1 | BZ113: 1 | CD113: 1 | CH113: 1 | CL113: 1 | CP113: 1 | CV113: 1 | CZ113: 1 | DK113: 2 | DO113: 1 | DS113: 1 | DZ113: 22 | EA113: 5 | EB113: 2 | EC113: 0
A114: 106 | C114: CHC BICHKUNDA | D114: BICHKUNDA | E114: 30 | DZ114: 0 | EA114: 0 | EB114: 0 | EC114: 0
A115: 107 | B115: COMMU503123TSBH09984 | C115: COMMUNITY HEALTH CENTRE, DOMAKONDA | D115: NEAR BUS STAND, DOMAKONDA , KAMAREDDY DIST. | E115: 30 | DZ115: 0 | EA115: 0 | EB115: 0 | EC115: 0
A116: 108 | C116: CHC GANDHARI | D116: GANDHARI | E116: 30 | DZ116: 0 | EA116: 0 | EB116: 0 | EC116: 0
A117: 109 | C117: CHC MADHNOOR | D117: MADNOOR | E117: 30 | DZ117: 0 | EA117: 0 | EB117: 0 | EC117: 0
A118: 110 | C118: CHC PITLAM | D118: PITLAM | E118: 30 | DZ118: 0 | EA118: 0 | EB118: 0 | EC118: 0
A119: 111 | C119: PHC, ANNARAM | D119: ANNARAM | E119: 6 | DZ119: 0 | EA119: 0 | EB119: 0 | EC119: 0
A120: 112 | C120: PHC, BIBIPET | D120: BIBIPET | E120: 6 | DZ120: 0 | EA120: 0 | EB120: 0 | EC120: 0
A121: 113 | C121: PHC, BIKNOOR | D121: BIKNOOR | E121: 6 | DZ121: 0 | EA121: 0 | EB121: 0 | EC121: 0
A122: 114 | C122: PHC, DEVANPALLY | D122: DEVANPALLY | E122: 6 | DZ122: 0 | EA122: 0 | EB122: 0 | EC122: 0
A123: 115 | C123: PHC, DONGLI | D123: DONGLI | E123: 6 | DZ123: 0 | EA123: 0 | EB123: 0 | EC123: 0
A124: 116 | C124: PHC, HANMAJIPET | D124: HANMAJIPET | E124: 6 | DZ124: 0 | EA124: 0 | EB124: 0 | EC124: 0
A125: 117 | C125: PHC, JUKKAL | D125: JUKKAL | E125: 6 | DZ125: 0 | EA125: 0 | EB125: 0 | EC125: 0
A126: 118 | C126: PHC, LINGAMPET | D126: LINGAMPET | E126: 6 | DZ126: 0 | EA126: 0 | EB126: 0 | EC126: 0
A127: 119 | C127: PHC, MACHAREDDY | D127: MACHAREDDY | E127: 6 | DZ127: 0 | EA127: 0 | EB127: 0 | EC127: 0
A128: 120 | C128: PHC, MATHMAL | D128: MATHMAL | E128: 6 | DZ128: 0 | EA128: 0 | EB128: 0 | EC128: 0
A129: 121 | C129: PHC, NAGIREDDYPET | D129: NAGIREDDYPET | E129: 6 | DZ129: 0 | EA129: 0 | EB129: 0 | EC129: 0
A130: 122 | C130: PHC, NIZAMSAGAR | D130: NIZAMSAGAR | E130: 6 | DZ130: 0 | EA130: 0 | EB130: 0 | EC130: 0
A131: 123 | C131: PHC, PEDDA KODAPGAL | D131: PEDDAKODAPGAL | E131: 6 | DZ131: 0 | EA131: 0 | EB131: 0 | EC131: 0
A132: 124 | C132: PHC, PULKAL | D132: PULKAL | E132: 6 | DZ132: 0 | EA132: 0 | EB132: 0 | EC132: 0
A133: 125 | C133: PHC, RAJAMPET | D133: RAJAMPET | E133: 6 | DZ133: 0 | EA133: 0 | EB133: 0 | EC133: 0
A134: 126 | C134: PHC, RAMAREDDY | D134: RAMAREDDY | E134: 6 | DZ134: 0 | EA134: 0 | EB134: 0 | EC134: 0
A135: 127 | C135: PHC, SADHASHIVNAGAR | D135: SADHASHIVNAGAR | E135: 6 | DZ135: 0 | EA135: 0 | EB135: 0 | EC135: 0
A136: 128 | C136: PHC, UTHNOOR | D136: UTHNOOR | E136: 6 | DZ136: 0 | EA136: 0 | EB136: 0 | EC136: 0
A137: 129 | C137: PHC, YERRAPAHAD | D137: YERRAPAHAD | E137: 6 | DZ137: =F137+J137+N137+R137+V137+Z137+AD137+AH137+AL137+AP137+AT137+AX137+BB137+BF137+BJ137+BN137+BR137+BV137+BZ137+CD137+CH137+CL137+CP137+CT137+CX137+DB137+DF137+DJ137+DN137+DR137+DV137 -> 0 | EA137: =G137+K137+O137+S137+W137+AA137+AE137+AI137+AM137+AQ137+AU137+AY137+BC137+BG137+BK137+BO137+BS137+BW137+CA137+CE137+CI137+CM137+CQ137+CU137+CY137+DC137+DG137+DK137+DO137+DS137+DW137 -> 0 | EB137: =H137+L137+P137+T137+X137+AB137+AF137+AJ137+AN137+AR137+AV137+AZ137+BD137+BH137+BL137+BP137+BT137+BX137+CB137+CF137+CJ137+CN137+CR137+CV137+CZ137+DD137+DH137+DL137+DP137+DT137+DX137 -> 0 | EC137: =I137+M137+Q137+U137+Y137+AC137+AG137+AK137+AO137+AS137+AW137+BA137+BE137+BI137+BM137+BQ137+BU137+BY137+CC137+CG137+CK137+CO137+CS137+CW137+DA137+DE137+DI137+DM137+DQ137+DU137+DY137 -> 0
A138: 130 | C138: UPHC-RAJEEV NAGAR | D138: RAJEEV NAGAR | E138: 6 | DZ138: 0 | EA138: 0 | EB138: 0 | EC138: 0
A139: BANSWADA
A140: 1 | B140: LIONS503187TSBH01181 | C140: LIONS EYE HOSPITAL | D140: OPP: GOVT HOSPITAL , MAIN ROAD, BANSWADA : 08466-226666 | E140: 25 | F140: 2 | J140: 2 | O140: 2 | R140: 2 | W140: 2 | Z140: 2 | AD140: 2 | AH140: 2 | AL140: 2 | AP140: 2 | AT140: 2 | AX140: 2 | BB140: 2 | BH140: 2 | BL140: 2 | BN140: 2 | BT140: 2 | BV140: 2 | CF140: 2 | CJ140: 2 | CN140: 2 | CR140: 2 | CT140: 2 | CZ140: 2 | DC140: 2 | DG140: 2 | DJ140: 1 | DO140: 2 | DS140: 2 | DV140: 2 | DZ140: =F140+J140+N140+R140+V140+Z140+AD140+AH140+AL140+AP140+AT140+AX140+BB140+BF140+BJ140+BN140+BR140+BV140+BZ140+CD140+CH140+CL140+CP140+CT140+CX140+DB140+DF140+DJ140+DN140+DR140+DV140 -> 31 | EA140: =G140+K140+O140+S140+W140+AA140+AE140+AI140+AM140+AQ140+AU140+AY140+BC140+BG140+BK140+BO140+BS140+BW140+CA140+CE140+CI140+CM140+CQ140+CU140+CY140+DC140+DG140+DK140+DO140+DS140+DW140 -> 12 | EB140: =H140+L140+P140+T140+X140+AB140+AF140+AJ140+AN140+AR140+AV140+AZ140+BD140+BH140+BL140+BP140+BT140+BX140+CB140+CF140+CJ140+CN140+CR140+CV140+CZ140+DD140+DH140+DL140+DP140+DT140+DX140 -> 16 | EC140: =I140+M140+Q140+U140+Y140+AC140+AG140+AK140+AO140+AS140+AW140+BA140+BE140+BI140+BM140+BQ140+BU140+BY140+CC140+CG140+CK140+CO140+CS140+CW140+DA140+DE140+DI140+DM140+DQ140+DU140+DY140 -> 0
A141: 2 | B141: 7HILL503187TSBH11432 | C141: 7 HILLS MULTISPECIALITY HOSPITAL | D141: H.NO. 1-1-21/A, BEHIND AYYAPPA TEMPLE, NEAR BUS STAND, BANSWADA | E141: 20 | DZ141: 0 | EA141: 0 | EB141: 0 | EC141: 0
A142: 3 | B142: MANJE503187TSBH09770 | C142: MANJEERA MULTI SPECIALITY HOSPITAL | D142: H.No.1, ANJIREDDY COMPLEX, BESIDE ANDHRA BANK, OLD BANSWADA ROAD, BANSWADA. | E142: 20 | G142: 2 | K142: 2 | O142: 2 | S142: 2 | W142: 2 | AA142: 2 | AE142: 2 | AI142: 2 | AM142: 2 | AQ142: 2 | AU142: 2 | AY142: 2 | BC142: 2 | BG142: 2 | BK142: 2 | BO142: 2 | BS142: 2 | BW142: 2 | CA142: 2 | CE142: 2 | CN142: 2 | CR142: 2 | CU142: 2 | CZ142: 2 | DD142: 2 | DH142: 2 | DL142: 2 | DP142: 2 | DT142: 2 | DV142: 2 | DZ142: 2 | EA142: 42 | EB142: 16 | EC142: 0
A143: 4 | B143: SRMUL503187TSBH11391 | C143: SR MULTISPECIALITY HOSPITAL | D143: H.NO. 1-1-11/5/1/B, SUDHA COMPLEX,OPP: BUS STAND, TEACHERS COLONY, BANSWADA | E143: 20 | CI143: 2 | DZ143: 0 | EA143: 2 | EB143: 0 | EC143: 0
A144: 5 | B144: BINDU503187TSBH07084 | C144: BINDUSHREE CHILDRENS HOSPITAL | D144: H.NO. 1-1-11/5/1/B, SUDHA COMPLEX, OPP: BUS STAND, TEACHERS COLONY, BANSWADA | E144: 15 | F144: 1 | J144: 1 | N144: 1 | R144: 1 | V144: 1 | Z144: 1 | AD144: 1 | AH144: 1 | AL144: 1 | AP144: 1 | AT144: 1 | AX144: 1 | BB144: 1 | BF144: 1 | BJ144: 1 | BN144: 1 | BR144: 1 | BV144: 1 | BZ144: 1 | CD144: 1 | CL144: 1 | CP144: 1 | CT144: 1 | CX144: 1 | DL144: 1 | DP144: 1 | DT144: 1 | DZ144: 24 | EA144: 0 | EB144: 3 | EC144: 0
A145: 6 | B145: GUPTA503187TSBH07083 | C145: GUPTAS E.N.T. NURSING HOME | D145: H.NO. 1-1-11/5/1/B, SUDHA COMPLEX, OPP:BUS STAND, TEACHERS COLONY, BANSWADA, Banswada (CT)(V) Banswada(M) KAMAREDDY(D) Telangana-503187 | E145: 15 | F145: 1 | J145: 1 | N145: 1 | R145: 1 | V145: 1 | Z145: 1 | AD145: 1 | AH145: 1 | AL145: 1 | AP145: 1 | AT145: 1 | AX145: 1 | BB145: 1 | BF145: 1 | BJ145: 1 | BN145: 1 | BR145: 1 | BV145: 1 | BZ145: 1 | CF145: 1 | CH145: 1 | CN145: 1 | CR145: 1 | CV145: 1 | CZ145: 1 | DD145: 1 | DH145: 1 | DL145: 1 | DN145: 1 | DR145: 1 | DW145: 1 | DZ145: 22 | EA145: 1 | EB145: 8 | EC145: 0
A146: 7 | B146: SRIBA503187TSBH09779 | C146: SRI BALAJI HOSPITAL | D146: OPP: RAM MANDIR, NEAR ANDHRA BANK, OLD BANSWADA ROAD, BANSWADA | E146: 15 | F146: 2 | J146: 2 | N146: 2 | R146: 2 | V146: 2 | Z146: 2 | AD146: 2 | AH146: 1 | AL146: 1 | AP146: 2 | AT146: 2 | AX146: 2 | BB146: 2 | BF146: 2 | BJ146: 2 | BN146: 2 | BR146: 2 | BV146: 2 | BZ146: 2 | CD146: 2 | CJ146: 1 | CL146: 2 | CP146: 2 | CT146: 2 | CX146: 2 | DB146: 2 | DF146: 2 | DJ146: 2 | DN146: 2 | DR146: 2 | DV146: 2 | DZ146: 58 | EA146: 0 | EB146: 1 | EC146: 0
A147: 8 | B147: AMRIT504001TSBH00944 | C147: AMRITA HOSPITAL | D147: Dr. P. SUDHA,BESIDE SARASWATHI MANDIR, BANSWADA,NZB | E147: 10 | F147: 2 | J147: 2 | N147: 2 | R147: 2 | V147: 2 | Z147: 2 | AE147: 6 | AI147: 6 | AM147: 6 | AP147: 2 | AT147: 2 | BB147: 2 | BF147: 2 | BJ147: 2 | BN147: 2 | BR147: 2 | BV147: 2 | BZ147: 2 | CD147: 2 | CH147: 2 | CL147: 2 | CP147: 2 | CT147: 2 | CX147: 2 | DB147: 2 | DF147: 2 | DJ147: 2 | DN147: 2 | DR147: 2 | DV147: 2 | DZ147: 54 | EA147: 18 | EB147: 0 | EC147: 0
A148: 9 | B148: BALKA503187TSBH09705 | C148: BALKAMAL CHILDRENS HOSPITAL | D148: Dr. T. KIRAN KUMAR, BODHAN ROAD,BANSWADA,NIZAMABAD, | E148: 10 | F148: 1 | J148: 1 | N148: 1 | R148: 1 | V148: 1 | Z148: 1 | AD148: 1 | AH148: 1 | AL148: 1 | AP148: 1 | AT148: 1 | AX148: 1 | BB148: 1 | BF148: 1 | BJ148: 1 | BN148: 1 | BR148: 1 | BV148: 1 | BZ148: 2 | CD148: 1 | CH148: 2 | CN148: 1 | CR148: 1 | CT148: 1 | CZ148: 1 | DD148: 1 | DH148: 1 | DL148: 1 | DP148: 1 | DT148: 1 | DZ148: 24 | EA148: 0 | EB148: 8 | EC148: 0
A149: 10 | B149: SRIDA503187TSBH09707 | C149: SRI DHANVANTHRI EYE HOSPITAL | D149: TIRUMALA COMPLEX, BESIDE ANNAPURNA SUPER MARKET, TADKOLE ROAD, BANSWADA | E149: 9 | F149: 8 | J149: 6 | N149: 8 | R149: 8 | V149: 8 | Z149: 8 | AD149: 8 | AH149: 8 | AL149: 8 | AP149: 8 | AT149: 8 | AX149: 8 | BB149: 8 | BF149: 8 | BJ149: 8 | BN149: 6 | BR149: 8 | BV149: 8 | BZ149: 8 | CD149: 8 | CH149: 1 | CL149: 8 | CP149: 4 | CV149: 8 | CZ149: 8 | DD149: 8 | DH149: 8 | DL149: 8 | DP149: 9 | DT149: 4 | DZ149: 169 | EA149: 0 | EB149: 53 | EC149: 0
A150: 11 | B150: CHAIT503187TSBH10081 | C150: CHAITANYA METERNITY & NURSING HOME | D150: Dr. E. JEEVAN REDDY,CHAITHANYA COLONY, BANSWADA, KAMAREDDY | E150: 6 | G150: 1 | K150: 1 | N150: 1 | R150: 1 | W150: 1 | Z150: 1 | AD150: 1 | AH150: 1 | AL150: 1 | AP150: 1 | AT150: 1 | AX150: 1 | BB150: 1 | BF150: 1 | BJ150: 1 | BN150: 1 | BR150: 1 | BV150: 1 | BZ150: 1 | CD150: 1 | CH150: 4 | CL150: 1 | CP150: 1 | CT150: 1 | CX150: 1 | DB150: 1 | DF150: 1 | DJ150: 1 | DN150: 1 | DR150: 1 | DV150: 1 | DZ150: 31 | EA150: 3 | EB150: 0 | EC150: 0
A151: 12 | B151: ANVIT503187TSBH09771 | C151: ANVITHA HOSPITAL | D151: Dr. D. SANTHOSH REDDY,OPP: BUS STAND,BANSWADA, BIZAMABAD | E151: 5 | F151: 1 | J151: 1 | N151: 1 | R151: 1 | V151: 1 | Z151: 1 | AD151: 1 | AH151: 1 | AL151: 1 | AP151: 1 | AT151: 1 | AX151: 1 | BB151: 1 | BF151: 1 | BJ151: 1 | BN151: 1 | BR151: 1 | BV151: 1 | BZ151: 1 | CD151: 1 | CH151: 1 | CL151: 1 | CP151: 1 | CV151: 1 | CZ151: 1 | DD151: 1 | DH151: 1 | DL151: 1 | DP151: 1 | DT151: 1 | DZ151: 23 | EA151: 0 | EB151: 7 | EC151: 0
A152: 13 | B152: JAGRU503187TSBH09706 | C152: JAGRUTHI HOSPITAL | D152: D.No.1-1-11/4/1/C, OLD MALATHI MADAM BUILDING, NGO'S COLONY, BANSWADA | E152: 4 | F152: 1 | J152: 1 | N152: 1 | R152: 1 | V152: 1 | Z152: 1 | AD152: 1 | AH152: 1 | AL152: 1 | AP152: 1 | AT152: 1 | AX152: 1 | BB152: 1 | BF152: 1 | BJ152: 1 | BN152: 1 | BR152: 1 | BV152: 1 | BZ152: 1 | CD152: 1 | CH152: 1 | CL152: 1 | CP152: 1 | CT152: 1 | CZ152: 1 | DD152: 1 | DH152: 1 | DL152: 1 | DP152: 1 | DT152: 1 | DZ152: 24 | EA152: 0 | EB152: 6 | EC152: 0
A153: 14 | B153: GLOBA503187TSBH09766 | C153: GLOBAL MULTI SPECIALITY DENTAL CLINIC MAXILOFACIAL SUGICAL CENTRE | D153: M.B.R COMPLEX, BANSWADA, DIST.KAMREDDY, CELL NO: 9908781338 | E153: 2 | F153: 1 | J153: 1 | N153: 1 | R153: 1 | V153: 1 | Z153: 1 | AD153: 1 | AH153: 1 | AL153: 1 | AP153: 1 | AT153: 1 | AX153: 1 | BB153: 1 | BF153: 1 | BJ153: 1 | BN153: 1 | BR153: 1 | BV153: 1 | BZ153: 1 | CD153: 1 | CH153: 1 | CL153: 1 | CP153: 1 | CV153: 1 | CZ153: 1 | DD153: 1 | DH153: 1 | DL153: 1 | DP153: 1 | DT153: 1 | DZ153: 23 | EA153: 0 | EB153: 7 | EC153: 0
A154: 15 | B154: DRGUN503187TSBH09933 | C154: DR GUNDERAO SHINDE | D154: NEAR MUNICIPAL OFFICE, BANSWADA | E154: 2 | G154: 1 | K154: 1 | N154: 1 | R154: 1 | W154: 1 | Z154: 1 | AD154: 1 | AH154: 1 | AL154: 1 | AP154: 1 | AT154: 1 | AX154: 1 | BB154: 1 | BF154: 1 | BJ154: 1 | BN154: 1 | BR154: 1 | BV154: 1 | BZ154: 1 | CD154: 1 | CH154: 1 | CL154: 1 | CP154: 1 | CT154: 1 | CX154: 1 | DB154: 1 | DF154: 1 | DJ154: 1 | DN154: 1 | DR154: 1 | DV154: 1 | DZ154: 28 | EA154: 3 | EB154: 0 | EC154: 0
A155: 16 | B155: SALLA503187TSBH08686 | C155: SALLAWAR POLYCLINIC & DIAGNOSTICS | D155: OLD BUS STAND ROAD, BANSWADA, KAMAREDDY-503187 | E155: 2 | F155: 1 | J155: 1 | N155: 1 | R155: 1 | Z155: 1 | AD155: 1 | AH155: 1 | AL155: 1 | AT155: 1 | AX155: 1 | BB155: 1 | BF155: 1 | BJ155: 1 | BN155: 1 | BV155: 1 | BZ155: 1 | CD155: 1 | CH155: 1 | CN155: 1 | CR155: 1 | CV155: 1 | CZ155: 1 | DD155: 1 | DH155: 1 | DL155: 1 | DP155: 1 | DT155: 1 | DZ155: 18 | EA155: 0 | EB155: 9 | EC155: 0
A156: 17 | B156: RUKMI503187TSDH09932 | C156: RUKMINI MULTISPECIALITY DENTAL CLINIC | D156: Dr. A. JEEVAN,OPP: GOVT. HOSPITAL,BANSWADA,NZB | E156: 1 | G156: 1 | K156: 1 | O156: 1 | R156: 1 | V156: 1 | Z156: 1 | AD156: 1 | AH156: 1 | AL156: 1 | AP156: 1 | AT156: 1 | AX156: 1 | BB156: 1 | BF156: 1 | BJ156: 1 | BN156: 1 | BR156: 1 | BV156: 1 | BZ156: 1 | CD156: 1 | CH156: 1 | CL156: 1 | CP156: 1 | CT156: 1 | CX156: 1 | DB156: 1 | DF156: 1 | DJ156: 1 | DN156: 1 | DR156: 1 | DV156: 1 | DZ156: 28 | EA156: 3 | EB156: 0 | EC156: 0
A157: 18 | B157: SRIGA503187TSPL09701 | C157: SRI GANESH DIAGNOSTIC CENTER | D157: H.NO.5-5-144/42, MAIN (BODHAN) ROAD, CHIATHANYA COLONY, BANSWADA | E157: 1 | F157: 1 | J157: 1 | N157: 1 | R157: 1 | V157: 1 | Z157: 1 | AD157: 1 | AP157: 1 | AT157: 1 | AX157: 1 | BB157: 1 | BF157: 1 | BJ157: 1 | BN157: 1 | BR157: 1 | BV157: 1 | BZ157: 1 | CD157: 1 | CH157: 1 | CN157: 1 | CR157: 1 | CV157: 1 | CZ157: 1 | DD157: 1 | DH157: 1 | DL157: 1 | DP157: 1 | DT157: 1 | DZ157: 19 | EA157: 0 | EB157: 9 | EC157: 0
A158: 19 | B158: L.K.R503187TSCL11388 | C158: L.K. REDDY POLYCLINIC & DIAGNOSTIC CENTRE | D158: H.NO. 2-3-74, GOPAL REDDY COMPLEX,OLD ANGADI BAZAR,BANSWADA | E158: 0 | CJ158: 1 | DZ158: 0 | EA158: 0 | EB158: 1 | EC158: 0
A159: 20 | B159: SRISR503187TSCL10141 | C159: SRI SRINIVAS CHILDREN CLINIC | D159: BESIDE RAMA KRISHNA THEATRE, MAIN ROAD, BANSWADA, KAMAREDDY | E159: 0 | DW159: 1 | DZ159: 0 | EA159: 1 | EB159: 0 | EC159: 0
A160: 21 | B160: SWAPN503187TSPL09694 | C160: SWAPNA PATHOLOGICAL LAB, BANSWADA, KAMAREDDY | D160: BESIDE HDFC BANK, OLD BANSWADA ROAD, BANSWADA, KAMAREDDY Banswada (CT)(V) Banswada(M) KAMAREDDY(D) Telangana-503187 | E160: 0 | F160: 1 | J160: 1 | N160: 1 | R160: 1 | V160: 1 | Z160: 1 | AD160: 1 | AH160: 1 | AL160: 1 | AP160: 1 | AT160: 1 | AX160: 1 | BB160: 1 | BF160: 1 | BJ160: 1 | BN160: 1 | BR160: 1 | BV160: 1 | BZ160: 1 | CD160: 1 | CN160: 1 | CR160: 1 | CV160: 1 | CZ160: 1 | DD160: 1 | DH160: 1 | DK160: 1 | DP160: 1 | DT160: 1 | DZ160: 20 | EA160: 1 | EB160: 8 | EC160: 0
A161: 22 | C161: UPHC-VARNI | D161: VARNI | E161: 30 | CH161: 1 | DZ161: 1 | EA161: 0 | EB161: 0 | EC161: 0
A162: 23 | C162: PHC, BIRKUR | D162: BIRKUR | E162: 6 | DZ162: 0 | EA162: 0 | EB162: 0 | EC162: 0
A163: BICHKUNDA
A164: 1 | B164: JWALA503306TSBH08468 | C164: JWALAMUKHI SPECIALITY DENTAL CLINIC | D164: KOLAWAR COMPLEX, NEAR PETROL PUMP, NEW BUS STAND, BICHKUNDA,Bichkunda,Bichkunda,KAMAREDDY,503306 | E164: 3 | F164: 1 | J164: 1 | N164: 1 | R164: 1 | V164: 1 | Z164: 1 | AD164: 1 | AH164: 1 | AL164: 1 | AP164: 1 | AT164: 1 | AX164: 1 | BB164: 1 | BF164: 1 | BJ164: 1 | BN164: 1 | BV164: 1 | BZ164: 1 | CD164: 1 | CJ164: 1 | CN164: 1 | CR164: 1 | CV164: 1 | CX164: 1 | DD164: 1 | DH164: 1 | DL164: 1 | DP164: 1 | DT164: 1 | DW164: 1 | DZ164: =F164+J164+N164+R164+V164+Z164+AD164+AH164+AL164+AP164+AT164+AX164+BB164+BF164+BJ164+BN164+BR164+BV164+BZ164+CD164+CH164+CL164+CP164+CT164+CX164+DB164+DF164+DJ164+DN164+DR164+DV164 -> 20 | EA164: =G164+K164+O164+S164+W164+AA164+AE164+AI164+AM164+AQ164+AU164+AY164+BC164+BG164+BK164+BO164+BS164+BW164+CA164+CE164+CI164+CM164+CQ164+CU164+CY164+DC164+DG164+DK164+DO164+DS164+DW164 -> 1 | EB164: =H164+L164+P164+T164+X164+AB164+AF164+AJ164+AN164+AR164+AV164+AZ164+BD164+BH164+BL164+BP164+BT164+BX164+CB164+CF164+CJ164+CN164+CR164+CV164+CZ164+DD164+DH164+DL164+DP164+DT164+DX164 -> 9 | EC164: =I164+M164+Q164+U164+Y164+AC164+AG164+AK164+AO164+AS164+AW164+BA164+BE164+BI164+BM164+BQ164+BU164+BY164+CC164+CG164+CK164+CO164+CS164+CW164+DA164+DE164+DI164+DM164+DQ164+DU164+DY164 -> 0
A165: 2 | B165: SRITI503306TSBH08467 | C165: SRI TIRUMALA HOSPITAL BICHKUNDA | D165: BESIDE BUS STAND, BICHKUNDA,Bichkunda,Bichkunda,KAMAREDDY,503306 | E165: 9 | F165: 1 | J165: 1 | N165: 1 | R165: 1 | V165: 1 | Z165: 1 | AD165: 1 | AH165: 1 | AL165: 1 | AP165: 1 | AT165: 1 | AX165: 1 | BB165: 1 | BF165: 1 | BJ165: 1 | BN165: 1 | BT165: 1 | BX165: 1 | CB165: 1 | CF165: 1 | CJ165: 1 | CN165: 1 | CR165: 1 | CV165: 1 | CZ165: 1 | DD165: 1 | DH165: 1 | DV165: 1 | DZ165: 17 | EA165: 0 | EB165: 11 | EC165: 0
A166: PITLAM
A167: 1 | B167: YSHOD503310TSBH00951 | C167: YSHODHA DEVI HOSPITAL | D167: OPP: POST OFFICE & POLICE STATION, PITLAM,Kamareddy ( U ),Kamareddy,KAMAREDDY,503310 | E167: 20 | F167: 1 | J167: 1 | N167: 1 | R167: 1 | V167: 1 | Z167: 1 | AD167: 1 | AH167: 1 | AL167: 1 | AP167: 1 | AT167: 1 | AX167: 1 | BB167: 1 | BF167: 1 | BJ167: 1 | BN167: 1 | BT167: 1 | BX167: 1 | CB167: 1 | CF167: 1 | CJ167: 1 | CN167: 1 | CR167: 1 | CV167: 1 | CZ167: 1 | DD167: 1 | DH167: 1 | DT167: 1 | DZ167: =F167+J167+N167+R167+V167+Z167+AD167+AH167+AL167+AP167+AT167+AX167+BB167+BF167+BJ167+BN167+BR167+BV167+BZ167+CD167+CH167+CL167+CP167+CT167+CX167+DB167+DF167+DJ167+DN167+DR167+DV167 -> 16 | EA167: =G167+K167+O167+S167+W167+AA167+AE167+AI167+AM167+AQ167+AU167+AY167+BC167+BG167+BK167+BO167+BS167+BW167+CA167+CE167+CI167+CM167+CQ167+CU167+CY167+DC167+DG167+DK167+DO167+DS167+DW167 -> 0 | EB167: =H167+L167+P167+T167+X167+AB167+AF167+AJ167+AN167+AR167+AV167+AZ167+BD167+BH167+BL167+BP167+BT167+BX167+CB167+CF167+CJ167+CN167+CR167+CV167+CZ167+DD167+DH167+DL167+DP167+DT167+DX167 -> 12 | EC167: =I167+M167+Q167+U167+Y167+AC167+AG167+AK167+AO167+AS167+AW167+BA167+BE167+BI167+BM167+BQ167+BU167+BY167+CC167+CG167+CK167+CO167+CS167+CW167+DA167+DE167+DI167+DM167+DQ167+DU167+DY167 -> 0
A168: 2 | B168: SUNDE503310TSBH00957 | C168: SUNDER HOSPITAL | D168: THIMMANAGAR ROAD, PITLAM,Pitlam,Pitlam,KAMAREDDY,503310 | E168: 10 | F168: 1 | J168: 1 | N168: 1 | R168: 1 | V168: 1 | Z168: 1 | AD168: 1 | AH168: 1 | AL168: 1 | AP168: 1 | AT168: 1 | AX168: 1 | BB168: 1 | BF168: 1 | BJ168: 1 | BN168: 1 | BT168: 1 | BX168: 1 | CB168: 1 | CF168: 1 | CJ168: 1 | CN168: 1 | CR168: 1 | CV168: 1 | CZ168: 1 | DT168: 1 | DW168: 1 | DZ168: 16 | EA168: 1 | EB168: 10 | EC168: 0
A169: 3 | B169: SRITI503110TSBH08466 | C169: SRI TIRUMALA HOSPITAL PITLAM | D169: THIMMANAGAR ROAD, PITLAM,Pitlam,Pitlam,KAMAREDDY,503110 | E169: 9 | F169: 1 | J169: 1 | N169: 1 | R169: 1 | V169: 1 | Z169: 1 | AD169: 1 | AH169: 1 | AL169: 1 | AP169: 1 | AT169: 1 | AZ169: 1 | BB169: 1 | BH169: 1 | BJ169: 1 | BN169: 1 | BT169: 1 | BX169: 1 | CB169: 1 | CD169: 1 | CJ169: 1 | CN169: 1 | CR169: 1 | CV169: 1 | CZ169: 1 | DT169: 1 | DV169: 1 | DZ169: 16 | EA169: 0 | EB169: 11 | EC169: 0
A170: 4 | B170: PRABH503310TSBH00949 | C170: PRABHU PATHOLOGICAL LABORATORY | D170: THIMMANAGAR ROAD, INDIRA CHOWK, PITLAM,Pitlam,Pitlam,KAMAREDDY,503310 | E170: 1 | F170: 1 | J170: 1 | N170: 1 | R170: 1 | V170: 1 | Z170: 1 | AD170: 1 | AH170: 1 | AL170: 1 | AP170: 1 | AT170: 1 | AX170: 1 | BB170: 1 | BF170: 1 | BJ170: 1 | BN170: 1 | BT170: 1 | BX170: 1 | CB170: 1 | CF170: 1 | CJ170: 1 | CN170: 1 | CR170: 1 | CV170: 1 | CZ170: 1 | DD170: 1 | DH170: 1 | DT170: 1 | DV170: 1 | DZ170: 17 | EA170: 0 | EB170: 12 | EC170: 0
A171: YELLAREDDY
A172: 1 | B172: SRIVE503122TSBH00910 | C172: SRI VENKATESHWARA SUPER SPECIALITY HOSPITAL | D172: Dr. B. NAGESHWARA RAO,MAIN ROAD,YELLAREDDY, KAMAREDDY | E172: 80 | G172: 2 | K172: 2 | O172: 2 | S172: 2 | W172: 2 | AA172: 2 | AE172: 2 | AI172: 2 | AM172: 2 | AQ172: 2 | AU172: 2 | AY172: 2 | BC172: 2 | BG172: 2 | BK172: 2 | BO172: 2 | BS172: 2 | BW172: 2 | CA172: 2 | CE172: 2 | CJ172: 2 | CN172: 2 | CR172: 2 | CV172: 2 | CZ172: 2 | DD172: 2 | DH172: 2 | DK172: 1 | DO172: 2 | DS172: 2 | DV172: 2 | DZ172: =F172+J172+N172+R172+V172+Z172+AD172+AH172+AL172+AP172+AT172+AX172+BB172+BF172+BJ172+BN172+BR172+BV172+BZ172+CD172+CH172+CL172+CP172+CT172+CX172+DB172+DF172+DJ172+DN172+DR172+DV172 -> 2 | EA172: =G172+K172+O172+S172+W172+AA172+AE172+AI172+AM172+AQ172+AU172+AY172+BC172+BG172+BK172+BO172+BS172+BW172+CA172+CE172+CI172+CM172+CQ172+CU172+CY172+DC172+DG172+DK172+DO172+DS172+DW172 -> 45 | EB172: =H172+L172+P172+T172+X172+AB172+AF172+AJ172+AN172+AR172+AV172+AZ172+BD172+BH172+BL172+BP172+BT172+BX172+CB172+CF172+CJ172+CN172+CR172+CV172+CZ172+DD172+DH172+DL172+DP172+DT172+DX172 -> 14 | EC172: =I172+M172+Q172+U172+Y172+AC172+AG172+AK172+AO172+AS172+AW172+BA172+BE172+BI172+BM172+BQ172+BU172+BY172+CC172+CG172+CK172+CO172+CS172+CW172+DA172+DE172+DI172+DM172+DQ172+DU172+DY172 -> 0
A173: 2 | B173: YELLA503122TSBH00991 | C173: YELLAREDDY SUPER SPECIALITY HOSPITAL | D173: Dr. E. SIDDI RAMULU,MAIN ROAD,YELLAREDDY, KAMAREDDY | E173: 40 | F173: 2 | J173: 2 | N173: 2 | R173: 2 | V173: 2 | Z173: 2 | AE173: 2 | AI173: 2 | AM173: 2 | AP173: 2 | AT173: 2 | AX173: 2 | BB173: 2 | BF173: 2 | BJ173: 2 | BN173: 2 | BR173: 2 | BV173: 2 | BZ173: 2 | CE173: 2 | CI173: 2 | CM173: 2 | CQ173: 2 | CU173: 2 | CY173: 2 | DC173: 2 | DG173: 2 | DK173: 2 | DO173: 2 | DS173: 2 | DW173: 2 | DZ173: 32 | EA173: 30 | EB173: 0 | EC173: 0
A174: 3 | B174: COMMU503122TSBH09765 | C174: COMMUNITY HEALTH CENTER | D174: OPP.BUS STATION,YELLAREDDY. | E174: 30 | G174: 5 | K174: 5 | O174: 5 | S174: 5 | W174: 5 | AA174: 5 | AE174: 5 | AI174: 5 | AM174: 5 | AQ174: 5 | AU174: 5 | AY174: 5 | BC174: 5 | BG174: 4 | BK174: 5 | BO174: 5 | BS174: 5 | BW174: 4 | CA174: 4 | CE174: 4 | CI174: 5 | CM174: 4 | CQ174: 4 | CV174: 4 | CZ174: 4 | DD174: 5 | DH174: 5 | DL174: 4 | DP174: 4 | DT174: 2 | DV174: 5 | DZ174: 5 | EA174: 109 | EB174: 28 | EC174: 0
A175: 4 | B175: ARKHO503122TSBH08475 | C175: ARK HOSPITAL | D175: NEAR SBI BANK, YELLAREDDY | E175: 20 | F175: 1 | J175: 1 | N175: 1 | R175: 1 | V175: 1 | Z175: 1 | AD175: 1 | AH175: 1 | AL175: 1 | AP175: 1 | AT175: 1 | AX175: 1 | BB175: 1 | BF175: 1 | BJ175: 1 | BN175: 1 | BR175: 1 | CD175: 1 | CN175: 1 | CR175: 1 | CV175: 1 | CZ175: 1 | DD175: 1 | DH175: 1 | DL175: 1 | DS175: 1 | DX175: 1 | DZ175: 18 | EA175: 1 | EB175: 8 | EC175: 0
A176: 5 | B176: AJAYH503124TSBH08366 | C176: AJAY HOSPITAL (LINGAMPET) | D176: AMRUTHA COMPLEX, MAIN ROAD, LINGAMPET | E176: 15 | F176: 2 | J176: 2 | N176: 2 | R176: 2 | V176: 2 | Z176: 2 | AD176: 2 | AH176: 2 | AL176: 2 | AT176: 1 | AX176: 2 | BB176: 2 | BG176: 1 | BK176: 2 | BO176: 2 | BS176: 2 | BW176: 2 | CA176: 2 | CE176: 2 | CM176: 1 | CQ176: 1 | CT176: 2 | CY176: 2 | DB176: 2 | DF176: 2 | DK176: 2 | DO176: 2 | DS176: 2 | DW176: 2 | DZ176: 29 | EA176: 25 | EB176: 0 | EC176: 0
A177: 6 | B177: JEEVA503122TSBH09689 | C177: JEEVADAN HOSPITAL | D177: GANDIMASANIPET, MAIN ROAD,YELLAREDDY,KAMAREDDY | E177: 10 | H177: 2 | L177: 2 | P177: 2 | R177: 2 | X177: 2 | Z177: 2 | AE177: 2 | AI177: 2 | AM177: 2 | AP177: 2 | AT177: 2 | AX177: 2 | BB177: 2 | BG177: 2 | BK177: 2 | BO177: 2 | BS177: 2 | BW177: 2 | CA177: 2 | CE177: 2 | CI177: 2 | CM177: 2 | CQ177: 2 | CU177: 2 | CY177: 2 | DC177: 2 | DG177: 2 | DK177: 2 | DO177: 2 | DS177: 2 | DW177: 2 | DZ177: 12 | EA177: 42 | EB177: 8 | EC177: 0
C178: TOTAL | E178: =SUM(E4:E177) -> 1938 | F178: =SUM(F4:F177) -> 132 | G178: =SUM(G4:G177) -> 48 | H178: =SUM(H4:H177) -> 6 | I178: =SUM(I4:I177) -> 0 | J178: =SUM(J4:J177) -> 127 | K178: =SUM(K4:K177) -> 46 | L178: =SUM(L4:L177) -> 3 | M178: =SUM(M4:M177) -> 0 | N178: =SUM(N4:N177) -> 146 | O178: =SUM(O4:O177) -> 33 | P178: =SUM(P4:P177) -> 5 | Q178: =SUM(Q4:Q177) -> 0 | R178: =SUM(R4:R177) -> 155 | S178: =SUM(S4:S177) -> 29 | T178: =SUM(T4:T177) -> 7 | U178: =SUM(U4:U177) -> 0 | V178: =SUM(V4:V177) -> 146 | W178: =SUM(W4:W177) -> 33 | X178: =SUM(X4:X177) -> 6 | Y178: =SUM(Y4:Y177) -> 0 | Z178: =SUM(Z4:Z177) -> 157 | AA178: =SUM(AA4:AA177) -> 32 | AB178: =SUM(AB4:AB177) -> 1 | AC178: =SUM(AC4:AC177) -> 0 | AD178: =SUM(AD4:AD177) -> 153 | AE178: =SUM(AE4:AE177) -> 39 | AF178: =SUM(AF4:AF177) -> 0 | AG178: =SUM(AG4:AG177) -> 0 | AH178: =SUM(AH4:AH177) -> 149 | AI178: =SUM(AI4:AI177) -> 34 | AJ178: =SUM(AJ4:AJ177) -> 6 | AK178: =SUM(AK4:AK177) -> 0 | AL178: =SUM(AL4:AL177) -> 157 | AM178: =SUM(AM4:AM177) -> 34 | AN178: =SUM(AN4:AN177) -> 6 | AO178: =SUM(AO4:AO177) -> 0 | AP178: =SUM(AP4:AP177) -> 153 | AQ178: =SUM(AQ4:AQ177) -> 28 | AR178: =SUM(AR4:AR177) -> 4 | AS178: =SUM(AS4:AS177) -> 0 | AT178: =SUM(AT4:AT177) -> 155 | AU178: =SUM(AU4:AU177) -> 31 | AV178: =SUM(AV4:AV177) -> 4 | AW178: =SUM(AW4:AW177) -> 0 | AX178: =SUM(AX4:AX177) -> 149 | AY178: =SUM(AY4:AY177) -> 36 | AZ178: =SUM(AZ4:AZ177) -> 1 | BA178: =SUM(BA4:BA177) -> 0 | BB178: =SUM(BB4:BB177) -> 147 | BC178: =SUM(BC4:BC177) -> 41 | BD178: =SUM(BD4:BD177) -> 1 | BE178: =SUM(BE4:BE177) -> 0 | BF178: =SUM(BF4:BF177) -> 121 | BG178: =SUM(BG4:BG177) -> 53 | BH178: =SUM(BH4:BH177) -> 6 | BI178: =SUM(BI4:BI177) -> 0 | BJ178: =SUM(BJ4:BJ177) -> 122 | BK178: =SUM(BK4:BK177) -> 63 | BL178: =SUM(BL4:BL177) -> 5 | BM178: =SUM(BM4:BM177) -> 0 | BN178: =SUM(BN4:BN177) -> 122 | BO178: =SUM(BO4:BO177) -> 63 | BP178: =SUM(BP4:BP177) -> 3 | BQ178: =SUM(BQ4:BQ177) -> 0 | BR178: =SUM(BR4:BR177) -> 105 | BS178: =SUM(BS4:BS177) -> 53 | BT178: =SUM(BT4:BT177) -> 29 | BU178: =SUM(BU4:BU177) -> 0 | BV178: =SUM(BV4:BV177) -> 105 | BW178: =SUM(BW4:BW177) -> 60 | BX178: =SUM(BX4:BX177) -> 24 | BY178: =SUM(BY4:BY177) -> 0 | BZ178: =SUM(BZ4:BZ177) -> 96 | CA178: =SUM(CA4:CA177) -> 54 | CB178: =SUM(CB4:CB177) -> 35 | CC178: =SUM(CC4:CC177) -> 0 | CD178: =SUM(CD4:CD177) -> 84 | CE178: 55 | CF178: 46 | CG178: 0 | CH178: 72 | CI178: 54 | CJ178: 52 | CK178: 0 | CL178: =SUM(CL4:CL177) -> 69 | CM178: =SUM(CM4:CM177) -> 54 | CN178: =SUM(CN4:CN177) -> 61 | CO178: =SUM(CO4:CO177) -> 1 | CP178: =SUM(CP4:CP177) -> 70 | CQ178: =SUM(CQ4:CQ177) -> 54 | CR178: =SUM(CR4:CR177) -> 55 | CS178: =SUM(CS4:CS177) -> 1 | CT178: =SUM(CT4:CT177) -> 71 | CU178: =SUM(CU4:CU177) -> 47 | CV178: =SUM(CV4:CV177) -> 64 | CW178: =SUM(CW4:CW177) -> 0 | CX178: =SUM(CX4:CX177) -> 62 | CY178: =SUM(CY4:CY177) -> 50 | CZ178: =SUM(CZ4:CZ177) -> 72 | DA178: =SUM(DA4:DA177) -> 0 | DB178: =SUM(DB4:DB177) -> 36 | DC178: =SUM(DC4:DC177) -> 55 | DD178: =SUM(DD4:DD177) -> 84 | DE178: =SUM(DE4:DE177) -> 0 | DF178: =SUM(DF4:DF177) -> 36 | DG178: =SUM(DG4:DG177) -> 55 | DH178: =SUM(DH4:DH177) -> 84 | DI178: =SUM(DI4:DI177) -> 0 | DJ178: =SUM(DJ4:DJ177) -> 40 | DK178: =SUM(DK4:DK177) -> 55 | DL178: =SUM(DL4:DL177) -> 77 | DM178: =SUM(DM4:DM177) -> 0 | DN178: =SUM(DN4:DN177) -> 47 | DO178: =SUM(DO4:DO177) -> 56 | DP178: =SUM(DP4:DP177) -> 57 | DQ178: =SUM(DQ4:DQ177) -> 0 | DR178: =SUM(DR4:DR177) -> 54 | DS178: =SUM(DS4:DS177) -> 57 | DT178: =SUM(DT4:DT177) -> 51 | DU178: =SUM(DU4:DU177) -> 0 | DV178: =SUM(DV4:DV177) -> 74 | DW178: =SUM(DW4:DW177) -> 42 | DX178: =SUM(DX4:DX177) -> 1 | DY178: =SUM(DY4:DY177) -> 0 | DZ178: =F178+J178+N178+R178+V178+Z178+AD178+AH178+AL178+AP178+AT178+AX178+BB178+BF178+BJ178+BN178+BR178+BV178+BZ178+CD178+CH177+CL178+CP178+CT178+CX178+DB178+DF178+DJ178+DN178+DR178+DV178 -> 3240 | EA178: =G178+K178+O178+S178+W178+AA178+AE178+AI178+AM178+AQ178+AU178+AY178+BC178+BG178+BK178+BO178+BS178+BW178+CA178+CE178+CI177+CM178+CQ178+CU178+CY178+DC178+DG178+DK178+DO178+DS178+DW178 -> 1392 | EB178: =H178+L178+P178+T178+X178+AB178+AF178+AJ178+AN178+AR178+AV178+AZ178+BD178+BH178+BL178+BP178+BT178+BX178+CB178+CF178+CJ177+CN178+CR178+CV178+CZ178+DD178+DH178+DL178+DP178+DT178 -> 803 | EC178: =I178+M178+Q178+U178+Y178+AC178+AG178+AK178+AO178+AS178+AW178+BA178+BE178+BI178+BM178+BQ178+BU178+BY178+CC178+CG178+CK177+CO178+CS178+CW178+DA178+DE178+DI178+DM178+DQ178+DU178 -> 2
C326: SREE DENTAL HOSPITAL

Sheet Nirmal
A1: =Nizamabad!A1 -> JANUARY MONTH REPORT | F1: =Nizamabad!F1 -> 2022-01-01 | J1: =Nizamabad!J1 -> 2022-01-02 | N1: =Nizamabad!N1 -> 2022-01-03 | R1: =Nizamabad!R1 -> 2022-01-04 | V1: =Nizamabad!V1 -> 2022-01-05 | Z1: =Nizamabad!Z1 -> 2022-01-06 | AD1: =Nizamabad!AD1 -> 2022-01-07 | AH1: =Nizamabad!AH1 -> 2022-01-08 | AL1: =Nizamabad!AL1 -> 2022-01-09 | AP1: =Nizamabad!AP1 -> 2022-01-10 | AT1: =Nizamabad!AT1 -> 2022-01-11 | AX1: =Nizamabad!AX1 -> 2022-01-12 | BB1: =Nizamabad!BB1 -> 2022-01-13 | BF1: =Nizamabad!BF1 -> 2022-01-14 | BJ1: =Nizamabad!BJ1 -> 2022-01-15 | BN1: =Nizamabad!BN1 -> 2022-01-16 | BR1: =Nizamabad!BR1 -> 2022-01-17 | BV1: =Nizamabad!BV1 -> 2022-01-18 | BZ1: =Nizamabad!BZ1 -> 2022-01-19 | CD1: =Nizamabad!CD1 -> 2022-01-20 | CH1: =Nizamabad!CH1 -> 2022-01-21 | CL1: =Nizamabad!CL1 -> 2022-01-22 | CP1: =Nizamabad!CP1 -> 2022-01-23 | CT1: =Nizamabad!CT1 -> 2022-01-24 | CX1: =Nizamabad!CX1 -> 2022-01-25 | DB1: =Nizamabad!DB1 -> 2022-01-26 | DF1: =Nizamabad!DF1 -> 2022-01-27 | DJ1: =Nizamabad!DJ1 -> 2022-01-28 | DN1: =Nizamabad!DN1 -> 2022-01-29 | DR1: =Nizamabad!DR1 -> 2022-01-30 | DV1: =Nizamabad!DV1 -> 2022-01-31 | DZ1: TOTAL
A2: SNO | B2: HCF ID | C2: NAME OF THE HCF | D2: ADDRESS OF THE HCFS | E2: NO.OF BEDS | F2: Yellow | G2: Red | H2: Blue | I2: White | J2: Yellow | K2: Red | L2: Blue | M2: White | N2: Yellow | O2: Red | P2: Blue | Q2: White | R2: Yellow | S2: Red | T2: Blue | U2: White | V2: Yellow | W2: Red | X2: Blue | Y2: White | Z2: Yellow | AA2: Red | AB2: Blue | AC2: White | AD2: Yellow | AE2: Red | AF2: Blue | AG2: White | AH2: Yellow | AI2: Red | AJ2: Blue | AK2: White | AL2: Yellow | AM2: Red | AN2: Blue | AO2: White | AP2: Yellow | AQ2: Red | AR2: Blue | AS2: White | AT2: Yellow | AU2: Red | AV2: Blue | AW2: White | AX2: Yellow | AY2: Red | AZ2: Blue | BA2: White | BB2: Yellow | BC2: Red | BD2: Blue | BE2: White | BF2: Yellow | BG2: Red | BH2: Blue | BI2: White | BJ2: Yellow | BK2: Red | BL2: Blue | BM2: White | BN2: Yellow | BO2: Red | BP2: Blue | BQ2: White | BR2: Yellow | BS2: Red | BT2: Blue | BU2: White | BV2: Yellow | BW2: Red | BX2: Blue | BY2: White | BZ2: Yellow | CA2: Red | CB2: Blue | CC2: White | CD2: Yellow | CE2: Red | CF2: Blue | CG2: White | CH2: Yellow | CI2: Red | CJ2: Blue | CK2: White | CL2: Yellow | CM2: Red | CN2: Blue | CO2: White | CP2: Yellow | CQ2: Red | CR2: Blue | CS2: White | CT2: Yellow | CU2: Red | CV2: Blue | CW2: White | CX2: Yellow | CY2: Red | CZ2: Blue | DA2: White | DB2: Yellow | DC2: Red | DD2: Blue | DE2: White | DF2: Yellow | DG2: Red | DH2: Blue | DI2: White | DJ2: Yellow | DK2: Red | DL2: Blue | DM2: White | DN2: Yellow | DO2: Red | DP2: Blue | DQ2: White | DR2: Yellow | DS2: Red | DT2: Blue | DU2: White | DV2: Yellow | DW2: Red | DX2: Blue | DY2: White | DZ2: Yellow | EA2: Red | EB2: Blue | EC2: White
A3: 100 AND ABOVE BEDS HCFs
A4: 1 | B4: DISTR504106TSBH09389 | C4: DISTRICT HOSPITAL | D4: BUS STAND ROAD, NIRMAL | E4: 100 | F4: 3 | J4: 2 | N4: 3 | R4: 5 | V4: 1 | Z4: 2 | AE4: 3 | AI4: 2 | AM4: 2 | AQ4: 2 | AU4: 3 | AY4: 2 | BC4: 2 | BG4: 2 | BK4: 3 | BO4: 3 | BS4: 3 | BW4: 3 | CA4: 3 | CE4: 3 | CI4: 3 | CM4: 3 | CQ4: 3 | CU4: 3 | CY4: 4 | DC4: 4 | DG4: 4 | DK4: 4 | DO4: 3 | DS4: 3 | DW4: 5 | DZ4: =F4+J4+N4+R4+V4+Z4+AD4+AH4+AL4+AP4+AT4+AX4+BB4+BF4+BJ4+BN4+BR4+BV4+BZ4+CD4+CH4+CL4+CP4+CT4+CX4+DB4+DF4+DJ4+DN4+DR4+DV4 -> 16 | EA4: =G4+K4+O4+S4+W4+AA4+AE4+AI4+AM4+AQ4+AU4+AY4+BC4+BG4+BK4+BO4+BS4+BW4+CA4+CE4+CI4+CM4+CQ4+CU4+CY4+DC4+DG4+DK4+DO4+DS4+DW4 -> 75 | EB4: =H4+L4+P4+T4+X4+AB4+AF4+AJ4+AN4+AR4+AV4+AZ4+BD4+BH4+BL4+BP4+BT4+BX4+CB4+CF4+CJ4+CN4+CR4+CV4+CZ4+DD4+DH4+DL4+DP4+DT4 -> 0 | EC4: =I4+M4+Q4+U4+Y4+AC4+AG4+AK4+AO4+AS4+AW4+BA4+BE4+BI4+BM4+BQ4+BU4+BY4+CC4+CG4+CK4+CO4+CS4+CW4+DA4+DE4+DI4+DM4+DQ4+DU4+DY4 -> 0
A5: 2 | B5: GOVER504103TSBH10071 | C5: GOVT AREA HOSPITAL, BHAINSA | D5: MAIN ROAD, BHAINSA. | E5: 100 | F5: 3 | J5: 2 | N5: 2 | R5: 2 | V5: 3 | Z5: 2 | AD5: 2 | AH5: 3 | AL5: 2 | AP5: 3 | AU5: 3 | AY5: 3 | BB5: 2 | BF5: 3 | BK5: 2 | BO5: 2 | BS5: 2 | BV5: 5 | CA5: 3 | CI5: 4 | CM5: 4 | CQ5: 3 | CU5: 4 | CY5: 5 | DC5: 5 | DG5: 3 | DK5: 5 | DO5: 3 | DS5: 3 | DV5: 4 | DZ5: =F5+J5+N5+R5+V5+Z5+AD5+AH5+AL5+AP5+AT5+AX5+BB5+BF5+BJ5+BN5+BR5+BV5+BZ5+CD5+CH5+CL5+CP5+CT5+CX5+DB5+DF5+DJ5+DN5+DR5+DV5 -> 38 | EA5: =G5+K5+O5+S5+W5+AA5+AE5+AI5+AM5+AQ5+AU5+AY5+BC5+BG5+BK5+BO5+BS5+BW5+CA5+CE5+CI5+CM5+CQ5+CU5+CY5+DC5+DG5+DK5+DO5+DS5+DW5 -> 54 | EB5: =H5+L5+P5+T5+X5+AB5+AF5+AJ5+AN5+AR5+AV5+AZ5+BD5+BH5+BL5+BP5+BT5+BX5+CB5+CF5+CJ5+CN5+CR5+CV5+CZ5+DD5+DH5+DL5+DP5+DT5 -> 0 | EC5: 0
A6: BELOW 100 BEDS HCFs
A7: NIRMAL
A8: 1 | B8: DEVEN504105TSBH08850 | C8: THIRUMALA SUPER SPECIALITY HOSPITAL, NIZAMABAD | D8: OPP: MAREMMA TEMPLE, KHANAPUR ROAD, NIRMAL | E8: 50 | F8: 2 | J8: 2 | O8: 2 | S8: 2 | W8: 2 | AA8: 2 | AE8: 3 | AI8: 2 | AM8: 2 | AQ8: 2 | AT8: 2 | AX8: 2 | BC8: 2 | BG8: 2 | BJ8: 1 | BN8: 1 | BR8: 2 | BX8: 2 | BZ8: 2 | CD8: 2 | CH8: 2 | CL8: 2 | CP8: 2 | CX8: 2 | DC8: 3 | DG8: 2 | DK8: 2 | DN8: 2 | DR8: 2 | DV8: 2 | DZ8: 30 | EA8: 28 | EB8: 2 | EC8: =I8+M8+Q8+U8+Y8+AC8+AG8+AK8+AO8+AS8+AW8+BA8+BE8+BI8+BM8+BQ8+BU8+BY8+CC8+CG8+CK8+CO8+CS8+CW8+DA8+DE8+DI8+DM8+DQ8+DU8+DY8 -> 0
A9: 2 | B9: PRASH504106TSBH01038 | C9: PRASHANTH'S G.K HOSPITAL | D9: DR. PRASHANTH, D.NO. 5-7-100/2, DOCTORS LANE, NEAR BUS STAND, NIRMAL | E9: 50 | F9: 2 | J9: 2 | N9: 3 | R9: 2 | V9: 2 | Z9: 2 | AD9: 2 | AH9: 2 | AL9: 2 | AP9: 2 | AT9: 2 | AX9: 2 | BB9: 2 | BF9: 2 | BJ9: 2 | BN9: 2 | BR9: 2 | BV9: 2 | CA9: 2 | CE9: 2 | CI9: 2 | CL9: 3 | CP9: 3 | CX9: 3 | DO9: 2 | DS9: 2 | DV9: 3 | DZ9: 49 | EA9: 10 | EB9: 0 | EC9: 0
A10: 3 | B10: SRIAD504106TSBH00924 | C10: SRI ADITYA MULTI SPECIALITY HOSPITAL | D10: Dr. T. PRAMOD CHANDRA REDDY,MANCHIRAL ROAD, SHASTHRI NAGAR, NIRMAL | E10: 50 | G10: 2 | K10: 2 | N10: 2 | R10: 2 | V10: 2 | Z10: 2 | AE10: 2 | AI10: 2 | AM10: 2 | AQ10: 2 | AT10: 2 | AX10: 2 | BC10: 2 | BG10: 2 | BJ10: 2 | BN10: 2 | BR10: 2 | BW10: 3 | BZ10: 2 | CD10: 2 | CH10: 2 | CL10: 3 | CP10: 3 | CU10: 3 | CX10: 3 | DC10: 5 | DG10: 4 | DK10: 3 | DN10: 2 | DR10: 2 | DV10: 3 | DZ10: 40 | EA10: 34 | EB10: 0 | EC10: 0
A11: 4 | B11: SUJAL504106TSBH00860 | C11: SUJALA NURSING HOME | D11: Dr. SUJALA,SUJALA NAGAR, MINI TANK BUND ROAD, NIRMAL. | E11: 50 | F11: 1 | J11: 1 | N11: 2 | R11: 2 | V11: 2 | Z11: 1 | AD11: 1 | AH11: 1 | AL11: 1 | AP11: 2 | AU11: 2 | AY11: 2 | BB11: 1 | BF11: 2 | BK11: 2 | BO11: 2 | BS11: 2 | BV11: 2 | CA11: 2 | CE11: 2 | CI11: 2 | CU11: 2 | CY11: 2 | DC11: 3 | DG11: 2 | DK11: 2 | DO11: 2 | DS11: 2 | DV11: 2 | DZ11: 21 | EA11: 31 | EB11: 0 | EC11: 0
A12: 5 | B12: SURYA504106TSBH00987 | C12: SURYA MULTI SPECIALITY HOSPITAL | D12: Dr RAMCHANDRA REDDY, H.NO. 1-3-13, PLOT NO.2, MNCL X ROAD, NIRMAL | E12: 50 | G12: 2 | K12: 2 | O12: 3 | S12: 3 | W12: 3 | AA12: 2 | AD12: 2 | AH12: 2 | AL12: 2 | AP12: 2 | AT12: 2 | AX12: 2 | BB12: 2 | BG12: 2 | BJ12: 1 | BN12: 1 | BR12: 2 | BV12: 3 | BZ12: 2 | CD12: 2 | CH12: 1 | CL12: 2 | CP12: 2 | CT12: 2 | CX12: 2 | DB12: 2 | DF12: 2 | DJ12: 1 | DN12: 2 | DR12: 2 | DY12: 1 | DZ12: 43 | EA12: 17 | EB12: 0 | EC12: 1
A13: 6 | B13: TIRUM504106TSBH00945 | C13: TIRUMALA NURSING HOME | D13: DR.M. RAMESH REDDY, DOCTORS LANE,BESIDE THIRUMALA THAKIES, NRMLAL | E13: 50 | G13: 2 | K13: 2 | N13: 2 | R13: 2 | V13: 2 | Z13: 1 | AD13: 2 | AH13: 2 | AL13: 2 | AP13: 2 | AU13: 2 | AY13: 1 | BB13: 2 | BF13: 1 | BK13: 1 | BO13: 1 | BS13: 2 | BV13: 2 | CA13: 2 | CE13: 2 | CI13: 2 | CM13: 2 | CQ13: 2 | CT13: 2 | CY13: 2 | DB13: 2 | DF13: 2 | DJ13: 1 | DO13: 2 | DS13: 2 | DW13: 1 | DZ13: 27 | EA13: 28 | EB13: 0 | EC13: 0
A14: 7 | B14: SWARN504106TSBH10074 | C14: SWARNA HOSPITAL | D14: Dr. A. SUVARNA REDDY, BEHIND CANARA BANK, BHEEM REDDY COMPLEX, N.H. 7 ROAD, NIRMAL. | E14: 30 | F14: 2 | J14: 2 | N14: 2 | R14: 2 | V14: 2 | Z14: 2 | AE14: 2 | AI14: 2 | AM14: 2 | AQ14: 3 | AU14: 3 | AY14: 3 | BC14: 2 | BF14: 2 | BK14: 3 | BO14: 2 | BS14: 2 | BW14: 3 | CA14: 3 | CE14: 3 | CI14: 5 | CM14: 3 | CQ14: 3 | CU14: 3 | CY14: 4 | DC14: 3 | DG14: 3 | DK14: 3 | DO14: 3 | DS14: 3 | DV14: 3 | DZ14: 17 | EA14: 66 | EB14: 0 | EC14: 0
A15: 8 | B15: KAVER504105TSBH00916 | C15: KAVERI CHILDRENS HOSPITAL | D15: DR. CHAKRADHAR, NEAR TIRUMALA THEATRE, OPP: RTO OFFICE,KAVERI NAGAR, NIRMAL,Nirmal,Nirmal (Urban),NIRMAL,504105 | E15: 25 | DZ15: 0 | EA15: 0 | EB15: 0 | EC15: 0
A16: 9 | B16: SRILA504106TSBH09723 | C16: SRI LAXMI CHAITANYA HOSPITAL | D16: Dr. A. CHAITANYA,ANBADI NARSIMLU COMPLEX, DOCTOR'S LANE, NIRMAL. | E16: 24 | G16: 3 | K16: 2 | O16: 3 | S16: 3 | W16: 3 | AA16: 2 | AE16: 3 | AI16: 3 | AM16: 3 | AQ16: 3 | AT16: 3 | AX16: 3 | BB16: 3 | BG16: 3 | BJ16: 3 | BN16: 2 | BR16: 3 | BW16: 4 | CA16: 3 | CE16: 3 | CI16: 5 | CM16: 2 | CQ16: 2 | CT16: 3 | CY16: 4 | DB16: 4 | DF16: 2 | DJ16: 3 | DO16: 3 | DS16: 3 | DW16: 3 | DZ16: 29 | EA16: 63 | EB16: 0 | EC16: 0
A17: 10 | B17: MRMUL504106TSBH08455 | C17: MR MULTI SPECIALITY HOSPITAL | D17: Nirmal(V) Nirmal (Urban)(M) NIRMAL(D) Telangana-504106 | E17: 20 | F17: 1 | J17: 1 | N17: 1 | R17: 2 | V17: 1 | Z17: 1 | AE17: 1 | AI17: 1 | AM17: 1 | AQ17: 1 | AT17: 1 | AX17: 1 | BC17: 2 | BG17: 1 | BJ17: 1 | BN17: 1 | BR17: 2 | BW17: 1 | CA17: 2 | CE17: 1 | CI17: 1 | CM17: 2 | CQ17: 2 | CU17: 2 | CY17: 1 | DC17: 2 | DG17: 2 | DK17: 1 | DO17: 2 | DS17: 2 | DZ17: 13 | EA17: 28 | EB17: 0 | EC17: 0
A18: 11 | B18: N.B.R504106TSBH09720 | C18: N.B.R MULTI SPECIALITY HOSPITAL | D18: Dr. U. SHOBHA SUBHASH RAO,OPP. BUS DEPOT,NIRMAL | E18: 20 | F18: 1 | J18: 1 | O18: 1 | S18: 2 | W18: 1 | AA18: 2 | AD18: 1 | AH18: 1 | AL18: 1 | AP18: 1 | AU18: 1 | AY18: 2 | BB18: 1 | BF18: 1 | BK18: 2 | BO18: 2 | BS18: 1 | BV18: 1 | CA18: 2 | CE18: 1 | CI18: 2 | CM18: 2 | CQ18: 2 | CU18: 2 | CY18: 2 | DC18: 3 | DG18: 2 | DK18: 2 | DO18: 2 | DS18: 2 | DV18: 1 | DZ18: 10 | EA18: 38 | EB18: 0 | EC18: 0
A19: 12 | B19: RAVIM504106TSBH10075 | C19: RAVI MULTI SPECELITY HOSPITAL | D19: BEHIND PF OFFICE, DOCTORS LANE, OLD NH7 ROAD, NIRMAL | E19: 20 | F19: 1 | J19: 1 | O19: 2 | S19: 2 | W19: 2 | AA19: 2 | AD19: 1 | AH19: 1 | AL19: 1 | AP19: 1 | AT19: 1 | AX19: 1 | BB19: 1 | BF19: 1 | BJ19: 1 | BN19: 1 | BR19: 1 | BV19: 2 | CA19: 1 | CE19: 2 | CH19: 1 | CM19: 2 | CQ19: 2 | CU19: 2 | CY19: 2 | DC19: 2 | DG19: 2 | DK19: 2 | DO19: 1 | DS19: 1 | DV19: 1 | DZ19: 17 | EA19: 27 | EB19: 0 | EC19: 0
A20: 13 | B20: DEVIB504106TSBH10076 | C20: DEVI BAI HOSPITAL | D20: BESIDE SAROJA HOSPITAL, OLD NH7 ROAD, NIRMAL | E20: 15 | F20: 1 | J20: 1 | O20: 2 | S20: 2 | W20: 2 | AA20: 2 | AE20: 2 | AI20: 1 | AM20: 1 | AQ20: 2 | AU20: 2 | AY20: 2 | BC20: 2 | BG20: 2 | BK20: 2 | BO20: 2 | BS20: 2 | BW20: 3 | CA20: 3 | CE20: 2 | CI20: 2 | CM20: 2 | CQ20: 2 | CU20: 2 | CY20: 3 | DC20: 3 | DG20: 3 | DK20: 2 | DO20: 3 | DS20: 3 | DV20: 2 | DZ20: 4 | EA20: 61 | EB20: 0 | EC20: 0
A21: 14 | B21: PADMI504106TSBH00886 | C21: PADMINI HOSPITAL | D21: Dr. U. RAMAKRISHNA,OPP.RURAL POLICE STATION, N.H. 7 NIRMAL. | E21: 15 | F21: 2 | J21: 2 | N21: 3 | R21: 3 | V21: 3 | Z21: 2 | AE21: 3 | AI21: 3 | AM21: 2 | AQ21: 3 | AT21: 3 | AX21: 1 | BC21: 2 | BG21: 3 | BJ21: 3 | BN21: 3 | BR21: 3 | BW21: 3 | BZ21: 3 | CD21: 3 | CI21: 1 | CL21: 3 | CP21: 3 | CU21: 3 | CX21: 3 | DC21: 3 | DG21: 3 | DK21: 3 | DO21: 3 | DS21: 1 | DV21: 3 | DZ21: 46 | EA21: 36 | EB21: 0 | EC21: 0
A22: 15 | B22: SAIBA504106TSBH00862 | C22: SAI BALAJI HOSPITAL | D22: BESIDE THIRUMALA THEATRE, NIRMAL | E22: 15 | G22: 2 | K22: 2 | N22: 2 | R22: 2 | V22: 2 | Z22: 2 | AE22: 3 | AI22: 3 | AM22: 2 | AQ22: 3 | AU22: 3 | AY22: 3 | BC22: 2 | BG22: 3 | BJ22: 3 | BN22: 3 | BR22: 1 | BW22: 3 | CA22: 2 | CE22: 2 | CI22: 2 | CM22: 3 | CQ22: 3 | CU22: 3 | CY22: 3 | DC22: 3 | DG22: 3 | DK22: 4 | DO22: 2 | DS22: 2 | DW22: 3 | DZ22: 15 | EA22: 64 | EB22: 0 | EC22: 0
A23: 16 | B23: ANRPR504106TSBH10077 | C23: ANR PRAGATHI HOSPITAL | D23: BESIDE BUS STAND, PRIYADHARSHINI NAGAR, NIRMAL | E23: 15 | F23: 1 | J23: 1 | N23: 2 | R23: 1 | V23: 1 | Z23: 1 | AD23: 1 | AH23: 1 | AL23: 1 | AP23: 1 | AT23: 2 | AX23: 1 | BB23: 1 | BF23: 1 | BJ23: 1 | BN23: 1 | BR23: 2 | BV23: 1 | CA23: 2 | CE23: 2 | CI23: 1 | CM23: 2 | CQ23: 2 | CU23: 1 | CY23: 1 | DC23: 1 | DG23: 2 | DK23: 1 | DO23: 2 | DS23: 2 | DV23: 1 | DZ23: 22 | EA23: 19 | EB23: 0 | EC23: 0
A24: 17 | B24: BALAJ504106TSBH10078 | C24: BALAJI MULTI SPECIALITY HOSPITAL | D24: BESIDE G.K. HOSPITAL, NEAR SRI LAXMI CHAITANYA HOSPITAL, OLD NH7 ROAD, NIRMAL | E24: 15 | F24: 2 | J24: 2 | O24: 2 | S24: 2 | W24: 2 | AA24: 2 | AD24: 2 | AH24: 2 | AL24: 2 | AP24: 2 | AU24: 2 | AX24: 2 | BB24: 1 | BF24: 2 | BK24: 2 | BO24: 2 | BS24: 3 | BV24: 2 | CA24: 3 | CE24: 2 | CI24: 2 | CM24: 2 | CQ24: 2 | CU24: 2 | CY24: 2 | DC24: 2 | DG24: 2 | DK24: 2 | DO24: 3 | DS24: 2 | DV24: 2 | DZ24: 21 | EA24: 43 | EB24: 0 | EC24: 0
A25: 18 | B25: SRICH504106TSBH10079 | C25: SRI CHANDANA HOSPITAL | D25: Dr. B. MOHAN MURTHI, NEAR NEW BUS STAND, DHARMASAGAR LANE, NIRMAL. | E25: 15 | F25: 2 | J25: 2 | N25: 2 | R25: 2 | V25: 2 | Z25: 1 | AD25: 1 | AH25: 2 | AL25: 2 | AP25: 1 | AU25: 2 | AY25: 2 | BB25: 2 | BF25: 2 | BK25: 2 | BO25: 2 | BS25: 2 | BV25: 2 | CA25: 2 | CE25: 2 | CI25: 2 | CM25: 3 | CQ25: 3 | CU25: 2 | CY25: 2 | DB25: 2 | DF25: 2 | DK25: 2 | DO25: 2 | DS25: 2 | DW25: 1 | DZ25: 27 | EA25: 33 | EB25: 0 | EC25: 0
A26: 19 | B26: SRIVI504710TSBH00863 | C26: SRI VIDYA HOSPITAL | D26: BESIDE COMMUNIST STUPAM,NIRMAL | E26: 15 | G26: 2 | K26: 2 | N26: 2 | R26: 3 | V26: 2 | Z26: 2 | AD26: 2 | AH26: 2 | AL26: 2 | AU26: 2 | AY26: 1 | BB26: 2 | BF26: 1 | BJ26: 2 | BN26: 2 | BS26: 1 | BV26: 3 | CA26: 3 | CE26: 3 | CI26: 3 | CM26: 2 | CQ26: 2 | CU26: 3 | CY26: 3 | DC26: 3 | DG26: 2 | DK26: 2 | DO26: 3 | DS26: 2 | DY26: 3 | DZ26: 25 | EA26: 39 | EB26: 0 | EC26: 3
A27: 20 | B27: SRILA504106TSBH09719 | C27: SRI LALITHA NURSING HOME | D27: Dr. D. RAJANI, NEAR BUS STAND, PRIYADERSHNI NAGAR, NIRMAL. | E27: 12 | F27: 1 | J27: 1 | N27: 2 | R27: 1 | V27: 1 | Z27: 1 | AE27: 1 | AI27: 1 | AM27: 1 | AQ27: 1 | AT27: 2 | AX27: 1 | BC27: 2 | BG27: 2 | BJ27: 2 | BN27: 2 | BR27: 2 | BW27: 2 | CA27: 3 | CE27: 2 | CI27: 2 | CM27: 2 | CQ27: 2 | CU27: 3 | CY27: 2 | DC27: 2 | DG27: 2 | DK27: 2 | DO27: 3 | DS27: 2 | DW27: 3 | DZ27: 16 | EA27: 40 | EB27: 0 | EC27: 0
A28: 21 | C28: SRI MAHALAXMI HOSPITAL | D28: DOCTORS LANE, NIRMAL | E28: 12 | DZ28: 0 | EA28: 0 | EB28: 0 | EC28: 0
A29: 22 | B29: GKHOS504106TSBH10142 | C29: G K HOSPITAL | D29: Dr. G. KISHAN, # 6-1-1, CHINTAKUNTAWADA, BUDHWARPET ROAD, NEAR S.B.I, NIRMAL-504106. | E29: 11 | F29: 2 | J29: 2 | O29: 2 | S29: 2 | W29: 2 | AA29: 2 | AE29: 2 | AI29: 2 | AM29: 2 | AQ29: 2 | AU29: 2 | AY29: 1 | BC29: 2 | BG29: 2 | BK29: 2 | BO29: 2 | BS29: 2 | BW29: 2 | CA29: 2 | CE29: 2 | CI29: 2 | CM29: 2 | CQ29: 2 | CU29: 3 | CY29: 3 | DC29: 3 | DG29: 3 | DK29: 2 | DO29: 2 | DS29: 2 | DV29: 3 | DZ29: 7 | EA29: 59 | EB29: 0 | EC29: 0
A30: 23 | B30: CITYN504106TSBH07057 | C30: CITY NURSING HOME | D30: Dr. AYSHA PARVEEN,OLD BUS STAND ROAD, NIRMAL-504106. | E30: 10 | G30: 1 | K30: 1 | N30: 2 | R30: 2 | V30: 2 | Z30: 2 | AD30: 2 | AH30: 1 | AL30: 1 | AP30: 2 | AU30: 2 | AY30: 2 | BB30: 2 | BF30: 1 | BJ30: 1 | BN30: 1 | BR30: 1 | BV30: 2 | CA30: 3 | CE30: 2 | CI30: 1 | CM30: 2 | CQ30: 2 | CU30: 2 | CY30: 3 | DC30: 2 | DG30: 2 | DK30: 2 | DO30: 3 | DS30: 2 | DV30: 2 | DZ30: 24 | EA30: 32 | EB30: 0 | EC30: 0
A31: 24 | B31: GAUTH504106TSBH06151 | C31: GAUTHAM NURSING HOME | D31: DR.P.VIJAYA KUMAR REDDY, BESIDE THIRUMALA TALKIES,NIRMAL-504106. | E31: 10 | F31: 2 | J31: 2 | N31: 1 | R31: 1 | V31: 1 | Z31: 2 | AE31: 1 | AI31: 1 | AM31: 1 | AQ31: 1 | AT31: 1 | AX31: 1 | BC31: 2 | BG31: 2 | BJ31: 1 | BN31: 1 | BR31: 1 | BW31: 1 | BZ31: 1 | CE31: 2 | CH31: 1 | CM31: 2 | CQ31: 2 | CU31: 2 | CY31: 1 | DC31: 1 | DG31: 1 | DK31: 2 | DN31: 1 | DR31: 1 | DW31: 2 | DZ31: 18 | EA31: 24 | EB31: 0 | EC31: 0
A32: 25 | B32: KALPA504106TSBH00901 | C32: KALPANA MULTI SPECIALITY HOSPITAL NIRMAL | D32: Dr. R. MUKHESH,DHARMASAGAR LAKE, AMBADI NARSIMLU COMPELX, NIRMAL. | E32: 10 | G32: 2 | K32: 2 | O32: 2 | S32: 2 | W32: 2 | AA32: 1 | AD32: 1 | AH32: 2 | AL32: 2 | AP32: 2 | AT32: 2 | AX32: 1 | BB32: 1 | BF32: 1 | BJ32: 1 | BN32: 1 | BR32: 1 | BW32: 1 | BZ32: 1 | CD32: 2 | CH32: 2 | CL32: 2 | CP32: 2 | CT32: 2 | CX32: 2 | DB32: 2 | DF32: 1 | DJ32: 1 | DN32: 1 | DR32: 1 | DW32: 2 | DZ32: 34 | EA32: 14 | EB32: 0 | EC32: 0
A33: 26 | C33: KALYANI HOSPITAL | D33: DOCTORS LANE, NIRMAL | E33: 10 | DZ33: 0 | EA33: 0 | EB33: 0 | EC33: 0
A34: 27 | B34: KANIK504106TSBH00892 | C34: KANIKA KIDNEY CARE CENTRE | D34: H.NO 5-6-7/10, DOCTORS LANE, OPP: THIRUMALA THEATORE, NIRMAL | E34: 10 | G34: 2 | K34: 2 | P34: 2 | X34: 2 | AD34: 1 | AH34: 2 | AL34: 2 | AP34: 1 | AT34: 2 | AY34: 1 | BB34: 1 | BF34: 1 | BJ34: 1 | BN34: 1 | BR34: 1 | BV34: 2 | BZ34: 1 | CD34: 2 | CH34: 2 | CL34: 2 | CP34: 2 | CT34: 2 | CX34: 2 | DB34: 2 | DF34: 2 | DJ34: 1 | DN34: 1 | DR34: 1 | DW34: 2 | DZ34: 35 | EA34: 7 | EB34: 4 | EC34: 0
A35: 28 | B35: NIRMA504106TSBH00927 | C35: NIRMAL NURSING HOME | D35: Dr.DAMERA RAMULU OPP.TIRUMALA THEATRE,NIRMAL | E35: 10 | F35: 1 | J35: 1 | O35: 2 | S35: 2 | W35: 2 | AA35: 2 | AD35: 1 | AH35: 2 | AL35: 2 | AP35: 1 | AU35: 2 | AX35: 1 | BB35: 2 | BF35: 2 | BK35: 2 | BO35: 2 | BS35: 2 | BV35: 2 | CA35: 2 | CE35: 2 | CI35: 2 | CM35: 1 | CQ35: 1 | CU35: 2 | CY35: 3 | DC35: 2 | DG35: 2 | DK35: 2 | DO35: 2 | DS35: 2 | DV35: 1 | DZ35: 16 | EA35: 39 | EB35: 0 | EC35: 0
A36: 29 | C36: NIRMAL SAI NURSING HOME | D36: Dr. J. DHOOM SINGH,DOCTORS LANE, NEAR THIRUMALA TALKIS, NIRMAL. | E36: 10 | DZ36: 0 | EA36: 0 | EB36: 0 | EC36: 0
A37: 30 | C37: SAI RAM NURSING HOME | D37: Dr. P. HANMANTH REDDY,BESIDE THIRUMALA TALKIES, NIRMAL.-504106 | E37: 10 | DZ37: 0 | EA37: 0 | EB37: 0 | EC37: 0
A38: 31 | C38: SANJEEVANI HOSPITAL | D38: Dr. V. SRINIVASA REDDY,OPP. THIRUMALA TALKIES, DOCTORS LANE, N.H. 7 ROAD, NIRMAL. | E38: 10 | DZ38: 0 | EA38: 0 | EB38: 0 | EC38: 0
A39: 32 | B39: SAROJ504106TSBH08458 | C39: SAROJA MATERNITY & TRAUMA CARE CENTRE | D39: Dr. A. RAMANA GOUD,BESIDE TRA OFFICE, N.H.-7 ROAD, NIRMAL. | E39: 10 | F39: 2 | J39: 2 | N39: 2 | R39: 2 | W39: 2 | Z39: 2 | AE39: 2 | AI39: 3 | AM39: 3 | AQ39: 2 | AU39: 2 | AY39: 2 | BC39: 2 | BG39: 2 | BK39: 2 | BO39: 2 | BS39: 1 | BW39: 3 | CA39: 3 | CE39: 3 | CI39: 4 | CM39: 3 | CQ39: 2 | CU39: 3 | CY39: 3 | DC39: 3 | DG39: 3 | DK39: 3 | DO39: 3 | DS39: 2 | DV39: 2 | DZ39: 12 | EA39: 63 | EB39: 0 | EC39: 0
A40: 33 | B40: SRIVE504106TSBH07087 | C40: SRI VENKATESHWARA HOSPITAL | D40: Dr. M. DAMODAR REDDY,BESIDE THIRUMALA TALKIES, NIRMAL.-504106. | E40: 10 | F40: 1 | J40: 1 | O40: 2 | S40: 3 | W40: 2 | AA40: 2 | AD40: 2 | AH40: 2 | AL40: 2 | AP40: 2 | AT40: 2 | AX40: 2 | BB40: 2 | BF40: 2 | BJ40: 2 | BN40: 2 | BS40: 2 | BV40: 3 | CA40: 2 | CE40: 2 | CI40: 2 | CM40: 3 | CQ40: 2 | CU40: 3 | CY40: 3 | DB40: 3 | DF40: 2 | DK40: 2 | DO40: 2 | DS40: 2 | DW40: 3 | DZ40: 30 | EA40: 37 | EB40: 0 | EC40: 0
A41: 34 | C41: SUSHRUTA CHILDRENS HOSPITAL | D41: Dr. K. MURALIDHAR, DOCTORS LANE, NIRMAL-504106. | E41: 10 | DZ41: 0 | EA41: 0 | EB41: 0 | EC41: 0
A42: 35 | C42: SVR CHILDRENS HOSPITAL | D42: Dr. C. SANTOSH RAJ,GANESH SAMEEL COMPLEX, NEAR THIRUMALA TALKIS, NIRMAL. | E42: 10 | DZ42: 0 | EA42: 0 | EB42: 0 | EC42: 0
A43: 36 | C43: VEDA CHILDREN'S HOSPITAL | D43: DOCTORS LANE, NIRMAL | E43: 10 | G43: 2 | K43: 2 | O43: 2 | S43: 1 | W43: 2 | AA43: 1 | AD43: 1 | AH43: 1 | AL43: 1 | AP43: 1 | AT43: 1 | AX43: 1 | BB43: 1 | BF43: 1 | BJ43: 1 | BN43: 1 | BR43: 2 | BV43: 1 | BZ43: 2 | CD43: 1 | CH43: 2 | CL43: 2 | CP43: 2 | CT43: 2 | CX43: 2 | DB43: 2 | DG43: 2 | DJ43: 1 | DN43: 2 | DR43: 2 | DW43: 2 | DZ43: 33 | EA43: 14 | EB43: 0 | EC43: 0
A44: 37 | B44: VIJAY504106TSBH09721 | C44: VIJAYA HOSPITAL | D44: Dr. K. RAGHUNANDAN REDDY, DOCTORS LANE, BESIDE THIRUMALA THEATRE, NIRMAL.-504106. | E44: 10 | F44: 2 | J44: 2 | O44: 2 | S44: 1 | W44: 2 | AA44: 2 | AD44: 2 | AH44: 2 | AL44: 2 | AP44: 2 | AU44: 2 | AY44: 2 | BB44: 2 | BF44: 2 | BK44: 2 | BO44: 2 | BS44: 2 | BV44: 1 | BZ44: 2 | CD44: 3 | CH44: 2 | CL44: 2 | CP44: 2 | CU44: 3 | CX44: 2 | DC44: 2 | DG44: 3 | DJ44: 1 | DN44: 2 | DR44: 2 | DV44: 3 | DZ44: 38 | EA44: 25 | EB44: 0 | EC44: 0
A45: 38 | B45: SRICH504106TSBH08478 | C45: SRI CHANDRA CHILDRENS & NEONATAL HOSPITAL | D45: Dr. G. RAMESH,OPP. TIRUMALA TALKIS , N.H. 7 , NIRMAL | E45: 10 | G45: 2 | K45: 2 | O45: 2 | R45: 2 | V45: 1 | Z45: 1 | AD45: 2 | AH45: 1 | AL45: 1 | AP45: 2 | AT45: 2 | AX45: 2 | BB45: 1 | BF45: 2 | BJ45: 1 | BN45: 1 | BR45: 2 | BV45: 2 | BZ45: 1 | CD45: 2 | CH45: 1 | CL45: 2 | CP45: 2 | CT45: 2 | CX45: 3 | DB45: 2 | DF45: 2 | DJ45: 2 | DN45: 1 | DR45: 1 | DV45: 2 | DZ45: 46 | EA45: 6 | EB45: 0 | EC45: 0
A46: 39 | C46: SRI DSK MULTISPECIALITY & MATERNITY HOSPITAL | D46: NIRMAL | E46: 9 | DZ46: 0 | EA46: 0 | EB46: 0 | EC46: 0
A47: 40 | B47: SRIKA504106TSBH09757 | C47: SRIKANTA HOSPITAL | D47: DR. CH. MOGULESHM H.NO.5-7-10/F-5, DOCTORS LANE, NEAR THIRUMALA TALKIES, OLD NH ROAD, NIRMAL. | E47: 9 | F47: 1 | J47: 1 | O47: 2 | S47: 2 | W47: 1 | AA47: 2 | AD47: 2 | AH47: 2 | AL47: 2 | AP47: 2 | AU47: 2 | AY47: 2 | BB47: 2 | BF47: 2 | BK47: 2 | BO47: 2 | BS47: 1 | BV47: 2 | CA47: 1 | CE47: 2 | CI47: 2 | CM47: 2 | CQ47: 2 | CT47: 2 | CY47: 2 | DD47: 2 | DH47: 2 | DJ47: 1 | DO47: 1 | DS47: 1 | DW47: 2 | DZ47: 19 | EA47: 31 | EB47: 4 | EC47: 0
A48: 41 | C48: SURAKSHA HOSPITAL | D48: H.NO. 5-9-68/5/1, DOCTORS LANE, NIRMAL | E48: 9 | DZ48: 0 | EA48: 0 | EB48: 0 | EC48: 0
A49: 42 | C49: TEJA HOSPITAL | D49: DOCTORS LANE, NIRMAL | E49: 9 | DZ49: 0 | EA49: 0 | EB49: 0 | EC49: 0
A50: 43 | B50: SRIKR504106TSBH07079 | C50: SRI KRISHNA NEURO SUPER SPECIALITY HOSPITAL | D50: TIRUMALA THEATOR ROAD,NIRMAL | E50: 8 | F50: 1 | J50: 1 | N50: 1 | R50: 2 | V50: 2 | Z50: 2 | AE50: 2 | AI50: 2 | AM50: 2 | AQ50: 2 | AT50: 1 | AX50: 1 | BC50: 2 | BG50: 2 | BJ50: 2 | BN50: 2 | BR50: 1 | BW50: 2 | CA50: 3 | CE50: 2 | CI50: 2 | CM50: 3 | CQ50: 2 | CT50: 2 | CY50: 3 | DB50: 2 | DF50: 2 | DJ50: 1 | DO50: 3 | DS50: 2 | DW50: 2 | DZ50: 23 | EA50: 36 | EB50: 0 | EC50: 0
A51: 44 | B51: PRIMA504404TSBH09758 | C51: PRIMARY HEALTHCARE CENTRE, NARSAPUR | D51: VILLAGE: NARSAPUR, NIRMAL | E51: 6 | N51: 2 | V51: 1 | Z51: 1 | AD51: 1 | AH51: 1 | AL51: 1 | AP51: 1 | AT51: 1 | AX51: 2 | BB51: 1 | BF51: 1 | BJ51: 1 | BN51: 1 | BR51: 2 | BV51: 1 | BZ51: 2 | CD51: 2 | CL51: 2 | CP51: 2 | CU51: 3 | CX51: 3 | DC51: 3 | DG51: 4 | DJ51: 1 | DN51: 2 | DR51: 2 | DV51: 2 | DZ51: 36 | EA51: 10 | EB51: 0 | EC51: 0
A52: 45 | B52: PHCSO504105TSBH01028 | C52: PRIMARY HEALTHCARE CENTRE, SOAN | D52: NEAR SOAN POLICE STATION, Soan, NIRMAL,504105 | E52: 6 | F52: 1 | J52: 1 | N52: 1 | R52: 1 | V52: 2 | Z52: 1 | AE52: 2 | AI52: 2 | AM52: 2 | AQ52: 2 | AU52: 2 | AY52: 2 | BC52: 2 | BG52: 2 | BJ52: 1 | BN52: 1 | BS52: 1 | BW52: 2 | CA52: 2 | CE52: 2 | CI52: 3 | CM52: 2 | CQ52: 2 | CU52: 3 | CY52: 2 | DC52: 3 | DG52: 3 | DK52: 3 | DO52: 2 | DS52: 2 | DV52: 2 | DZ52: 11 | EA52: 48 | EB52: 0 | EC52: 0
A53: 46 | C53: SRI KRISHNA CHILDRENS HOSP | D53: Dr. P. SANTOSH,OPP.AMBDHATAR STATUE,NIRMAL. | E53: 6 | DZ53: 0 | EA53: 0 | EB53: 0 | EC53: 0
A54: 47 | B54: OMSAI504106TSBH08456 | C54: OM SAI ENT HOSPITAL | D54: Dr.DEVDAS,NH-7 ROAD,NIRMAL | E54: 5 | G54: 2 | K54: 2 | O54: 2 | S54: 2 | W54: 2 | AA54: 2 | AE54: 2 | AH54: 2 | AL54: 2 | AP54: 1 | AT54: 2 | AX54: 2 | BB54: 1 | BF54: 1 | BR54: 1 | BV54: 2 | BZ54: 2 | CD54: 2 | CH54: 2 | CL54: 2 | CP54: 2 | CT54: 2 | CX54: 2 | DB54: 1 | DF54: 2 | DJ54: 2 | DN54: 2 | DR54: 2 | DW54: 2 | DZ54: 37 | EA54: 16 | EB54: 0 | EC54: 0
A55: 48 | B55: SRISA504106TSBH09722 | C55: SRI SAI ENT HOSPITAL | D55: Dr. S. SUNIL, 5-7-10/37/H3, Doctors lane, beside Thirumala Theater, Nirmal, Telangana 504106 | E55: 4 | F55: 2 | J55: 2 | O55: 2 | S55: 2 | W55: 2 | AA55: 2 | AD55: 1 | AH55: 2 | AL55: 2 | AP55: 2 | AU55: 2 | AY55: 1 | BB55: 1 | BF55: 1 | BK55: 1 | BO55: 1 | BS55: 2 | BV55: 1 | CA55: 2 | CE55: 2 | CI55: 1 | CM55: 2 | CQ55: 2 | CU55: 2 | CY55: 2 | DC55: 2 | DF55: 2 | DK55: 1 | DO55: 2 | DS55: 2 | DW55: 2 | DZ55: 16 | EA55: 37 | EB55: 0 | EC55: 0
A56: 49 | B56: SHIVA504106TSBH00894 | C56: SHIVA SAI MULTI SPECIALIITY DENTAL CLINIC | D56: DOCTORS LANE, NIRMAL | E56: 3 | G56: 2 | K56: 2 | N56: 1 | R56: 1 | V56: 1 | Z56: 2 | AD56: 1 | AH56: 1 | AL56: 1 | AP56: 1 | AT56: 1 | AX56: 2 | BB56: 1 | BF56: 1 | BJ56: 1 | BN56: 1 | BR56: 2 | BV56: 1 | CA56: 2 | CE56: 2 | CI56: 1 | CM56: 2 | CQ56: 2 | CU56: 2 | CY56: 1 | DC56: 2 | DG56: 1 | DK56: 1 | DO56: 2 | DS56: 2 | DV56: 1 | DZ56: 20 | EA56: 24 | EB56: 0 | EC56: 0
A57: 50 | C57: SRI SAI SUPER SPECIALITY DENTAL | D57: DR. VENKATA RAMANA, DOCTORS LANE, NIRMAL | E57: 3 | DZ57: 0 | EA57: 0 | EB57: 0 | EC57: 0
A58: 51 | C58: PARDHA DENTAL | E58: 2 | DZ58: 0 | EA58: 0 | EB58: 0 | EC58: 0
A59: 52 | C59: MUNWAR DENTAL | D59: Dr.MRS AMENA SHAHWAR,OPP. DCC BANK,NIRMAL | E59: 1 | DZ59: 0 | EA59: 0 | EB59: 0 | EC59: 0
A60: 53 | B60: NARAY504106TSDH09718 | C60: NARAYANA DENTAL CLINIC & IMPLANT CENTER | D60: BESIDE SVR CHILDRENS HOSPITAL, NEAR THIRUMALA THEATRE, VIVEKNAGAR, NIRMAL | E60: 0 | G60: 2 | K60: 2 | N60: 2 | R60: 2 | V60: 2 | Z60: 1 | AD60: 1 | AH60: 1 | AL60: 1 | AP60: 1 | AT60: 1 | AX60: 2 | BB60: 1 | BF60: 1 | BJ60: 1 | BN60: 1 | BR60: 2 | BV60: 1 | BZ60: 1 | CD60: 1 | CH60: 1 | CL60: 1 | CP60: 1 | CT60: 1 | CX60: 2 | DB60: 1 | DF60: 1 | DJ60: 1 | DN60: 1 | DR60: 1 | DW60: 1 | DZ60: 34 | EA60: 5 | EB60: 0 | EC60: 0
A61: 54 | C61: NARAYANA HEART CARE HOSPITAL | D61: DOCTORS LANE,NEAR THIRUMALA TALKIS,NIRMAL | E61: 0 | DZ61: 0 | EA61: 0 | EB61: 0 | EC61: 0
A62: 55 | C62: NARENDRA NURSING HOME | D62: Dr.NAREDDRA REDDY NIRMAL | E62: 0 | DZ62: 0 | EA62: 0 | EB62: 0 | EC62: 0
A63: 56 | C63: NIRMAL NEURO HOSPITAL | D63: DOCTORS LANE, NIRMAL | E63: 0 | DZ63: 0 | EA63: 0 | EB63: 0 | EC63: 0
A64: 57 | B64: SHREE504106TSPL09725 | C64: SHREE DIAGNOSTICS & POLY CLINIC | D64: VENKATESHWARA COMPLEX,DOCTORS LANE, THIRUMALA THEATRE ROAD, NIRMAL | E64: 0 | F64: 2 | J64: 2 | N64: 1 | R64: 3 | V64: 2 | Z64: 2 | AE64: 2 | AI64: 2 | AM64: 2 | AQ64: 2 | AT64: 1 | AX64: 2 | BC64: 2 | BG64: 2 | BJ64: 1 | BN64: 1 | BR64: 2 | BW64: 3 | CA64: 3 | CE64: 3 | CI64: 2 | CM64: 2 | CQ64: 2 | CT64: 3 | CY64: 3 | DB64: 2 | DF64: 2 | DJ64: 2 | DO64: 3 | DS64: 2 | DV64: 2 | DZ64: 30 | EA64: 35 | EB64: 0 | EC64: 0
A65: 58 | B65: SRIBA504106TSBH07077 | C65: SRI BALAJI SKIN CARE | D65: Dr. K. RAGHAVENDRA,OPP. ADCC BANK,THIRUMALA TALKIES ROAD,NIRMAL | E65: 0 | F65: 1 | J65: 1 | O65: 2 | S65: 2 | W65: 2 | AA65: 2 | AD65: 1 | AH65: 1 | AL65: 1 | AP65: 2 | AU65: 1 | AY65: 2 | BB65: 1 | BF65: 1 | BK65: 2 | BO65: 2 | BS65: 2 | BV65: 1 | BZ65: 2 | CD65: 2 | CH65: 2 | CL65: 2 | CP65: 2 | CT65: 3 | CX65: 1 | DB65: 2 | DF65: 2 | DJ65: 2 | DN65: 2 | DR65: 2 | DV65: 2 | DZ65: 36 | EA65: 17 | EB65: 0 | EC65: 0
A66: 59 | B66: SRINI504106TSBH00933 | C66: SRINIVASA DIAGNOSTICS & SPECIALITY LAB | D66: APPALA NARSAIAH COMPLEX,NEAR NEW BU STAND NIRMAL Nirmal(V) Nirmal (Urban)(M) NIRMAL(D) Telangana-504106 | E66: 0 | DV66: 2 | DZ66: 2 | EA66: 0 | EB66: 0 | EC66: 0
A67: BHAINSA HOSPITALS
A68: 1 | B68: ARADH504103TSBH08518 | C68: ARADHANA NURSING HOME | D68: Dr. G. Raja Reddy, GOKUL NAGAR, BHAINSA. | E68: 50 | F68: 2 | J68: 2 | N68: 2 | V68: 2 | Z68: 2 | AD68: 2 | AH68: 2 | AL68: 2 | AP68: 2 | AU68: 1 | AY68: 2 | BB68: 2 | BF68: 1 | BK68: 2 | BO68: 2 | BS68: 2 | BV68: 2 | BZ68: 2 | CD68: 2 | CH68: 2 | CL68: 2 | CP68: 2 | CX68: 2 | DC68: 2 | DG68: 2 | DK68: 2 | DN68: 2 | DR68: 2 | DW68: 2 | DZ68: 39 | EA68: 17 | EB68: 0 | EC68: 0
A69: 2 | B69: KRISH504103TSBH09620 | C69: KRISHNA NURSING HOME | D69: Dr. DEEPA JADHAV,NARSIMHA NAGAR,BHAINSA, NIRMAL | E69: 50 | F69: 2 | J69: 2 | W69: 3 | AA69: 3 | AH69: 3 | AL69: 2 | AP69: 3 | AT69: 2 | AX69: 2 | BB69: 2 | BJ69: 2 | BN69: 2 | BR69: 2 | BV69: 2 | CA69: 3 | CB69: 3 | CF69: 3 | CI69: 5 | CN69: 2 | CR69: 2 | DG69: 3 | DK69: 2 | DO69: 3 | DP69: 3 | DS69: 2 | DV69: 3 | DZ69: =F69+J69+N69+R69+V69+Z69+AD69+AH69+AL69+AP69+AT69+AX69+BB69+BF69+BJ69+BN69+BR69+BV69+BZ69+CD69+CH69+CL69+CP69+CT69+CX69+DB69+DF69+DJ69+DN69+DR69+DV69 -> 29 | EA69: =G69+K69+O69+S69+W69+AA69+AE69+AI69+AM69+AQ69+AU69+AY69+BC69+BG69+BK69+BO69+BS69+BW69+CA69+CE69+CI69+CM69+CQ69+CU69+CY69+DC69+DG69+DK69+DO69+DS69+DW69 -> 24 | EB69: =H69+L69+P69+T69+X69+AB69+AF69+AJ69+AN69+AR69+AV69+AZ69+BD69+BH69+BL69+BP69+BT69+BX69+CB69+CF69+CJ69+CN69+CR69+CV69+CZ69+DD69+DH69+DL69+DP69+DT69 -> 13 | EC69: 0
A70: 3 | B70: SAISU504103TSBH01036 | C70: SAI SUPRIYA MULTI SPECIALTY HOSPITAL | D70: DOCTOR'S LANE, NARSIMHA TEMPLE ROAD, BHAINSA,Bhainsa (M),Bhainsa,NIRMAL,504103 | E70: 50 | G70: 2 | K70: 2 | O70: 2 | S70: 2 | W70: 1 | AE70: 2 | AI70: 2 | AM70: 2 | AQ70: 2 | AU70: 2 | AY70: 2 | BC70: 2 | BG70: 2 | DV70: 2 | DZ70: 2 | EA70: 25 | EB70: 0 | EC70: 0
A71: 4 | B71: NEWLI504103TSBH10067 | C71: NEW LIFE HOSPITAL | D71: FISH MARKET LANE, BHAINSA | E71: 8 | G71: 1 | K71: 1 | O71: 1 | AA71: 1 | AQ71: 1 | BW71: 1 | DZ71: 0 | EA71: 6 | EB71: 0 | EC71: 0
A72: 5 | B72: SANJE504103TSBH10064 | C72: SANJEEVANI NURSING HOME | D72: Dr. G. SURENDER, ASAD BABA NAGAR, ROAD NO.3, BESIDE KRUPA GAS COMPANY, BHAINSA, NIRMAL. | E72: 17 | O72: 2 | S72: 2 | W72: 2 | BK72: 2 | BO72: 2 | DV72: 3 | DZ72: 3 | EA72: 10 | EB72: 0 | EC72: =I72+M72+Q72+U72+Y72+AC72+AG72+AK72+AO72+AS72+AW72+BA72+BE72+BI72+BM72+BQ72+BU72+BY72+CC72+CG72+CK72+CO72+CS72+CW72+DA72+DE72+DI72+DM72+DQ72+DU72+DY72 -> 0
A73: 6 | B73: ADITY504103TSBH10069 | C73: ADITYA NURSING HOME | D73: Dr. U. KASHINATH,GEETA COMPLEX, OPP.SBI BANK, BESIDE GEETA INDUSTRIES, BHAINSA. | E73: 15 | O73: 1 | S73: 2 | DV73: 2 | DZ73: 2 | EA73: 3 | EB73: 0 | EC73: 0
A74: 7 | B74: AKSHA504103TSBH09716 | C74: AKSHARA MULTI SPECIALITY HOSPITAL | D74: Dr. RAMESH RATHOD, OPP: VEDHAM HIGH SCHOOL, DOCTORS LANE, BHAINSA | E74: 15 | G74: 2 | K74: 2 | N74: 2 | V74: 2 | AI74: 2 | AM74: 2 | AQ74: 2 | BC74: 2 | BG74: 2 | BR74: 1 | BW74: 2 | CA74: 3 | CM74: 2 | CQ74: 2 | CT74: 2 | DC74: 2 | DG74: 2 | DK74: 2 | DO74: 3 | DS74: 2 | DW74: 2 | DZ74: 7 | EA74: 36 | EB74: 0 | EC74: 0
A75: 8 | B75: SAKSH504103TSBH09717 | C75: SAKSHI METERNITY HOSPITAL | D75: Dr. PADMAVATHI BHOSLE, DOCTORS LANE, NARSIMHA MAHADEV MANDER ROAD,BHAINSA, NIRMAL. | E75: 13 | F75: 2 | J75: 2 | N75: 3 | R75: 3 | W75: 3 | Z75: 2 | AE75: 3 | AI75: 3 | AM75: 2 | AQ75: 3 | AU75: 3 | AY75: 3 | BC75: 2 | BG75: 3 | BK75: 3 | BO75: 2 | BS75: 3 | BW75: 4 | CA75: 3 | CE75: 2 | CI75: 4 | CM75: 3 | CQ75: 2 | DC75: 4 | DK75: 3 | DO75: 3 | DS75: 2 | DV75: 3 | DZ75: 15 | EA75: 63 | EB75: 0 | EC75: 0
A76: 9 | B76: SRISA504103TSBH09715 | C76: SRI SAI METERNITY & GBN HOSPITAL | D76: ABOVE UNION BANK, MAIN ROAD, BHAINSA | E76: 12 | F76: 2 | J76: 2 | O76: 2 | W76: 1 | AA76: 1 | AE76: 2 | AI76: 2 | AM76: 2 | AQ76: 2 | AT76: 2 | AX76: 2 | BC76: 2 | BJ76: 1 | BN76: 1 | BR76: 2 | BW76: 2 | BZ76: 2 | CF76: 2 | CL76: 2 | CP76: 2 | CU76: 2 | DC76: 3 | DG76: 2 | DK76: 2 | DN76: 2 | DR76: 2 | DV76: 2 | DZ76: 24 | EA76: 25 | EB76: 2 | EC76: 0
A77: 10 | C77: ADARSHA HOSPITAL | D77: Dr. K. SHIVAPRASAD REDDY,BESIDE BUS STAND,BHAINSA, NIRMAL | E77: 10 | DZ77: 0 | EA77: 0 | EB77: 0 | EC77: 0
A78: 11 | B78: ANIRU504103TSBH08493 | C78: ANIRUDH CHILDRENS HOSPITAL | D78: BESIDE BUSSTAND, BHAINSA | E78: 10 | F78: 1 | J78: 1 | N78: 1 | R78: 1 | V78: 1 | Z78: 1 | AD78: 1 | AH78: 1 | AL78: 1 | AP78: 1 | AT78: 1 | AX78: 1 | BF78: 1 | BJ78: 1 | BN78: 1 | BV78: 1 | BZ78: 2 | CH78: 1 | DN78: 2 | DR78: 2 | DW78: 1 | DZ78: 23 | EA78: 1 | EB78: 0 | EC78: 0
A79: 12 | B79: SRIDA504105TSBH07704 | C79: SRI DATTASAI NURSING HOME & INFERTILITY CLINIC | D79: Dr. VIJAY ANAND JADHAV, H.No.2-3-245/6, HAZARE COMPLEX, NARSIMHA MANDER ROAD, BHAINSA, NIRMAL | E79: 5 | G79: 2 | K79: 2 | O79: 3 | W79: 2 | AE79: 3 | AI79: 3 | AM79: 2 | AQ79: 3 | BC79: 2 | BG79: 2 | BK79: 3 | BO79: 2 | BS79: 2 | BW79: 3 | DV79: 3 | DZ79: 3 | EA79: 34 | EB79: 0 | EC79: 0
A80: 13 | B80: SRINA504103TSBH08529 | C80: SRI NARAYANA GURUKRUPA NURSING HOME | D80: DR.C. RAJSHRI, DOCTORS LANE, NARSIMHA MANDIR ROAD, BHAINSA | E80: 7 | G80: 2 | K80: 2 | N80: 1 | R80: 1 | V80: 1 | Z80: 2 | AD80: 1 | AH80: 1 | AL80: 1 | AP80: 1 | AU80: 2 | BB80: 2 | BF80: 1 | BJ80: 1 | BN80: 1 | BR80: 2 | BV80: 1 | CA80: 2 | CI80: 2 | CY80: 2 | DG80: 2 | DO80: 2 | DS80: 2 | DZ80: 17 | EA80: 18 | EB80: 0 | EC80: 0
A81: 14 | B81: SHIVA504103TSBH09724 | C81: SHIVA TEJA HOSPITAL | D81: GEETHA COMPLEX, SHIVAJI CHOWK, MAIN ROAD, BHAINSA | E81: 4 | G81: 1 | K81: 1 | N81: 1 | R81: 1 | Z81: 1 | AE81: 1 | AI81: 1 | AM81: 1 | AQ81: 1 | AU81: 1 | BG81: 1 | BK81: 2 | BO81: 2 | BS81: 1 | BW81: 1 | CD81: 2 | CH81: 2 | CL81: 1 | CP81: 1 | CT81: 2 | CX81: 1 | DB81: 1 | DG81: 2 | DJ81: 1 | DW81: 2 | DZ81: 14 | EA81: 18 | EB81: 0 | EC81: 0
A82: 15 | B82: AROGY504103TSBH10065 | C82: AROGYA HOSPITAL | D82: 4-3-77/1, NEAR KAMALA TALKIES, BESIDE BUS STAND, OPP: LIC OFFICE, BHAINSA | E82: 8 | G82: 1 | K82: 1 | AE82: 1 | AI82: 1 | AM82: 1 | AQ82: 1 | BC82: 2 | BG82: 1 | BW82: 1 | DC82: 2 | DV82: 1 | DZ82: 1 | EA82: 12 | EB82: 0 | EC82: 0
A83: 16 | B83: BLOOD504103TSBH05545 | C83: BLOOD BANK AREA HOSPITAL BHAINSA | D83: OPP: BUS STAND , BHAINSA | E83: 0 | G83: 2 | K83: 2 | O83: 2 | S83: 3 | W83: 2 | AA83: 2 | AD83: 2 | AH83: 2 | AL83: 2 | AP83: 2 | AT83: 3 | AX83: 2 | BB83: 3 | BF83: 2 | BJ83: 2 | BN83: 2 | BR83: 2 | BV83: 3 | BZ83: 3 | CD83: 3 | CH83: 3 | CL83: 3 | CP83: 3 | CT83: 3 | CX83: 3 | DB83: 3 | DF83: 2 | DN83: 3 | DR83: 2 | DW83: 3 | DZ83: 58 | EA83: 16 | EB83: 0 | EC83: 0
A84: 17 | B84: VAISH504103TSCL10072 | C84: VAISHNAVI CLINIC, BHAINSA, NIRMAL | D84: OPP: E.SEVA, ALI GODOWN, BUS STAND, BHAINSA | E84: 0 | F84: 1 | J84: 1 | S84: 2 | W84: 2 | AA84: 1 | AD84: 2 | AH84: 1 | AL84: 1 | AP84: 1 | BB84: 1 | CI84: 2 | DV84: 1 | DZ84: 9 | EA84: 7 | EB84: 0 | EC84: 0
A85: 18 | C85: SAHASRA SKIN HOSPITAL | D85: BHAINSA | E85: 0 | DZ85: 0 | EA85: 0 | EB85: 0 | EC85: 0
A86: 19 | B86: SRRDI504103TSPL10073 | C86: SRR DIAGNOSTIC CENTRE (SRI RAJA RAJESHWARA) | D86: BESIDE POST OFFICE, OPP: SANDESH COMPLEX, BUS STAND ROAD, BHAINSA | E86: 0 | N86: 2 | R86: 2 | V86: 2 | Z86: 2 | AE86: 2 | DY86: 1 | DZ86: 8 | EA86: 2 | EB86: 0 | EC86: =I86+M86+Q86+U86+Y86+AC86+AG86+AK86+AO86+AS86+AW86+BA86+BE86+BI86+BM86+BQ86+BU86+BY86+CC86+CG86+CK86+CO86+CS86+CW86+DA86+DE86+DI86+DM86+DQ86+DU86+DY86 -> 1
A87: MUDHOL HOSPITALS
A88: 1 | C88: L V PRASAD EYE HOSPITAL, MUDHOL | D88: Dr. D. SANDEEP RAO,BHOSLE GOPAL PATIL EYE CENTRE, MUDHOLE, NIRMAL. | E88: 26 | DZ88: 0 | EA88: 0 | EB88: 0 | EC88: =I88+M88+Q88+U88+Y88+AC88+AG88+AK88+AO88+AS88+AW88+BA88+BE88+BI88+BM88+BQ88+BU88+BY88+CC88+CG88+CK88+CO88+CS88+CW88+DA88+DE88+DI88+DM88+DQ88+DU88 -> 0
A89: 2 | B89: HYDER504105TSBH07034 | C89: HYDERABAD EYE INSTITUTE | D89: MUDHOLE, BASAR ROAD, NIRMAL | E89: 25 | F89: 2 | J89: 2 | O89: 3 | S89: 4 | AA89: 3 | AI89: 3 | AM89: 3 | AP89: 3 | AY89: 3 | BF89: 3 | BK89: 3 | BO89: 2 | BV89: 3 | CA89: 3 | CI89: 5 | CM89: 3 | CQ89: 2 | CU89: 4 | CY89: 5 | DC89: 5 | DO89: 3 | DS89: 2 | DV89: 4 | DZ89: 17 | EA89: 56 | EB89: 0 | EC89: 0
A90: 3 | C90: NEW LIFE HOSPITAL | D90: MUDHOLE,NIRMAL DISTRICT | E90: 10 | DZ90: 0 | EA90: 0 | EB90: 0 | EC90: 0
A91: 4 | B91: SRISA504102TSBH10070 | C91: SRI SAI NURSING HOME, MUDHOL | D91: Dr. S. RAJESHWAR RAO,BESIDE MAHALAXMI TEMPLE, MUDHOLE | E91: 10 | N91: 2 | R91: 2 | V91: 1 | Z91: 2 | AE91: 2 | AI91: 2 | AM91: 2 | AQ91: 2 | AT91: 1 | BR91: 1 | BW91: 2 | CA91: 2 | CE91: 2 | CI91: 2 | CM91: 2 | CQ91: 2 | CX91: 1 | DC91: 2 | DG91: 2 | DK91: 2 | DO91: 2 | DS91: 2 | DY91: 2 | DZ91: 10 | EA91: 30 | EB91: 0 | EC91: =I91+M91+Q91+U91+Y91+AC91+AG91+AK91+AO91+AS91+AW91+BA91+BE91+BI91+BM91+BQ91+BU91+BY91+CC91+CG91+CK91+CO91+CS91+CW91+DA91+DE91+DI91+DM91+DQ91+DU91+DY91 -> 2
A92: 5 | B92: MATRU587313TSBH11253 | C92: MATRUSRI HOSPITAL | D92: H.NO.17-2, BESIDE GRAMPANCHAYAT OFFICE, MUDHOLE. | E92: 9 | G92: 1 | K92: 1 | O92: 1 | S92: 1 | W92: 1 | AE92: 1 | AI92: 1 | AM92: 1 | AU92: 1 | AY92: 1 | BC92: 1 | BK92: 1 | BO92: 1 | BS92: 1 | BW92: 1 | BZ92: 1 | CD92: 1 | CH92: 1 | CL92: 1 | CP92: 1 | CU92: 2 | CX92: 1 | DB92: 1 | DF92: 1 | DJ92: 1 | DN92: 1 | DR92: 1 | DY92: 1 | DZ92: =F92+J92+N92+R92+V92+Z92+AD92+AH92+AL92+AP92+AT92+AX92+BB92+BF92+BJ92+BN92+BR92+BV92+BZ92+CD92+CH92+CL92+CP92+CT92+CX92+DB92+DF92+DJ92+DN92+DR92+DV92 -> 11 | EA92: =G92+K92+O92+S92+W92+AA92+AE92+AI92+AM92+AQ92+AU92+AY92+BC92+BG92+BK92+BO92+BS92+BW92+CA92+CE92+CI92+CM92+CQ92+CU92+CY92+DC92+DG92+DK92+DO92+DS92+DW92 -> 17 | EB92: =H92+L92+P92+T92+X92+AB92+AF92+AJ92+AN92+AR92+AV92+AZ92+BD92+BH92+BL92+BP92+BT92+BX92+CB92+CF92+CJ92+CN92+CR92+CV92+CZ92+DD92+DH92+DL92+DP92+DT92 -> 0 | EC92: =I92+M92+Q92+U92+Y92+AC92+AG92+AK92+AO92+AS92+AW92+BA92+BE92+BI92+BM92+BQ92+BU92+BY92+CC92+CG92+CK92+CO92+CS92+CW92+DA92+DE92+DI92+DM92+DQ92+DU92+DY92 -> 1
C93: TOTAL | E93: =SUM(E4:E92) -> 1373 | F93: =SUM(F4:F92) -> 55 | G93: =SUM(G4:G92) -> 42 | H93: =SUM(H4:H92) -> 0 | I93: =SUM(I4:I92) -> 0 | J93: =SUM(J4:J92) -> 53 | K93: 41 | L93: 0 | M93: 0 | N93: 57 | O93: 54 | P93: 2 | Q93: 0 | R93: 57 | S93: 51 | T93: 0 | U93: 0 | V93: 49 | W93: 53 | X93: 2 | Y93: 0 | Z93: 50 | AA93: 43 | AB93: 0 | AC93: 0 | AD93: 44 | AE93: 53 | AF93: 0 | AG93: 0 | AH93: 52 | AI93: 52 | AJ93: 0 | AK93: 0 | AL93: 50 | AM93: 48 | AN93: 0 | AO93: 0 | AP93: 53 | AQ93: 50 | AR93: 0 | AS93: 0 | AT93: 46 | AU93: 52 | AV93: 0 | AW93: 0 | AX93: 44 | AY93: 47 | AZ93: 0 | BA93: 0 | BB93: 50 | BC93: 43 | BD93: 0 | BE93: 0 | BF93: 46 | BG93: 45 | BH93: 0 | BI93: 0 | BJ93: 44 | BK93: 48 | BL93: 0 | BM93: 0 | BN93: 43 | BO93: 44 | BP93: 0 | BQ93: 0 | BR93: 50 | BS93: 44 | BT93: 0 | BU93: 0 | BV93: =SUM(BV4:BV92) -> 59 | BW93: 56 | BX93: 2 | BY93: 0 | BZ93: 34 | CA93: 82 | CB93: 3 | CC93: 0 | CD93: 34 | CE93: 64 | CF93: 5 | CG93: 0 | CH93: 30 | CI93: 83 | CJ93: 0 | CK93: 0 | CL93: 39 | CM93: 72 | CN93: 2 | CO93: 0 | CP93: 39 | CQ93: 66 | CR93: 2 | CS93: 0 | CT93: 35 | CU93: 76 | CV93: 0 | CW93: 0 | CX93: 40 | CY93: 78 | CZ93: 0 | DA93: 0 | DB93: 34 | DC93: 90 | DD93: 2 | DE93: 0 | DF93: 29 | DG93: 80 | DH93: 2 | DI93: 0 | DJ93: 23 | DK93: 73 | DL93: 0 | DM93: 0 | DN93: 31 | DO93: 85 | DP93: 3 | DQ93: 0 | DR93: 30 | DS93: 72 | DT93: 0 | DU93: 0 | DV93: 75 | DW93: 46 | DX93: 0 | DY93: 8 | DZ93: 1375 | EA93: 1833 | EB93: 25 | EC93: =I93+M93+Q93+U93+Y93+AC93+AG93+AK93+AO93+AS93+AW93+BA93+BE93+BI93+BM93+BQ93+BU93+BY93+CC93+CG93+CK93+CO93+CS93+CW93+DA93+DE93+DI93+DM93+DQ93+DU93+DY93 -> 8

Sheet Adilabad
A1: =Nizamabad!A1 -> JANUARY MONTH REPORT | F1: =Nizamabad!F1 -> 2022-01-01 | J1: =Nizamabad!J1 -> 2022-01-02 | N1: =Nizamabad!N1 -> 2022-01-03 | R1: =Nizamabad!R1 -> 2022-01-04 | V1: =Nizamabad!V1 -> 2022-01-05 | Z1: =Nizamabad!Z1 -> 2022-01-06 | AD1: =Nizamabad!AD1 -> 2022-01-07 | AH1: =Nizamabad!AH1 -> 2022-01-08 | AL1: =Nizamabad!AL1 -> 2022-01-09 | AP1: =Nizamabad!AP1 -> 2022-01-10 | AT1: =Nizamabad!AT1 -> 2022-01-11 | AX1: =Nizamabad!AX1 -> 2022-01-12 | BB1: =Nizamabad!BB1 -> 2022-01-13 | BF1: =Nizamabad!BF1 -> 2022-01-14 | BJ1: =Nizamabad!BJ1 -> 2022-01-15 | BN1: =Nizamabad!BN1 -> 2022-01-16 | BR1: =Nizamabad!BR1 -> 2022-01-17 | BV1: =Nizamabad!BV1 -> 2022-01-18 | BZ1: =Nizamabad!BZ1 -> 2022-01-19 | CD1: =Nizamabad!CD1 -> 2022-01-20 | CH1: =Nizamabad!CH1 -> 2022-01-21 | CL1: =Nizamabad!CL1 -> 2022-01-22 | CP1: =Nizamabad!CP1 -> 2022-01-23 | CT1: =Nizamabad!CT1 -> 2022-01-24 | CX1: =Nizamabad!CX1 -> 2022-01-25 | DB1: =Nizamabad!DB1 -> 2022-01-26 | DF1: =Nizamabad!DF1 -> 2022-01-27 | DJ1: =Nizamabad!DJ1 -> 2022-01-28 | DN1: =Nizamabad!DN1 -> 2022-01-29 | DR1: =Nizamabad!DR1 -> 2022-01-30 | DV1: =Nizamabad!DV1 -> 2022-01-31 | DZ1: TOTAL
A2: SNO | B2: HCF ID | C2: NAME OF THE HCF | D2: ADDRESS OF THE HCFS | E2: NO.OF BEDS | F2: Yellow | G2: Red | H2: Blue | I2: White | J2: Yellow | K2: Red | L2: Blue | M2: White | N2: Yellow | O2: Red | P2: Blue | Q2: White | R2: Yellow | S2: Red | T2: Blue | U2: White | V2: Yellow | W2: Red | X2: Blue | Y2: White | Z2: Yellow | AA2: Red | AB2: Blue | AC2: White | AD2: Yellow | AE2: Red | AF2: Blue | AG2: White | AH2: Yellow | AI2: Red | AJ2: Blue | AK2: White | AL2: Yellow | AM2: Red | AN2: Blue | AO2: White | AP2: Yellow | AQ2: Red | AR2: Blue | AS2: White | AT2: Yellow | AU2: Red | AV2: Blue | AW2: White | AX2: Yellow | AY2: Red | AZ2: Blue | BA2: White | BB2: Yellow | BC2: Red | BD2: Blue | BE2: White | BF2: Yellow | BG2: Red | BH2: Blue | BI2: White | BJ2: Yellow | BK2: Red | BL2: Blue | BM2: White | BN2: Yellow | BO2: Red | BP2: Blue | BQ2: White | BR2: Yellow | BS2: Red | BT2: Blue | BU2: White | BV2: Yellow | BW2: Red | BX2: Blue | BY2: White | BZ2: Yellow | CA2: Red | CB2: Blue | CC2: White | CD2: Yellow | CE2: Red | CF2: Blue | CG2: White | CH2: Yellow | CI2: Red | CJ2: Blue | CK2: White | CL2: Yellow | CM2: Red | CN2: Blue | CO2: White | CP2: Yellow | CQ2: Red | CR2: Blue | CS2: White | CT2: Yellow | CU2: Red | CV2: Blue | CW2: White | CX2: Yellow | CY2: Red | CZ2: Blue | DA2: White | DB2: Yellow | DC2: Red | DD2: Blue | DE2: White | DF2: Yellow | DG2: Red | DH2: Blue | DI2: White | DJ2: Yellow | DK2: Red | DL2: Blue | DM2: White | DN2: Yellow | DO2: Red | DP2: Blue | DQ2: White | DR2: Yellow | DS2: Red | DT2: Blue | DU2: White | DV2: Yellow | DW2: Red | DX2: Blue | DY2: White | DZ2: Yellow | EA2: Red | EB2: Blue | EC2: White
A3: 100 AND ABOVE BEDS HCFs
A4: 1 | B4: RIMS(504001TSBH10171 | C4: RIMS (RAJIV GANDHI INSTITUTE OF MEDICAL SCIENCES) | D4: RIKSHAW COLONY, BUS STATION ROAD, ADILABAD | E4: 500 | F4: 7 | G4: 5 | J4: 4 | K4: 3 | N4: 6 | O4: 7 | R4: 6 | S4: 7 | V4: 8 | W4: 6 | Z4: 5 | AA4: 7 | AD4: 6 | AE4: 7 | AH4: 6 | AI4: 8 | AL4: 6 | AM4: 5 | AP4: 7 | AQ4: 8 | AT4: 7 | AU4: 6 | AX4: 5 | AY4: 4 | BB4: 5 | BC4: 6 | BF4: 5 | BG4: 6 | BJ4: 7 | BK4: 8 | BN4: 7 | BO4: 7 | BR4: 8 | BS4: 9 | BV4: 6 | BW4: 7 | BZ4: 7 | CA4: 8 | CD4: 5 | CE4: 7 | CH4: 6 | CI4: 8 | CL4: 7 | CM4: 9 | CP4: 6 | CQ4: 5 | CT4: 8 | CU4: 9 | CX4: 8 | CY4: 10 | DB4: 8 | DC4: 12 | DF4: 5 | DG4: 5 | DJ4: 8 | DK4: 7 | DN4: 7 | DO4: 8 | DR4: 7 | DS4: 8 | DV4: 12 | DW4: 9 | DZ4: =F4+J4+N4+R4+V4+Z4+AD4+AH4+AL4+AP4+AT4+AX4+BB4+BF4+BJ4+BN4+BR4+BV4+BZ4+CD4+CH4+CL4+CP4+CT4+CX4+DB4+DF4+DJ4+DN4+DR4+DV4 -> 205 | EA4: =G4+K4+O4+S4+W4+AA4+AE4+AI4+AM4+AQ4+AU4+AY4+BC4+BG4+BK4+BO4+BS4+BW4+CA4+CE4+CI4+CM4+CQ4+CU4+CY4+DC4+DG4+DK4+DO4+DS4+DW4 -> 221 | EB4: =H4+L4+P4+T4+X4+AB4+AF4+AJ4+AN4+AR4+AV4+AZ4+BD4+BH4+BL4+BP4+BT4+BX4+CB4+CF4+CJ4+CN4+CR4+CV4+CZ4+DD4+DH4+DL4+DP4+DT4+DX4 -> 0 | EC4: =I4+M4+Q4+U4+Y4+AC4+AG4+AK4+AO4+AS4+AW4+BA4+BE4+BI4+BM4+BQ4+BU4+BY4+CC4+CG4+CK4+CO4+CS4+CW4+DA4+DE4+DI4+DM4+DQ4+DU4+DY4 -> 0
B5: BELOW 100 BEDS HCFs
A6: 1 | B6: CHROM504001TSBH09734 | C6: CHROME SUPER SPECIALITY HOSPITAL | D6: D.NO.4-5-29/5, BHUKTHAPUR, BESIDE TAMSI, BUS STAND, ADILABAD | E6: 50 | G6: 3 | K6: 3 | O6: 2 | S6: 3 | W6: 3 | AA6: 2 | AE6: 2 | AI6: 2 | AM6: 2 | AQ6: 3 | AX6: 2 | BC6: 2 | BG6: 3 | BJ6: 2 | BN6: 2 | BR6: 3 | BW6: 3 | CA6: 3 | CE6: 3 | CI6: 3 | CM6: 3 | CQ6: 3 | CU6: 3 | CY6: 3 | DC6: 3 | DG6: 3 | DK6: 3 | DO6: 3 | DS6: 3 | DZ6: =F6+J6+N6+R6+V6+Z6+AD6+AH6+AL6+AP6+AT6+AX6+BB6+BF6+BJ6+BN6+BR6+BV6+BZ6+CD6+CH6+CL6+CP6+CT6+CX6+DB6+DF6+DJ6+DN6+DR6+DV6 -> 9 | EA6: =G6+K6+O6+S6+W6+AA6+AE6+AI6+AM6+AQ6+AU6+AY6+BC6+BG6+BK6+BO6+BS6+BW6+CA6+CE6+CI6+CM6+CQ6+CU6+CY6+DC6+DG6+DK6+DO6+DS6+DW6 -> 69 | EB6: =H6+L6+P6+T6+X6+AB6+AF6+AJ6+AN6+AR6+AV6+AZ6+BD6+BH6+BL6+BP6+BT6+BX6+CB6+CF6+CJ6+CN6+CR6+CV6+CZ6+DD6+DH6+DL6+DP6+DT6 -> 0 | EC6: =I6+M6+Q6+U6+Y6+AC6+AG6+AK6+AO6+AS6+AW6+BA6+BE6+BI6+BM6+BQ6+BU6+BY6+CC6+CG6+CK6+CO6+CS6+CW6+DA6+DE6+DI6+DM6+DQ6+DU6 -> 0
A7: 2 | B7: SRISE504311TSBH00926 | C7: THIRUMALA SUPER SPECIALITY HOSPITAL, NIZAMABAD | D7: SRI SEVALAL MAHARAJ HOSPITAL,UTNOOR,I.B CHOWRASTA,Utnoor,Utnoor,ADILABAD,504311 | E7: 50 | F7: 1 | J7: 1 | N7: 2 | R7: 2 | V7: 2 | Z7: 2 | AD7: 1 | AH7: 2 | AL7: 2 | AP7: 1 | AT7: 1 | AX7: 2 | BB7: 1 | BF7: 1 | BJ7: 1 | BN7: 1 | BR7: 2 | CA7: 2 | CE7: 2 | CI7: 2 | CM7: 2 | CQ7: 2 | CU7: 2 | CY7: 2 | DC7: 2 | DG7: 2 | DK7: 1 | DO7: 2 | DS7: 2 | DV7: 2 | DZ7: =F7+J7+N7+R7+V7+Z7+AD7+AH7+AL7+AP7+AT7+AX7+BB7+BF7+BJ7+BN7+BR7+BV7+BZ7+CD7+CH7+CL7+CP7+CT7+CX7+DB7+DF7+DJ7+DN7+DR7+DV7 -> 27 | EA7: =G7+K7+O7+S7+W7+AA7+AE7+AI7+AM7+AQ7+AU7+AY7+BC7+BG7+BK7+BO7+BS7+BW7+CA7+CE7+CI7+CM7+CQ7+CU7+CY7+DC7+DG7+DK7+DO7+DS7+DW7 -> 23 | EB7: =H7+L7+P7+T7+X7+AB7+AF7+AJ7+AN7+AR7+AV7+AZ7+BD7+BH7+BL7+BP7+BT7+BX7+CB7+CF7+CJ7+CN7+CR7+CV7+CZ7+DD7+DH7+DL7+DP7+DT7 -> 0 | EC7: =I7+M7+Q7+U7+Y7+AC7+AG7+AK7+AO7+AS7+AW7+BA7+BE7+BI7+BM7+BQ7+BU7+BY7+CC7+CG7+CK7+CO7+CS7+CW7+DA7+DE7+DI7+DM7+DQ7+DU7 -> 0
A8: 3 | B8: HYDER504001TSBH09727 | C8: HYDERABAD EYE INSTITUTE (LV PRASAD) | D8: SESHANNA CHENNAWAR EYE CENTER, NARESH RAO (Administrator), NEAR CHAVARA SCHOOL, MAVALA VILLAGE, NH 7, ADILIBAD | E8: 22 | F8: 4 | J8: 4 | N8: 4 | R8: 5 | V8: 3 | Z8: 3 | AE8: 3 | AI8: 3 | AM8: 3 | AQ8: 3 | AU8: 3 | AY8: 3 | BC8: 3 | BG8: 3 | BK8: 3 | BO8: 2 | BS8: 3 | BW8: 5 | CA8: 3 | CE8: 3 | CI8: 5 | CM8: 4 | CQ8: 3 | CU8: 3 | CY8: 5 | DC8: 2 | DF8: 3 | DK8: 4 | DO8: 3 | DS8: 3 | DV8: 4 | DZ8: 30 | EA8: 75 | EB8: 0 | EC8: 0
A9: 4 | B9: CHRIS504001TSBH08494 | C9: CHRISTIAN HOSPITAL | D9: DOOR NO:2-143, OLD NATIONAL HIGHWAY ROAD,ADILABAD | E9: 20 | G9: 1 | K9: 1 | O9: 1 | S9: 1 | W9: 1 | AA9: 1 | AD9: 1 | AH9: 1 | AL9: 1 | AP9: 1 | AT9: 1 | AX9: 1 | BB9: 1 | BF9: 1 | BJ9: 1 | BN9: 1 | BR9: 1 | BV9: 1 | CA9: 2 | CE9: 2 | DZ9: 12 | EA9: 10 | EB9: 0 | EC9: 0
A10: 5 | B10: SACHI504001TSBH06153 | C10: SACHI NURSING HOME | D10: OPP. NATRAJ THEATRE, BHUKTAPUR, ADILABAD. | E10: 20 | F10: 2 | J10: 2 | N10: 2 | R10: 2 | V10: 2 | Z10: 2 | AE10: 2 | AI10: 2 | AM10: 2 | AQ10: 3 | AT10: 2 | AY10: 2 | BC10: 1 | BG10: 2 | BK10: 2 | BO10: 2 | BS10: 2 | BW10: 2 | CA10: 2 | CD10: 3 | CI10: 2 | CL10: 2 | CP10: 2 | CT10: 2 | CX10: 2 | DB10: 2 | DF10: 2 | DJ10: 2 | DO10: 2 | DS10: 2 | DW10: 2 | DZ10: 31 | EA10: 32 | EB10: 0 | EC10: 0
A11: 6 | B11: SNEHA504001TSBH08482 | C11: SNEHA NURSING HOME, ADILABAD | D11: Dr. SANJAY L. GUJRATHI,NEAR DWARAKANAGAR HANUMAN TEMPLE, ADILABAD | E11: 20 | G11: 2 | K11: 2 | N11: 3 | R11: 3 | V11: 3 | Z11: 3 | AD11: 3 | AH11: 3 | AL11: 3 | AP11: 4 | AT11: 3 | AX11: 3 | BB11: 3 | BF11: 3 | BJ11: 3 | BN11: 2 | BR11: 3 | BV11: 4 | BZ11: 3 | CE11: 3 | CI11: 4 | CM11: 3 | CQ11: 2 | CY11: 3 | DN11: 3 | DR11: 3 | DV11: 3 | DZ11: 61 | EA11: 19 | EB11: 0 | EC11: 0
A12: 7 | B12: ADITY504001TSBH09747 | C12: ADITYA HOSPITAL, GENERAL & CTIRICAL CARE CENTRE | D12: NETHAJI CHOWK, TNGO'S ROAD, CINEMA ROAD, BESIDE: ANIL CHIDRALA HOSPITAL, ADILABAD | E12: 15 | F12: 1 | J12: 1 | O12: 2 | S12: 2 | W12: 2 | AA12: 2 | AD12: 2 | AH12: 1 | AL12: 1 | AP12: 2 | AU12: 2 | AY12: 2 | BB12: 2 | BF12: 2 | BK12: 2 | BO12: 2 | BS12: 2 | BV12: 1 | CA12: 2 | CE12: 2 | CI12: 3 | CM12: 2 | CQ12: 2 | CU12: 2 | CY12: 2 | DC12: 2 | DG12: 2 | DK12: 2 | DO12: 2 | DS12: 2 | DW12: 2 | DZ12: 13 | EA12: 45 | EB12: 0 | EC12: 0
A13: 8 | B13: AMMAH504001TSBH08481 | C13: AMMA HOSPITALS | D13: NEAR RIMS HOSPITAL,ADILABAD | E13: 15 | F13: 1 | J13: 1 | N13: 1 | R13: 1 | Z13: 1 | AD13: 1 | AH13: 1 | AL13: 1 | AP13: 1 | AU13: 1 | AY13: 1 | BB13: 1 | BF13: 1 | BK13: 1 | BO13: 1 | BR13: 1 | BV13: 1 | CA13: 1 | CE13: 1 | CI13: 1 | CM13: 1 | CQ13: 1 | CU13: 2 | CY13: 2 | DC13: 2 | DG13: 2 | DK13: 2 | DO13: 1 | DS13: 1 | DW13: 2 | DZ13: 13 | EA13: 23 | EB13: 0 | EC13: 0
A14: 9 | B14: JEEVA504001TSBH00978 | C14: JEEVANA JYOTHI HOSPITAL | D14: Dr. CHANDRA SHEKHAR REDDY,BESIDE BUS STAND, ADILABAD. 504001 | E14: 15 | G14: 2 | K14: 2 | O14: 2 | S14: 2 | W14: 2 | AA14: 2 | AE14: 2 | AI14: 2 | AM14: 2 | AQ14: 2 | AT14: 2 | AX14: 2 | BC14: 2 | BG14: 2 | BJ14: 2 | BN14: 2 | BR14: 2 | BW14: 2 | CA14: 3 | CE14: 2 | CI14: 2 | CM14: 3 | CQ14: 2 | CT14: 3 | CY14: 3 | DB14: 2 | DF14: 3 | DJ14: 1 | DO14: 3 | DS14: 3 | DZ14: 19 | EA14: 47 | EB14: 0 | EC14: 0
A15: 10 | C15: SHAMALA SATHYANARAYANA HOSPITAL | D15: Dr.P.SATHYA NARAYANA,NETHAJI CHOWK,ADILABAD | E15: 15 | DZ15: 0 | EA15: 0 | EB15: 0 | EC15: 0
A16: 11 | C16: SHEKATH MATERNITY NURSING HOME | D16: Dr.MANOHAR,NTR CHOWK,ADILABAD | E16: 15 | DZ16: 0 | EA16: 0 | EB16: 0 | EC16: 0
A17: 12 | B17: SRAVY504001TSBH00979 | C17: SRAVYA NURSING HOME | D17: OPP:REGISTRATION OFFICE,VIDYANAGAR COLONY, BUS STAND ROAD NH-7, ADILABAD,Adilabad,Adilabad (Urban),ADILABAD,504001 | E17: 15 | G17: 3 | K17: 2 | N17: 3 | R17: 3 | V17: 2 | Z17: 2 | AE17: 2 | AI17: 2 | AM17: 2 | AQ17: 3 | AU17: 3 | AY17: 3 | BC17: 3 | BG17: 3 | BJ17: 2 | BN17: 2 | BS17: 3 | BW17: 3 | CA17: 3 | CE17: 3 | CI17: 3 | CM17: 3 | CQ17: 2 | CY17: 3 | DO17: 3 | DS17: 3 | DV17: 3 | DZ17: 17 | EA17: 55 | EB17: 0 | EC17: 0
A18: 13 | B18: SRIBA504001TSBH00931 | C18: SRI BALAJI HOSPITAL | D18: Dr. A. AMIT SUNDER RAO,STATION ROAD, SHIVAJI CHOWK, ADILABAD. | E18: 14 | F18: 1 | J18: 1 | O18: 2 | S18: 3 | W18: 1 | AA18: 2 | AD18: 1 | AH18: 1 | AL18: 1 | AP18: 2 | AU18: 2 | AY18: 2 | BB18: 1 | BF18: 2 | BK18: 1 | BO18: 1 | BS18: 1 | BV18: 1 | CA18: 2 | CE18: 2 | CI18: 2 | CM18: 2 | CQ18: 2 | CU18: 2 | CY18: 2 | DC18: 2 | DG18: 2 | DK18: 2 | DO18: 2 | DS18: 2 | DV18: 2 | DZ18: 13 | EA18: 39 | EB18: 0 | EC18: 0
A19: 14 | B19: AYYAP504001TSBH01032 | C19: AYYAPPA ORTHOPAEDIC & CHILDREN HOSPITAL | D19: Dr. ANIL KUMAR CHINDRALA,BEHIND NETHAJI CHOWK, T.N.G.O. ROAD, ADILABAD. | E19: 12 | F19: 1 | J19: 1 | N19: 1 | R19: 2 | V19: 1 | Z19: 1 | AE19: 1 | AI19: 1 | AM19: 1 | AQ19: 1 | AT19: 1 | AX19: 1 | BC19: 1 | BG19: 1 | BJ19: 1 | BN19: 1 | BR19: 1 | BW19: 1 | CA19: 2 | CD19: 1 | CH19: 1 | CL19: 1 | CP19: 1 | CT19: 2 | CY19: 2 | DB19: 2 | DF19: 2 | DJ19: 2 | DO19: 2 | DS19: 2 | DW19: 1 | DZ19: 24 | EA19: 16 | EB19: 0 | EC19: 0
A20: 15 | C20: NEW LIFE PEOPLES NURSING HOME | D20: Dr.I.SUNDERAIAH,ADARSHA NAGAR,ADILABAD | E20: 12 | DZ20: 0 | EA20: 0 | EB20: 0 | EC20: 0
A21: 16 | B21: AARAD504001TSBH07805 | C21: AARADHYA DIGNOSTIC & CLINIC | D21: H.NO. 4-3-60/10 & 11, HOTEL LAXMI RESIDENCY BUILDING, BESIDE V.B. ELECTRONICS, BHUKTAPUR, ADILABAD,Adilabad,Adilabad (Urban),ADILABAD,504001 | E21: 11 | G21: 1 | K21: 1 | O21: 2 | S21: 1 | W21: 1 | AA21: 1 | AD21: 1 | AH21: 1 | AL21: 1 | AP21: 1 | AT21: 1 | AX21: 1 | BB21: 1 | BF21: 1 | BJ21: 1 | BN21: 1 | BR21: 1 | BV21: 1 | CA21: 1 | CE21: 1 | CI21: 2 | CM21: 2 | CQ21: 2 | CU21: 2 | CY21: 3 | DC21: 2 | DG21: 2 | DK21: 2 | DO21: 1 | DS21: 1 | DV21: 1 | DZ21: 13 | EA21: 28 | EB21: 0 | EC21: 0
A22: 17 | C22: A D B HOSPITAL | D22: ADILABAD | E22: 10 | DZ22: 0 | EA22: 0 | EB22: 0 | EC22: 0
A23: 18 | B23: AKBAN504001TSBH07693 | C23: AKBANI EYE CARE LASER CENTRE & DIAGNOSTICS | D23: Dr. MOHD IDRIS AKBANI, H.No. 7-7-17/9/1, OPP. ELECTICITY OFFICE, BJUKTAPUR, ADILABAD. | E23: 10 | F23: 2 | J23: 2 | O23: 2 | S23: 2 | W23: 1 | AA23: 2 | AE23: 2 | AH23: 1 | AL23: 1 | AP23: 2 | AU23: 2 | AY23: 2 | BB23: 2 | BG23: 2 | BK23: 2 | BO23: 2 | BS23: 2 | BV23: 2 | CA23: 3 | CE23: 3 | CH23: 2 | CL23: 1 | CP23: 1 | CT23: 2 | CX23: 2 | DB23: 2 | DF23: 2 | DJ23: 1 | DO23: 3 | DS23: 3 | DV23: 2 | DZ23: 27 | EA23: 33 | EB23: 0 | EC23: 0
A24: 19 | B24: AKHIL504001TSBH01031 | C24: AKHIL ORTHOPAEDIC HOSPITAL | D24: DR.TIPPE SWAMY, BESIDE RANI SATJI AGENCY, NEAR BUS STAND, ADILABAD | E24: 10 | G24: 2 | K24: 2 | N24: 1 | R24: 1 | V24: 1 | Z24: 1 | AD24: 1 | AH24: 1 | AL24: 1 | AP24: 2 | AT24: 1 | AX24: 1 | BB24: 2 | BF24: 1 | BJ24: 1 | BN24: 1 | BR24: 1 | BV24: 1 | BZ24: 2 | CI24: 1 | CM24: 1 | CQ24: 1 | CU24: 1 | CY24: 1 | DC24: 1 | DG24: 2 | DK24: 1 | DN24: 2 | DR24: 2 | DW24: 1 | DZ24: 24 | EA24: 14 | EB24: 0 | EC24: 0
A25: 20 | B25: DR.AG504001TSBH07806 | C25: DR. AGARWAL HOSPITAL & TRAUMA CARE CENTRE | D25: Dr.AGARWAL,DrPRAVEEN KUMAR ADILABAD. | E25: 10 | F25: 2 | J25: 2 | N25: 2 | R25: 2 | V25: 1 | Z25: 1 | AD25: 2 | AI25: 1 | AM25: 1 | AQ25: 2 | AU25: 1 | AY25: 2 | BB25: 1 | BF25: 1 | BK25: 1 | BO25: 1 | BS25: 1 | BV25: 1 | CA25: 1 | CE25: 2 | CI25: 1 | CM25: 2 | CQ25: 2 | CU25: 2 | CY25: 2 | DC25: 2 | DG25: 2 | DK25: 2 | DO25: 1 | DS25: 1 | DV25: 1 | DZ25: 16 | EA25: 30 | EB25: 0 | EC25: 0
A26: 21 | B26: JANAN504001TSBH07695 | C26: JANANI MATERNITY HOSPITAL | D26: NTR CHOWK,NEAR G.N RAO PETROL PUMP,ADILABAD TOWN. | E26: 10 | G26: 2 | K26: 2 | S26: 2 | W26: 2 | AA26: 2 | AE26: 2 | AI26: 2 | AM26: 2 | AQ26: 2 | AU26: 2 | AY26: 2 | BC26: 3 | BG26: 2 | BK26: 2 | BO26: 2 | BS26: 2 | BW26: 3 | BZ26: 2 | CD26: 3 | CH26: 2 | CL26: 3 | CP26: 2 | CT26: 3 | CX26: 2 | DB26: 2 | DF26: 2 | DJ26: 2 | DN26: 2 | DR26: 2 | DV26: 2 | DZ26: 29 | EA26: 36 | EB26: 0 | EC26: 0
A27: 22 | B27: MADHA504001TSBH07799 | C27: MADHAVA HOSPITAL | D27: BESIDE HANUMAN CHOWK, BHUKTAPUR, ADILABAD | E27: 10 | G27: 2 | K27: 2 | O27: 2 | S27: 1 | W27: 1 | AA27: 1 | AE27: 1 | AI27: 1 | AM27: 1 | AQ27: 1 | AT27: 1 | AX27: 1 | BC27: 1 | BF27: 1 | BJ27: 1 | BN27: 1 | BR27: 1 | BW27: 1 | BZ27: 1 | CD27: 1 | CH27: 1 | CL27: 2 | CP27: 2 | CT27: 2 | CX27: 1 | DB27: 2 | DF27: 2 | DJ27: 1 | DN27: 1 | DR27: 1 | DW27: 2 | DZ27: 23 | EA27: 17 | EB27: 0 | EC27: 0
A28: 23 | B28: NAKSH504001TSBH07039 | C28: NAKSHATRA HOSPITAL | D28: Dr.SHILPA SANDEEP AITWAR, ABOVE APPOLLO PHARMACY, HAVELLS ELECTRICALS, SHIVAJI CHOWK, STATION ROAD, ADILABAD | E28: 10 | O28: 2 | S28: 3 | W28: 2 | AA28: 2 | DV28: 2 | DZ28: 2 | EA28: 9 | EB28: 0 | EC28: 0
A29: 24 | B29: SAISA504001TSBH08487 | C29: SAI SAMRAKSHA HOSPITAL | D29: AMBEDKAR CHOWK, ADILABAD URBAN. | E29: 10 | F29: 1 | J29: 1 | N29: 2 | R29: 2 | V29: 2 | Z29: 1 | AU29: 2 | AY29: 1 | BK29: 1 | BO29: 1 | BS29: 1 | BZ29: 2 | CD29: 3 | CH29: 2 | CL29: 3 | CP29: 2 | CU29: 2 | CX29: 2 | DC29: 3 | DG29: 2 | DK29: 2 | DN29: 2 | DR29: 2 | DW29: 3 | DZ29: 27 | EA29: 18 | EB29: 0 | EC29: 0
A30: 25 | B30: SHARA504001TSBH00968 | C30: SHARADA NURSING HOME | D30: Dr. D. N. SWAMY, H.NO. 7-1-13,OPP: NEW BUS STAND, ADILABAD | E30: 10 | F30: 4 | J30: 4 | O30: 3 | S30: 3 | W30: 3 | AA30: 2 | AT30: 3 | AX30: 3 | BJ30: 2 | BN30: 2 | BR30: 2 | BZ30: 2 | CE30: 3 | CH30: 3 | CL30: 3 | CP30: 2 | CU30: 3 | CX30: 3 | DC30: 4 | DG30: 3 | DK30: 3 | DN30: 3 | DR30: 3 | DV30: 3 | DZ30: 42 | EA30: 27 | EB30: 0 | EC30: 0
A31: 26 | B31: SHIVA504001TSBH01027 | C31: SHIVAPRIYA NURSING HOME | D31: SHIVAJI CHOWK, STATION ROAD, ADILABAD | E31: 10 | F31: 1 | J31: 1 | O31: 2 | S31: 2 | W31: 2 | AA31: 2 | AU31: 1 | AY31: 1 | BK31: 2 | BO31: 2 | BS31: 1 | BZ31: 2 | CD31: 2 | CH31: 2 | CL31: 2 | CP31: 2 | CU31: 2 | CX31: 2 | DC31: 2 | DF31: 2 | DJ31: 2 | DN31: 2 | DR31: 2 | DV31: 2 | DZ31: 24 | EA31: 19 | EB31: 0 | EC31: 0
A32: 27 | B32: SHREE504001TSBH07701 | C32: SHREE CRITICAL CARE HOSPITAL | D32: D.NO: 4-3-1, BEHIND CENTRAL LIBRARY, ADILABAD | E32: 10 | G32: 1 | K32: 1 | O32: 2 | S32: 3 | W32: 2 | AA32: 2 | AT32: 1 | AX32: 2 | BJ32: 2 | BN32: 2 | BR32: 3 | CA32: 3 | CE32: 4 | CI32: 3 | CM32: 2 | CQ32: 2 | CU32: 3 | CY32: 3 | DC32: 3 | DG32: 3 | DK32: 3 | DO32: 3 | DS32: 3 | DV32: 3 | DZ32: 13 | EA32: 46 | EB32: 0 | EC32: 0
A33: 28 | B33: SHRIG504001TSBH01024 | C33: SHRI GAJANAN METERNITY & NURSING HOME | D33: Dr. ANUPAMA R. KASAWAR, OPP. NATRAJ TALKIES, ADILABAD-504001 | E33: 10 | F33: 2 | J33: 2 | O33: 1 | S33: 2 | W33: 3 | AA33: 1 | AT33: 2 | AX33: 2 | BJ33: 2 | BN33: 2 | BR33: 1 | CA33: 3 | CE33: 2 | CI33: 2 | CM33: 2 | CQ33: 2 | CT33: 2 | CY33: 2 | DB33: 2 | DF33: 2 | DJ33: 2 | DO33: 3 | DS33: 3 | DW33: 3 | DZ33: 21 | EA33: 29 | EB33: 0 | EC33: 0
A34: 29 | B34: SRIRA504001TSBH00975 | C34: SRI RAMA METERNITY & SURGICAL NURSING HOME | D34: Dr. G. PRAKASH,NEAR RAILWAY GATE, GUNJ ROAD, ADILIBAD. | E34: 10 | G34: 2 | K34: 2 | N34: 1 | R34: 2 | V34: 3 | Z34: 1 | AU34: 1 | AY34: 1 | BK34: 3 | BO34: 2 | BS34: 2 | BZ34: 3 | CD34: 2 | CH34: 2 | CL34: 3 | CP34: 3 | CT34: 3 | CX34: 3 | DB34: 3 | DF34: 3 | DJ34: 3 | DN34: 3 | DR34: 3 | DV34: 3 | DZ34: 44 | EA34: 13 | EB34: 0 | EC34: 0
A35: 30 | C35: SRI RAGHAVENDRA NURSING HOME, ADB | D35: Dr. G. SHANTI SATYANARAYANA,OPP. SHAMA URDU SCHOOL,NEAR POWER HOUSE,N.H. 7, ADILABAD | E35: 10 | DZ35: 0 | EA35: 0 | EB35: 0 | EC35: 0
A36: 31 | B36: SRIVE504001TSBH09726 | C36: SRI VENKATESHWARA CHILDRENS HOSPITAL | D36: Dr.M.PRAMOD KUMAR REDDY, NTR CHOWK, OPP: BIRYANI HOUSE, RAVINDRA NAGAR COLONY, STATION ROAD, ADILABAD. | E36: 10 | G36: 1 | K36: 1 | O36: 1 | S36: 1 | W36: 2 | AA36: 2 | CT36: 3 | DB36: 1 | DF36: 2 | DJ36: 1 | DV36: 3 | DZ36: 10 | EA36: 8 | EB36: 0 | EC36: 0
A37: 32 | B37: SRIVI504001TSBH00961 | C37: SRI VIGNESHWARA ORTHOPAEDIC HOSPITAL | D37: Dr. V. RAVIKANTH RAO,NEAR NATRAJ THEATRE, ADILABAD | E37: 10 | F37: 2 | J37: 2 | N37: 2 | R37: 2 | V37: 2 | Z37: 2 | AT37: 1 | AX37: 2 | BJ37: 1 | BN37: 1 | BR37: 2 | CA37: 1 | CE37: 2 | CI37: 1 | CM37: 2 | CQ37: 2 | CT37: 2 | CY37: 2 | DB37: 2 | DF37: 2 | DJ37: 1 | DO37: 1 | DS37: 1 | DW37: 2 | DZ37: 26 | EA37: 14 | EB37: 0 | EC37: 0
A38: 33 | B38: SRINI504001TSBH00976 | C38: SRINIVASA METERNITY & SURGICAL NURSING HOME ADILABAD | D38: Dr. K. RAMA ASHOK,NETAJI CHOWK, TNGO'S ROAD, ADILABAD | E38: 10 | F38: 2 | J38: 2 | N38: 2 | R38: 3 | Z38: 2 | AT38: 3 | AX38: 2 | BJ38: 1 | BN38: 1 | BR38: 2 | CA38: 2 | CE38: 3 | CI38: 3 | CM38: 3 | CQ38: 3 | CU38: 3 | CY38: 3 | DC38: 3 | DG38: 3 | DK38: 3 | DO38: 2 | DS38: 2 | DV38: 3 | DZ38: 23 | EA38: 33 | EB38: 0 | EC38: 0
A39: 34 | B39: SUJAT504001TSBH00980 | C39: SUJATHA MATERNITY & SURGICAL NURSING HOME | D39: DR.L.MAHA BALESHWAR,OPP;SHAMA URDU SCHOOL,ADILABAD | E39: 10 | F39: 2 | J39: 2 | O39: 1 | S39: 2 | W39: 2 | AA39: 1 | AU39: 2 | AY39: 1 | BK39: 1 | BO39: 1 | BS39: 2 | BZ39: 2 | CD39: 2 | CH39: 2 | CL39: 3 | CP39: 3 | CT39: 2 | CX39: 1 | DB39: 2 | DC39: 2 | DG39: 2 | DJ39: 1 | DK39: 2 | DN39: 2 | DR39: 2 | DV39: 1 | DZ39: 27 | EA39: 19 | EB39: 0 | EC39: 0
A40: 35 | B40: UPEND504001TSBH07058 | C40: UPENDRA GENERAL SPECILITY HOSPITAL | D40: OLD LAYOLA COLLEGE LINE,ADILABAD | E40: 10 | G40: 2 | K40: 2 | N40: 2 | R40: 2 | V40: 2 | Z40: 1 | AU40: 2 | AY40: 2 | BK40: 2 | BO40: 2 | BS40: 2 | CF40: 2 | CU40: 2 | DC40: 2 | DG40: 2 | DK40: 2 | DW40: 2 | DZ40: 7 | EA40: 24 | EB40: 2 | EC40: 0
A41: 36 | B41: VAIBH504001TSBH07080 | C41: VAIBHAVI HOSPITAL | D41: Dr. T.SATISH KUMAR,BESIDE RTC BUS STAND, ADILABAD | E41: 10 | G41: 2 | K41: 2 | N41: 1 | R41: 1 | V41: 1 | Z41: 1 | AT41: 1 | AX41: 1 | BJ41: 1 | BN41: 1 | BR41: 1 | CA41: 2 | CI41: 1 | CM41: 2 | CQ41: 2 | CT41: 2 | CY41: 2 | DB41: 1 | DF41: 1 | DJ41: 1 | DO41: 2 | DS41: 2 | DY41: 2 | DZ41: 14 | EA41: 17 | EB41: 0 | EC41: 0
A42: 37 | B42: VIJAY504001TSBH09749 | C42: VIJAYA NURSING HOME | D42: Near Central Bank, Opp: Adilabad Neuro Super Speciality Hospital, Dwaraka Nagar, Ravindra Nagar Colony, Adilabad(U), Telangana 504001 | E42: 10 | F42: 2 | J42: 2 | O42: 2 | S42: 3 | W42: 3 | AA42: 2 | AT42: 2 | AX42: 2 | BJ42: 2 | BN42: 2 | BR42: 3 | CA42: 3 | CE42: 3 | CI42: 3 | CM42: 3 | CQ42: 3 | CU42: 3 | CY42: 3 | DC42: 3 | DG42: 3 | DJ42: 3 | DO42: 3 | DS42: 3 | DV42: 3 | DZ42: 21 | EA42: 43 | EB42: 0 | EC42: 0
A43: 38 | C43: ELITE HOSPITAL | D43: ADILABAD | E43: 9 | DZ43: 0 | EA43: 0 | EB43: 0 | EC43: 0
A44: 39 | B44: KIRAN504001TSBH08511 | C44: KIRAN LASER EYE HOSPITAL | D44: HOTEL DWARAKA,BHIKTAPUR,ADILABAD, ADILABAD. | E44: 9 | G44: 2 | K44: 2 | N44: 2 | R44: 3 | V44: 3 | Z44: 2 | AT44: 2 | AX44: 2 | BJ44: 2 | BN44: 2 | BR44: 2 | BZ44: 3 | CD44: 3 | CH44: 3 | CL44: 3 | CP44: 2 | CU44: 2 | CX44: 2 | DC44: 2 | DJ44: 2 | DN44: 3 | DR44: 3 | DY44: 2 | DZ44: 44 | EA44: 8 | EB44: 0 | EC44: 0
A45: 40 | B45: SANSA504001TSBH09750 | C45: SANSA GASTRO LIVER & SKIN HOSPITAL | D45: # 4-3-1/6B, NEAR BY ARUN ICE CREAM, PATEL MARG, BHUKTHAPUR, ADILABAD | E45: 9 | F45: 2 | J45: 2 | O45: 2 | S45: 2 | W45: 2 | AA45: 2 | AT45: 2 | AX45: 2 | BJ45: 2 | BN45: 2 | BR45: 2 | BZ45: 2 | CD45: 2 | CH45: 2 | CL45: 2 | CP45: 2 | CT45: 3 | CX45: 2 | DB45: 2 | DF45: 2 | DJ45: 2 | DN45: 2 | DR45: 2 | DV45: 2 | DZ45: 41 | EA45: 8 | EB45: 0 | EC45: 0
A46: 41 | B46: SHIVA504001TSBH09753 | C46: SHIVAJI HOSPITAL | D46: SHIVAJI CHOWK, STATION ROAD, ADILABAD | E46: 8 | F46: 2 | J46: 2 | N46: 2 | R46: 1 | V46: 2 | Z46: 1 | AT46: 2 | AX46: 1 | BJ46: 1 | BN46: 1 | BR46: 1 | BZ46: 2 | CD46: 1 | CH46: 1 | CL46: 2 | CP46: 2 | CU46: 2 | CX46: 1 | DC46: 1 | DG46: 2 | DK46: 1 | DN46: 2 | DR46: 2 | DV46: 2 | DZ46: 31 | EA46: 6 | EB46: 0 | EC46: 0
A47: 42 | B47: SURAK504001TSBH00958 | C47: SURAKSHA CHILDREN'S HOSPITAL | D47: DR. K. SHIVA, 1ST FLOOR, BANK OF BARODA COMPLEX, JYOTHI BAPULE CHOWK, ADILABAD | E47: 8 | DW47: 3 | DZ47: 0 | EA47: 3 | EB47: 0 | EC47: 0
A48: 43 | B48: PRIME504001TSBH09756 | C48: PRIME NEURO GENERAL HOSPITAL | D48: 3rd Floor, Above Bank of Baroda, Faiz Tower, Bhuktapur, Telangana 504001 | E48: 7 | G48: 2 | K48: 2 | N48: 1 | R48: 2 | V48: 2 | Z48: 2 | AU48: 2 | AY48: 2 | BK48: 2 | BO48: 2 | BS48: 2 | CA48: 2 | CE48: 2 | CI48: 2 | CM48: 2 | CQ48: 2 | CT48: 3 | CY48: 2 | DB48: 2 | DF48: 2 | DJ48: 1 | DO48: 2 | DS48: 2 | DV48: 2 | DZ48: 17 | EA48: 30 | EB48: 0 | EC48: 0
A49: 44 | B49: SHREE504001TSBH00985 | C49: SHREE GAJANAN HOSPITAL | D49: Dr. ABHIJIT NUGURWAR,STATION ROAD, SHIVAJI CHOWK, ADILABAD. | E49: 6 | F49: 2 | J49: 2 | O49: 2 | S49: 2 | W49: 3 | AA49: 2 | AU49: 2 | AY49: 2 | BK49: 2 | BO49: 2 | BS49: 2 | CA49: 3 | CE49: 3 | CM49: 3 | CQ49: 3 | CT49: 3 | CY49: 3 | DB49: 3 | DF49: 2 | DJ49: 3 | DO49: 3 | DS49: 3 | DV49: 3 | DZ49: 18 | EA49: 40 | EB49: 0 | EC49: 0
A50: 45 | B50: ADILA504001TSBH08490 | C50: ADILABAD NEURO SUPER SPECIALITY HOSPITAL | D50: NEAR CENTRAL BANK OF INDIA, BESIDE TNGO' ROAD, DWARAKA NAGAR, ADILABAD Adilabad(V) Adilabad (Urban)(M) ADILABAD(D) Telangana-504001 | E50: 5 | F50: 2 | J50: 2 | N50: 2 | R50: 2 | V50: 2 | Z50: 1 | AT50: 1 | AX50: 2 | BJ50: 1 | BN50: 1 | BR50: 2 | BZ50: 2 | CD50: 2 | CH50: 2 | CL50: 2 | CP50: 2 | CU50: 2 | CX50: 2 | DC50: 2 | DF50: 2 | DK50: 2 | DN50: 2 | DR50: 2 | DY50: 2 | DZ50: 36 | EA50: 6 | EB50: 0 | EC50: 0
A51: 46 | B51: SEVAH504001TSBH01046 | C51: SEVA HOSPITAL & KIDNEY CENTRE | D51: NEAR THAKUR HOTEL, SHIVAJI CHOWK, ADILABAD | E51: 5 | G51: 1 | K51: 1 | O51: 1 | S51: 1 | W51: 1 | AA51: 1 | AU51: 1 | AY51: 1 | BK51: 1 | BO51: 1 | BS51: 3 | BZ51: 1 | CD51: 1 | CH51: 1 | CL51: 1 | CP51: 1 | CT51: 1 | CX51: 2 | DB51: 1 | DF51: 1 | DJ51: 1 | DK51: 2 | DN51: 1 | DR51: 1 | DV51: 1 | DZ51: 14 | EA51: 15 | EB51: 0 | EC51: 0
A52: 47 | B52: TIRUM504001TSBH07800 | C52: TIRUMALA HOSPITAL | D52: OPP: NEW BUS STAND, BESIDE HDFC ATM & DR. SWAMY CHILDREN HOSPITAL, ADILABAD | E52: 5 | G52: 1 | K52: 1 | N52: 1 | R52: 2 | V52: 2 | Z52: 2 | AT52: 1 | AX52: 1 | BJ52: 2 | BN52: 2 | BR52: 3 | BZ52: 2 | CD52: 2 | CH52: 2 | CL52: 1 | CP52: 1 | CT52: 2 | CX52: 2 | DD52: 1 | DF52: 2 | DJ52: 2 | DN52: 2 | DR52: 2 | DW52: 2 | DZ52: 36 | EA52: 4 | EB52: 1 | EC52: 0
A53: 48 | B53: ARUND504111TSBH06111 | C53: ARUN DENTAL CLINIC | D53: DR. ARUN KUMAR BADAVATH, SHIVAJI CHOWK LANE, ADILABAD. | E53: 3 | F53: 1 | J53: 1 | N53: 1 | R53: 1 | V53: 1 | Z53: 1 | AU53: 1 | AY53: 1 | BK53: 1 | BO53: 1 | BS53: 1 | BZ53: 2 | CD53: 1 | CH53: 1 | CL53: 1 | CP53: 1 | CU53: 1 | CX53: 1 | DC53: 1 | DF53: 2 | DJ53: 1 | DN53: 2 | DR53: 2 | DW53: 2 | DZ53: 20 | EA53: 9 | EB53: 0 | EC53: 0
A54: 49 | B54: MANAS504001TSBH01033 | C54: MANASVI CHILDRENS HOSPITAL | D54: Dr. N. SHARAD REDDY,BESIDE MAHESHWARI TALKIES, ADILABAD. 504001 | E54: 3 | F54: 1 | J54: 1 | O54: 2 | S54: 2 | W54: 2 | AA54: 2 | AU54: 1 | AY54: 1 | BK54: 1 | BO54: 1 | BS54: 3 | CA54: 1 | CE54: 3 | CH54: 2 | CL54: 2 | CP54: 2 | CU54: 3 | CX54: 2 | DC54: 2 | DG54: 3 | DK54: 2 | DO54: 1 | DS54: 1 | DV54: 2 | DZ54: 12 | EA54: 31 | EB54: 0 | EC54: 0
A55: 50 | B55: SRISA504001TSBH00909 | C55: SRI SAIRAM MULTISPECIALITY DENTAL CARE | D55: Dr.SAI RAM ,NETAJI CHOWK, ADILABAD | E55: 3 | F55: 1 | G55: 2 | J55: 1 | K55: 2 | N55: 2 | O55: 2 | R55: 2 | S55: 2 | V55: 1 | W55: 1 | Z55: 1 | AA55: 1 | AD55: 1 | AH55: 1 | AL55: 1 | AP55: 1 | AT55: 1 | AX55: 1 | BB55: 1 | BF55: 1 | BR55: 1 | BV55: 1 | DV55: 3 | DZ55: 21 | EA55: 10 | EB55: 0 | EC55: 0
A56: 51 | B56: VRUND504001TSBH09754 | C56: VRUNDAVAN HOSPITAL | D56: 4-3-74/56/1, Dwaraka Nagar, Ravindra Nagar Colony, Adilabad(U), Telangana 504001 | E56: 3 | F56: 2 | J56: 2 | O56: 2 | S56: 2 | W56: 1 | AA56: 2 | AD56: 1 | AH56: 1 | AL56: 1 | AP56: 1 | AT56: 1 | AX56: 1 | BB56: 1 | BF56: 1 | BJ56: 1 | BN56: 1 | BR56: 1 | BV56: 2 | BZ56: 1 | CD56: 1 | CH56: 1 | CL56: 1 | CP56: 1 | CU56: 2 | CX56: 1 | DC56: 1 | DG56: 2 | DK56: 2 | DN56: 1 | DR56: 1 | DV56: 1 | DZ56: 26 | EA56: 14 | EB56: 0 | EC56: 0
A57: 52 | B57: CAREH504001TSBH09737 | C57: CARE HOSPITAL | D57: DR. M. HEMANTH RAO, Mahalaxmiwada, Adilabad(U), Telangana 504001 | E57: 2 | G57: 1 | K57: 1 | N57: 1 | R57: 1 | W57: 1 | AA57: 1 | AD57: 1 | AH57: 1 | AL57: 1 | AP57: 1 | AU57: 1 | AY57: 1 | BC57: 1 | BF57: 1 | BK57: 2 | BO57: 2 | BS57: 1 | BW57: 1 | BZ57: 1 | CD57: 1 | CH57: 1 | CL57: 2 | CP57: 2 | CT57: 1 | CX57: 1 | DB57: 1 | DF57: 1 | DJ57: 1 | DN57: 1 | DR57: 1 | DV57: 1 | DZ57: 22 | EA57: 13 | EB57: 0 | EC57: 0
A58: 53 | B58: DISTR504001TSBH08539 | C58: DISTRICT VETERINARY HOSPITAL | D58: DISTRICT VETERINARY AND ANIMAL HUSBANDRY OFFICE, BHUKTHAPUR, ADILABAD,Adilabad,Adilabad (Urban),ADILABAD,504001 | E58: 2 | DZ58: 0 | EA58: 0 | EB58: 0 | EC58: 0
A59: 54 | B59: GURUK504001TSBH09738 | C59: GURUKRUPA SUPERSPECIALITY DENTAL CLINIC & IMPLANT CENTER | D59: DR. SWAPNIL VAIVASARE, OPP: HDFC BANK, NEAR MAHESHWARI THEATER, MAHALAXMIWADA, ADILABAD. | E59: 2 | DZ59: 0 | EA59: 0 | EB59: 0 | EC59: 0
A60: 55 | B60: MANAS504001TSBH09735 | C60: MANASA CLINIC | D60: Dr. C. S. BISWAS,MASOOD CHOWK, SATHNALA ROAD, ADILABAD. | E60: 2 | G60: 1 | K60: 1 | O60: 1 | S60: 2 | W60: 1 | AA60: 1 | AD60: 1 | AH60: 2 | AL60: 2 | AP60: 2 | AT60: 2 | AX60: 2 | BB60: 2 | BF60: 2 | BJ60: 2 | BN60: 2 | BR60: 1 | BV60: 2 | BZ60: 2 | CD60: 1 | CI60: 1 | CL60: 2 | CP60: 2 | CX60: 1 | DN60: 2 | DR60: 2 | DV60: 1 | DZ60: 35 | EA60: 8 | EB60: 0 | EC60: 0
A61: 56 | B61: DRSAN504001TSBH07698 | C61: DR SANDEEP PAWAR CLINIC | D61: Dr.SANDEEP POWAR,ADILABAD | E61: 1 | F61: 2 | J61: 2 | N61: 2 | R61: 2 | V61: 1 | Z61: 2 | AD61: 1 | AH61: 2 | AL61: 2 | AP61: 2 | AT61: 1 | AX61: 2 | BB61: 1 | BF61: 2 | BJ61: 1 | BN61: 1 | BR61: 1 | BV61: 1 | BZ61: 1 | CD61: 2 | CH61: 1 | CL61: 2 | CP61: 2 | CU61: 2 | CY61: 2 | DC61: 2 | DG61: 2 | DK61: 2 | DN61: 1 | DR61: 1 | DV61: 3 | DZ61: 41 | EA61: 10 | EB61: 0 | EC61: 0
A62: 57 | B62: GANAP504001TSBH00984 | C62: GANAPATI DIAGNOSTIC CENTRE | D62: Dr. RAJU RAMEKAR, BESIDE UNION BANK, CINEM ROAD, ADILIBAD. | E62: 1 | F62: 1 | J62: 1 | O62: 2 | S62: 2 | W62: 1 | AA62: 2 | AD62: 2 | AH62: 1 | AL62: 1 | AP62: 1 | AU62: 1 | AY62: 1 | BB62: 1 | BF62: 1 | BK62: 1 | BO62: 1 | BS62: 1 | BV62: 1 | CA62: 1 | CE62: 1 | CI62: 1 | CM62: 1 | CQ62: 1 | CU62: 1 | CX62: 1 | DC62: 2 | DG62: 2 | DK62: 2 | DO62: 1 | DS62: 1 | DV62: 2 | DZ62: 13 | EA62: 26 | EB62: 0 | EC62: 0
A63: 58 | B63: JAGAD504001TSBH01023 | C63: JAGADAMBA DIAGNOSTIC CENTRE, ADB | D63: Dr.NILESH K.AGARWAL,ADILABAD | E63: 1 | F63: 1 | J63: 1 | N63: 2 | R63: 2 | V63: 1 | Z63: 2 | AE63: 1 | AI63: 1 | AM63: 1 | AQ63: 1 | AU63: 1 | AY63: 1 | BC63: 1 | BG63: 1 | BJ63: 1 | BN63: 1 | BS63: 1 | BW63: 1 | BZ63: 1 | CD63: 2 | CH63: 2 | CL63: 1 | CP63: 1 | CT63: 1 | CX63: 1 | DB63: 1 | DF63: 1 | DJ63: 1 | DN63: 1 | DR63: 1 | DW63: 2 | DZ63: 25 | EA63: 12 | EB63: 0 | EC63: 0
A64: 59 | B64: SRIVE504001TSBH00890 | C64: SRI VENKATESHWARA DENTAL CLINIC, ADB | D64: Dr. L. PRAMOD REDDY,H.NO. 7-7-49/7/11, ABDUL KALAM ROAD,VIDYA NAGAR,ADB | E64: 1 | F64: 1 | J64: 1 | O64: 1 | S64: 3 | W64: 1 | AA64: 2 | AE64: 2 | AI64: 2 | AM64: 2 | AQ64: 1 | AT64: 2 | AX64: 2 | BC64: 1 | BG64: 2 | BJ64: 2 | BN64: 2 | BR64: 1 | BW64: 1 | CA64: 2 | CE64: 2 | CI64: 1 | CM64: 2 | CQ64: 2 | CU64: 1 | CY64: 1 | DC64: 2 | DG64: 2 | DK64: 1 | DO64: 2 | DS64: 2 | DZ64: 11 | EA64: 38 | EB64: 0 | EC64: 0
A65: 60 | B65: ADILA504001TSPL09755 | C65: ADILABAD DIAGNOSTIC CENTRE | D65: OPP: ANDHRA BANK, MAHESHWARI THEATRE ROAD, BESIDE SRI LAXMI MEDICAL HALL TNGOS HOME ROAD,ADILABAD | E65: 0 | G65: 1 | K65: 1 | R65: 2 | V65: 1 | Z65: 2 | AD65: 2 | AH65: 2 | AL65: 2 | AP65: 2 | AT65: 2 | AX65: 1 | BB65: 2 | BF65: 2 | BJ65: 2 | BN65: 2 | BR65: 1 | BV65: 1 | BZ65: 2 | CD65: 2 | CH65: 2 | CL65: 2 | CP65: 2 | CT65: 2 | CU65: 2 | CX65: 2 | DB65: 1 | DC65: 1 | DF65: 2 | DG65: 2 | DJ65: 2 | DK65: 2 | DN65: 2 | DR65: 2 | DZ65: 49 | EA65: 9 | EB65: 0 | EC65: 0
A66: 61 | B66: AREAV504304TSBH08540 | C66: AREA VETERINARY HOSPITAL BOATH | D66: "O/o Area Veterinary Hospital Boath village, Boath Mandal, Adilabad District",Boath (K),Boath,ADILABAD,504304 | E66: 0 | G66: 3 | K66: 2 | O66: 1 | S66: 1 | W66: 1 | AA66: 1 | AD66: 1 | AH66: 2 | AL66: 2 | AP66: 2 | AU66: 2 | AY66: 2 | BB66: 1 | BF66: 2 | BK66: 2 | BO66: 2 | BS66: 1 | BV66: 2 | BZ66: 2 | CD66: 1 | CH66: 1 | CL66: 2 | CP66: 2 | CU66: 1 | CX66: 2 | DC66: 2 | DG66: 1 | DK66: 2 | DN66: 1 | DR66: 1 | DY66: 2 | DZ66: 24 | EA66: 24 | EB66: 0 | EC66: 0
A67: 62 | C67: BALAJI HOSPITAL | D67: BESIDE NEW BUS STAND, ADILABAD. | E67: 0 | DZ67: 0 | EA67: 0 | EB67: 0 | EC67: 0
A68: 63 | B68: BLOOD504311TSBH06114 | C68: BLOOD BANK CHC UTNOOR | D68: BOYAWADA , NEAR OLD BUS STAND, UTNOOR,Utnoor,Utnoor,ADILABAD,504311 | E68: 0 | F68: 3 | J68: 3 | O68: 3 | S68: 3 | W68: 3 | AA68: 3 | AD68: 2 | AH68: 2 | AL68: 2 | AP68: 2 | AU68: 2 | AY68: 2 | BB68: 2 | BF68: 2 | BK68: 2 | BO68: 2 | BS68: 2 | BV68: 2 | BZ68: 2 | CD68: 2 | CH68: 3 | CL68: 2 | CP68: 2 | CT68: 2 | CX68: 2 | DB68: 3 | DF68: 3 | DJ68: 2 | DN68: 2 | DR68: 2 | DV68: 3 | DZ68: 50 | EA68: 22 | EB68: 0 | EC68: 0
A69: 64 | B69: DHARA504001TSNH09752 | C69: DHARAMCHAND CLINIC | D69: DR. DHARAMCHAND CHOUDHARI, D.NO.4-2-140/1, NEAR RAM SITA MANDIR, GANDHI CHOWK, ADILABAD | E69: 0 | F69: 1 | J69: 1 | N69: 1 | R69: 2 | V69: 1 | Z69: 1 | AD69: 1 | AH69: 2 | AL69: 2 | AP69: 1 | AU69: 1 | AY69: 1 | BB69: 1 | BF69: 1 | BK69: 1 | BO69: 1 | BS69: 1 | BV69: 1 | CA69: 1 | CE69: 2 | CI69: 2 | CM69: 1 | CQ69: 1 | CU69: 3 | CY69: 2 | DC69: 2 | DG69: 2 | DK69: 2 | DO69: 1 | DS69: 1 | DV69: 1 | DZ69: 17 | EA69: 25 | EB69: 0 | EC69: 0
A70: 65 | C70: DR. SUSHMA BHOOS REDDY HOSPITAL | D70: Dr.SUSHMA BHOOS REDDY,ADILABAD | E70: 0 | DZ70: 0 | EA70: 0 | EB70: 0 | EC70: 0
A71: 66 | C71: DR.D R CHOUDHARI | D71: DrD.R.CHOUDHARI,ADILABAD | E71: 0 | DZ71: =F71+J71+N71+R71+V71+Z71+AD71+AH71+AL71+AP71+AT71+AX71+BB71+BF71+BJ71+BN71+BR71+BV71+BZ71+CD71+CH71+CL71+CP71+CT71+CX71+DB71+DF71+DJ71+DN71+DR71+DV71 -> 0 | EA71: =G71+K71+O71+S71+W71+AA71+AE71+AI71+AM71+AQ71+AU71+AY71+BC71+BG71+BK71+BO71+BS71+BW71+CA71+CE71+CI71+CM71+CQ71+CU71+CY71+DC71+DG71+DK71+DO71+DS71+DW71 -> 0 | EB71: =H71+L71+P71+T71+X71+AB71+AF71+AJ71+AN71+AR71+AV71+AZ71+BD71+BH71+BL71+BP71+BT71+BX71+CB71+CF71+CJ71+CN71+CR71+CV71+CZ71+DD71+DH71+DL71+DP71+DT71 -> 0 | EC71: =I71+M71+Q71+U71+Y71+AC71+AG71+AK71+AO71+AS71+AW71+BA71+BE71+BI71+BM71+BQ71+BU71+BY71+CC71+CG71+CK71+CO71+CS71+CW71+DA71+DE71+DI71+DM71+DQ71+DU71 -> 0
A72: 67 | B72: HARSH504001TSBH08532 | C72: HARSHA SKIN & GENERAL HOSPITAL | D72: BESIDE AXIS BANK,ADILABAD | E72: 0 | F72: 2 | J72: 2 | N72: 1 | R72: 2 | V72: 2 | Z72: 2 | AE72: 1 | AI72: 1 | AM72: 1 | AQ72: 1 | AT72: 1 | AX72: 1 | BC72: 1 | BG72: 1 | BJ72: 1 | BN72: 1 | BR72: 1 | BW72: 1 | CA72: 1 | CE72: 2 | CI72: 1 | CM72: 1 | CQ72: 1 | CU72: 3 | CY72: 2 | DC72: 1 | DG72: 2 | DK72: 2 | DO72: 1 | DS72: 1 | DW72: 1 | DZ72: 16 | EA72: 26 | EB72: 0 | EC72: 0
A73: 68 | B73: KALLE503001TSBH07069 | C73: KALLEM BHOOMAREDDY ENT CARE | D73: Dr.YELMA BHOOMA REDDY,OPP.MAHESHWARI THEATRE,ADILABAD. | E73: 0 | G73: 2 | K73: 2 | O73: 2 | S73: 2 | W73: 2 | AA73: 2 | AD73: 1 | AH73: 2 | AL73: 2 | AP73: 1 | AU73: 2 | AY73: 2 | BB73: 1 | BF73: 1 | BK73: 1 | BO73: 1 | BS73: 2 | BV73: 2 | BZ73: 2 | CD73: 2 | CH73: 2 | CL73: 2 | CP73: 2 | CT73: 2 | CX73: 2 | DB73: 2 | DF73: 2 | DJ73: 2 | DN73: 2 | DR73: 2 | DY73: 1 | DZ73: 34 | EA73: 20 | EB73: 0 | EC73: 0
A74: 69 | B74: KARTI504001TSBH07807 | C74: KARTIKEYA HOSPITAL | D74: NEAR CENTRAL BANK OF INDIA. ADILABAD | E74: 0 | F74: 1 | J74: 1 | N74: 1 | R74: 1 | V74: 2 | Z74: 1 | AE74: 1 | AI74: 2 | AM74: 2 | AQ74: 1 | AT74: 2 | AX74: 1 | BC74: 2 | BG74: 1 | BJ74: 1 | BN74: 1 | BR74: 1 | BW74: 1 | BZ74: 1 | CD74: 1 | CH74: 1 | CL74: 1 | CP74: 1 | CT74: 2 | CX74: 1 | DB74: 2 | DF74: 2 | DJ74: 1 | DN74: 1 | DR74: 1 | DV74: 1 | DZ74: 29 | EA74: 10 | EB74: 0 | EC74: 0
A75: 70 | C75: SIDDI VINAYAKA ORTHO | D75: Dr. DEEPAK PUSHKAR,1st FLOOR, BESIDE KARUR VYSYA BANK,STATION ROAD,ADILIBAD | E75: 0 | DZ75: 0 | EA75: 0 | EB75: 0 | EC75: 0
A76: 71 | B76: SINDH504001TSDH09733 | C76: SINDHU DENTAL CLINIC | D76: Dr. ANIL TATE, 3-7-29/c,shivaji chowk,chincharawada Station, road, Mahalaxmiwada, Adilabad(U), Telangana 504001 | E76: 0 | G76: 2 | K76: 2 | N76: 2 | R76: 2 | V76: 2 | Z76: 1 | AD76: 1 | AH76: 1 | AL76: 1 | AP76: 2 | AU76: 1 | AY76: 2 | BB76: 1 | BF76: 1 | BK76: 2 | BO76: 2 | BS76: 2 | BV76: 2 | CA76: 2 | CE76: 2 | CI76: 2 | CM76: 2 | CQ76: 2 | CT76: 2 | CY76: 2 | DB76: 2 | DF76: 2 | DK76: 2 | DO76: 2 | DS76: 2 | DW76: 2 | DZ76: 22 | EA76: 33 | EB76: 0 | EC76: 0
A77: 72 | C77: SOUMYA DIAGNOSTICS CENTRE | D77: ADILABAD | E77: 0 | DZ77: 0 | EA77: 0 | EB77: 0 | EC77: 0
A78: 73 | B78: SRIVI504001TSDH09732 | C78: SRI VIJAYA SAI DENTAL CLINIC | D78: DR. AAREWAR CHANDRAKANTH, Station road shivaji chowk. Opp. Sai bar and Restaurant, Station road, near takur hotel, Adilabad(U), Telangana 504001 | E78: 0 | G78: 2 | K78: 2 | N78: 2 | R78: 2 | V78: 2 | Z78: 1 | AE78: 1 | AI78: 2 | AM78: 2 | AQ78: 1 | AU78: 1 | AY78: 1 | BC78: 1 | BG78: 1 | BK78: 1 | BO78: 1 | BS78: 1 | BW78: 2 | BZ78: 2 | CD78: 2 | CH78: 1 | CL78: 2 | CP78: 2 | CU78: 3 | CX78: 2 | DC78: 2 | DG78: 2 | DK78: 2 | DN78: 2 | DR78: 2 | DY78: 1 | DZ78: 22 | EA78: 28 | EB78: 0 | EC78: 0
A79: 74 | C79: SUHAS HOSPITAL ADB | D79: Dr. P. KRANTHI,OPP. BUS STAND, BESIDE ARYABHATTA SCHOOL,ADB | E79: 0 | DZ79: 0 | EA79: 0 | EB79: 0 | EC79: 0
A80: 75 | B80: THYRO504001TSPL09751 | C80: THYROCARE SAMPLE COLLECTION CENTRE | D80: Door No - 7-1-55, Muncipal Colony, near Sandeep Pawar Hospital, Dwaraka Nagar, Adilabad | E80: 0 | F80: 1 | J80: 1 | N80: 1 | R80: 2 | V80: 1 | Z80: 1 | AE80: 1 | AI80: 2 | AM80: 2 | AQ80: 2 | AT80: 1 | BC80: 1 | BG80: 2 | BJ80: 1 | BN80: 1 | BR80: 1 | BW80: 1 | BZ80: 2 | CE80: 2 | CH80: 2 | CL80: 2 | CP80: 2 | CU80: 3 | CX80: 2 | DC80: 2 | DG80: 2 | DK80: 1 | DN80: 2 | DR80: 2 | DV80: 1 | DZ80: 26 | EA80: 21 | EB80: 0 | EC80: 0
A81: 76 | B81: TRINE504001TSBH06190 | C81: TRINETRAA DIAGNOSTICS CENTRE | D81: MKA ASSOCIATES ,STREET NO. 3, DWARAKANAGAR, ADILABAD | E81: 0 | F81: 1 | J81: 1 | N81: 1 | R81: 1 | V81: 1 | Z81: 1 | AD81: 1 | AH81: 1 | AL81: 1 | AP81: 1 | AU81: 1 | AY81: 1 | BB81: 1 | BF81: 1 | BK81: 1 | BO81: 1 | BS81: 1 | BV81: 1 | BZ81: 2 | CD81: 2 | CH81: 1 | CL81: 2 | CP81: 2 | CU81: 2 | CX81: 1 | DC81: 1 | DG81: 2 | DJ81: 1 | DN81: 2 | DR81: 2 | DV81: 2 | DZ81: 30 | EA81: 10 | EB81: 0 | EC81: 0
A82: 77 | B82: VAZED504001TSPL09736 | C82: VAZE DIAGNOSTICS | D82: Dr. PRAFULL H. VAZE,4-2-1, Old Bus Stand Rd, Kumarpet, Mahalaxmiwada, Adilabad(U), Telangana 504001 | E82: 0 | G82: 3 | K82: 2 | N82: 2 | R82: 2 | V82: 3 | Z82: 1 | AD82: 1 | AH82: 1 | AL82: 1 | AP82: 2 | AU82: 1 | AY82: 1 | BB82: 1 | BF82: 1 | BK82: 2 | BO82: 2 | BS82: 2 | BV82: 1 | CA82: 2 | CE82: 2 | CI82: 1 | CM82: 2 | CQ82: 2 | CT82: 2 | CY82: 2 | DB82: 1 | DF82: 2 | DJ82: 1 | DO82: 2 | DS82: 2 | DW82: 2 | DZ82: 22 | EA82: 30 | EB82: 0 | EC82: 0
A83: 78 | C83: VIGNESHWARA HOSPITAL | D83: Dr. V.RAVIKANTH RAO,NEAR NATRAJ THEATRE, ADILABAD. | E83: 0 | DZ83: 0 | EA83: 0 | EB83: 0 | EC83: 0
A84: 79 | C84: KALAVATHI VOLUNTARY BLOOD BANK ( A UNIT OF KALAVATHI WELFARE SOCIETY ) | D84: ADILABAD | E84: 0 | DZ84: 0 | EA84: 0 | EB84: 0 | EC84: 0
A85: 80 | B85: NAROT504001TSCL10113 | C85: NAROTHAM REDDY CHILDREN'S CLINIC | D85: NEAR CENTRAL LIBRARY, BESIDE SRI CRITICAL CARE HOSPITAL, NETHAJI CHOWK, ADILABAD | E85: 0 | F85: 1 | J85: 1 | N85: 1 | R85: 2 | V85: 1 | Z85: 1 | AD85: 1 | AH85: 1 | AL85: 1 | AP85: 1 | AT85: 1 | AX85: 2 | BB85: 1 | BF85: 1 | BJ85: 1 | BN85: 1 | BR85: 1 | BV85: 1 | CA85: 2 | CE85: 1 | CI85: 1 | CM85: 2 | CQ85: 2 | CU85: 1 | CY85: 1 | DC85: 2 | DG85: 2 | DJ85: 1 | DO85: 2 | DS85: 2 | DV85: 1 | DZ85: 22 | EA85: 18 | EB85: 0 | EC85: 0
C86: TOTAL | E86: =SUM(E4:E85) -> 1126 | F86: =SUM(F4:F85) -> 66 | G86: =SUM(G4:G85) -> 54 | H86: =SUM(H4:H85) -> 0 | I86: =SUM(I4:I85) -> 0 | J86: =SUM(J4:J85) -> 63 | K86: 49 | L86: 0 | M86: 0 | N86: 63 | O86: 57 | P86: 0 | Q86: 0 | R86: 75 | S86: 67 | T86: 0 | U86: 0 | V86: 64 | W86: 59 | X86: 0 | Y86: 0 | Z86: 55 | AA86: 58 | AB86: 0 | AC86: 0 | AD86: 37 | AE86: 31 | AF86: 0 | AG86: 0 | AH86: 40 | AI86: 34 | AJ86: 0 | AK86: 0 | AL86: 40 | AM86: 31 | AN86: 0 | AO86: 0 | AP86: 45 | AQ86: 35 | AR86: 0 | AS86: 0 | AT86: 55 | AU86: 51 | AV86: 0 | AW86: 0 | AX86: 54 | AY86: 51 | AZ86: 0 | BA86: 0 | BB86: 37 | BC86: 30 | BD86: 0 | BE86: 0 | BF86: 39 | BG86: 32 | BH86: 0 | BI86: 0 | BJ86: 54 | BK86: 53 | BL86: 0 | BM86: 0 | BN86: 53 | BO86: 50 | BP86: 0 | BQ86: 0 | BR86: 58 | BS86: 59 | BT86: 0 | BU86: 0 | BV86: =SUM(BV4:BV85) -> 39 | BW86: 35 | BX86: 0 | BY86: 0 | BZ86: 61 | CA86: 69 | CB86: 0 | CC86: 0 | CD86: 53 | CE86: 75 | CF86: 2 | CG86: 0 | CH86: 55 | CI86: 64 | CJ86: 0 | CK86: 0 | CL86: 67 | CM86: 67 | CN86: 0 | CO86: 0 | CP86: 62 | CQ86: 59 | CR86: 0 | CS86: 0 | CT86: 62 | CU86: 80 | CV86: 0 | CW86: 0 | CX86: 59 | CY86: 75 | CZ86: 0 | DA86: 0 | DB86: 52 | DC86: 80 | DD86: 1 | DE86: 0 | DF86: 61 | DG86: 68 | DH86: 0 | DI86: 0 | DJ86: 55 | DK86: 68 | DL86: 0 | DM86: 0 | DN86: =SUM(DN4:DN85) -> 61 | DO86: =SUM(DO4:DO85) -> 67 | DP86: =SUM(DP4:DP85) -> 0 | DQ86: =SUM(DQ4:DQ85) -> 0 | DR86: 61 | DS86: 67 | DT86: 0 | DU86: 0 | DV86: 87 | DW86: 43 | DX86: 0 | DY86: 10 | DZ86: =F86+J86+N86+R86+V86+Z86+AD86+AH86+AL86+AP86+AT86+AX86+BB86+BF86+BJ86+BN86+BR86+BV86+BZ86+CD86+CH86+CL85+CP85+CT85+CX86+DB86+DF86+DJ86+DN86+DR86+DV85 -> 1456 | EA86: =G86+K86+O86+S86+W86+AA86+AE86+AI86+AM86+AQ86+AU86+AY86+BC86+BG86+BK86+BO86+BS86+BW86+CA86+CE86+CI86+CM85+CQ85+CU85+CY86+DC86+DG86+DK86+DO86+DS86+DW85 -> 1474 | EB86: =H86+L86+P86+T86+X86+AB86+AF86+AJ86+AN86+AR86+AV86+AZ86+BD86+BH86+BL86+BP86+BT86+BX86+CB86+CF86+CJ86+CN85+CR85+CV85+CZ86+DD86+DH86+DL86+DP86+DT86 -> 3 | EC86: =I86+M86+Q86+U86+Y86+AC86+AG86+AK86+AO86+AS86+AW86+BA86+BE86+BI86+BM86+BQ86+BU86+BY86+CC86+CG86+CK86+CO85+CS85+CW85+DA86+DE86+DI86+DM86+DQ86+DU86+DY86 -> 10
DZ88: =F88+J88+N88+R88+V88+Z88+AD88+AH88+AL88+AP88+AT88+AX88+BB88+BF88+BJ88+BN88+BR88+BV88+BZ88+CD88+CH88+CL88+CP88+CT88+CX88+DB88+DF88+DJ88+DN88+DR88+DV88 -> 0 | EA88: =G88+K88+O88+S88+W88+AA88+AE88+AI88+AM88+AQ88+AU88+AY88+BC88+BG88+BK88+BO88+BS88+BW88+CA88+CE88+CI88+CM88+CQ88+CU88+CY88+DC88+DG88+DK88+DO88+DS88+DW88 -> 0 | EB88: =H88+L88+P88+T88+X88+AB88+AF88+AJ88+AN88+AR88+AV88+AZ88+BD88+BH88+BL88+BP88+BT88+BX88+CB88+CF88+CJ88+CN88+CR88+CV88+CZ88+DD88+DH88+DL88+DP88+DT88+DX88 -> 0 | EC88: =I88+M88+Q88+U88+Y88+AC88+AG88+AK88+AO88+AS88+AW88+BA88+BE88+BI88+BM88+BQ88+BU88+BY88+CC88+CG88+CK88+CO88+CS88+CW88+DA88+DE88+DI88+DM88+DQ88+DU88+DY88 -> 0
DZ89: 0 | EA89: 0 | EB89: 0 | EC89: 0
DZ90: 0 | EA90: 0 | EB90: 0 | EC90: 0
DZ91: 0 | EA91: 0 | EB91: 0 | EC91: 0
DZ92: 0 | EA92: 0 | EB92: 0 | EC92: 0
DZ93: 0 | EA93: 0 | EB93: 0 | EC93: 0
DZ94: 0 | EA94: 0 | EB94: 0 | EC94: 0
DZ95: 0 | EA95: 0 | EB95: 0 | EC95: 0
DZ96: 0 | EA96: 0 | EB96: 0 | EC96: 0
DZ97: 0 | EA97: 0 | EB97: 0 | EC97: 0
DZ98: 0 | EA98: 0 | EB98: 0 | EC98: 0
DZ99: 0 | EA99: 0 | EB99: 0 | EC99: 0
DZ100: 0 | EA100: 0 | EB100: 0 | EC100: 0
DZ101: 0 | EA101: 0 | EB101: 0 | EC101: 0
DZ102: 0 | EA102: 0 | EB102: 0 | EC102: 0
DZ103: 0 | EA103: 0 | EB103: 0 | EC103: 0
DZ104: 0 | EA104: 0 | EB104: 0 | EC104: 0
DZ105: 0 | EA105: 0 | EB105: 0 | EC105: 0
DZ106: 0 | EA106: 0 | EB106: 0 | EC106: 0
DZ107: 0 | EA107: 0 | EB107: 0 | EC107: 0
DZ108: 0 | EA108: 0 | EB108: 0 | EC108: 0
DZ109: 0 | EA109: 0 | EB109: 0 | EC109: 0
DZ110: 0 | EA110: 0 | EB110: 0 | EC110: 0
DZ111: 0 | EA111: 0 | EB111: 0 | EC111: 0
DZ112: 0 | EA112: 0 | EB112: 0 | EC112: 0
DZ113: 0 | EA113: 0 | EB113: 0 | EC113: 0
DZ114: 0 | EA114: 0 | EB114: 0 | EC114: 0
DZ115: 0 | EA115: 0 | EB115: 0 | EC115: 0
DZ116: 0 | EA116: 0 | EB116: 0 | EC116: 0
DZ117: 0 | EA117: 0 | EB117: 0 | EC117: 0
DZ118: 0 | EA118: 0 | EB118: 0 | EC118: 0
DZ119: 0 | EA119: 0 | EB119: 0 | EC119: 0
DZ120: 0 | EA120: 0 | EB120: 0 | EC120: 0
DZ121: 0 | EA121: 0 | EB121: 0 | EC121: 0
DZ122: 0 | EA122: 0 | EB122: 0 | EC122: 0
DZ123: 0 | EA123: 0 | EB123: 0 | EC123: 0
DZ124: 0 | EA124: 0 | EB124: 0 | EC124: 0
DZ125: 0 | EA125: 0 | EB125: 0 | EC125: 0
DZ126: 0 | EA126: 0 | EB126: 0 | EC126: 0
DZ127: 0 | EA127: 0 | EB127: 0 | EC127: 0
DZ128: 0 | EA128: 0 | EB128: 0 | EC128: 0
DZ129: 0 | EA129: 0 | EB129: 0 | EC129: 0
DZ130: 0 | EA130: 0 | EB130: 0 | EC130: 0
DZ131: 0 | EA131: 0 | EB131: 0 | EC131: 0
DZ132: 0 | EA132: 0 | EB132: 0 | EC132: 0
DZ133: =F133+J133+N133+R133+V133+Z133+AD133+AH133+AL133+AP133+AT133+AX133+BB133+BF133+BJ133+BN133+BR133+BV133+BZ133+CD133+CH133+CL133+CP133+CT133+CX133+DB133+DF133+DJ133+DN133+DR133+DV133 -> 0 | EA133: =G133+K133+O133+S133+W133+AA133+AE133+AI133+AM133+AQ133+AU133+AY133+BC133+BG133+BK133+BO133+BS133+BW133+CA133+CE133+CI133+CM133+CQ133+CU133+CY133+DC133+DG133+DK133+DO133+DS133+DW133 -> 0 | EB133: =H133+L133+P133+T133+X133+AB133+AF133+AJ133+AN133+AR133+AV133+AZ133+BD133+BH133+BL133+BP133+BT133+BX133+CB133+CF133+CJ133+CN133+CR133+CV133+CZ133+DD133+DH133+DL133+DP133+DT133+DX133 -> 0 | EC133: =I133+M133+Q133+U133+Y133+AC133+AG133+AK133+AO133+AS133+AW133+BA133+BE133+BI133+BM133+BQ133+BU133+BY133+CC133+CG133+CK133+CO133+CS133+CW133+DA133+DE133+DI133+DM133+DQ133+DU133+DY133 -> 0
DZ134: 0 | EA134: 0 | EB134: 0 | EC134: 0
DZ135: 0 | EA135: 0 | EB135: 0 | EC135: 0
DZ136: 0 | EA136: 0 | EB136: 0 | EC136: 0
DZ137: 0 | EA137: 0 | EB137: 0 | EC137: 0
DZ138: 0 | EA138: 0 | EB138: 0 | EC138: 0
DZ139: 0 | EA139: 0 | EB139: 0 | EC139: 0
DZ140: 0 | EA140: 0 | EB140: 0 | EC140: 0
DZ141: 0 | EA141: 0 | EB141: 0 | EC141: 0
DZ142: 0 | EA142: 0 | EB142: 0 | EC142: 0
DZ143: 0 | EA143: 0 | EB143: 0 | EC143: 0
DZ144: 0 | EA144: 0 | EB144: 0 | EC144: 0
DZ145: 0 | EA145: 0 | EB145: 0 | EC145: 0
DZ146: 0 | EA146: 0 | EB146: 0 | EC146: 0
DZ147: 0 | EA147: 0 | EB147: 0 | EC147: 0
DZ148: 0 | EA148: 0 | EB148: 0 | EC148: 0
DZ149: 0 | EA149: 0 | EB149: 0 | EC149: 0
DZ150: 0 | EA150: 0 | EB150: 0 | EC150: 0
DZ151: 0 | EA151: 0 | EB151: 0 | EC151: 0
DZ152: 0 | EA152: 0 | EB152: 0 | EC152: 0
DZ153: 0 | EA153: 0 | EB153: 0 | EC153: 0
DZ154: 0 | EA154: 0 | EB154: 0 | EC154: 0
DZ155: 0 | EA155: 0 | EB155: 0 | EC155: 0
DZ156: 0 | EA156: 0 | EB156: 0 | EC156: 0
DZ157: 0 | EA157: 0 | EB157: 0 | EC157: 0
DZ158: 0 | EA158: 0 | EB158: 0 | EC158: 0
DZ159: 0 | EA159: 0 | EB159: 0 | EC159: 0
DZ160: 0 | EA160: 0 | EB160: 0 | EC160: 0
DZ161: 0 | EA161: 0 | EB161: 0 | EC161: 0
DZ162: 0 | EA162: 0 | EB162: 0 | EC162: 0
DZ163: 0 | EA163: 0 | EB163: 0 | EC163: 0
DZ164: 0 | EA164: 0 | EB164: 0 | EC164: 0
DZ165: 0 | EA165: 0 | EB165: 0 | EC165: 0
DZ166: 0 | EA166: 0 | EB166: 0 | EC166: 0
DZ167: 0 | EA167: 0 | EB167: 0 | EC167: 0
DZ168: 0 | EA168: 0 | EB168: 0 | EC168: 0
DZ169: 0 | EA169: 0 | EB169: 0 | EC169: 0
DZ170: 0 | EA170: 0 | EB170: 0 | EC170: 0
DZ171: 0 | EA171: 0 | EB171: 0 | EC171: 0
DZ172: 0 | EA172: 0 | EB172: 0 | EC172: 0
DZ173: 0 | EA173: 0 | EB173: 0 | EC173: 0
DZ174: 0 | EA174: 0 | EB174: 0 | EC174: 0
DZ175: 0 | EA175: 0 | EB175: 0 | EC175: 0
DZ176: 0 | EA176: 0 | EB176: 0 | EC176: 0
DZ177: 0 | EA177: 0 | EB177: 0 | EC177: 0
DZ178: 0 | EA178: 0 | EB178: 0 | EC178: 0
DZ179: 0 | EA179: 0 | EB179: 0 | EC179: 0
DZ180: 0 | EA180: 0 | EB180: 0 | EC180: 0
DZ181: 0 | EA181: 0 | EB181: 0 | EC181: 0
DZ182: 0 | EA182: 0 | EB182: 0 | EC182: 0
DZ183: 0 | EA183: 0 | EB183: 0 | EC183: 0
DZ184: 0 | EA184: 0 | EB184: 0 | EC184: 0
DZ185: 0 | EA185: 0 | EB185: 0 | EC185: 0
DZ186: 0 | EA186: 0 | EB186: 0 | EC186: 0
DZ187: 0 | EA187: 0 | EB187: 0 | EC187: 0
DZ188: 0 | EA188: 0 | EB188: 0 | EC188: 0
DZ189: 0 | EA189: 0 | EB189: 0 | EC189: 0
DZ190: 0 | EA190: 0 | EB190: 0 | EC190: 0
DZ191: 0 | EA191: 0 | EB191: 0 | EC191: 0
DZ192: 0 | EA192: 0 | EB192: 0 | EC192: 0
DZ193: 0 | EA193: 0 | EB193: 0 | EC193: 0
DZ194: 0 | EA194: 0 | EB194: 0 | EC194: 0
DZ195: 0 | EA195: 0 | EB195: 0 | EC195: 0
DZ196: 0 | EA196: 0 | EB196: 0 | EC196: 0
DZ197: =F197+J197+N197+R197+V197+Z197+AD197+AH197+AL197+AP197+AT197+AX197+BB197+BF197+BJ197+BN197+BR197+BV197+BZ197+CD197+CH197+CL197+CP197+CT197+CX197+DB197+DF197+DJ197+DN197+DR197+DV197 -> 0 | EA197: =G197+K197+O197+S197+W197+AA197+AE197+AI197+AM197+AQ197+AU197+AY197+BC197+BG197+BK197+BO197+BS197+BW197+CA197+CE197+CI197+CM197+CQ197+CU197+CY197+DC197+DG197+DK197+DO197+DS197+DW197 -> 0 | EB197: =H197+L197+P197+T197+X197+AB197+AF197+AJ197+AN197+AR197+AV197+AZ197+BD197+BH197+BL197+BP197+BT197+BX197+CB197+CF197+CJ197+CN197+CR197+CV197+CZ197+DD197+DH197+DL197+DP197+DT197+DX197 -> 0 | EC197: =I197+M197+Q197+U197+Y197+AC197+AG197+AK197+AO197+AS197+AW197+BA197+BE197+BI197+BM197+BQ197+BU197+BY197+CC197+CG197+CK197+CO197+CS197+CW197+DA197+DE197+DI197+DM197+DQ197+DU197+DY197 -> 0
DZ198: 0 | EA198: 0 | EB198: 0 | EC198: 0
DZ199: 0 | EA199: 0 | EB199: 0 | EC199: 0
DZ200: 0 | EA200: 0 | EB200: 0 | EC200: 0
DZ201: 0 | EA201: 0 | EB201: 0 | EC201: 0
... 432 more rows

Sheet Asifabad
A1: =Nizamabad!A1 -> JANUARY MONTH REPORT | F1: =Nizamabad!F1 -> 2022-01-01 | J1: =Nizamabad!J1 -> 2022-01-02 | N1: =Nizamabad!N1 -> 2022-01-03 | R1: =Nizamabad!R1 -> 2022-01-04 | V1: =Nizamabad!V1 -> 2022-01-05 | Z1: =Nizamabad!Z1 -> 2022-01-06 | AD1: =Nizamabad!AD1 -> 2022-01-07 | AH1: =Nizamabad!AH1 -> 2022-01-08 | AL1: =Nizamabad!AL1 -> 2022-01-09 | AP1: =Nizamabad!AP1 -> 2022-01-10 | AT1: =Nizamabad!AT1 -> 2022-01-11 | AX1: =Nizamabad!AX1 -> 2022-01-12 | BB1: =Nizamabad!BB1 -> 2022-01-13 | BF1: =Nizamabad!BF1 -> 2022-01-14 | BJ1: =Nizamabad!BJ1 -> 2022-01-15 | BN1: =Nizamabad!BN1 -> 2022-01-16 | BR1: =Nizamabad!BR1 -> 2022-01-17 | BV1: =Nizamabad!BV1 -> 2022-01-18 | BZ1: =Nizamabad!BZ1 -> 2022-01-19 | CD1: =Nizamabad!CD1 -> 2022-01-20 | CH1: =Nizamabad!CH1 -> 2022-01-21 | CL1: =Nizamabad!CL1 -> 2022-01-22 | CP1: =Nizamabad!CP1 -> 2022-01-23 | CT1: =Nizamabad!CT1 -> 2022-01-24 | CX1: =Nizamabad!CX1 -> 2022-01-25 | DB1: =Nizamabad!DB1 -> 2022-01-26 | DF1: =Nizamabad!DF1 -> 2022-01-27 | DJ1: =Nizamabad!DJ1 -> 2022-01-28 | DN1: =Nizamabad!DN1 -> 2022-01-29 | DR1: =Nizamabad!DR1 -> 2022-01-30 | DV1: =Nizamabad!DV1 -> 2022-01-31 | DZ1: TOTAL
A2: SNO | B2: HCF ID | C2: NAME OF THE HCF | D2: ADDRESS OF THE HCFS | E2: NO.OF BEDS | F2: Yellow | G2: Red | H2: Blue | I2: White | J2: Yellow | K2: Red | L2: Blue | M2: White | N2: Yellow | O2: Red | P2: Blue | Q2: White | R2: Yellow | S2: Red | T2: Blue | U2: White | V2: Yellow | W2: Red | X2: Blue | Y2: White | Z2: Yellow | AA2: Red | AB2: Blue | AC2: White | AD2: Yellow | AE2: Red | AF2: Blue | AG2: White | AH2: Yellow | AI2: Red | AJ2: Blue | AK2: White | AL2: Yellow | AM2: Red | AN2: Blue | AO2: White | AP2: Yellow | AQ2: Red | AR2: Blue | AS2: White | AT2: Yellow | AU2: Red | AV2: Blue | AW2: White | AX2: Yellow | AY2: Red | AZ2: Blue | BA2: White | BB2: Yellow | BC2: Red | BD2: Blue | BE2: White | BF2: Yellow | BG2: Red | BH2: Blue | BI2: White | BJ2: Yellow | BK2: Red | BL2: Blue | BM2: White | BN2: Yellow | BO2: Red | BP2: Blue | BQ2: White | BR2: Yellow | BS2: Red | BT2: Blue | BU2: White | BV2: Yellow | BW2: Red | BX2: Blue | BY2: White | BZ2: Yellow | CA2: Red | CB2: Blue | CC2: White | CD2: Yellow | CE2: Red | CF2: Blue | CG2: White | CH2: Yellow | CI2: Red | CJ2: Blue | CK2: White | CL2: Yellow | CM2: Red | CN2: Blue | CO2: White | CP2: Yellow | CQ2: Red | CR2: Blue | CS2: White | CT2: Yellow | CU2: Red | CV2: Blue | CW2: White | CX2: Yellow | CY2: Red | CZ2: Blue | DA2: White | DB2: Yellow | DC2: Red | DD2: Blue | DE2: White | DF2: Yellow | DG2: Red | DH2: Blue | DI2: White | DJ2: Yellow | DK2: Red | DL2: Blue | DM2: White | DN2: Yellow | DO2: Red | DP2: Blue | DQ2: White | DR2: Yellow | DS2: Red | DT2: Blue | DU2: White | DV2: Yellow | DW2: Red | DX2: Blue | DY2: White | DZ2: Yellow | EA2: Red | EB2: Blue | EC2: White
A3: BELOW 100 BEDS HCFs
A4: 1 | B4: DISTR504293TSBH06110 | C4: GOVT. HOSPITAL ASIFABAD | D4: NEAR BUS STATION, ASIFABAD | E4: 60 | F4: 1 | G4: 1 | J4: 1 | K4: 1 | N4: 1 | O4: 1 | R4: 1 | S4: 1 | V4: 1 | W4: 1 | Z4: 1 | AA4: 1 | AD4: 1 | AE4: 1 | AH4: 1 | AI4: 1 | AL4: 1 | AM4: 1 | AP4: 1 | AQ4: 1 | AT4: 1 | AU4: 1 | AX4: 1 | AY4: 1 | BB4: 1 | BC4: 1 | BF4: 1 | BG4: 1 | BJ4: 1 | BK4: 1 | BN4: 1 | BO4: 1 | BR4: 1 | BS4: 1 | BV4: 1 | BW4: 1 | BZ4: 1 | CA4: 1 | CD4: 1 | CE4: 1 | CH4: 1 | CI4: 1 | CL4: 1 | CM4: 1 | CP4: 1 | CQ4: 1 | CT4: 1 | CU4: 1 | CX4: 1 | CY4: 1 | DB4: 1 | DC4: 1 | DF4: 1 | DG4: 1 | DJ4: 1 | DK4: 1 | DN4: 1 | DO4: 1 | DR4: 1 | DS4: 1 | DV4: 1 | DW4: 1 | DZ4: =F4+J4+N4+R4+V4+Z4+AD4+AH4+AL4+AP4+AT4+AX4+BB4+BF4+BJ4+BN4+BR4+BV4+BZ4+CD4+CH4+CL4+CP4+CT4+CX4+DB4+DF4+DJ4+DN4+DR4+DV4 -> 31 | EA4: =G4+K4+O4+S4+W4+AA4+AE4+AI4+AM4+AQ4+AU4+AY4+BC4+BG4+BK4+BO4+BS4+BW4+CA4+CE4+CI4+CM4+CQ4+CU4+CY4+DC4+DG4+DK4+DO4+DS4+DW4 -> 31 | EB4: =H4+L4+P4+T4+X4+AB4+AF4+AJ4+AN4+AR4+AV4+AZ4+BD4+BH4+BL4+BP4+BT4+BX4+CB4+CF4+CJ4+CN4+CR4+CV4+CZ4+DD4+DH4+DL4+DP4+DT4+DX4 -> 0 | EC4: =I4+M4+Q4+U4+Y4+AC4+AG4+AK4+AO4+AS4+AW4+BA4+BE4+BI4+BM4+BQ4+BU4+BY4+CC4+CG4+CK4+CO4+CS4+CW4+DA4+DE4+DI4+DM4+DQ4+DU4+DY4 -> 0
A5: 2 | B5: COMMU504293TSBH09923 | C5: COMMUNITY HEALTH CENTER, ASIFABAD | D5: H.NO.3-108, NAR BUS STAND, BAPUNAGAR, ASIFABAD | E5: 50 | F5: 1 | J5: 1 | N5: 1 | R5: 1 | V5: 1 | Z5: 1 | AD5: 1 | AH5: 1 | AL5: 1 | AP5: 1 | AT5: 1 | AX5: 1 | BB5: 1 | BF5: 1 | BJ5: 1 | BN5: 1 | BR5: 1 | BV5: 1 | BZ5: 1 | CD5: 1 | CH5: 1 | CL5: 1 | CP5: 1 | CT5: 1 | CX5: 1 | DB5: 1 | DF5: 1 | DJ5: 1 | DN5: 1 | DR5: 1 | DV5: 1 | DZ5: =F5+J5+N5+R5+V5+Z5+AD5+AH5+AL5+AP5+AT5+AX5+BB5+BF5+BJ5+BN5+BR5+BV5+BZ5+CD5+CH5+CL5+CP5+CT5+CX5+DB5+DF5+DJ5+DN5+DR5+DV5 -> 31 | EA5: =G5+K5+O5+S5+W5+AA5+AE5+AI5+AM5+AQ5+AU5+AY5+BC5+BG5+BK5+BO5+BS5+BW5+CA5+CE5+CI5+CM5+CQ5+CU5+CY5+DC5+DG5+DK5+DO5+DS5+DW5 -> 0 | EB5: =H5+L5+P5+T5+X5+AB5+AF5+AJ5+AN5+AR5+AV5+AZ5+BD5+BH5+BL5+BP5+BT5+BX5+CB5+CF5+CJ5+CN5+CR5+CV5+CZ5+DD5+DH5+DL5+DP5+DT5+DX5 -> 0 | EC5: =I5+M5+Q5+U5+Y5+AC5+AG5+AK5+AO5+AS5+AW5+BA5+BE5+BI5+BM5+BQ5+BU5+BY5+CC5+CG5+CK5+CO5+CS5+CW5+DA5+DE5+DI5+DM5+DQ5+DU5+DY5 -> 0
A6: 3 | B6: KIMSH504296TSBH09900 | C6: K I M S HOSPITAL (KOTTAPALLI INSTITUTE OF MEDICAL SCIENCES) | D6: #1-16-553/3, OPP: MUNICIPAL OFFICE, BEHIND VENKATARAMANA THEATRE, KAGAZNAGAR, DIST. KUMARAMBHEEM ASIFABAD. | E6: 50 | F6: 1 | G6: 1 | J6: 1 | K6: 1 | N6: 1 | O6: 1 | R6: 1 | S6: 1 | V6: 1 | W6: 1 | Z6: 1 | AA6: 1 | AD6: 1 | AE6: 1 | AH6: 1 | AI6: 1 | AL6: 1 | AM6: 1 | AP6: 1 | AQ6: 1 | AT6: 1 | AU6: 1 | AX6: 1 | AY6: 1 | BB6: 1 | BC6: 1 | BF6: 1 | BG6: 1 | BJ6: 1 | BK6: 1 | BN6: 1 | BO6: 1 | BR6: 1 | BS6: 1 | BV6: 1 | BW6: 1 | BZ6: 1 | CA6: 1 | CD6: 1 | CE6: 1 | CH6: 1 | CI6: 1 | CL6: 1 | CM6: 1 | CP6: 1 | CQ6: 1 | CT6: 1 | CU6: 1 | CX6: 1 | CY6: 1 | DB6: 1 | DC6: 1 | DF6: 1 | DG6: 1 | DJ6: 1 | DK6: 1 | DN6: 1 | DO6: 1 | DR6: 1 | DS6: 1 | DV6: 1 | DW6: 1 | DZ6: 31 | EA6: 31 | EB6: 0 | EC6: 0
A7: 4 | B7: PRAJA504296TSBH09921 | C7: PRAJA LIFE CARE HOSPITAL | D7: OPP; H.P. PETROL PUMP, SIRPUR KAGHAZNAGAR-504296. #7893956532 | E7: 50 | F7: 1 | J7: 1 | N7: 1 | R7: 1 | V7: 1 | Z7: 1 | AD7: 1 | AH7: 1 | AL7: 1 | AP7: 1 | AT7: 1 | AX7: 1 | BB7: 1 | BF7: 1 | BJ7: 1 | BN7: 1 | BR7: 1 | BV7: 1 | BZ7: 1 | CD7: 1 | CH7: 1 | CL7: 1 | CP7: 1 | CT7: 1 | CX7: 1 | DB7: 1 | DF7: 1 | DJ7: 1 | DN7: 1 | DR7: 1 | DV7: 1 | DZ7: 31 | EA7: 0 | EB7: 0 | EC7: 0
A8: 5 | B8: COMMU504299TSBH09924 | C8: THIRUMALA SUPER SPECIALITY HOSPITAL, NIZAMABAD | D8: H.No.4-92, NEAR POST OFFICE, ARAB MOHALLA, SIRPUR(T),ASIFABAD -504299 | E8: 30 | G8: 1 | K8: 1 | O8: 1 | S8: 1 | W8: 1 | AA8: 1 | AE8: 1 | AI8: 1 | AM8: 1 | AQ8: 1 | AU8: 1 | AY8: 1 | BC8: 1 | BG8: 1 | BK8: 1 | BO8: 1 | BS8: 1 | BW8: 1 | CA8: 1 | CE8: 1 | CI8: 1 | CM8: 1 | CQ8: 1 | CU8: 1 | CY8: 1 | DC8: 1 | DG8: 1 | DK8: 1 | DO8: 1 | DS8: 1 | DW8: 1 | DZ8: 0 | EA8: 31 | EB8: 0 | EC8: 0
A9: 6 | B9: VIJET504296TSBH09908 | C9: VIJETHA HOSPITAL | D9: OPP ANDHRA BANK ATM, THIRANDAS TALKIES ROAD, SIRPUR-KAGHAZNAGAR-504296 | E9: 30 | F9: 1 | J9: 1 | N9: 1 | R9: 1 | V9: 1 | Z9: 1 | AD9: 1 | AH9: 1 | AL9: 1 | AP9: 1 | AT9: 1 | AX9: 1 | BB9: 1 | BF9: 1 | BJ9: 1 | BN9: 1 | BR9: 1 | BV9: 1 | BZ9: 1 | CD9: 1 | CH9: 1 | CL9: 1 | CP9: 1 | CT9: 1 | CX9: 1 | DB9: 1 | DF9: 1 | DJ9: 1 | DN9: 1 | DR9: 1 | DV9: 1 | DZ9: 31 | EA9: 0 | EB9: 0 | EC9: 0
A10: 7 | B10: HOLYT504346TSBH09922 | C10: HOLY TRINITY HOSPITAL | D10: H.No.63/2017, INDERVELLY, ADILABAD | E10: 25 | F10: 1 | J10: 1 | N10: 1 | R10: 1 | V10: 1 | Z10: 1 | AD10: 1 | AH10: 1 | AL10: 1 | AP10: 1 | AT10: 1 | AX10: 1 | BB10: 1 | BF10: 1 | BJ10: 1 | BN10: 1 | BR10: 1 | BV10: 1 | BZ10: 1 | CD10: 1 | CH10: 1 | CL10: 1 | CP10: 1 | CT10: 1 | CX10: 1 | DB10: 1 | DF10: 1 | DJ10: 1 | DN10: 1 | DR10: 1 | DV10: 1 | DZ10: 31 | EA10: 0 | EB10: 0 | EC10: 0
A11: 8 | B11: VIMAL504299TSBH09926 | C11: VIMALA LIFE CARE HOSPITAL | D11: D.No.3-298/1, BESIDE SBI, THALODI X ROAD, KOUTHULA, ASIFABAD | E11: 25 | F11: 1 | J11: 1 | N11: 1 | R11: 1 | V11: 1 | Z11: 1 | AD11: 1 | AH11: 1 | AL11: 1 | AP11: 1 | AT11: 1 | AX11: 1 | BB11: 1 | BF11: 1 | BJ11: 1 | BN11: 1 | BR11: 1 | BV11: 1 | BZ11: 1 | CD11: 1 | CH11: 1 | CL11: 1 | CP11: 1 | CT11: 1 | CX11: 1 | DB11: 1 | DF11: 1 | DJ11: 1 | DN11: 1 | DR11: 1 | DV11: 1 | DZ11: 31 | EA11: 0 | EB11: 0 | EC11: 0
A12: 9 | B12: VIJAY504296TSBH09925 | C12: VIJAYA HOSPITAL | D12: D.No.1-3-9, M.G. ROAD, OLD MADHU HOSPITAL BUILDING, SIRPUR-KAGHAZNAGAR- 504296 | E12: 24 | G12: 1 | K12: 1 | O12: 1 | S12: 1 | W12: 1 | AA12: 1 | AE12: 1 | AI12: 1 | AM12: 1 | AQ12: 1 | AU12: 1 | AY12: 1 | BC12: 1 | BG12: 1 | BK12: 1 | BO12: 1 | BS12: 1 | BW12: 1 | CA12: 1 | CE12: 1 | CI12: 1 | CM12: 1 | CQ12: 1 | CU12: 1 | CY12: 1 | DC12: 1 | DG12: 1 | DK12: 1 | DO12: 1 | DS12: 1 | DW12: 1 | DZ12: 0 | EA12: 31 | EB12: 0 | EC12: 0
A13: 10 | B13: ADITY504296TSBH09927 | C13: ADITYA NURSING HOME | D13: Dr.RAOJI RATNAM, D.No.1-14-378/3, YELLAGOUD THOTA,NEAR ESEVA, NEAR MUNICIPAL WATER TANK,SIRPUR KAGHAZNAGAR | E13: 20 | G13: 1 | K13: 1 | O13: 1 | S13: 1 | W13: 1 | AA13: 1 | AE13: 1 | AI13: 1 | AM13: 1 | AQ13: 1 | AU13: 1 | AY13: 1 | BC13: 1 | BG13: 1 | BK13: 1 | BO13: 1 | BS13: 1 | BW13: 1 | CA13: 1 | CE13: 1 | CI13: 1 | CM13: 1 | CQ13: 1 | CU13: 1 | CY13: 1 | DC13: 1 | DG13: 1 | DK13: 1 | DO13: 1 | DS13: 1 | DW13: 1 | DZ13: 0 | EA13: 31 | EB13: 0 | EC13: 0
A14: 11 | B14: JYOTH504296TSBH09915 | C14: JYOTHI HOSPITAL | D14: # 2-3-48, BESIDE STATE BANK, RAJEEV CHOWK,SIRPUR-KAGHAZNAGAR-504296 | E14: 20 | F14: 1 | J14: 1 | N14: 1 | R14: 1 | V14: 1 | Z14: 1 | AD14: 1 | AH14: 1 | AL14: 1 | AP14: 1 | AT14: 1 | AX14: 1 | BB14: 1 | BF14: 1 | BJ14: 1 | BN14: 1 | BR14: 1 | BV14: 1 | BZ14: 1 | CD14: 1 | CH14: 1 | CL14: 1 | CP14: 1 | CT14: 1 | CX14: 1 | DB14: 1 | DF14: 1 | DJ14: 1 | DN14: 1 | DR14: 1 | DV14: 1 | DZ14: 31 | EA14: 0 | EB14: 0 | EC14: 0
A15: 12 | B15: MADHU504296TSBH09929 | C15: MADHURA HOSPITAL | D15: D.No.1-69/2/2, BESIDE HP PETROL BUNK, SIRPUR-KAGHAZNAGAR-504296 | E15: 20 | G15: 1 | K15: 1 | O15: 1 | S15: 1 | W15: 1 | AA15: 1 | AE15: 1 | AI15: 1 | AM15: 1 | AQ15: 1 | AU15: 1 | AY15: 1 | BC15: 1 | BG15: 1 | BK15: 1 | BO15: 1 | BS15: 1 | BW15: 1 | CA15: 1 | CE15: 1 | CI15: 1 | CM15: 1 | CQ15: 1 | CU15: 1 | CY15: 1 | DC15: 1 | DG15: 1 | DK15: 1 | DO15: 1 | DS15: 1 | DW15: 1 | DZ15: 0 | EA15: 31 | EB15: 0 | EC15: 0
A16: 13 | B16: NAZAR504299TSBH09909 | C16: NAZARETH MISSION HOSPITAL | D16: 2-155/1, KOYAGUDA, VIJAYANAGAR ROAD, KOUTALA, KUMARAMBHEEM ASIFABAD | E16: 20 | F16: 1 | J16: 1 | N16: 1 | R16: 1 | V16: 1 | Z16: 1 | AD16: 1 | AH16: 1 | AL16: 1 | AP16: 1 | AT16: 1 | AX16: 1 | BB16: 1 | BF16: 1 | BJ16: 1 | BN16: 1 | BR16: 1 | BV16: 1 | BZ16: 1 | CD16: 1 | CH16: 1 | CL16: 1 | CP16: 1 | CT16: 1 | CX16: 1 | DB16: 1 | DF16: 1 | DJ16: 1 | DN16: 1 | DR16: 1 | DV16: 1 | DZ16: 31 | EA16: 0 | EB16: 0 | EC16: 0
A17: 14 | B17: SRILA504296TSBH09917 | C17: SRI LAXMI CHILDREN'S HOSPITAL | D17: Dr. ANITHA, H.No.1-16-273/6, OPP: INDIAN OIL PETROLPUMP, SIRPUR-KAGHAZNAGAR | E17: 20 | G17: 1 | K17: 1 | O17: 1 | S17: 1 | W17: 1 | AA17: 1 | AE17: 1 | AI17: 1 | AM17: 1 | AQ17: 1 | AU17: 1 | AY17: 1 | BC17: 1 | BG17: 1 | BK17: 1 | BO17: 1 | BS17: 1 | BW17: 1 | CA17: 1 | CE17: 1 | CI17: 1 | CM17: 1 | CQ17: 1 | CU17: 1 | CY17: 1 | DC17: 1 | DG17: 1 | DK17: 1 | DO17: 1 | DS17: 1 | DW17: 1 | DZ17: 0 | EA17: 31 | EB17: 0 | EC17: 0
A18: 15 | B18: USHAH504293TSBH09910 | C18: USHA HOSPITAL | D18: COURT CHOURASTHA, DANAPUR ROAD, ASIFABAD | E18: 20 | F18: 1 | J18: 1 | N18: 1 | R18: 1 | V18: 1 | Z18: 1 | AD18: 1 | AH18: 1 | AL18: 1 | AP18: 1 | AT18: 1 | AX18: 1 | BB18: 1 | BF18: 1 | BJ18: 1 | BN18: 1 | BR18: 1 | BV18: 1 | BZ18: 1 | CD18: 1 | CH18: 1 | CL18: 1 | CP18: 1 | CT18: 1 | CX18: 1 | DB18: 1 | DF18: 1 | DJ18: 1 | DN18: 1 | DR18: 1 | DV18: 1 | DZ18: 31 | EA18: 0 | EB18: 0 | EC18: 0
A19: 16 | B19: SRINI504293TSBH09912 | C19: SRINIVASA HOSPITAL | D19: D.NO.2-161/8, OPP: REGISTRATION OFFICE, NH-7 KUMARAMBHEEM CHOWK, ASIFABAD | E19: 15 | F19: 1 | J19: 1 | N19: 1 | R19: 1 | V19: 1 | Z19: 1 | AD19: 1 | AH19: 1 | AL19: 1 | AP19: 1 | AT19: 1 | AX19: 1 | BB19: 1 | BF19: 1 | BJ19: 1 | BN19: 1 | BR19: 1 | BV19: 1 | BZ19: 1 | CD19: 1 | CH19: 1 | CL19: 1 | CP19: 1 | CT19: 1 | CX19: 1 | DB19: 1 | DF19: 1 | DJ19: 1 | DN19: 1 | DR19: 1 | DV19: 1 | DZ19: 31 | EA19: 0 | EB19: 0 | EC19: 0
A20: 17 | B20: RAMAC504296TSBH09928 | C20: RAMA CHILDREN'S HOSPITAL | D20: 1-4-165, SUBASH ROAD, KAGAZNAGAR | E20: 6 | G20: 1 | K20: 1 | O20: 1 | S20: 1 | W20: 1 | AA20: 1 | AE20: 1 | AI20: 1 | AM20: 1 | AQ20: 1 | AU20: 1 | AY20: 1 | BC20: 1 | BG20: 1 | BK20: 1 | BO20: 1 | BS20: 1 | BW20: 1 | CA20: 1 | CE20: 1 | CI20: 1 | CM20: 1 | CQ20: 1 | CU20: 1 | CY20: 1 | DC20: 1 | DG20: 1 | DK20: 1 | DO20: 1 | DS20: 1 | DW20: 1 | DZ20: 0 | EA20: 31 | EB20: 0 | EC20: 0 | EE20: =SUM(EE3:EE19) -> 0 | EF20: 0 | EG20: 0 | EH20: 0 | EI20: 0 | EJ20: 0 | EK20: 0 | EL20: 0 | EM20: 0 | EN20: 0 | EO20: 0 | EP20: 0 | EQ20: 0 | ER20: 0 | ES20: 0 | ET20: 0 | EU20: 0 | EV20: 0 | EW20: 0 | EX20: 0 | EY20: 0 | EZ20: 0 | FA20: 0 | FB20: 0 | FC20: 0 | FD20: 0 | FE20: 0 | FF20: 0 | FG20: 0 | FH20: 0 | FI20: 0 | FJ20: 0 | FK20: 0 | FL20: 0 | FM20: 0 | FN20: 0 | FO20: 0 | FP20: 0 | FQ20: 0 | FR20: 0 | FS20: 0 | FT20: 0 | FU20: 0 | FV20: 0 | FW20: 0 | FX20: 0 | FY20: 0 | FZ20: 0 | GA20: 0 | GB20: 0 | GC20: 0 | GD20: 0 | GE20: 0 | GF20: 0 | GG20: 0 | GH20: 0 | GI20: 0 | GJ20: 0 | GK20: 0 | GL20: 0 | GM20: 0 | GN20: 0 | GO20: =SUM(GO3:GO19) -> 0 | GP20: 0 | GQ20: 0 | GR20: 0 | GS20: 0 | GT20: 0 | GU20: 0 | GV20: 0 | GW20: 0 | GX20: 0 | GY20: 0 | GZ20: 0 | HA20: 0 | HB20: 0 | HC20: 0 | HD20: 0 | HE20: 0 | HF20: 0 | HG20: 0 | HH20: 0 | HI20: 0 | HJ20: 0 | HK20: 0 | HL20: 0 | HM20: 0 | HN20: 0 | HO20: 0 | HP20: 0 | HQ20: 0 | HR20: 0 | HS20: 0 | HT20: 0 | HU20: 0 | HV20: 0 | HW20: 0 | HX20: 0 | HY20: 0 | HZ20: 0 | IA20: 0 | IB20: 0 | IC20: 0 | ID20: 0 | IE20: 0 | IF20: 0 | IG20: 0 | IH20: 0 | II20: 0 | IJ20: 0 | IK20: 0 | IL20: 0 | IM20: 0 | IN20: 0 | IO20: 0 | IP20: 0 | IQ20: 0 | IR20: 0 | IS20: 0 | IT20: 0 | IU20: 0 | IV20: 0 | IW20: 0
A21: 18 | B21: AYANC504296TSBH09914 | C21: AYAN CHILDREN'S HOSPITAL | D21: H.NO, 1-3-280, HAQ COMPLEX, Indira Market, Sriram Nagar, Kagaznagar (M), Telangana 504296 | E21: 5 | G21: 1 | K21: 1 | O21: 1 | S21: 1 | W21: 1 | AA21: 1 | AE21: 1 | AI21: 1 | AM21: 1 | AQ21: 1 | AU21: 1 | AY21: 1 | BC21: 1 | BG21: 1 | BK21: 1 | BO21: 1 | BS21: 1 | BW21: 1 | CA21: 1 | CE21: 1 | CI21: 1 | CM21: 1 | CQ21: 1 | CU21: 1 | CY21: 1 | DC21: 1 | DG21: 1 | DK21: 1 | DO21: 1 | DS21: 1 | DW21: 1 | DZ21: 0 | EA21: 31 | EB21: 0 | EC21: 0
A22: 19 | B22: SHAIL504296TSBH09918 | C22: SHAILAJA HOSPITAL | D22: D.NO.1-16-319, BESIDE TELANGANA GRAMEENA BANK, PETROL PUMP AREA,SIRPUR-KAGHAZNAGAR-504296 | E22: 5 | F22: 1 | J22: 1 | N22: 1 | R22: 1 | V22: 1 | Z22: 1 | AD22: 1 | AH22: 1 | AL22: 1 | AP22: 1 | AT22: 1 | AX22: 1 | BB22: 1 | BF22: 1 | BJ22: 1 | BN22: 1 | BR22: 1 | BV22: 1 | BZ22: 1 | CD22: 1 | CH22: 1 | CL22: 1 | CP22: 1 | CT22: 1 | CX22: 1 | DB22: 1 | DF22: 1 | DJ22: 1 | DN22: 1 | DR22: 1 | DV22: 1 | DZ22: 31 | EA22: 0 | EB22: 0 | EC22: 0
A23: 20 | B23: SRIVE504296TSBH09931 | C23: SRI VENKATESHWARA X RAY & CLINIC, SIRPUR KAGAZNAGAR, ASIFABAD | D23: DR GIRIDHARILAL MUNDADA, 1-2-57, NEAR AMBEDKAR CHOWK, Maulana Azad Rd, Nizamuddin Colony, Kagaznagar | E23: 5 | F23: 1 | J23: 1 | N23: 1 | R23: 1 | V23: 1 | Z23: 1 | AD23: 1 | AH23: 1 | AL23: 1 | AP23: 1 | AT23: 1 | AX23: 1 | BB23: 1 | BF23: 1 | BJ23: 1 | BN23: 1 | BR23: 1 | BV23: 1 | BZ23: 1 | CD23: 1 | CH23: 1 | CL23: 1 | CP23: 1 | CT23: 1 | CX23: 1 | DB23: 1 | DF23: 1 | DJ23: 1 | DN23: 1 | DR23: 1 | DV23: 1 | DZ23: 31 | EA23: 0 | EB23: 0 | EC23: 0
A24: 21 | B24: DRSMI504293TSBH09930 | C24: DR SMILE MULTISPECIALITY DENTAL HOSPITAL | D24: H.No.6-57/1/6, BESIDE ROSE GARDEN, MAIN ROAD, ASIFABAD | E24: 2 | F24: 1 | J24: 1 | N24: 1 | R24: 1 | V24: 1 | Z24: 1 | AD24: 1 | AH24: 1 | AL24: 1 | AP24: 1 | AT24: 1 | AX24: 1 | BB24: 1 | BF24: 1 | BJ24: 1 | BN24: 1 | BR24: 1 | BV24: 1 | BZ24: 1 | CD24: 1 | CH24: 1 | CL24: 1 | CP24: 1 | CT24: 1 | CX24: 1 | DB24: 1 | DF24: 1 | DJ24: 1 | DN24: 1 | DR24: 1 | DV24: 1 | DZ24: 31 | EA24: 0 | EB24: 0 | EC24: 0
A25: 22 | B25: BLOOD504293TSBH06115 | C25: BLOOD BANK, DIST. HOSPITAL | D25: NEAR BUS STATION, ASIFABAD | E25: 0 | F25: 1 | J25: 1 | N25: 1 | R25: 1 | V25: 1 | Z25: 1 | AD25: 1 | AH25: 1 | AL25: 1 | AP25: 1 | AT25: 1 | AX25: 1 | BB25: 1 | BF25: 1 | BJ25: 1 | BN25: 1 | BR25: 1 | BV25: 1 | BZ25: 1 | CD25: 1 | CH25: 1 | CL25: 1 | CP25: 1 | CT25: 1 | CX25: 1 | DB25: 1 | DF25: 1 | DJ25: 1 | DN25: 1 | DR25: 1 | DV25: 1 | DZ25: 31 | EA25: 0 | EB25: 0 | EC25: 0
A26: 23 | B26: DR.KR504296TSCL09913 | C26: DR KRISHNA RAO CLINIC | D26: 1-2-310, M.G. ROAD, SIRPUR KAGHAZNAGAR | E26: 0 | F26: 1 | J26: 1 | N26: 1 | R26: 1 | V26: 1 | Z26: 1 | AD26: 1 | AH26: 1 | AL26: 1 | AP26: 1 | AT26: 1 | AX26: 1 | BB26: 1 | BF26: 1 | BJ26: 1 | BN26: 1 | BR26: 1 | BV26: 1 | BZ26: 1 | CD26: 1 | CH26: 1 | CL26: 1 | CP26: 1 | CT26: 1 | CX26: 1 | DB26: 1 | DF26: 1 | DJ26: 1 | DN26: 1 | DR26: 1 | DV26: 1 | DZ26: 31 | EA26: 0 | EB26: 0 | EC26: 0
A27: 24 | B27: VASIS504293TSPL07801 | C27: VASISHTA DIAGNOSTIC CENTRE | D27: #1-16-333/5, OPP: PRAJA LIFE CARE HOSPITAL, KAGAZNAGAR | E27: 0 | F27: 1 | J27: 1 | N27: 1 | R27: 1 | V27: 1 | Z27: 1 | AD27: 1 | AH27: 1 | AL27: 1 | AP27: 1 | AT27: 1 | AX27: 1 | BB27: 1 | BF27: 1 | BJ27: 1 | BN27: 1 | BR27: 1 | BV27: 1 | BZ27: 1 | CD27: 1 | CH27: 1 | CL27: 1 | CP27: 1 | CT27: 1 | CX27: 1 | DB27: 1 | DF27: 1 | DJ27: 1 | DN27: 1 | DR27: 1 | DV27: 1 | DZ27: 31 | EA27: 0 | EB27: 0 | EC27: 0
A28: 25 | B28: MMSDE504293TSBH09965 | C28: MMS DENTAL HOSPITAL | D28: 1st Floor, above Grocery 4U Supermarket, Kumrambheem Chowk, Asifabad (CT), Telangana 504293 | E28: 3 | F28: 1 | G28: 1 | J28: 1 | K28: 1 | N28: 1 | O28: 1 | R28: 1 | S28: 1 | V28: 1 | W28: 1 | Z28: 1 | AA28: 1 | AD28: 1 | AE28: 1 | AH28: 1 | AI28: 1 | AL28: 1 | AM28: 1 | AP28: 1 | AQ28: 1 | AT28: 1 | AU28: 1 | AX28: 1 | AY28: 1 | BB28: 1 | BC28: 1 | BF28: 1 | BG28: 1 | BJ28: 1 | BK28: 1 | BN28: 1 | BO28: 1 | BR28: 1 | BS28: 1 | BV28: 1 | BW28: 1 | BZ28: 1 | CA28: 1 | CD28: 1 | CE28: 1 | CH28: 1 | CI28: 1 | CL28: 1 | CM28: 1 | CP28: 1 | CQ28: 1 | CT28: 1 | CU28: 1 | CX28: 1 | CY28: 1 | DB28: 1 | DC28: 1 | DF28: 1 | DG28: 1 | DJ28: 1 | DK28: 1 | DN28: 1 | DO28: 1 | DR28: 1 | DS28: 1 | DV28: 1 | DW28: 1 | DZ28: 31 | EA28: 31 | EB28: 0 | EC28: 0
A29: 26 | B29: SSANS504293TSBH10063 | C29: SS ANSARI HOSPITAL | D29: 5-168/1, K.B. CHOWK, ASIFABAD | E29: 20 | F29: 1 | J29: 1 | N29: 1 | R29: 1 | V29: 1 | Z29: 1 | AD29: 1 | AH29: 1 | AL29: 1 | AP29: 1 | AT29: 1 | AX29: 1 | BB29: 1 | BF29: 1 | BJ29: 1 | BN29: 1 | BR29: 1 | BV29: 1 | BZ29: 1 | CD29: 1 | CH29: 1 | CL29: 1 | CP29: 1 | CT29: 1 | CX29: 1 | DB29: 1 | DF29: 1 | DJ29: 1 | DN29: 1 | DR29: 1 | DV29: 1 | DZ29: 31 | EA29: 0 | EB29: 0 | EC29: 0
A30: 27 | B30: CHAIT504299TSCL11251 | C30: CHAITANYA POLY CLINIC | D30: THALODI X ROAD, VILL & MDL: KOUTALA, KOMARAMBHEEM ASIFABAD | E30: 0 | F30: 1 | J30: 1 | N30: 1 | R30: 1 | V30: 1 | Z30: 1 | AD30: 1 | AH30: 1 | AL30: 1 | AP30: 1 | AT30: 1 | AX30: 1 | BB30: 1 | BF30: 1 | BJ30: 1 | BN30: 1 | BR30: 1 | BV30: 1 | BZ30: 1 | CD30: 1 | CH30: 1 | CL30: 1 | CP30: 1 | CT30: 1 | CX30: 1 | DB30: 1 | DF30: 1 | DJ30: 1 | DN30: 1 | DR30: 1 | DV30: 1 | DZ30: =F30+J30+N30+R30+V30+Z30+AD30+AH30+AL30+AP30+AT30+AX30+BB30+BF30+BJ30+BN30+BR30+BV30+BZ30+CD30+CH30+CL30+CP30+CT30+CX30+DB30+DF30+DJ30+DN30+DR30+DV30 -> 31 | EA30: =G30+K30+O30+S30+W30+AA30+AE30+AI30+AM30+AQ30+AU30+AY30+BC30+BG30+BK30+BO30+BS30+BW30+CA30+CE30+CI30+CM30+CQ30+CU30+CY30+DC30+DG30+DK30+DO30+DS30+DW30 -> 0 | EB30: =H30+L30+P30+T30+X30+AB30+AF30+AJ30+AN30+AR30+AV30+AZ30+BD30+BH30+BL30+BP30+BT30+BX30+CB30+CF30+CJ30+CN30+CR30+CV30+CZ30+DD30+DH30+DL30+DP30+DT30+DX30 -> 0 | EC30: =I30+M30+Q30+U30+Y30+AC30+AG30+AK30+AO30+AS30+AW30+BA30+BE30+BI30+BM30+BQ30+BU30+BY30+CC30+CG30+CK30+CO30+CS30+CW30+DA30+DE30+DI30+DM30+DQ30+DU30+DY30 -> 0
C31: TOTAL | E31: =SUM(E4:E30) -> 525 | F31: =SUM(F4:F30) -> 20 | G31: =SUM(G4:G30) -> 10 | H31: =SUM(H4:H30) -> 0 | I31: =SUM(I4:I30) -> 0 | J31: =SUM(J4:J30) -> 20 | K31: 10 | L31: 0 | M31: 0 | N31: 20 | O31: 10 | P31: 0 | Q31: 0 | R31: 20 | S31: 10 | T31: 0 | U31: 0 | V31: 20 | W31: 10 | X31: 0 | Y31: 0 | Z31: 20 | AA31: 10 | AB31: 0 | AC31: 0 | AD31: 20 | AE31: 10 | AF31: 0 | AG31: 0 | AH31: 20 | AI31: 10 | AJ31: 0 | AK31: 0 | AL31: 20 | AM31: 10 | AN31: 0 | AO31: 0 | AP31: 20 | AQ31: 10 | AR31: 0 | AS31: 0 | AT31: 20 | AU31: 10 | AV31: 0 | AW31: 0 | AX31: 20 | AY31: 10 | AZ31: 0 | BA31: 0 | BB31: 20 | BC31: 10 | BD31: 0 | BE31: 0 | BF31: 20 | BG31: 10 | BH31: 0 | BI31: 0 | BJ31: 20 | BK31: 10 | BL31: 0 | BM31: 0 | BN31: 20 | BO31: 10 | BP31: 0 | BQ31: 0 | BR31: 20 | BS31: 10 | BT31: 0 | BU31: 0 | BV31: =SUM(BV4:BV30) -> 20 | BW31: 10 | BX31: 0 | BY31: 0 | BZ31: 20 | CA31: 10 | CB31: 0 | CC31: 0 | CD31: 20 | CE31: 10 | CF31: 0 | CG31: 0 | CH31: 20 | CI31: 10 | CJ31: 0 | CK31: 0 | CL31: 20 | CM31: 10 | CN31: 0 | CO31: 0 | CP31: 20 | CQ31: 10 | CR31: 0 | CS31: 0 | CT31: 20 | CU31: 10 | CV31: 0 | CW31: 0 | CX31: 20 | CY31: 10 | CZ31: 0 | DA31: 0 | DB31: 20 | DC31: 10 | DD31: 0 | DE31: 0 | DF31: 20 | DG31: 10 | DH31: 0 | DI31: 0 | DJ31: 20 | DK31: 10 | DL31: 0 | DM31: 0 | DN31: 20 | DO31: 10 | DP31: 0 | DQ31: 0 | DR31: 20 | DS31: 10 | DT31: 0 | DU31: 0 | DV31: 20 | DW31: 10 | DX31: 0 | DY31: 0 | DZ31: 620 | EA31: 310 | EB31: 0 | EC31: 0
